Workbook

Sheet HPイメージ
B2: あなたの経営をシミュレーションしてみませんか？？
B4: ①作目及び面積、従業員数を入力してください
D7: 作目No | E7: 作目 | G7: 面積(a) | K7: 単価（10a当たり） | M7: 収量（10a当たり）
B8: ※ | C8: 品目① | D8: 5 | E8: =IF(D$8="","",HLOOKUP(D$8,経営指標DATA!$H$2:$EP$109,経営指標DATA!$A3)) -> 小麦 | G8: 40 | K8: =IF(D$8="","",HLOOKUP(D$8,経営指標DATA!$H$2:$EP$109,経営指標DATA!$A7)) -> 166 | L8: 円 | M8: =IF(D$8="","",HLOOKUP(D$8,経営指標DATA!$H$2:$EP$109,経営指標DATA!$A5)) -> 450 | N8: kg
B10: ※ | C10: 品目② | D10: 5 | E10: =IF(D$10="","",HLOOKUP(D$10,経営指標DATA!$H$2:$EP$109,経営指標DATA!$A3)) -> 小麦 | G10: 40 | K10: =IF(D$10="","",HLOOKUP(D$10,経営指標DATA!$H$2:$EP$109,経営指標DATA!$A7)) -> 166 | L10: 円 | M10: =IF(D$10="","",HLOOKUP(D$10,経営指標DATA!$H$2:$EP$109,経営指標DATA!$A5)) -> 450 | N10: kg
B12: ※ | C12: 品目③ | D12: 5 | E12: =IF(D$12="","",HLOOKUP(D$12,経営指標DATA!$H$2:$EP$109,経営指標DATA!$A3)) -> 小麦 | G12: 40 | K12: =IF(D$12="","",HLOOKUP(D$12,経営指標DATA!$H$2:$EP$109,経営指標DATA!$A7)) -> 166 | L12: 円 | M12: =IF(D$12="","",HLOOKUP(D$12,経営指標DATA!$H$2:$EP$109,経営指標DATA!$A5)) -> 450 | N12: kg
B14: ※ | C14: 品目④ | D14: 5 | E14: =IF(D$14="","",HLOOKUP(D$14,経営指標DATA!$H$2:$EP$109,経営指標DATA!$A3)) -> 小麦 | G14: 40 | K14: =IF(D$14="","",HLOOKUP(D$14,経営指標DATA!$H$2:$EP$109,経営指標DATA!$A7)) -> 166 | L14: 円 | M14: =IF(D$14="","",HLOOKUP(D$14,経営指標DATA!$H$2:$EP$109,経営指標DATA!$A5)) -> 450 | N14: kg
B16: ※ | C16: 品目⑤ | D16: 5 | E16: =IF(D$16="","",HLOOKUP(D$16,経営指標DATA!$H$2:$EP$109,経営指標DATA!$A3)) -> 小麦 | G16: 40 | K16: =IF(D$16="","",HLOOKUP(D$16,経営指標DATA!$H$2:$EP$109,経営指標DATA!$A7)) -> 166 | L16: 円 | M16: =IF(D$16="","",HLOOKUP(D$16,経営指標DATA!$H$2:$EP$109,経営指標DATA!$A5)) -> 450 | N16: kg
C18: 労働人数 | D18: 4 | F18: 賃金 | G18: 5600 | H18: 円/日
B22: ② | C22: 計算ボタンをぽちっとな
D28: =D7 -> 作目No | E28: =E7 -> 作目 | G28: =G7 -> 面積(a) | I28: =結果・労働時間!F4 -> 粗収入 | K28: =結果・労働時間!G4 -> 経営費 | M28: =結果・労働時間!H4 -> 農業所得 | O28: =結果・労働時間!I4 -> 所得率 | Q28: =結果・労働時間!J4 -> 労働時間
B29: =B8 -> ※ | C29: =C8 -> 品目① | D29: =D8 -> 5 | E29: =E8 -> 小麦 | G29: =G8 -> 40 | I29: =結果・労働時間!F5 -> 298800 | K29: =結果・労働時間!G5 -> 219873.0783 | M29: =結果・労働時間!H5 -> 78926.92167 | O29: =結果・労働時間!I5 -> 26.41463242 | Q29: =結果・労働時間!J5 -> 33.6
B31: =B10 -> ※ | C31: =C10 -> 品目② | D31: =D10 -> 5 | E31: =E10 -> 小麦 | G31: =G10 -> 40 | I31: =結果・労働時間!F6 -> 298800 | K31: =結果・労働時間!G6 -> 219873.0783 | M31: =結果・労働時間!H6 -> 78926.92167 | O31: =結果・労働時間!I6 -> 26.41463242 | Q31: =結果・労働時間!J6 -> 33.6
B33: =B12 -> ※ | C33: =C12 -> 品目③ | D33: =D12 -> 5 | E33: =E12 -> 小麦 | G33: =G12 -> 40 | I33: =結果・労働時間!F7 -> 298800 | K33: =結果・労働時間!G7 -> 219873.0783 | M33: =結果・労働時間!H7 -> 78926.92167 | O33: =結果・労働時間!I7 -> 26.41463242 | Q33: =結果・労働時間!J7 -> 33.6
B35: =B14 -> ※ | C35: =C14 -> 品目④ | D35: =D14 -> 5 | E35: =E14 -> 小麦 | G35: =G14 -> 40 | I35: =結果・労働時間!F8 -> 298800 | K35: =結果・労働時間!G8 -> 219873.0783 | M35: =結果・労働時間!H8 -> 78926.92167 | O35: =結果・労働時間!I8 -> 26.41463242 | Q35: =結果・労働時間!J8 -> 33.6
B37: =B16 -> ※ | C37: =C16 -> 品目⑤ | D37: =D16 -> 5 | E37: =E16 -> 小麦 | G37: =G16 -> 40 | I37: =結果・労働時間!F9 -> 298800 | K37: =結果・労働時間!G9 -> 219873.0783 | M37: =結果・労働時間!H9 -> 78926.92167 | O37: =結果・労働時間!I9 -> 26.41463242 | Q37: =結果・労働時間!J9 -> 33.6
G39: 合計 | I39: =結果・労働時間!F10 -> 1494000 | K39: =結果・労働時間!G10 -> 1099365.392 | M39: =結果・労働時間!H10 -> 394634.6083 | O39: =結果・労働時間!I10 -> 26.41463242 | Q39: =結果・労働時間!J10 -> 168
B42: ③ | C42: リセットボタンで初期化

Sheet 項目リスト
B1: 経営指標2020 メニューリスト ※内容や数値については熊本県経営指標を参照しています
B2: 1 | C2: 水稲40ha | D2: 26 | E2: 夏秋ｷｭｳﾘ | F2: 51 | G2: ﾆｶﾞｳﾘ | H2: 76 | I2: 極早生温州 | J2: 101 | K2: すももﾊｳｽ | L2: 126 | M2: 鶏:採卵3万羽規模千羽当
B3: 2 | C3: 水稲20ha | D3: 27 | E3: 夏秋ﾋﾟｰﾏﾝ | F3: 52 | G3: 深ﾈｷﾞ | H3: 77 | I3: 早生温州 | J3: 102 | K3: かき太秋 | L3: 127 | M3: 鶏:ﾌﾞﾛｲﾗｰ5万羽規模千羽当
B4: 3 | C4: 水稲10ha | D4: 28 | E4: 冬春ﾋﾟｰﾏﾝ | F4: 53 | G4: ﾆﾗ | H4: 78 | I4: 普通温州 | J4: 103 | K4: ぶどうﾄﾝﾈﾙ | L4: 128 | M4: 水稲（ドローン）
B5: 4 | C5: 水稲5ha | D5: 29 | E5: 春夏ｽｲｶ | F5: 54 | G5: ｽﾅｯﾌﾟｴﾝﾄﾞｳ | H5: 79 | I5: ﾊｳｽみかん | J5: 104 | K5: ぶどう無加温 | L5: 129 | M5: 酪農80頭（搾乳ロボット等）
B6: 5 | C6: 小麦 | D6: 30 | E6: 小玉ｽｲｶ | F6: 55 | G6: ﾌﾞﾛｯｺﾘｰ | H6: 80 | I6: ﾊｳｽみかん(ｸﾞﾘｰﾝ) | J6: 105 | K6: くり | L6: 130 | M6: 酪農200頭（搾乳ロボット等）
B7: 6 | C7: 大麦 | D7: 31 | E7: 春夏ﾒﾛﾝｱﾝﾃﾞｽ | F7: 56 | G7: 電照ｷﾞｸ12月切り | H7: 81 | I7: 不知火露地 | J7: 106 | K7: いちじく無加温 | L7: 131 | M7: 肉用牛繁殖８０頭（哺乳ロボット等）
B8: 7 | C8: 大豆 | D8: 32 | E8: 春夏ﾒﾛﾝ ｸｲﾝｼｰ | F8: 57 | G8: 小ｷﾞｸ 夏秋切り | H8: 82 | I8: 不知火屋根かけ | J8: 107 | K8: いちじく加温 | L8: 132 | M8: 肉用牛繁殖200頭（哺乳ロボット等）
B9: 8 | C9: ｶﾝｼｮ | D9: 33 | E9: 春夏ﾒﾛﾝ肥後ｸﾞﾘｰﾝ | F9: 58 | G9: ｽﾌﾟﾚｰｷﾞｸ12月切り | H9: 83 | I9: 不知火加温 | J9: 108 | K9: ﾌﾞﾙｰﾍﾞﾘｰ | L9: 133
B10: 9 | C10: ﾊﾞﾚｲｼｮ | D10: 34 | E10: 春夏ﾒﾛﾝｱｰﾙｽ | F10: 59 | G10: ｶｰﾈｰｼｮﾝ | H10: 84 | I10: 甘夏 | J10: 109 | K10: ﾏﾝｺﾞｰ | L10: 134
B11: 10 | C11: ｻﾄｲﾓ | D11: 35 | E11: 秋冬ﾒﾛﾝ抑制 | F11: 60 | G11: ｽﾌﾟﾚｰｶｰﾈｰｼｮﾝ | H11: 85 | I11: 晩白柚露地 | J11: 110 | K11: 茶 | L11: 135
B12: 11 | C12: 冬ﾆﾝｼﾞﾝ | D12: 36 | E12: ｲﾁｺﾞ | F12: 61 | G12: ﾊﾞﾗ | H12: 86 | I12: 晩白柚ﾊｳｽ | J12: 111 | K12: いぐさ畳表 | L12: 136
B13: 12 | C13: 春ﾆﾝｼﾞﾝ | D13: 37 | E13: ｲﾁｺﾞ高設 | F13: 62 | G13: 宿根ｶｽﾐｿｳ二度切り | H13: 87 | I13: ﾎﾟﾝｶﾝ | J13: 112 | K13: 葉たばこ | L13: 137
B14: 13 | C14: 夏秋ﾀﾞｲｺﾝ | D14: 38 | E14: ｲﾝｹﾞﾝ半促成 | F14: 63 | G14: 宿根ｶｽﾐｿｳ加温促成 | H14: 88 | I14: 清見 | J14: 113 | K14: 乳牛50頭 | L14: 138
B15: 14 | C15: 春ﾀﾞｲｺﾝ | D15: 39 | E15: ｲﾝｹﾞﾝ抑制 | F15: 64 | G15: ｸｼﾞｬｸｱｽﾀｰ 周年 | H15: 89 | I15: 河内晩柑 | J15: 114 | K15: 乳牛80頭 | L15: 139
B16: 15 | C16: 水田ｺﾞﾎﾞｳ | D16: 40 | E16: ｵｸﾗ露地 | F16: 65 | G16: ｽﾀｰﾁｽ加温促成 | H16: 90 | I16: ﾊｳｽｷﾝｶﾝ | J16: 115 | K16: 乳牛200頭 | L16: 140
B17: 16 | C17: ﾀﾏﾈｷﾞ | D17: 41 | E17: ｱｽﾊﾟﾗｶﾞｽ | F17: 66 | G17: ｽﾀｰﾁｽ夏秋切り | H17: 91 | I17: ゆず | J17: 116 | K17: 肉用牛(繁殖)30頭(黒毛) | L17: 141
B18: 17 | C18: ｽｨｰﾄｺｰﾝ | D18: 42 | E18: ｷｬﾍﾞﾂ夏秋 | F18: 67 | G18: ﾄﾙｺｷﾞｷｮｳ 年内 | H18: 92 | I18: なし幸水･露地 | J18: 117 | K18: 肉用牛(繁殖)80頭(黒毛) | L18: 142
B19: 18 | C19: 夏秋ﾄﾏﾄ | D19: 43 | E19: ｷｬﾍﾞﾂ冬 | F19: 68 | G19: ﾄﾙｺｷﾞｷｮｳ夏秋切り | H19: 93 | I19: なし幸水ﾄﾝﾈﾙ | J19: 118 | K19: 肉用牛(繁殖)200頭(黒毛) | L19: 143
B20: 19 | C20: 冬ﾄﾏﾄ | D20: 44 | E20: 冬ﾚﾀｽ | F20: 69 | G20: ｽﾄｯｸ11~12月 | H20: 94 | I20: なし豊水 | J20: 119 | K20: 肉用牛(繁殖肥育)100頭(黒毛) | L20: 144
B21: 20 | C21: 冬春ﾄﾏﾄ | D21: 45 | E21: ﾎｳﾚﾝｿｳ夏秋 | F21: 70 | G21: ﾘﾝﾄﾞｳ夏秋 | H21: 95 | I21: なし新高 | J21: 120 | K21: 肉用牛(肥育)300頭(黒毛) | L21: 145
B22: 21 | C22: ﾐﾆﾄﾏﾄ | D22: 46 | E22: ﾊｸｻｲ秋冬 | F22: 71 | G22: ｱﾘｳﾑ3~4月 | H22: 96 | I22: なしあきづき | J22: 121 | K22: 肉用牛(肥育)400頭(交雑種) | L22: 146
B23: 22 | C23: 夏秋ﾐﾆﾄﾏﾄ | D23: 47 | E23: 小ﾈｷﾞ | F23: 72 | G23: ｶﾗｰ周年 | H23: 97 | I23: なし秋麗 | J23: 122 | K23: 豚 | L23: 147
B24: 23 | C24: 冬春ﾅｽ | D24: 48 | E24: ｼｮｳｶﾞ | F24: 73 | G24: ｵﾘｴﾝﾀﾙﾕﾘ12月 | H24: 98 | I24: もも露地 | J24: 123 | K24: 鶏採卵 | L24: 148
B25: 24 | C25: 夏秋ﾅｽ | D25: 49 | E25: ﾚﾝｺﾝﾊｳｽ | F25: 74 | G25: ｼｸﾗﾒﾝ12月 | H25: 99 | I25: ももﾄﾝﾈﾙ | J25: 124 | K25: 鶏肉用鶏 | L25: 149
B26: 25 | C26: 冬春ｷｭｳﾘ | D26: 50 | E26: ﾚﾝｺﾝ | F26: 75 | G26: ﾊﾟﾝｼﾞｰ10~11月 | H26: 100 | I26: もも加温 | J26: 125 | K26: 飼料用米 | L26: 150
J27: ※畜産は全て１頭当たり,家鶏は千頭当たり

Sheet 入力説明
B2: 基本シート※NO.面積入力後10aで自動計算
B3: 作物名・作型等 項目 | H3: 1 | Z3: 損益分岐点粗収入＝固定費÷（１－変動費比率）
H4: =IF(H$3="","",HLOOKUP(H$3,経営指標DATA!$H$2:$EP$109,経営指標DATA!$A3)) -> 水稲 40ha | J4: 計算シート | Z4: ＝固定費÷（１－変動費÷農業粗収入）
B5: 経営面積（a） | H5: 10 | P5: 経営面積（a） | V5: 10 | Z5: 10a当たり
B6: 生産販売 | E6: 生産量 | G6: kg・本・頭 | H6: =IF(H$3="","",HLOOKUP(H$3,経営指標DATA!$H$2:$EP$109,経営指標DATA!$A5))*$H$5/10 -> 520 | K6: 青色セル | P6: 生産販売 | S6: 生産量 | U6: kg・本・頭 | V6: =IF(H$3="","",HLOOKUP(H$3,経営指標DATA!$H$2:$EP$109,経営指標DATA!$A5))*$V$5/10 -> 520 | AA6: 売上(粗収益) | AB6: =$V$12 -> 118860 | AE6: 変動比率
E7: 販売量 | H7: =IF(H$3="","",HLOOKUP(H$3,経営指標DATA!$H$2:$EP$109,経営指標DATA!$A6))*$H$5/10 -> 494 | K7: ↓ 入力可能シート | S7: 販売量 | V7: =IF(H$3="","",HLOOKUP(H$3,経営指標DATA!$H$2:$EP$109,経営指標DATA!$A6))*$V$5/10 -> 494 | AA7: 固定費 | AB7: =$L$52 -> 27529.2 | AF7: =AB8/AB6*100 -> 41.17516406 | AG7: %
E8: 単価 | G8: 円/kg・本・頭 | H8: =IF(H$3="","",HLOOKUP(H$3,経営指標DATA!$H$2:$EP$109,経営指標DATA!$A7)) -> 240 | S8: 単価 | U8: 円/kg・本・頭 | V8: =IF(H$3="","",HLOOKUP(H$3,経営指標DATA!$H$2:$EP$109,経営指標DATA!$A7)) -> 240 | AA8: 変動費 | AB8: =$M$52*V5/H5 -> 48940.8 | AE8: 損益分岐点粗収入
B9: 販売金額 | E9: 主産物 | H9: =IF(H$3="","",HLOOKUP(H$3,経営指標DATA!$H$2:$EP$109,経営指標DATA!$A8))*$H$5/10 -> 118560 | L9: ※固定費はそのまま | P9: 販売金額 | S9: 主産物 | V9: =IF(H$3="","",HLOOKUP(H$3,経営指標DATA!$H$2:$EP$109,経営指標DATA!$A8))*$V$5/10 -> 118560 | AA9: 経常利益 | AB9: =AB6-AB7-AB8 -> 42390 | AF9: =AB7/(1-(AB8/AB6)) -> 46798.60056
E10: 副産物 | H10: =IF(H$3="","",HLOOKUP(H$3,経営指標DATA!$H$2:$EP$109,経営指標DATA!$A9))*$H$5/10 -> 300 | L10: ※変動費は面積換算し、計算シートに反映 | S10: 副産物 | V10: =IF(H$3="","",HLOOKUP(H$3,経営指標DATA!$H$2:$EP$109,経営指標DATA!$A9))*$V$5/10 -> 300
B11: 奨励金等 | E11: 奨励金・助成金 | H11: =IF(H$3="","",HLOOKUP(H$3,経営指標DATA!$H$2:$EP$109,経営指標DATA!$A10)) -> 0 | P11: 奨励金等 | S11: 奨励金・助成金 | V11: =IF(H$3="","",HLOOKUP(H$3,経営指標DATA!$H$2:$EP$109,経営指標DATA!$A10)) -> 0 | Z11: 売上範囲 | AA11: 0 | AB11: =$AB$6 -> 118860 | AD11: 定数 | AE11: =AB8/AB6 -> 0.4117516406
B12: 農業総収入 | H12: =H9+H10 -> 118860 | P12: 農業総収入 | V12: =V9+V10 -> 118860 | Z12: 売上 | AA12: 0 | AB12: =$AB$6 -> 118860 | AD12: 切片 | AE12: =AB7 -> 27529.2
B13: 農業粗収益（販売経費差引後） | H13: =IF(H$3="","",HLOOKUP(H$3,経営指標DATA!$H$2:$EP$109,経営指標DATA!$A12))*$H$5/10 -> 101102 | J13: 固定費と変動費の割合を記入 | P13: 農業粗収益（販売経費差引後） | V13: =IF(H$3="","",HLOOKUP(H$3,経営指標DATA!$H$2:$EP$109,経営指標DATA!$A12))*$V$5/10 -> 101102 | X13: 結果・労働時間シート | Z13: 変動 | AA13: =$AB$7 -> 27529.2 | AB13: =AE11*AB6+AA13 -> 76470 | AD13: 損益分岐点 | AE13: =AB7/(1-AE11) -> 46798.60056
B14: 手取り単価 | H14: =IF(H$3="","",HLOOKUP(H$3,経営指標DATA!$H$2:$EP$109,経営指標DATA!$A13)) -> 204.659919 | J14: ↓ | K14: ↓ | P14: 手取り単価 | V14: =IF(H$3="","",HLOOKUP(H$3,経営指標DATA!$H$2:$EP$109,経営指標DATA!$A13)) -> 204.659919 | Z14: 固定 | AA14: =$AB$7 -> 27529.2 | AB14: =$AB$7 -> 27529.2
B15: [費 用] | J15: 固定費％ | K15: 変動費％ | L15: 固定費 | M15: 変動費 | N15: 確認欄 | P15: [費 用] | AD15: 現在の売上 | AF15: =$V$12 -> 118860
B16: 全算入生産費 | C16: 支払利子・支払地代算入生産費 | D16: 副産物価格差引生産費 | E16: 種苗費 | H16: =IF(H$3="","",HLOOKUP(H$3,経営指標DATA!$H$2:$EP$109,経営指標DATA!$A15))*$H$5/10 -> 1586 | J16: 0.2 | K16: 0.8 | L16: =H16*J16 -> 317.2 | M16: =H16*K16 -> 1268.8 | P16: 全算入生産費 | Q16: 支払利子・支払地代算入生産費 | R16: 副産物価格差引生産費 | S16: 種苗費 | V16: =L16+(M16*$V$5/$H$5) -> 1586 | AA16: 限界利益率 | AB16: =((V13-AB8)/V13)*100 -> 51.59264901 | AD16: 損益分岐点安全余裕率 | AF16: =(AF15-AE13)/AF15 -> 0.6062712388
E17: 肥料費 | H17: =IF(H$3="","",HLOOKUP(H$3,経営指標DATA!$H$2:$EP$109,経営指標DATA!$A16))*$H$5/10 -> 8485 | J17: 0 | K17: 1 | L17: =H17*J17 -> 0 | M17: =H17*K17 -> 8485 | S17: 肥料費 | V17: 8485 | AD17: 利益予想 | AF17: =AF15*(1-(AB8/AB6))-AB7 -> 42390
E18: 素畜費・種付費 | H18: =IF(H$3="","",HLOOKUP(H$3,経営指標DATA!$H$2:$EP$109,経営指標DATA!$A17))*$H$5/10 -> 0 | J18: 0 | K18: 1 | L18: 0 | M18: 0 | S18: 素畜費・種付費 | V18: 0
E19: 飼料費 | H19: =IF(H$3="","",HLOOKUP(H$3,経営指標DATA!$H$2:$EP$109,経営指標DATA!$A18))*$H$5/10 -> 0 | J19: 0 | K19: 1 | L19: 0 | M19: 0 | S19: 飼料費 | V19: 0
E20: 農薬・衛生費 | H20: =IF(H$3="","",HLOOKUP(H$3,経営指標DATA!$H$2:$EP$109,経営指標DATA!$A19))*$H$5/10 -> 8436 | J20: 0 | K20: 1 | L20: 0 | M20: 8436 | S20: 農薬・衛生費 | V20: 8436
E21: 動力光熱費 | H21: =IF(H$3="","",HLOOKUP(H$3,経営指標DATA!$H$2:$EP$109,経営指標DATA!$A20))*$H$5/10 -> 3221 | J21: 0 | K21: 1 | L21: 0 | M21: 3221 | S21: 動力光熱費 | V21: 3221
E22: 諸材料費・敷料費 | H22: =IF(H$3="","",HLOOKUP(H$3,経営指標DATA!$H$2:$EP$109,経営指標DATA!$A21))*$H$5/10 -> 2569 | J22: 0 | K22: 1 | L22: 0 | M22: 2569 | S22: 諸材料費・敷料費 | V22: 2569
E23: 小農具費・作業衣料費 | H23: =IF(H$3="","",HLOOKUP(H$3,経営指標DATA!$H$2:$EP$109,経営指標DATA!$A22))*$H$5/10 -> 177 | J23: 1 | K23: 0 | L23: 177 | M23: 0 | S23: 小農具費・作業衣料費 | V23: 177
E24: 賃借料・料金 | H24: =IF(H$3="","",HLOOKUP(H$3,経営指標DATA!$H$2:$EP$109,経営指標DATA!$A23))*$H$5/10 -> 0 | J24: 1 | K24: 0 | L24: 0 | M24: 0 | S24: 賃借料・料金 | V24: 0
E25: 物件税・租税公課 | H25: =IF(H$3="","",HLOOKUP(H$3,経営指標DATA!$H$2:$EP$109,経営指標DATA!$A24))*$H$5/10 -> 4100 | J25: 1 | K25: 0 | L25: 4100 | M25: 0 | S25: 物件税・租税公課 | V25: 4100
E26: 保険共済費 | H26: =IF(H$3="","",HLOOKUP(H$3,経営指標DATA!$H$2:$EP$109,経営指標DATA!$A25))*$H$5/10 -> 825 | J26: 1 | K26: 0 | L26: 825 | M26: 0 | S26: 保険共済費 | V26: 825
E27: 土地改良水利費 | H27: =IF(H$3="","",HLOOKUP(H$3,経営指標DATA!$H$2:$EP$109,経営指標DATA!$A26))*$H$5/10 -> 3000 | J27: 1 | K27: 0 | L27: 3000 | M27: 0 | S27: 土地改良水利費 | V27: 3000
E28: 修繕費 | H28: =IF(H$3="","",HLOOKUP(H$3,経営指標DATA!$H$2:$EP$109,経営指標DATA!$A27))*$H$5/10 -> 3173 | J28: 0 | K28: 1 | L28: 0 | M28: 3173 | S28: 修繕費 | V28: 3173
E29: 減価償却費 | H29: =SUM(H30:H33) -> 10448 | L29: =SUM(L30:L33) -> 10448 | M29: =SUM(M30:M33) -> 0 | N29: =IF(H29=SUM(L29:M29),"OK","NG") -> OK | S29: 減価償却費 | V29: =SUM(V30:V33) -> 10448
E30: ※ | F30: 建物・施設 | H30: =IF(H$3="","",HLOOKUP(H$3,経営指標DATA!$H$2:$EP$109,経営指標DATA!$A29))*$H$5/10 -> 1397 | J30: 1 | K30: 0 | L30: =H30*J30 -> 1397 | M30: =H30*K30 -> 0 | S30: ※ | T30: 建物・施設 | V30: =L30+M30*$V$5/$H$5 -> 1397
E31: ※ | F31: 農機具 | H31: =IF(H$3="","",HLOOKUP(H$3,経営指標DATA!$H$2:$EP$109,経営指標DATA!$A30))*$H$5/10 -> 9051 | J31: 1 | K31: 0 | L31: 9051 | M31: 0 | S31: ※ | T31: 農機具 | V31: =L31+M31*$V$5/$H$5 -> 9051
E32: ※ | F32: 大植物（大動物） | H32: =IF(H$3="","",HLOOKUP(H$3,経営指標DATA!$H$2:$EP$109,経営指標DATA!$A31))*$H$5/10 -> 0 | J32: 0 | K32: 1 | L32: 0 | M32: 0 | S32: ※ | T32: 大植物（大動物） | V32: =L32+M32*$V$5/$H$5 -> 0
E33: ※ | F33: 生産管理機器 | H33: =IF(H$3="","",HLOOKUP(H$3,経営指標DATA!$H$2:$EP$109,経営指標DATA!$A32))*$H$5/10 -> 0 | J33: 0 | K33: 1 | L33: 0 | M33: 0 | S33: ※ | T33: 生産管理機器 | V33: =L33+M33*$V$5/$H$5 -> 0
E34: 生産管理費 | H34: =IF(H$3="","",HLOOKUP(H$3,経営指標DATA!$H$2:$EP$109,経営指標DATA!$A33))*$H$5/10 -> 100 | J34: 1 | K34: 0 | L34: 100 | M34: 0 | S34: 生産管理費 | V34: =L34+M34*$V$5/$H$5 -> 100
E35: 物財費計 | H35: =SUM(H16:H29,H34) -> 46120 | L35: =SUM(L16:L29)+L34 -> 18967.2 | M35: =SUM(M16:M29)+M34 -> 27152.8 | N35: =IF(H35=SUM(L35:M35),"OK","NG") -> OK | S35: 物財費計 | V35: =SUM(V16:V29,V34) -> 46120
E36: 労働費 | H36: =H37+H38 -> 11928 | L36: =SUM(L37:L38) -> 7898 | M36: =SUM(M37:M38) -> 4030 | N36: =IF(H36=SUM(L36:M36),"OK","NG") -> OK | S36: 労働費 | V36: =V37+V38 -> 11928
F37: 雇用労働費 | H37: =IF(H$3="","",HLOOKUP(H$3,経営指標DATA!$H$2:$EP$109,経営指標DATA!$A36))*$H$5/10 -> 4030 | J37: 0 | K37: 1 | L37: =H37*J37 -> 0 | M37: =H37*K37 -> 4030 | T37: 雇用労働費 | V37: =L37+M37*$V$5/$H$5 -> 4030
F38: 家族労働見積額 | H38: =IF(H$3="","",HLOOKUP(H$3,経営指標DATA!$H$2:$EP$109,経営指標DATA!$A37))*$H$5/10 -> 7898 | J38: 1 | K38: 0 | L38: 7898 | M38: 0 | T38: 家族労働見積額 | V38: =L38+M38*$V$5/$H$5 -> 7898
E39: 費用計 | H39: =H35+H37 -> 50150 | L39: =SUM(L35+L37) -> 18967.2 | M39: =SUM(M35+M37) -> 31182.8 | N39: =IF(H39=SUM(L39:M39),"OK","NG") -> OK | S39: 費用計 | V39: =V35+V37 -> 50150
D40: 副産物価格差引生産費 | H40: =H39-H10 -> 49850 | R40: 副産物価格差引生産費 | V40: =V39-V10 -> 49850
D41: 支払い利子 | H41: =IF(H$3="","",HLOOKUP(H$3,経営指標DATA!$H$2:$EP$109,経営指標DATA!$A40))*$H$5/10 -> 562 | J41: 1 | K41: 0 | L41: =H41*J41 -> 562 | M41: =H41*K41 -> 0 | N41: =IF(H41=SUM(L41:M41),"OK","NG") -> OK | R41: 支払い利子 | V41: =L41+M41*$V$5/$H$5 -> 562
D42: 支払い地代 | H42: =IF(H$3="","",HLOOKUP(H$3,経営指標DATA!$H$2:$EP$109,経営指標DATA!$A41))*$H$5/10 -> 8000 | J42: 1 | K42: 0 | L42: 8000 | M42: 0 | N42: =IF(H42=SUM(L42:M42),"OK","NG") -> OK | R42: 支払い地代 | V42: =L42+M42*$V$5/$H$5 -> 8000
C43: 支払利子・支払地代参入生産費 | H43: =H40+H41+H42 -> 58412 | Q43: 支払利子・支払地代参入生産費 | V43: =V40+V41+V42 -> 58412
D44: 自己資本利子 | H44: =IF(H$3="","",HLOOKUP(H$3,経営指標DATA!$H$2:$EP$109,経営指標DATA!$A43))*$H$5/10 -> 674 | J44: 1 | K44: 0 | L44: =H44*J44 -> 674 | M44: =H44*K44 -> 0 | N44: =IF(H44=SUM(L44:M44),"OK","NG") -> OK | R44: 自己資本利子 | V44: =L44+M44*$V$5/$H$5 -> 674
D45: 自作地地代 | H45: =IF(H$3="","",HLOOKUP(H$3,経営指標DATA!$H$2:$EP$109,経営指標DATA!$A44))*$H$5/10 -> 2000 | J45: 1 | K45: 0 | L45: 2000 | M45: =H45*K45 -> 0 | N45: =IF(H45=SUM(L45:M45),"OK","NG") -> OK | R45: 自作地地代 | V45: =L45+M45*$V$5/$H$5 -> 2000
C46: 全算入生産費 | H46: =H43+H44+H45 -> 61086 | M46: =M42+M43+M44+M45 -> 0 | Q46: 全算入生産費 | V46: =V43+V44+V45 -> 61086
B47: 販売費及び 一般管理費 | E47: 選果出荷経費 | H47: =IF(H$3="","",HLOOKUP(H$3,経営指標DATA!$H$2:$EP$109,経営指標DATA!$A46))*$H$5/10 -> 10950 | K47: 1 | L47: =H47*J47 -> 0 | M47: =H47*K47 -> 10950 | P47: 販売費及び 一般管理費 | S47: 選果出荷経費 | V47: =IF(H$3="","",HLOOKUP(H$3,経営指標DATA!$H$2:$EP$109,経営指標DATA!$A46))*$V$5/10 -> 10950
E48: 運賃 | H48: =IF(H$3="","",HLOOKUP(H$3,経営指標DATA!$H$2:$EP$109,経営指標DATA!$A47))*$H$5/10 -> 0 | K48: 1 | L48: 0 | M48: 0 | S48: 運賃 | V48: =IF(H$3="","",HLOOKUP(H$3,経営指標DATA!$H$2:$EP$109,経営指標DATA!$A47))*$V$5/10 -> 0
E49: 手数料 | H49: =IF(H$3="","",HLOOKUP(H$3,経営指標DATA!$H$2:$EP$109,経営指標DATA!$A48))*$H$5/10 -> 6248 | K49: 1 | L49: 0 | M49: 6248 | S49: 手数料 | V49: =IF(H$3="","",HLOOKUP(H$3,経営指標DATA!$H$2:$EP$109,経営指標DATA!$A48))*$V$5/10 -> 6248
E50: 一般管理費 | H50: =IF(H$3="","",HLOOKUP(H$3,経営指標DATA!$H$2:$EP$109,経営指標DATA!$A49))*$H$5/10 -> 560 | K50: 1 | L50: 0 | M50: 560 | S50: 一般管理費 | V50: =IF(H$3="","",HLOOKUP(H$3,経営指標DATA!$H$2:$EP$109,経営指標DATA!$A49))*$V$5/10 -> 560
E51: 計 | H51: =H47+H48+H49+H50 -> 17758 | J51: 販売費及び一般管理費 | L51: =L47+L48+L49+L50 -> 0 | M51: =M47+M48+M49+M50 -> 17758 | S51: 計 | V51: =V47+V48+V49+V50 -> 17758
J52: 経営費（固定費、変動費） | L52: =L39+L41+L42+L51 -> 27529.2 | M52: =M39+M41+M42+M51 -> 48940.8 | P52: 経営費合計 | V52: =V39+V41+V42+V51 -> 76470
B53: [経営指標] | P53: [経営指標]
B54: 農業経営費（販売費及び一般管理費含む） | H54: =H35+H37+H41+H42+H51 -> 76470 | P54: 農業経営費（販売費及び一般管理費含む） | V54: =V35+V37+V41+V42+V51 -> 76470 | X54: 結果・労働時間シート
B55: 農業所得 | H55: =H12-H54 -> 42390 | P55: 農業所得 | V55: =V12-V54 -> 42390 | X55: 結果・労働時間シート
B56: 農業所得率（農業所得÷農業経営費×100） | H56: =(H55/H12)*100 -> 35.66380616 | P56: 農業所得率（農業所得÷農業経営費×100） | V56: =(V55/V12)*100 -> 35.66380616 | X56: 結果・労働時間シート
B57: 1日当たり農業所得 | H57: =IF(H$3="","",HLOOKUP(H$3,経営指標DATA!$H$2:$EP$109,経営指標DATA!$A56)) -> 41867 | P57: 1日当たり農業所得 | V57: =IF(H$3="","",HLOOKUP(H$3,経営指標DATA!$H$2:$EP$109,経営指標DATA!$A56)) -> 41867
B58: 1日当たり家族労働報酬 | H58: =IF(H$3="","",HLOOKUP(H$3,経営指標DATA!$H$2:$EP$109,経営指標DATA!$A57)) -> 39226 | P58: 1日当たり家族労働報酬 | V58: =IF(H$3="","",HLOOKUP(H$3,経営指標DATA!$H$2:$EP$109,経営指標DATA!$A57)) -> 39226
B60: 労働時間計 | H60: =IF(H$3="","",HLOOKUP(H$3,経営指標DATA!$H$2:$EP$109,経営指標DATA!$A59))*$H$5/10 -> 12 | P60: 労働時間計 | V60: =IF(H$3="","",HLOOKUP(H$3,経営指標DATA!$H$2:$EP$109,経営指標DATA!$A59))*$V$5/10 -> 12
C61: うち家族労働時間 | H61: =IF(H$3="","",HLOOKUP(H$3,経営指標DATA!$H$2:$EP$109,経営指標DATA!$A60))*$H$5/10 -> 8 | Q61: うち家族労働時間 | V61: =IF(H$3="","",HLOOKUP(H$3,経営指標DATA!$H$2:$EP$109,経営指標DATA!$A60))*$V$5/10 -> 8
C62: うち雇用労働時間 | H62: =IF(H$3="","",HLOOKUP(H$3,経営指標DATA!$H$2:$EP$109,経営指標DATA!$A61))*$H$5/10 -> 4 | Q62: うち雇用労働時間 | V62: =IF(H$3="","",HLOOKUP(H$3,経営指標DATA!$H$2:$EP$109,経営指標DATA!$A61))*$V$5/10 -> 4
X63: 記入用
G64: 1月上半月 | H64: =IF(H$3="","",HLOOKUP(H$3,経営指標DATA!$H$2:$EP$109,経営指標DATA!$A64))*$H$5/10 -> 0 | U64: 1月上半月 | V64: =IF(H$3="","",HLOOKUP(H$3,経営指標DATA!$H$2:$EP$109,経営指標DATA!$A64))*$V$5/10 -> 0 | X64: =V64 -> 0
G65: 1月下半月 | H65: =IF(H$3="","",HLOOKUP(H$3,経営指標DATA!$H$2:$EP$109,経営指標DATA!$A65))*$H$5/10 -> 0 | U65: 1月下半月 | V65: =IF(H$3="","",HLOOKUP(H$3,経営指標DATA!$H$2:$EP$109,経営指標DATA!$A65))*$V$5/10 -> 0 | X65: 0
G66: 2月上半月 | H66: =IF(H$3="","",HLOOKUP(H$3,経営指標DATA!$H$2:$EP$109,経営指標DATA!$A66))*$H$5/10 -> 0 | U66: 2月上半月 | V66: =IF(H$3="","",HLOOKUP(H$3,経営指標DATA!$H$2:$EP$109,経営指標DATA!$A66))*$V$5/10 -> 0 | X66: 0
G67: 2月下半月 | H67: =IF(H$3="","",HLOOKUP(H$3,経営指標DATA!$H$2:$EP$109,経営指標DATA!$A67))*$H$5/10 -> 0 | U67: 2月下半月 | V67: =IF(H$3="","",HLOOKUP(H$3,経営指標DATA!$H$2:$EP$109,経営指標DATA!$A67))*$V$5/10 -> 0 | X67: 0
G68: 3月上半月 | H68: =IF(H$3="","",HLOOKUP(H$3,経営指標DATA!$H$2:$EP$109,経営指標DATA!$A68))*$H$5/10 -> 0 | U68: 3月上半月 | V68: =IF(H$3="","",HLOOKUP(H$3,経営指標DATA!$H$2:$EP$109,経営指標DATA!$A68))*$V$5/10 -> 0 | X68: 0
G69: 3月下半月 | H69: =IF(H$3="","",HLOOKUP(H$3,経営指標DATA!$H$2:$EP$109,経営指標DATA!$A69))*$H$5/10 -> 0 | U69: 3月下半月 | V69: =IF(H$3="","",HLOOKUP(H$3,経営指標DATA!$H$2:$EP$109,経営指標DATA!$A69))*$V$5/10 -> 0 | X69: 0
G70: 4月上半月 | H70: =IF(H$3="","",HLOOKUP(H$3,経営指標DATA!$H$2:$EP$109,経営指標DATA!$A70))*$H$5/10 -> 0.4 | U70: 4月上半月 | V70: =IF(H$3="","",HLOOKUP(H$3,経営指標DATA!$H$2:$EP$109,経営指標DATA!$A70))*$V$5/10 -> 0.4 | X70: 0.4
G71: 4月下半月 | H71: =IF(H$3="","",HLOOKUP(H$3,経営指標DATA!$H$2:$EP$109,経営指標DATA!$A71))*$H$5/10 -> 0.4 | U71: 4月下半月 | V71: =IF(H$3="","",HLOOKUP(H$3,経営指標DATA!$H$2:$EP$109,経営指標DATA!$A71))*$V$5/10 -> 0.4 | X71: 0.4
G72: 5月上半月 | H72: =IF(H$3="","",HLOOKUP(H$3,経営指標DATA!$H$2:$EP$109,経営指標DATA!$A72))*$H$5/10 -> 1.8 | L72: ※面積換算したもの | U72: 5月上半月 | V72: =IF(H$3="","",HLOOKUP(H$3,経営指標DATA!$H$2:$EP$109,経営指標DATA!$A72))*$V$5/10 -> 1.8 | X72: 1.8
G73: 5月下半月 | H73: =IF(H$3="","",HLOOKUP(H$3,経営指標DATA!$H$2:$EP$109,経営指標DATA!$A73))*$H$5/10 -> 1.8 | U73: 5月下半月 | V73: =IF(H$3="","",HLOOKUP(H$3,経営指標DATA!$H$2:$EP$109,経営指標DATA!$A73))*$V$5/10 -> 1.8 | X73: 1.8
G74: 6月上半月 | H74: =IF(H$3="","",HLOOKUP(H$3,経営指標DATA!$H$2:$EP$109,経営指標DATA!$A74))*$H$5/10 -> 1.25 | U74: 6月上半月 | V74: =IF(H$3="","",HLOOKUP(H$3,経営指標DATA!$H$2:$EP$109,経営指標DATA!$A74))*$V$5/10 -> 1.25 | X74: 1.25
G75: 6月下半月 | H75: =IF(H$3="","",HLOOKUP(H$3,経営指標DATA!$H$2:$EP$109,経営指標DATA!$A75))*$H$5/10 -> 1.25 | U75: 6月下半月 | V75: =IF(H$3="","",HLOOKUP(H$3,経営指標DATA!$H$2:$EP$109,経営指標DATA!$A75))*$V$5/10 -> 1.25 | X75: 1.25
G76: 7月上半月 | H76: =IF(H$3="","",HLOOKUP(H$3,経営指標DATA!$H$2:$EP$109,経営指標DATA!$A76))*$H$5/10 -> 0.9 | U76: 7月上半月 | V76: =IF(H$3="","",HLOOKUP(H$3,経営指標DATA!$H$2:$EP$109,経営指標DATA!$A76))*$V$5/10 -> 0.9 | X76: 0.9
G77: 7月下半月 | H77: =IF(H$3="","",HLOOKUP(H$3,経営指標DATA!$H$2:$EP$109,経営指標DATA!$A77))*$H$5/10 -> 0.9 | U77: 7月下半月 | V77: =IF(H$3="","",HLOOKUP(H$3,経営指標DATA!$H$2:$EP$109,経営指標DATA!$A77))*$V$5/10 -> 0.9 | X77: 0.9
G78: 8月上半月 | H78: =IF(H$3="","",HLOOKUP(H$3,経営指標DATA!$H$2:$EP$109,経営指標DATA!$A78))*$H$5/10 -> 0.45 | U78: 8月上半月 | V78: =IF(H$3="","",HLOOKUP(H$3,経営指標DATA!$H$2:$EP$109,経営指標DATA!$A78))*$V$5/10 -> 0.45 | X78: 0.45
G79: 8月下半月 | H79: =IF(H$3="","",HLOOKUP(H$3,経営指標DATA!$H$2:$EP$109,経営指標DATA!$A79))*$H$5/10 -> 0.45 | U79: 8月下半月 | V79: =IF(H$3="","",HLOOKUP(H$3,経営指標DATA!$H$2:$EP$109,経営指標DATA!$A79))*$V$5/10 -> 0.45 | X79: 0.45
G80: 9月上半月 | H80: =IF(H$3="","",HLOOKUP(H$3,経営指標DATA!$H$2:$EP$109,経営指標DATA!$A80))*$H$5/10 -> 0.25 | U80: 9月上半月 | V80: =IF(H$3="","",HLOOKUP(H$3,経営指標DATA!$H$2:$EP$109,経営指標DATA!$A80))*$V$5/10 -> 0.25 | X80: 0.25
G81: 9月下半月 | H81: =IF(H$3="","",HLOOKUP(H$3,経営指標DATA!$H$2:$EP$109,経営指標DATA!$A81))*$H$5/10 -> 0.25 | U81: 9月下半月 | V81: =IF(H$3="","",HLOOKUP(H$3,経営指標DATA!$H$2:$EP$109,経営指標DATA!$A81))*$V$5/10 -> 0.25 | X81: 0.25
G82: 10月上半月 | H82: =IF(H$3="","",HLOOKUP(H$3,経営指標DATA!$H$2:$EP$109,経営指標DATA!$A82))*$H$5/10 -> 0.15 | U82: 10月上半月 | V82: =IF(H$3="","",HLOOKUP(H$3,経営指標DATA!$H$2:$EP$109,経営指標DATA!$A82))*$V$5/10 -> 0.15 | X82: 0.15
G83: 10月下半月 | H83: =IF(H$3="","",HLOOKUP(H$3,経営指標DATA!$H$2:$EP$109,経営指標DATA!$A83))*$H$5/10 -> 0.15 | U83: 10月下半月 | V83: =IF(H$3="","",HLOOKUP(H$3,経営指標DATA!$H$2:$EP$109,経営指標DATA!$A83))*$V$5/10 -> 0.15 | X83: 0.15
G84: 11月上半月 | H84: =IF(H$3="","",HLOOKUP(H$3,経営指標DATA!$H$2:$EP$109,経営指標DATA!$A84))*$H$5/10 -> 0.7 | U84: 11月上半月 | V84: =IF(H$3="","",HLOOKUP(H$3,経営指標DATA!$H$2:$EP$109,経営指標DATA!$A84))*$V$5/10 -> 0.7 | X84: 0.7
G85: 11月下半月 | H85: =IF(H$3="","",HLOOKUP(H$3,経営指標DATA!$H$2:$EP$109,経営指標DATA!$A85))*$H$5/10 -> 0.7 | U85: 11月下半月 | V85: =IF(H$3="","",HLOOKUP(H$3,経営指標DATA!$H$2:$EP$109,経営指標DATA!$A85))*$V$5/10 -> 0.7 | X85: 0.7
G86: 12月上半月 | H86: =IF(H$3="","",HLOOKUP(H$3,経営指標DATA!$H$2:$EP$109,経営指標DATA!$A86))*$H$5/10 -> 0.2 | U86: 12月上半月 | V86: =IF(H$3="","",HLOOKUP(H$3,経営指標DATA!$H$2:$EP$109,経営指標DATA!$A86))*$V$5/10 -> 0.2 | X86: 0.2
G87: 12月下半月 | H87: =IF(H$3="","",HLOOKUP(H$3,経営指標DATA!$H$2:$EP$109,経営指標DATA!$A87))*$H$5/10 -> 0.2 | U87: 12月下半月 | V87: =IF(H$3="","",HLOOKUP(H$3,経営指標DATA!$H$2:$EP$109,経営指標DATA!$A87))*$V$5/10 -> 0.2 | X87: 0.2
G88: 計 | H88: =SUM(H64:H87) -> 12.2 | U88: 計 | V88: =SUM(V64:V87) -> 12.2 | X88: 12.2
X89: 0
G90: 1月 | H90: =IF(H$3="","",HLOOKUP(H$3,経営指標DATA!$H$2:$EP$109,経営指標DATA!$A90))*$H$5/10 -> 0 | U90: 1月 | V90: =IF(H$3="","",HLOOKUP(H$3,経営指標DATA!$H$2:$EP$109,経営指標DATA!$A90))*$V$5/10 -> 0 | X90: 0
G91: 2月 | H91: =IF(H$3="","",HLOOKUP(H$3,経営指標DATA!$H$2:$EP$109,経営指標DATA!$A91))*$H$5/10 -> 0 | U91: 2月 | V91: =IF(H$3="","",HLOOKUP(H$3,経営指標DATA!$H$2:$EP$109,経営指標DATA!$A91))*$V$5/10 -> 0 | X91: 0
G92: 3月 | H92: =IF(H$3="","",HLOOKUP(H$3,経営指標DATA!$H$2:$EP$109,経営指標DATA!$A92))*$H$5/10 -> 0 | U92: 3月 | V92: =IF(H$3="","",HLOOKUP(H$3,経営指標DATA!$H$2:$EP$109,経営指標DATA!$A92))*$V$5/10 -> 0 | X92: 0
G93: 4月 | H93: =IF(H$3="","",HLOOKUP(H$3,経営指標DATA!$H$2:$EP$109,経営指標DATA!$A93))*$H$5/10 -> 0.8 | U93: 4月 | V93: =IF(H$3="","",HLOOKUP(H$3,経営指標DATA!$H$2:$EP$109,経営指標DATA!$A93))*$V$5/10 -> 0.8 | X93: 0.8
G94: 5月 | H94: =IF(H$3="","",HLOOKUP(H$3,経営指標DATA!$H$2:$EP$109,経営指標DATA!$A94))*$H$5/10 -> 3.6 | U94: 5月 | V94: =IF(H$3="","",HLOOKUP(H$3,経営指標DATA!$H$2:$EP$109,経営指標DATA!$A94))*$V$5/10 -> 3.6 | X94: 3.6
G95: 6月 | H95: =IF(H$3="","",HLOOKUP(H$3,経営指標DATA!$H$2:$EP$109,経営指標DATA!$A95))*$H$5/10 -> 2.5 | U95: 6月 | V95: =IF(H$3="","",HLOOKUP(H$3,経営指標DATA!$H$2:$EP$109,経営指標DATA!$A95))*$V$5/10 -> 2.5 | X95: 2.5
G96: 7月 | H96: =IF(H$3="","",HLOOKUP(H$3,経営指標DATA!$H$2:$EP$109,経営指標DATA!$A96))*$H$5/10 -> 1.8 | U96: 7月 | V96: =IF(H$3="","",HLOOKUP(H$3,経営指標DATA!$H$2:$EP$109,経営指標DATA!$A96))*$V$5/10 -> 1.8 | X96: 1.8
G97: 8月 | H97: =IF(H$3="","",HLOOKUP(H$3,経営指標DATA!$H$2:$EP$109,経営指標DATA!$A97))*$H$5/10 -> 0.9 | U97: 8月 | V97: =IF(H$3="","",HLOOKUP(H$3,経営指標DATA!$H$2:$EP$109,経営指標DATA!$A97))*$V$5/10 -> 0.9 | X97: 0.9
G98: 9月 | H98: =IF(H$3="","",HLOOKUP(H$3,経営指標DATA!$H$2:$EP$109,経営指標DATA!$A98))*$H$5/10 -> 0.5 | U98: 9月 | V98: =IF(H$3="","",HLOOKUP(H$3,経営指標DATA!$H$2:$EP$109,経営指標DATA!$A98))*$V$5/10 -> 0.5 | X98: 0.5
G99: 10月 | H99: =IF(H$3="","",HLOOKUP(H$3,経営指標DATA!$H$2:$EP$109,経営指標DATA!$A99))*$H$5/10 -> 0.3 | U99: 10月 | V99: =IF(H$3="","",HLOOKUP(H$3,経営指標DATA!$H$2:$EP$109,経営指標DATA!$A99))*$V$5/10 -> 0.3 | X99: 0.3
G100: 11月 | H100: =IF(H$3="","",HLOOKUP(H$3,経営指標DATA!$H$2:$EP$109,経営指標DATA!$A100))*$H$5/10 -> 1.4 | U100: 11月 | V100: =IF(H$3="","",HLOOKUP(H$3,経営指標DATA!$H$2:$EP$109,経営指標DATA!$A100))*$V$5/10 -> 1.4 | X100: 1.4
G101: 12月 | H101: =IF(H$3="","",HLOOKUP(H$3,経営指標DATA!$H$2:$EP$109,経営指標DATA!$A101))*$H$5/10 -> 0.4 | U101: 12月 | V101: =IF(H$3="","",HLOOKUP(H$3,経営指標DATA!$H$2:$EP$109,経営指標DATA!$A101))*$V$5/10 -> 0.4 | X101: 0.4
G102: 計 | H102: =SUM(H90:H101) -> 12.2 | U102: 計 | V102: =SUM(V90:V101) -> 12.2 | X102: 12.2
X103: 0
G104: 検算→ | H104: =IF(H88=H102,"OK","NG ") -> OK | U104: 検算→ | V104: =IF(V88=V102,"OK","NG ") -> OK | X104: OK

Sheet 品目シート①
B2: 基本シート※NO.面積入力後10aで自動計算
B3: 作物名・作型等 項目 | H3: =HPイメージ!D8 -> 5 | Z3: 損益分岐点粗収入＝固定費÷（１－変動費比率）
H4: =IF(H$3="","",HLOOKUP(H$3,経営指標DATA!$H$2:$EP$109,経営指標DATA!$A3)) -> 小麦 | J4: 計算シート | Z4: ＝固定費÷（１－変動費÷農業粗収入）
B5: 経営面積（a） | H5: 10 | P5: 経営面積（a） | V5: =HPイメージ!G8 -> 40 | Z5: 10a当たり
B6: 生産販売 | E6: 生産量 | G6: kg・本・頭 | H6: =IF(H$3="","",HLOOKUP(H$3,経営指標DATA!$H$2:$EP$109,経営指標DATA!$A5))*$H$5/10 -> 450 | K6: 青色セル | P6: 生産販売 | S6: 生産量 | U6: kg・本・頭 | V6: =IF(H$3="","",HLOOKUP(H$3,経営指標DATA!$H$2:$EP$109,経営指標DATA!$A5))*$V$5/10 -> 1800 | AA6: 売上(粗収益) | AB6: =$V$12 -> 298800 | AE6: 変動比率
E7: 販売量 | H7: =IF(H$3="","",HLOOKUP(H$3,経営指標DATA!$H$2:$EP$109,経営指標DATA!$A6))*$H$5/10 -> 450 | K7: ↓ 入力可能シート | S7: 販売量 | V7: =IF(H$3="","",HLOOKUP(H$3,経営指標DATA!$H$2:$EP$109,経営指標DATA!$A6))*$V$5/10 -> 1800 | AA7: 固定費 | AB7: =$L$52 -> 0 | AF7: =AB8/AB6*100 -> 73.58536758 | AG7: %
E8: 単価 | G8: 円/kg・本・頭 | H8: =IF(H$3="","",HLOOKUP(H$3,経営指標DATA!$H$2:$EP$109,経営指標DATA!$A7)) -> 166 | S8: 単価 | U8: 円/kg・本・頭 | V8: =IF(H$3="","",HLOOKUP(H$3,経営指標DATA!$H$2:$EP$109,経営指標DATA!$A7)) -> 166 | AA8: 変動費 | AB8: =$M$52*V5/H5 -> 219873.0783 | AE8: 損益分岐点粗収入
B9: 販売金額 | E9: 主産物 | H9: =IF(H$3="","",HLOOKUP(H$3,経営指標DATA!$H$2:$EP$109,経営指標DATA!$A8))*$H$5/10 -> 74700 | L9: ※固定費はそのまま | P9: 販売金額 | S9: 主産物 | V9: =IF(H$3="","",HLOOKUP(H$3,経営指標DATA!$H$2:$EP$109,経営指標DATA!$A8))*$V$5/10 -> 298800 | AA9: 経常利益 | AB9: =AB6-AB7-AB8 -> 78926.92167 | AF9: =AB7/(1-(AB8/AB6)) -> 0
E10: 副産物 | H10: =IF(H$3="","",HLOOKUP(H$3,経営指標DATA!$H$2:$EP$109,経営指標DATA!$A9))*$H$5/10 -> 0 | L10: ※変動費は面積換算し、計算シートに反映 | S10: 副産物 | V10: =IF(H$3="","",HLOOKUP(H$3,経営指標DATA!$H$2:$EP$109,経営指標DATA!$A9))*$V$5/10 -> 0
B11: 奨励金等 | E11: 奨励金・助成金 | H11: =IF(H$3="","",HLOOKUP(H$3,経営指標DATA!$H$2:$EP$109,経営指標DATA!$A10)) -> 0 | P11: 奨励金等 | S11: 奨励金・助成金 | V11: =IF(H$3="","",HLOOKUP(H$3,経営指標DATA!$H$2:$EP$109,経営指標DATA!$A10)) -> 0 | Z11: 売上範囲 | AA11: 0 | AB11: =$AB$6 -> 298800 | AD11: 定数 | AE11: =AB8/AB6 -> 0.7358536758
B12: 農業総収入 | H12: =H9+H10 -> 74700 | P12: 農業総収入 | V12: =V9+V10 -> 298800 | Z12: 売上 | AA12: 0 | AB12: =$AB$6 -> 298800 | AD12: 切片 | AE12: =AB7 -> 0
B13: 農業粗収益（販売経費差引後） | H13: =IF(H$3="","",HLOOKUP(H$3,経営指標DATA!$H$2:$EP$109,経営指標DATA!$A12))*$H$5/10 -> 62188.5 | J13: 固定費と変動費の割合を記入 | P13: 農業粗収益（販売経費差引後） | V13: =IF(H$3="","",HLOOKUP(H$3,経営指標DATA!$H$2:$EP$109,経営指標DATA!$A12))*$V$5/10 -> 248754 | X13: 結果・労働時間シート | Z13: 変動 | AA13: =$AB$7 -> 0 | AB13: =AE11*AB6+AA13 -> 219873.0783 | AD13: 損益分岐点 | AE13: =AB7/(1-AE11) -> 0
B14: 手取り単価 | H14: =IF(H$3="","",HLOOKUP(H$3,経営指標DATA!$H$2:$EP$109,経営指標DATA!$A13)) -> 138.1966667 | J14: ↓ | K14: ↓ | P14: 手取り単価 | V14: =IF(H$3="","",HLOOKUP(H$3,経営指標DATA!$H$2:$EP$109,経営指標DATA!$A13)) -> 138.1966667 | Z14: 固定 | AA14: =$AB$7 -> 0 | AB14: =$AB$7 -> 0
B15: [費 用] | J15: 固定費％ | K15: 変動費％ | L15: 固定費 | M15: 変動費 | N15: 確認欄 | P15: [費 用] | AD15: 現在の売上 | AF15: =$V$12 -> 298800
B16: 全算入生産費 | C16: 支払利子・支払地代算入生産費 | D16: 副産物価格差引生産費 | E16: 種苗費 | H16: =IF(H$3="","",HLOOKUP(H$3,経営指標DATA!$H$2:$EP$109,経営指標DATA!$A15))*$H$5/10 -> 1630 | J16: 0 | K16: 1 | L16: =H16*J16 -> 0 | M16: =H16*K16 -> 1630 | P16: 全算入生産費 | Q16: 支払利子・支払地代算入生産費 | R16: 副産物価格差引生産費 | S16: 種苗費 | V16: =L16+(M16*$V$5/$H$5) -> 6520 | AA16: 限界利益率 | AB16: =((V13-AB8)/V13)*100 -> 11.61023407 | AD16: 損益分岐点安全余裕率 | AF16: =(AF15-AE13)/AF15 -> 1
E17: 肥料費 | H17: =IF(H$3="","",HLOOKUP(H$3,経営指標DATA!$H$2:$EP$109,経営指標DATA!$A16))*$H$5/10 -> 8243 | J17: 0 | K17: 1 | L17: =H17*J17 -> 0 | M17: =H17*K17 -> 8243 | S17: 肥料費 | V17: 32972 | AD17: 利益予想 | AF17: =AF15*(1-(AB8/AB6))-AB7 -> 78926.92167
E18: 素畜費・種付費 | H18: =IF(H$3="","",HLOOKUP(H$3,経営指標DATA!$H$2:$EP$109,経営指標DATA!$A17))*$H$5/10 -> 0 | J18: 0 | K18: 1 | L18: 0 | M18: 0 | S18: 素畜費・種付費 | V18: 0
E19: 飼料費 | H19: =IF(H$3="","",HLOOKUP(H$3,経営指標DATA!$H$2:$EP$109,経営指標DATA!$A18))*$H$5/10 -> 0 | J19: 0 | K19: 1 | L19: 0 | M19: 0 | S19: 飼料費 | V19: 0
E20: 農薬・衛生費 | H20: =IF(H$3="","",HLOOKUP(H$3,経営指標DATA!$H$2:$EP$109,経営指標DATA!$A19))*$H$5/10 -> 5364 | J20: 0 | K20: 1 | L20: 0 | M20: 5364 | S20: 農薬・衛生費 | V20: 21456
E21: 動力光熱費 | H21: =IF(H$3="","",HLOOKUP(H$3,経営指標DATA!$H$2:$EP$109,経営指標DATA!$A20))*$H$5/10 -> 2093 | J21: 0 | K21: 1 | L21: 0 | M21: 2093 | S21: 動力光熱費 | V21: 8372
E22: 諸材料費・敷料費 | H22: =IF(H$3="","",HLOOKUP(H$3,経営指標DATA!$H$2:$EP$109,経営指標DATA!$A21))*$H$5/10 -> 120 | J22: 0 | K22: 1 | L22: 0 | M22: 120 | S22: 諸材料費・敷料費 | V22: 480
E23: 小農具費・作業衣料費 | H23: =IF(H$3="","",HLOOKUP(H$3,経営指標DATA!$H$2:$EP$109,経営指標DATA!$A22))*$H$5/10 -> 14.76958333 | J23: 0 | K23: 1 | L23: 0 | M23: 14.76958333 | S23: 小農具費・作業衣料費 | V23: 59.07833333
E24: 賃借料・料金 | H24: =IF(H$3="","",HLOOKUP(H$3,経営指標DATA!$H$2:$EP$109,経営指標DATA!$A23))*$H$5/10 -> 0 | J24: 0 | K24: 1 | L24: 0 | M24: 0 | S24: 賃借料・料金 | V24: 0
E25: 物件税・租税公課 | H25: =IF(H$3="","",HLOOKUP(H$3,経営指標DATA!$H$2:$EP$109,経営指標DATA!$A24))*$H$5/10 -> 791 | J25: 0 | K25: 1 | L25: 0 | M25: 791 | S25: 物件税・租税公課 | V25: 3164
E26: 保険共済費 | H26: =IF(H$3="","",HLOOKUP(H$3,経営指標DATA!$H$2:$EP$109,経営指標DATA!$A25))*$H$5/10 -> 1571 | J26: 0 | K26: 1 | L26: 0 | M26: 1571 | S26: 保険共済費 | V26: 6284
E27: 土地改良水利費 | H27: =IF(H$3="","",HLOOKUP(H$3,経営指標DATA!$H$2:$EP$109,経営指標DATA!$A26))*$H$5/10 -> 1500 | J27: 0 | K27: 1 | L27: 0 | M27: 1500 | S27: 土地改良水利費 | V27: 6000
E28: 修繕費 | H28: =IF(H$3="","",HLOOKUP(H$3,経営指標DATA!$H$2:$EP$109,経営指標DATA!$A27))*$H$5/10 -> 2415 | J28: 0 | K28: 1 | L28: 0 | M28: 2415 | S28: 修繕費 | V28: 9660
E29: 減価償却費 | H29: =SUM(H30:H33) -> 12309 | L29: =SUM(L30:L33) -> 0 | M29: =SUM(M30:M33) -> 12309 | N29: =IF(H29=SUM(L29:M29),"OK","NG") -> OK | S29: 減価償却費 | V29: =SUM(V30:V33) -> 49236
E30: ※ | F30: 建物・施設 | H30: =IF(H$3="","",HLOOKUP(H$3,経営指標DATA!$H$2:$EP$109,経営指標DATA!$A29))*$H$5/10 -> 1350 | J30: 0 | K30: 1 | L30: =H30*J30 -> 0 | M30: =H30*K30 -> 1350 | S30: ※ | T30: 建物・施設 | V30: =L30+M30*$V$5/$H$5 -> 5400
E31: ※ | F31: 農機具 | H31: =IF(H$3="","",HLOOKUP(H$3,経営指標DATA!$H$2:$EP$109,経営指標DATA!$A30))*$H$5/10 -> 10959 | J31: 0 | K31: 1 | L31: 0 | M31: 10959 | S31: ※ | T31: 農機具 | V31: =L31+M31*$V$5/$H$5 -> 43836
E32: ※ | F32: 大植物（大動物） | H32: =IF(H$3="","",HLOOKUP(H$3,経営指標DATA!$H$2:$EP$109,経営指標DATA!$A31))*$H$5/10 -> 0 | J32: 0 | K32: 1 | L32: 0 | M32: 0 | S32: ※ | T32: 大植物（大動物） | V32: =L32+M32*$V$5/$H$5 -> 0
E33: ※ | F33: 生産管理機器 | H33: =IF(H$3="","",HLOOKUP(H$3,経営指標DATA!$H$2:$EP$109,経営指標DATA!$A32))*$H$5/10 -> 0 | J33: 0 | K33: 1 | L33: 0 | M33: 0 | S33: ※ | T33: 生産管理機器 | V33: =L33+M33*$V$5/$H$5 -> 0
E34: 生産管理費 | H34: =IF(H$3="","",HLOOKUP(H$3,経営指標DATA!$H$2:$EP$109,経営指標DATA!$A33))*$H$5/10 -> 125 | J34: 0 | K34: 1 | L34: 0 | M34: 125 | S34: 生産管理費 | V34: =L34+M34*$V$5/$H$5 -> 500
E35: 物財費計 | H35: =SUM(H16:H29,H34) -> 36175.76958 | L35: =SUM(L16:L29)+L34 -> 0 | M35: =SUM(M16:M29)+M34 -> 36175.76958 | N35: =IF(H35=SUM(L35:M35),"OK","NG") -> OK | S35: 物財費計 | V35: =SUM(V16:V29,V34) -> 144703.0783
E36: 労働費 | H36: =H37+H38 -> 8190 | L36: =SUM(L37:L38) -> 0 | M36: =SUM(M37:M38) -> 8190 | N36: =IF(H36=SUM(L36:M36),"OK","NG") -> OK | S36: 労働費 | V36: =V37+V38 -> 32760
F37: 雇用労働費 | H37: =IF(H$3="","",HLOOKUP(H$3,経営指標DATA!$H$2:$EP$109,経営指標DATA!$A36))*$H$5/10 -> 0 | J37: 0 | K37: 1 | L37: =H37*J37 -> 0 | M37: =H37*K37 -> 0 | T37: 雇用労働費 | V37: =L37+M37*$V$5/$H$5 -> 0
F38: 家族労働見積額 | H38: =IF(H$3="","",HLOOKUP(H$3,経営指標DATA!$H$2:$EP$109,経営指標DATA!$A37))*$H$5/10 -> 8190 | J38: 0 | K38: 1 | L38: 0 | M38: 8190 | T38: 家族労働見積額 | V38: =L38+M38*$V$5/$H$5 -> 32760
E39: 費用計 | H39: =H35+H37 -> 36175.76958 | L39: =SUM(L35+L37) -> 0 | M39: =SUM(M35+M37) -> 36175.76958 | N39: =IF(H39=SUM(L39:M39),"OK","NG") -> OK | S39: 費用計 | V39: =V35+V37 -> 144703.0783
D40: 副産物価格差引生産費 | H40: =H39-H10 -> 36175.76958 | R40: 副産物価格差引生産費 | V40: =V39-V10 -> 144703.0783
D41: 支払い利子 | H41: =IF(H$3="","",HLOOKUP(H$3,経営指標DATA!$H$2:$EP$109,経営指標DATA!$A40))*$H$5/10 -> 156 | J41: 0 | K41: 1 | L41: =H41*J41 -> 0 | M41: =H41*K41 -> 156 | N41: =IF(H41=SUM(L41:M41),"OK","NG") -> OK | R41: 支払い利子 | V41: =L41+M41*$V$5/$H$5 -> 624
D42: 支払い地代 | H42: =IF(H$3="","",HLOOKUP(H$3,経営指標DATA!$H$2:$EP$109,経営指標DATA!$A41))*$H$5/10 -> 6125 | J42: 0 | K42: 1 | L42: 0 | M42: 6125 | N42: =IF(H42=SUM(L42:M42),"OK","NG") -> OK | R42: 支払い地代 | V42: =L42+M42*$V$5/$H$5 -> 24500
C43: 支払利子・支払地代参入生産費 | H43: =H39+H41+H42 -> 42456.76958 | Q43: 支払利子・支払地代参入生産費 | V43: =V39+V41+V42 -> 169827.0783
D44: 自己資本利子 | H44: =IF(H$3="","",HLOOKUP(H$3,経営指標DATA!$H$2:$EP$109,経営指標DATA!$A43))*$H$5/10 -> 1125 | J44: 0 | K44: 1 | L44: =H44*J44 -> 0 | M44: =H44*K44 -> 1125 | N44: =IF(H44=SUM(L44:M44),"OK","NG") -> OK | R44: 自己資本利子 | V44: =L44+M44*$V$5/$H$5 -> 4500
D45: 自作地地代 | H45: =IF(H$3="","",HLOOKUP(H$3,経営指標DATA!$H$2:$EP$109,経営指標DATA!$A44))*$H$5/10 -> 875 | J45: 0 | K45: 1 | L45: 0 | M45: =H45*K45 -> 875 | N45: =IF(H45=SUM(L45:M45),"OK","NG") -> OK | R45: 自作地地代 | V45: =L45+M45*$V$5/$H$5 -> 3500
C46: 全算入生産費 | H46: =H43+H44+H45 -> 44456.76958 | Q46: 全算入生産費 | V46: =V43+V44+V45 -> 177827.0783
B47: 販売費及び 一般管理費 | E47: 選果出荷経費 | H47: =IF(H$3="","",HLOOKUP(H$3,経営指標DATA!$H$2:$EP$109,経営指標DATA!$A46))*$H$5/10 -> 10350 | K47: 1 | M47: =H47*K47 -> 10350 | P47: 販売費及び 一般管理費 | S47: 選果出荷経費 | V47: =IF(H$3="","",HLOOKUP(H$3,経営指標DATA!$H$2:$EP$109,経営指標DATA!$A46))*$V$5/10 -> 41400
E48: 運賃 | H48: =IF(H$3="","",HLOOKUP(H$3,経営指標DATA!$H$2:$EP$109,経営指標DATA!$A47))*$H$5/10 -> 0 | K48: 1 | L48: =H48*J48 -> 0 | M48: 0 | S48: 運賃 | V48: =IF(H$3="","",HLOOKUP(H$3,経営指標DATA!$H$2:$EP$109,経営指標DATA!$A47))*$V$5/10 -> 0
E49: 手数料 | H49: =IF(H$3="","",HLOOKUP(H$3,経営指標DATA!$H$2:$EP$109,経営指標DATA!$A48))*$H$5/10 -> 2161.5 | K49: 1 | L49: 0 | M49: 2161.5 | S49: 手数料 | V49: =IF(H$3="","",HLOOKUP(H$3,経営指標DATA!$H$2:$EP$109,経営指標DATA!$A48))*$V$5/10 -> 8646
E50: 一般管理費 | H50: =IF(H$3="","",HLOOKUP(H$3,経営指標DATA!$H$2:$EP$109,経営指標DATA!$A49))*$H$5/10 -> 0 | K50: 1 | L50: 0 | M50: 0 | S50: 一般管理費 | V50: =IF(H$3="","",HLOOKUP(H$3,経営指標DATA!$H$2:$EP$109,経営指標DATA!$A49))*$V$5/10 -> 0
E51: 計 | H51: =H47+H48+H49+H50 -> 12511.5 | J51: 販売費及び一般管理費 | L51: =L47+L48+L49+L50 -> 0 | M51: =M47+M48+M49+M50 -> 12511.5 | S51: 計 | V51: =V47+V48+V49+V50 -> 50046
J52: 経営費（固定費、変動費） | L52: =L39+L41+L42+L51 -> 0 | M52: =M39+M41+M42+M51 -> 54968.26958 | P52: 経営費合計 | V52: =V39+V41+V42+V51 -> 219873.0783
B53: [経営指標] | P53: [経営指標]
B54: 農業経営費（販売費及び一般管理費含む） | H54: =H35+H37+H41+H42+H51 -> 54968.26958 | P54: 農業経営費（販売費及び一般管理費含む） | V54: =V35+V37+V41+V42+V51 -> 219873.0783 | X54: 結果・労働時間シート
B55: 農業所得 | H55: =H12-H54 -> 19731.73042 | P55: 農業所得 | V55: =V12-V54 -> 78926.92167 | X55: 結果・労働時間シート
B56: 農業所得率（農業所得÷農業経営費×100） | H56: =(H55/H12)*100 -> 26.41463242 | P56: 農業所得率（農業所得÷農業経営費×100） | V56: =(V55/V12)*100 -> 26.41463242 | X56: 結果・労働時間シート
B57: 1日当たり農業所得 | H57: =IF(H$3="","",HLOOKUP(H$3,経営指標DATA!$H$2:$EP$109,経営指標DATA!$A56)) -> 18792.12421 | P57: 1日当たり農業所得 | V57: =IF(H$3="","",HLOOKUP(H$3,経営指標DATA!$H$2:$EP$109,経営指標DATA!$A56)) -> 18792.12421
B58: 1日当たり家族労働報酬 | H58: =IF(H$3="","",HLOOKUP(H$3,経営指標DATA!$H$2:$EP$109,経営指標DATA!$A57)) -> 16888.3623 | P58: 1日当たり家族労働報酬 | V58: =IF(H$3="","",HLOOKUP(H$3,経営指標DATA!$H$2:$EP$109,経営指標DATA!$A57)) -> 16888.3623
B60: 労働時間計 | H60: =IF(H$3="","",HLOOKUP(H$3,経営指標DATA!$H$2:$EP$109,経営指標DATA!$A59))*$H$5/10 -> 8.4 | P60: 労働時間計 | V60: =IF(H$3="","",HLOOKUP(H$3,経営指標DATA!$H$2:$EP$109,経営指標DATA!$A59))*$V$5/10 -> 33.6
C61: うち家族労働時間 | H61: =IF(H$3="","",HLOOKUP(H$3,経営指標DATA!$H$2:$EP$109,経営指標DATA!$A60))*$H$5/10 -> 8.4 | Q61: うち家族労働時間 | V61: =IF(H$3="","",HLOOKUP(H$3,経営指標DATA!$H$2:$EP$109,経営指標DATA!$A60))*$V$5/10 -> 33.6
C62: うち雇用労働時間 | H62: =IF(H$3="","",HLOOKUP(H$3,経営指標DATA!$H$2:$EP$109,経営指標DATA!$A61))*$H$5/10 -> 0 | Q62: うち雇用労働時間 | V62: =IF(H$3="","",HLOOKUP(H$3,経営指標DATA!$H$2:$EP$109,経営指標DATA!$A61))*$V$5/10 -> 0
X63: 記入用
G64: 1月上半月 | H64: =IF(H$3="","",HLOOKUP(H$3,経営指標DATA!$H$2:$EP$109,経営指標DATA!$A64))*$H$5/10 -> 0.7 | U64: 1月上半月 | V64: =IF(H$3="","",HLOOKUP(H$3,経営指標DATA!$H$2:$EP$109,経営指標DATA!$A64))*$V$5/10 -> 2.8 | X64: =V64 -> 2.8
G65: 1月下半月 | H65: =IF(H$3="","",HLOOKUP(H$3,経営指標DATA!$H$2:$EP$109,経営指標DATA!$A65))*$H$5/10 -> 0.7 | U65: 1月下半月 | V65: =IF(H$3="","",HLOOKUP(H$3,経営指標DATA!$H$2:$EP$109,経営指標DATA!$A65))*$V$5/10 -> 2.8 | X65: 2.8
G66: 2月上半月 | H66: =IF(H$3="","",HLOOKUP(H$3,経営指標DATA!$H$2:$EP$109,経営指標DATA!$A66))*$H$5/10 -> 0.8 | U66: 2月上半月 | V66: =IF(H$3="","",HLOOKUP(H$3,経営指標DATA!$H$2:$EP$109,経営指標DATA!$A66))*$V$5/10 -> 3.2 | X66: 3.2
G67: 2月下半月 | H67: =IF(H$3="","",HLOOKUP(H$3,経営指標DATA!$H$2:$EP$109,経営指標DATA!$A67))*$H$5/10 -> 0.9 | U67: 2月下半月 | V67: =IF(H$3="","",HLOOKUP(H$3,経営指標DATA!$H$2:$EP$109,経営指標DATA!$A67))*$V$5/10 -> 3.6 | X67: 3.6
G68: 3月上半月 | H68: =IF(H$3="","",HLOOKUP(H$3,経営指標DATA!$H$2:$EP$109,経営指標DATA!$A68))*$H$5/10 -> 0 | U68: 3月上半月 | V68: =IF(H$3="","",HLOOKUP(H$3,経営指標DATA!$H$2:$EP$109,経営指標DATA!$A68))*$V$5/10 -> 0 | X68: 0
G69: 3月下半月 | H69: =IF(H$3="","",HLOOKUP(H$3,経営指標DATA!$H$2:$EP$109,経営指標DATA!$A69))*$H$5/10 -> 0 | U69: 3月下半月 | V69: =IF(H$3="","",HLOOKUP(H$3,経営指標DATA!$H$2:$EP$109,経営指標DATA!$A69))*$V$5/10 -> 0 | X69: 0
G70: 4月上半月 | H70: =IF(H$3="","",HLOOKUP(H$3,経営指標DATA!$H$2:$EP$109,経営指標DATA!$A70))*$H$5/10 -> 0.1 | U70: 4月上半月 | V70: =IF(H$3="","",HLOOKUP(H$3,経営指標DATA!$H$2:$EP$109,経営指標DATA!$A70))*$V$5/10 -> 0.4 | X70: 0.4
G71: 4月下半月 | H71: =IF(H$3="","",HLOOKUP(H$3,経営指標DATA!$H$2:$EP$109,経営指標DATA!$A71))*$H$5/10 -> 0.1 | U71: 4月下半月 | V71: =IF(H$3="","",HLOOKUP(H$3,経営指標DATA!$H$2:$EP$109,経営指標DATA!$A71))*$V$5/10 -> 0.4 | X71: 0.4
G72: 5月上半月 | H72: =IF(H$3="","",HLOOKUP(H$3,経営指標DATA!$H$2:$EP$109,経営指標DATA!$A72))*$H$5/10 -> 0.6 | L72: ※面積換算したもの | U72: 5月上半月 | V72: =IF(H$3="","",HLOOKUP(H$3,経営指標DATA!$H$2:$EP$109,経営指標DATA!$A72))*$V$5/10 -> 2.4 | X72: 2.4
G73: 5月下半月 | H73: =IF(H$3="","",HLOOKUP(H$3,経営指標DATA!$H$2:$EP$109,経営指標DATA!$A73))*$H$5/10 -> 0.5 | U73: 5月下半月 | V73: =IF(H$3="","",HLOOKUP(H$3,経営指標DATA!$H$2:$EP$109,経営指標DATA!$A73))*$V$5/10 -> 2 | X73: 2
G74: 6月上半月 | H74: =IF(H$3="","",HLOOKUP(H$3,経営指標DATA!$H$2:$EP$109,経営指標DATA!$A74))*$H$5/10 -> 0 | U74: 6月上半月 | V74: =IF(H$3="","",HLOOKUP(H$3,経営指標DATA!$H$2:$EP$109,経営指標DATA!$A74))*$V$5/10 -> 0 | X74: 0
G75: 6月下半月 | H75: =IF(H$3="","",HLOOKUP(H$3,経営指標DATA!$H$2:$EP$109,経営指標DATA!$A75))*$H$5/10 -> 0 | U75: 6月下半月 | V75: =IF(H$3="","",HLOOKUP(H$3,経営指標DATA!$H$2:$EP$109,経営指標DATA!$A75))*$V$5/10 -> 0 | X75: 0
G76: 7月上半月 | H76: =IF(H$3="","",HLOOKUP(H$3,経営指標DATA!$H$2:$EP$109,経営指標DATA!$A76))*$H$5/10 -> 0 | U76: 7月上半月 | V76: =IF(H$3="","",HLOOKUP(H$3,経営指標DATA!$H$2:$EP$109,経営指標DATA!$A76))*$V$5/10 -> 0 | X76: 0
G77: 7月下半月 | H77: =IF(H$3="","",HLOOKUP(H$3,経営指標DATA!$H$2:$EP$109,経営指標DATA!$A77))*$H$5/10 -> 0 | U77: 7月下半月 | V77: =IF(H$3="","",HLOOKUP(H$3,経営指標DATA!$H$2:$EP$109,経営指標DATA!$A77))*$V$5/10 -> 0 | X77: 0
G78: 8月上半月 | H78: =IF(H$3="","",HLOOKUP(H$3,経営指標DATA!$H$2:$EP$109,経営指標DATA!$A78))*$H$5/10 -> 0 | U78: 8月上半月 | V78: =IF(H$3="","",HLOOKUP(H$3,経営指標DATA!$H$2:$EP$109,経営指標DATA!$A78))*$V$5/10 -> 0 | X78: 0
G79: 8月下半月 | H79: =IF(H$3="","",HLOOKUP(H$3,経営指標DATA!$H$2:$EP$109,経営指標DATA!$A79))*$H$5/10 -> 0 | U79: 8月下半月 | V79: =IF(H$3="","",HLOOKUP(H$3,経営指標DATA!$H$2:$EP$109,経営指標DATA!$A79))*$V$5/10 -> 0 | X79: 0
G80: 9月上半月 | H80: =IF(H$3="","",HLOOKUP(H$3,経営指標DATA!$H$2:$EP$109,経営指標DATA!$A80))*$H$5/10 -> 0 | U80: 9月上半月 | V80: =IF(H$3="","",HLOOKUP(H$3,経営指標DATA!$H$2:$EP$109,経営指標DATA!$A80))*$V$5/10 -> 0 | X80: 0
G81: 9月下半月 | H81: =IF(H$3="","",HLOOKUP(H$3,経営指標DATA!$H$2:$EP$109,経営指標DATA!$A81))*$H$5/10 -> 0 | U81: 9月下半月 | V81: =IF(H$3="","",HLOOKUP(H$3,経営指標DATA!$H$2:$EP$109,経営指標DATA!$A81))*$V$5/10 -> 0 | X81: 0
G82: 10月上半月 | H82: =IF(H$3="","",HLOOKUP(H$3,経営指標DATA!$H$2:$EP$109,経営指標DATA!$A82))*$H$5/10 -> 0 | U82: 10月上半月 | V82: =IF(H$3="","",HLOOKUP(H$3,経営指標DATA!$H$2:$EP$109,経営指標DATA!$A82))*$V$5/10 -> 0 | X82: 0
G83: 10月下半月 | H83: =IF(H$3="","",HLOOKUP(H$3,経営指標DATA!$H$2:$EP$109,経営指標DATA!$A83))*$H$5/10 -> 0 | U83: 10月下半月 | V83: =IF(H$3="","",HLOOKUP(H$3,経営指標DATA!$H$2:$EP$109,経営指標DATA!$A83))*$V$5/10 -> 0 | X83: 0
G84: 11月上半月 | H84: =IF(H$3="","",HLOOKUP(H$3,経営指標DATA!$H$2:$EP$109,経営指標DATA!$A84))*$H$5/10 -> 1.7 | U84: 11月上半月 | V84: =IF(H$3="","",HLOOKUP(H$3,経営指標DATA!$H$2:$EP$109,経営指標DATA!$A84))*$V$5/10 -> 6.8 | X84: 6.8
G85: 11月下半月 | H85: =IF(H$3="","",HLOOKUP(H$3,経営指標DATA!$H$2:$EP$109,経営指標DATA!$A85))*$H$5/10 -> 1.6 | U85: 11月下半月 | V85: =IF(H$3="","",HLOOKUP(H$3,経営指標DATA!$H$2:$EP$109,経営指標DATA!$A85))*$V$5/10 -> 6.4 | X85: 6.4
G86: 12月上半月 | H86: =IF(H$3="","",HLOOKUP(H$3,経営指標DATA!$H$2:$EP$109,経営指標DATA!$A86))*$H$5/10 -> 0.5 | U86: 12月上半月 | V86: =IF(H$3="","",HLOOKUP(H$3,経営指標DATA!$H$2:$EP$109,経営指標DATA!$A86))*$V$5/10 -> 2 | X86: 2
G87: 12月下半月 | H87: =IF(H$3="","",HLOOKUP(H$3,経営指標DATA!$H$2:$EP$109,経営指標DATA!$A87))*$H$5/10 -> 0.2 | U87: 12月下半月 | V87: =IF(H$3="","",HLOOKUP(H$3,経営指標DATA!$H$2:$EP$109,経営指標DATA!$A87))*$V$5/10 -> 0.8 | X87: 0.8
G88: 計 | H88: =SUM(H64:H87) -> 8.4 | U88: 計 | V88: =SUM(V64:V87) -> 33.6 | X88: 33.6
X89: 0
G90: 1月 | H90: =IF(H$3="","",HLOOKUP(H$3,経営指標DATA!$H$2:$EP$109,経営指標DATA!$A90))*$H$5/10 -> 1.4 | U90: 1月 | V90: =IF(H$3="","",HLOOKUP(H$3,経営指標DATA!$H$2:$EP$109,経営指標DATA!$A90))*$V$5/10 -> 5.6 | X90: 5.6
G91: 2月 | H91: =IF(H$3="","",HLOOKUP(H$3,経営指標DATA!$H$2:$EP$109,経営指標DATA!$A91))*$H$5/10 -> 1.7 | U91: 2月 | V91: =IF(H$3="","",HLOOKUP(H$3,経営指標DATA!$H$2:$EP$109,経営指標DATA!$A91))*$V$5/10 -> 6.8 | X91: 6.8
G92: 3月 | H92: =IF(H$3="","",HLOOKUP(H$3,経営指標DATA!$H$2:$EP$109,経営指標DATA!$A92))*$H$5/10 -> 0 | U92: 3月 | V92: =IF(H$3="","",HLOOKUP(H$3,経営指標DATA!$H$2:$EP$109,経営指標DATA!$A92))*$V$5/10 -> 0 | X92: 0
G93: 4月 | H93: =IF(H$3="","",HLOOKUP(H$3,経営指標DATA!$H$2:$EP$109,経営指標DATA!$A93))*$H$5/10 -> 0.2 | U93: 4月 | V93: =IF(H$3="","",HLOOKUP(H$3,経営指標DATA!$H$2:$EP$109,経営指標DATA!$A93))*$V$5/10 -> 0.8 | X93: 0.8
G94: 5月 | H94: =IF(H$3="","",HLOOKUP(H$3,経営指標DATA!$H$2:$EP$109,経営指標DATA!$A94))*$H$5/10 -> 1.1 | U94: 5月 | V94: =IF(H$3="","",HLOOKUP(H$3,経営指標DATA!$H$2:$EP$109,経営指標DATA!$A94))*$V$5/10 -> 4.4 | X94: 4.4
G95: 6月 | H95: =IF(H$3="","",HLOOKUP(H$3,経営指標DATA!$H$2:$EP$109,経営指標DATA!$A95))*$H$5/10 -> 0 | U95: 6月 | V95: =IF(H$3="","",HLOOKUP(H$3,経営指標DATA!$H$2:$EP$109,経営指標DATA!$A95))*$V$5/10 -> 0 | X95: 0
G96: 7月 | H96: =IF(H$3="","",HLOOKUP(H$3,経営指標DATA!$H$2:$EP$109,経営指標DATA!$A96))*$H$5/10 -> 0 | U96: 7月 | V96: =IF(H$3="","",HLOOKUP(H$3,経営指標DATA!$H$2:$EP$109,経営指標DATA!$A96))*$V$5/10 -> 0 | X96: 0
G97: 8月 | H97: =IF(H$3="","",HLOOKUP(H$3,経営指標DATA!$H$2:$EP$109,経営指標DATA!$A97))*$H$5/10 -> 0 | U97: 8月 | V97: =IF(H$3="","",HLOOKUP(H$3,経営指標DATA!$H$2:$EP$109,経営指標DATA!$A97))*$V$5/10 -> 0 | X97: 0
G98: 9月 | H98: =IF(H$3="","",HLOOKUP(H$3,経営指標DATA!$H$2:$EP$109,経営指標DATA!$A98))*$H$5/10 -> 0 | U98: 9月 | V98: =IF(H$3="","",HLOOKUP(H$3,経営指標DATA!$H$2:$EP$109,経営指標DATA!$A98))*$V$5/10 -> 0 | X98: 0
G99: 10月 | H99: =IF(H$3="","",HLOOKUP(H$3,経営指標DATA!$H$2:$EP$109,経営指標DATA!$A99))*$H$5/10 -> 0 | U99: 10月 | V99: =IF(H$3="","",HLOOKUP(H$3,経営指標DATA!$H$2:$EP$109,経営指標DATA!$A99))*$V$5/10 -> 0 | X99: 0
G100: 11月 | H100: =IF(H$3="","",HLOOKUP(H$3,経営指標DATA!$H$2:$EP$109,経営指標DATA!$A100))*$H$5/10 -> 3.3 | U100: 11月 | V100: =IF(H$3="","",HLOOKUP(H$3,経営指標DATA!$H$2:$EP$109,経営指標DATA!$A100))*$V$5/10 -> 13.2 | X100: 13.2
G101: 12月 | H101: =IF(H$3="","",HLOOKUP(H$3,経営指標DATA!$H$2:$EP$109,経営指標DATA!$A101))*$H$5/10 -> 0.7 | U101: 12月 | V101: =IF(H$3="","",HLOOKUP(H$3,経営指標DATA!$H$2:$EP$109,経営指標DATA!$A101))*$V$5/10 -> 2.8 | X101: 2.8
G102: 計 | H102: =SUM(H90:H101) -> 8.4 | U102: 計 | V102: =SUM(V90:V101) -> 33.6 | X102: 33.6
X103: 0
G104: 検算→ | H104: =IF(H88=H102,"OK","NG ") -> OK | U104: 検算→ | V104: =IF(V88=V102,"OK","NG ") -> OK | X104: OK

Sheet 品目シート②
B2: 基本シート※NO.面積入力後10aで自動計算
B3: 作物名・作型等 項目 | H3: =HPイメージ!D10 -> 5 | Z3: 損益分岐点粗収入＝固定費÷（１－変動費比率）
H4: =IF(H$3="","",HLOOKUP(H$3,経営指標DATA!$H$2:$EP$109,経営指標DATA!$A3)) -> 小麦 | J4: 計算シート | Z4: ＝固定費÷（１－変動費÷農業粗収入）
B5: 経営面積（a） | H5: 10 | P5: 経営面積（a） | V5: =HPイメージ!G10 -> 40 | Z5: 10a当たり
B6: 生産販売 | E6: 生産量 | G6: kg・本・頭 | H6: =IF(H$3="","",HLOOKUP(H$3,経営指標DATA!$H$2:$EP$109,経営指標DATA!$A5))*$H$5/10 -> 450 | K6: 青色セル | P6: 生産販売 | S6: 生産量 | U6: kg・本・頭 | V6: =IF(H$3="","",HLOOKUP(H$3,経営指標DATA!$H$2:$EP$109,経営指標DATA!$A5))*$V$5/10 -> 1800 | AA6: 売上(粗収益) | AB6: =$V$12 -> 298800 | AE6: 変動比率
E7: 販売量 | H7: =IF(H$3="","",HLOOKUP(H$3,経営指標DATA!$H$2:$EP$109,経営指標DATA!$A6))*$H$5/10 -> 450 | K7: ↓ 入力可能シート | S7: 販売量 | V7: =IF(H$3="","",HLOOKUP(H$3,経営指標DATA!$H$2:$EP$109,経営指標DATA!$A6))*$V$5/10 -> 1800 | AA7: 固定費 | AB7: =$L$52 -> 0 | AF7: =AB8/AB6*100 -> 73.58536758 | AG7: %
E8: 単価 | G8: 円/kg・本・頭 | H8: =IF(H$3="","",HLOOKUP(H$3,経営指標DATA!$H$2:$EP$109,経営指標DATA!$A7)) -> 166 | S8: 単価 | U8: 円/kg・本・頭 | V8: =IF(H$3="","",HLOOKUP(H$3,経営指標DATA!$H$2:$EP$109,経営指標DATA!$A7)) -> 166 | AA8: 変動費 | AB8: =$M$52*V5/H5 -> 219873.0783 | AE8: 損益分岐点粗収入
B9: 販売金額 | E9: 主産物 | H9: =IF(H$3="","",HLOOKUP(H$3,経営指標DATA!$H$2:$EP$109,経営指標DATA!$A8))*$H$5/10 -> 74700 | L9: ※固定費はそのまま | P9: 販売金額 | S9: 主産物 | V9: =IF(H$3="","",HLOOKUP(H$3,経営指標DATA!$H$2:$EP$109,経営指標DATA!$A8))*$V$5/10 -> 298800 | AA9: 経常利益 | AB9: =AB6-AB7-AB8 -> 78926.92167 | AF9: =AB7/(1-(AB8/AB6)) -> 0
E10: 副産物 | H10: =IF(H$3="","",HLOOKUP(H$3,経営指標DATA!$H$2:$EP$109,経営指標DATA!$A9))*$H$5/10 -> 0 | L10: ※変動費は面積換算し、計算シートに反映 | S10: 副産物 | V10: =IF(H$3="","",HLOOKUP(H$3,経営指標DATA!$H$2:$EP$109,経営指標DATA!$A9))*$V$5/10 -> 0
B11: 奨励金等 | E11: 奨励金・助成金 | H11: =IF(H$3="","",HLOOKUP(H$3,経営指標DATA!$H$2:$EP$109,経営指標DATA!$A10)) -> 0 | P11: 奨励金等 | S11: 奨励金・助成金 | V11: =IF(H$3="","",HLOOKUP(H$3,経営指標DATA!$H$2:$EP$109,経営指標DATA!$A10)) -> 0 | Z11: 売上範囲 | AA11: 0 | AB11: =$AB$6 -> 298800 | AD11: 定数 | AE11: =AB8/AB6 -> 0.7358536758
B12: 農業総収入 | H12: =H9+H10 -> 74700 | P12: 農業総収入 | V12: =V9+V10 -> 298800 | Z12: 売上 | AA12: 0 | AB12: =$AB$6 -> 298800 | AD12: 切片 | AE12: =AB7 -> 0
B13: 農業粗収益（販売経費差引後） | H13: =IF(H$3="","",HLOOKUP(H$3,経営指標DATA!$H$2:$EP$109,経営指標DATA!$A12))*$H$5/10 -> 62188.5 | J13: 固定費と変動費の割合を記入 | P13: 農業粗収益（販売経費差引後） | V13: =IF(H$3="","",HLOOKUP(H$3,経営指標DATA!$H$2:$EP$109,経営指標DATA!$A12))*$V$5/10 -> 248754 | X13: 結果・労働時間シート | Z13: 変動 | AA13: =$AB$7 -> 0 | AB13: =AE11*AB6+AA13 -> 219873.0783 | AD13: 損益分岐点 | AE13: =AB7/(1-AE11) -> 0
B14: 手取り単価 | H14: =IF(H$3="","",HLOOKUP(H$3,経営指標DATA!$H$2:$EP$109,経営指標DATA!$A13)) -> 138.1966667 | J14: ↓ | K14: ↓ | P14: 手取り単価 | V14: =IF(H$3="","",HLOOKUP(H$3,経営指標DATA!$H$2:$EP$109,経営指標DATA!$A13)) -> 138.1966667 | Z14: 固定 | AA14: =$AB$7 -> 0 | AB14: =$AB$7 -> 0
B15: [費 用] | J15: 固定費％ | K15: 変動費％ | L15: 固定費 | M15: 変動費 | N15: 確認欄 | P15: [費 用] | AD15: 現在の売上 | AF15: =$V$12 -> 298800
B16: 全算入生産費 | C16: 支払利子・支払地代算入生産費 | D16: 副産物価格差引生産費 | E16: 種苗費 | H16: =IF(H$3="","",HLOOKUP(H$3,経営指標DATA!$H$2:$EP$109,経営指標DATA!$A15))*$H$5/10 -> 1630 | J16: 0 | K16: 1 | L16: =H16*J16 -> 0 | M16: =H16*K16 -> 1630 | P16: 全算入生産費 | Q16: 支払利子・支払地代算入生産費 | R16: 副産物価格差引生産費 | S16: 種苗費 | V16: =L16+(M16*$V$5/$H$5) -> 6520 | AA16: 限界利益率 | AB16: =((V13-AB8)/V13)*100 -> 11.61023407 | AD16: 損益分岐点安全余裕率 | AF16: =(AF15-AE13)/AF15 -> 1
E17: 肥料費 | H17: =IF(H$3="","",HLOOKUP(H$3,経営指標DATA!$H$2:$EP$109,経営指標DATA!$A16))*$H$5/10 -> 8243 | J17: 0 | K17: 1 | L17: =H17*J17 -> 0 | M17: =H17*K17 -> 8243 | S17: 肥料費 | V17: 32972 | AD17: 利益予想 | AF17: =AF15*(1-(AB8/AB6))-AB7 -> 78926.92167
E18: 素畜費・種付費 | H18: =IF(H$3="","",HLOOKUP(H$3,経営指標DATA!$H$2:$EP$109,経営指標DATA!$A17))*$H$5/10 -> 0 | J18: 0 | K18: 1 | L18: 0 | M18: 0 | S18: 素畜費・種付費 | V18: 0
E19: 飼料費 | H19: =IF(H$3="","",HLOOKUP(H$3,経営指標DATA!$H$2:$EP$109,経営指標DATA!$A18))*$H$5/10 -> 0 | J19: 0 | K19: 1 | L19: 0 | M19: 0 | S19: 飼料費 | V19: 0
E20: 農薬・衛生費 | H20: =IF(H$3="","",HLOOKUP(H$3,経営指標DATA!$H$2:$EP$109,経営指標DATA!$A19))*$H$5/10 -> 5364 | J20: 0 | K20: 1 | L20: 0 | M20: 5364 | S20: 農薬・衛生費 | V20: 21456
E21: 動力光熱費 | H21: =IF(H$3="","",HLOOKUP(H$3,経営指標DATA!$H$2:$EP$109,経営指標DATA!$A20))*$H$5/10 -> 2093 | J21: 0 | K21: 1 | L21: 0 | M21: 2093 | S21: 動力光熱費 | V21: 8372
E22: 諸材料費・敷料費 | H22: =IF(H$3="","",HLOOKUP(H$3,経営指標DATA!$H$2:$EP$109,経営指標DATA!$A21))*$H$5/10 -> 120 | J22: 0 | K22: 1 | L22: 0 | M22: 120 | S22: 諸材料費・敷料費 | V22: 480
E23: 小農具費・作業衣料費 | H23: =IF(H$3="","",HLOOKUP(H$3,経営指標DATA!$H$2:$EP$109,経営指標DATA!$A22))*$H$5/10 -> 14.76958333 | J23: 0 | K23: 1 | L23: 0 | M23: 14.76958333 | S23: 小農具費・作業衣料費 | V23: 59.07833333
E24: 賃借料・料金 | H24: =IF(H$3="","",HLOOKUP(H$3,経営指標DATA!$H$2:$EP$109,経営指標DATA!$A23))*$H$5/10 -> 0 | J24: 0 | K24: 1 | L24: 0 | M24: 0 | S24: 賃借料・料金 | V24: 0
E25: 物件税・租税公課 | H25: =IF(H$3="","",HLOOKUP(H$3,経営指標DATA!$H$2:$EP$109,経営指標DATA!$A24))*$H$5/10 -> 791 | J25: 0 | K25: 1 | L25: 0 | M25: 791 | S25: 物件税・租税公課 | V25: 3164
E26: 保険共済費 | H26: =IF(H$3="","",HLOOKUP(H$3,経営指標DATA!$H$2:$EP$109,経営指標DATA!$A25))*$H$5/10 -> 1571 | J26: 0 | K26: 1 | L26: 0 | M26: 1571 | S26: 保険共済費 | V26: 6284
E27: 土地改良水利費 | H27: =IF(H$3="","",HLOOKUP(H$3,経営指標DATA!$H$2:$EP$109,経営指標DATA!$A26))*$H$5/10 -> 1500 | J27: 0 | K27: 1 | L27: 0 | M27: 1500 | S27: 土地改良水利費 | V27: 6000
E28: 修繕費 | H28: =IF(H$3="","",HLOOKUP(H$3,経営指標DATA!$H$2:$EP$109,経営指標DATA!$A27))*$H$5/10 -> 2415 | J28: 0 | K28: 1 | L28: 0 | M28: 2415 | S28: 修繕費 | V28: 9660
E29: 減価償却費 | H29: =SUM(H30:H33) -> 12309 | L29: =SUM(L30:L33) -> 0 | M29: =SUM(M30:M33) -> 12309 | N29: =IF(H29=SUM(L29:M29),"OK","NG") -> OK | S29: 減価償却費 | V29: =SUM(V30:V33) -> 49236
E30: ※ | F30: 建物・施設 | H30: =IF(H$3="","",HLOOKUP(H$3,経営指標DATA!$H$2:$EP$109,経営指標DATA!$A29))*$H$5/10 -> 1350 | J30: 0 | K30: 1 | L30: =H30*J30 -> 0 | M30: =H30*K30 -> 1350 | S30: ※ | T30: 建物・施設 | V30: =L30+M30*$V$5/$H$5 -> 5400
E31: ※ | F31: 農機具 | H31: =IF(H$3="","",HLOOKUP(H$3,経営指標DATA!$H$2:$EP$109,経営指標DATA!$A30))*$H$5/10 -> 10959 | J31: 0 | K31: 1 | L31: 0 | M31: 10959 | S31: ※ | T31: 農機具 | V31: =L31+M31*$V$5/$H$5 -> 43836
E32: ※ | F32: 大植物（大動物） | H32: =IF(H$3="","",HLOOKUP(H$3,経営指標DATA!$H$2:$EP$109,経営指標DATA!$A31))*$H$5/10 -> 0 | J32: 0 | K32: 1 | L32: 0 | M32: 0 | S32: ※ | T32: 大植物（大動物） | V32: =L32+M32*$V$5/$H$5 -> 0
E33: ※ | F33: 生産管理機器 | H33: =IF(H$3="","",HLOOKUP(H$3,経営指標DATA!$H$2:$EP$109,経営指標DATA!$A32))*$H$5/10 -> 0 | J33: 0 | K33: 1 | L33: 0 | M33: 0 | S33: ※ | T33: 生産管理機器 | V33: =L33+M33*$V$5/$H$5 -> 0
E34: 生産管理費 | H34: =IF(H$3="","",HLOOKUP(H$3,経営指標DATA!$H$2:$EP$109,経営指標DATA!$A33))*$H$5/10 -> 125 | J34: 0 | K34: 1 | L34: 0 | M34: 125 | S34: 生産管理費 | V34: =L34+M34*$V$5/$H$5 -> 500
E35: 物財費計 | H35: =SUM(H16:H29,H34) -> 36175.76958 | L35: =SUM(L16:L29)+L34 -> 0 | M35: =SUM(M16:M29)+M34 -> 36175.76958 | N35: =IF(H35=SUM(L35:M35),"OK","NG") -> OK | S35: 物財費計 | V35: =SUM(V16:V29,V34) -> 144703.0783
E36: 労働費 | H36: =H37+H38 -> 8190 | L36: =SUM(L37:L38) -> 0 | M36: =SUM(M37:M38) -> 8190 | N36: =IF(H36=SUM(L36:M36),"OK","NG") -> OK | S36: 労働費 | V36: =V37+V38 -> 32760
F37: 雇用労働費 | H37: =IF(H$3="","",HLOOKUP(H$3,経営指標DATA!$H$2:$EP$109,経営指標DATA!$A36))*$H$5/10 -> 0 | J37: 0 | K37: 1 | L37: =H37*J37 -> 0 | M37: =H37*K37 -> 0 | T37: 雇用労働費 | V37: =L37+M37*$V$5/$H$5 -> 0
F38: 家族労働見積額 | H38: =IF(H$3="","",HLOOKUP(H$3,経営指標DATA!$H$2:$EP$109,経営指標DATA!$A37))*$H$5/10 -> 8190 | J38: 0 | K38: 1 | L38: 0 | M38: 8190 | T38: 家族労働見積額 | V38: =L38+M38*$V$5/$H$5 -> 32760
E39: 費用計 | H39: =H35+H37 -> 36175.76958 | L39: =SUM(L35+L37) -> 0 | M39: =SUM(M35+M37) -> 36175.76958 | N39: =IF(H39=SUM(L39:M39),"OK","NG") -> OK | S39: 費用計 | V39: =V35+V37 -> 144703.0783
D40: 副産物価格差引生産費 | H40: =H39-H10 -> 36175.76958 | R40: 副産物価格差引生産費 | V40: =V39-V10 -> 144703.0783
D41: 支払い利子 | H41: =IF(H$3="","",HLOOKUP(H$3,経営指標DATA!$H$2:$EP$109,経営指標DATA!$A40))*$H$5/10 -> 156 | J41: 0 | K41: 1 | L41: =H41*J41 -> 0 | M41: =H41*K41 -> 156 | N41: =IF(H41=SUM(L41:M41),"OK","NG") -> OK | R41: 支払い利子 | V41: =L41+M41*$V$5/$H$5 -> 624
D42: 支払い地代 | H42: =IF(H$3="","",HLOOKUP(H$3,経営指標DATA!$H$2:$EP$109,経営指標DATA!$A41))*$H$5/10 -> 6125 | J42: 0 | K42: 1 | L42: 0 | M42: 6125 | N42: =IF(H42=SUM(L42:M42),"OK","NG") -> OK | R42: 支払い地代 | V42: =L42+M42*$V$5/$H$5 -> 24500
C43: 支払利子・支払地代参入生産費 | H43: =H39+H41+H42 -> 42456.76958 | Q43: 支払利子・支払地代参入生産費 | V43: =V40+V41+V42 -> 169827.0783
D44: 自己資本利子 | H44: =IF(H$3="","",HLOOKUP(H$3,経営指標DATA!$H$2:$EP$109,経営指標DATA!$A43))*$H$5/10 -> 1125 | J44: 0 | K44: 1 | L44: =H44*J44 -> 0 | M44: =H44*K44 -> 1125 | N44: =IF(H44=SUM(L44:M44),"OK","NG") -> OK | R44: 自己資本利子 | V44: =L44+M44*$V$5/$H$5 -> 4500
D45: 自作地地代 | H45: =IF(H$3="","",HLOOKUP(H$3,経営指標DATA!$H$2:$EP$109,経営指標DATA!$A44))*$H$5/10 -> 875 | J45: 0 | K45: 1 | L45: 0 | M45: =H45*K45 -> 875 | N45: =IF(H45=SUM(L45:M45),"OK","NG") -> OK | R45: 自作地地代 | V45: =L45+M45*$V$5/$H$5 -> 3500
C46: 全算入生産費 | H46: =H43+H44+H45 -> 44456.76958 | Q46: 全算入生産費 | V46: =V43+V44+V45 -> 177827.0783
B47: 販売費及び 一般管理費 | E47: 選果出荷経費 | H47: =IF(H$3="","",HLOOKUP(H$3,経営指標DATA!$H$2:$EP$109,経営指標DATA!$A46))*$H$5/10 -> 10350 | K47: 1 | L47: =H47*J47 -> 0 | M47: =H47*K47 -> 10350 | P47: 販売費及び 一般管理費 | S47: 選果出荷経費 | V47: =IF(H$3="","",HLOOKUP(H$3,経営指標DATA!$H$2:$EP$109,経営指標DATA!$A46))*$V$5/10 -> 41400
E48: 運賃 | H48: =IF(H$3="","",HLOOKUP(H$3,経営指標DATA!$H$2:$EP$109,経営指標DATA!$A47))*$H$5/10 -> 0 | K48: 1 | L48: 0 | M48: 0 | S48: 運賃 | V48: =IF(H$3="","",HLOOKUP(H$3,経営指標DATA!$H$2:$EP$109,経営指標DATA!$A47))*$V$5/10 -> 0
E49: 手数料 | H49: =IF(H$3="","",HLOOKUP(H$3,経営指標DATA!$H$2:$EP$109,経営指標DATA!$A48))*$H$5/10 -> 2161.5 | K49: 1 | L49: 0 | M49: 2161.5 | S49: 手数料 | V49: =IF(H$3="","",HLOOKUP(H$3,経営指標DATA!$H$2:$EP$109,経営指標DATA!$A48))*$V$5/10 -> 8646
E50: 一般管理費 | H50: =IF(H$3="","",HLOOKUP(H$3,経営指標DATA!$H$2:$EP$109,経営指標DATA!$A49))*$H$5/10 -> 0 | K50: 1 | L50: 0 | M50: 0 | S50: 一般管理費 | V50: =IF(H$3="","",HLOOKUP(H$3,経営指標DATA!$H$2:$EP$109,経営指標DATA!$A49))*$V$5/10 -> 0
E51: 計 | H51: =H47+H48+H49+H50 -> 12511.5 | J51: 販売費及び一般管理費 | L51: =L47+L48+L49+L50 -> 0 | M51: =M47+M48+M49+M50 -> 12511.5 | S51: 計 | V51: =V47+V48+V49+V50 -> 50046
J52: 経営費（固定費、変動費） | L52: =L39+L41+L42+L51 -> 0 | M52: =M39+M41+M42+M51 -> 54968.26958 | P52: 経営費合計 | V52: =V39+V41+V42+V51 -> 219873.0783
B53: [経営指標] | P53: [経営指標]
B54: 農業経営費（販売費及び一般管理費含む） | H54: =H35+H37+H41+H42+H51 -> 54968.26958 | P54: 農業経営費（販売費及び一般管理費含む） | V54: =V35+V37+V41+V42+V51 -> 219873.0783 | X54: 結果・労働時間シート
B55: 農業所得 | H55: =H12-H54 -> 19731.73042 | P55: 農業所得 | V55: =V12-V54 -> 78926.92167 | X55: 結果・労働時間シート
B56: 農業所得率（農業所得÷農業経営費×100） | H56: =(H55/H12)*100 -> 26.41463242 | P56: 農業所得率（農業所得÷農業経営費×100） | V56: =(V55/V12)*100 -> 26.41463242 | X56: 結果・労働時間シート
B57: 1日当たり農業所得 | H57: =IF(H$3="","",HLOOKUP(H$3,経営指標DATA!$H$2:$EP$109,経営指標DATA!$A56)) -> 18792.12421 | P57: 1日当たり農業所得 | V57: =IF(H$3="","",HLOOKUP(H$3,経営指標DATA!$H$2:$EP$109,経営指標DATA!$A56)) -> 18792.12421
B58: 1日当たり家族労働報酬 | H58: =IF(H$3="","",HLOOKUP(H$3,経営指標DATA!$H$2:$EP$109,経営指標DATA!$A57)) -> 16888.3623 | P58: 1日当たり家族労働報酬 | V58: =IF(H$3="","",HLOOKUP(H$3,経営指標DATA!$H$2:$EP$109,経営指標DATA!$A57)) -> 16888.3623
B60: 労働時間計 | H60: =IF(H$3="","",HLOOKUP(H$3,経営指標DATA!$H$2:$EP$109,経営指標DATA!$A59))*$H$5/10 -> 8.4 | P60: 労働時間計 | V60: =IF(H$3="","",HLOOKUP(H$3,経営指標DATA!$H$2:$EP$109,経営指標DATA!$A59))*$V$5/10 -> 33.6
C61: うち家族労働時間 | H61: =IF(H$3="","",HLOOKUP(H$3,経営指標DATA!$H$2:$EP$109,経営指標DATA!$A60))*$H$5/10 -> 8.4 | Q61: うち家族労働時間 | V61: =IF(H$3="","",HLOOKUP(H$3,経営指標DATA!$H$2:$EP$109,経営指標DATA!$A60))*$V$5/10 -> 33.6
C62: うち雇用労働時間 | H62: =IF(H$3="","",HLOOKUP(H$3,経営指標DATA!$H$2:$EP$109,経営指標DATA!$A61))*$H$5/10 -> 0 | Q62: うち雇用労働時間 | V62: =IF(H$3="","",HLOOKUP(H$3,経営指標DATA!$H$2:$EP$109,経営指標DATA!$A61))*$V$5/10 -> 0
X63: 記入用
G64: 1月上半月 | H64: =IF(H$3="","",HLOOKUP(H$3,経営指標DATA!$H$2:$EP$109,経営指標DATA!$A64))*$H$5/10 -> 0.7 | U64: 1月上半月 | V64: =IF(H$3="","",HLOOKUP(H$3,経営指標DATA!$H$2:$EP$109,経営指標DATA!$A64))*$V$5/10 -> 2.8 | X64: =V64 -> 2.8
G65: 1月下半月 | H65: =IF(H$3="","",HLOOKUP(H$3,経営指標DATA!$H$2:$EP$109,経営指標DATA!$A65))*$H$5/10 -> 0.7 | U65: 1月下半月 | V65: =IF(H$3="","",HLOOKUP(H$3,経営指標DATA!$H$2:$EP$109,経営指標DATA!$A65))*$V$5/10 -> 2.8 | X65: 2.8
G66: 2月上半月 | H66: =IF(H$3="","",HLOOKUP(H$3,経営指標DATA!$H$2:$EP$109,経営指標DATA!$A66))*$H$5/10 -> 0.8 | U66: 2月上半月 | V66: =IF(H$3="","",HLOOKUP(H$3,経営指標DATA!$H$2:$EP$109,経営指標DATA!$A66))*$V$5/10 -> 3.2 | X66: 3.2
G67: 2月下半月 | H67: =IF(H$3="","",HLOOKUP(H$3,経営指標DATA!$H$2:$EP$109,経営指標DATA!$A67))*$H$5/10 -> 0.9 | U67: 2月下半月 | V67: =IF(H$3="","",HLOOKUP(H$3,経営指標DATA!$H$2:$EP$109,経営指標DATA!$A67))*$V$5/10 -> 3.6 | X67: 3.6
G68: 3月上半月 | H68: =IF(H$3="","",HLOOKUP(H$3,経営指標DATA!$H$2:$EP$109,経営指標DATA!$A68))*$H$5/10 -> 0 | U68: 3月上半月 | V68: =IF(H$3="","",HLOOKUP(H$3,経営指標DATA!$H$2:$EP$109,経営指標DATA!$A68))*$V$5/10 -> 0 | X68: 0
G69: 3月下半月 | H69: =IF(H$3="","",HLOOKUP(H$3,経営指標DATA!$H$2:$EP$109,経営指標DATA!$A69))*$H$5/10 -> 0 | U69: 3月下半月 | V69: =IF(H$3="","",HLOOKUP(H$3,経営指標DATA!$H$2:$EP$109,経営指標DATA!$A69))*$V$5/10 -> 0 | X69: 0
G70: 4月上半月 | H70: =IF(H$3="","",HLOOKUP(H$3,経営指標DATA!$H$2:$EP$109,経営指標DATA!$A70))*$H$5/10 -> 0.1 | U70: 4月上半月 | V70: =IF(H$3="","",HLOOKUP(H$3,経営指標DATA!$H$2:$EP$109,経営指標DATA!$A70))*$V$5/10 -> 0.4 | X70: 0.4
G71: 4月下半月 | H71: =IF(H$3="","",HLOOKUP(H$3,経営指標DATA!$H$2:$EP$109,経営指標DATA!$A71))*$H$5/10 -> 0.1 | U71: 4月下半月 | V71: =IF(H$3="","",HLOOKUP(H$3,経営指標DATA!$H$2:$EP$109,経営指標DATA!$A71))*$V$5/10 -> 0.4 | X71: 0.4
G72: 5月上半月 | H72: =IF(H$3="","",HLOOKUP(H$3,経営指標DATA!$H$2:$EP$109,経営指標DATA!$A72))*$H$5/10 -> 0.6 | L72: ※面積換算したもの | U72: 5月上半月 | V72: =IF(H$3="","",HLOOKUP(H$3,経営指標DATA!$H$2:$EP$109,経営指標DATA!$A72))*$V$5/10 -> 2.4 | X72: 2.4
G73: 5月下半月 | H73: =IF(H$3="","",HLOOKUP(H$3,経営指標DATA!$H$2:$EP$109,経営指標DATA!$A73))*$H$5/10 -> 0.5 | U73: 5月下半月 | V73: =IF(H$3="","",HLOOKUP(H$3,経営指標DATA!$H$2:$EP$109,経営指標DATA!$A73))*$V$5/10 -> 2 | X73: 2
G74: 6月上半月 | H74: =IF(H$3="","",HLOOKUP(H$3,経営指標DATA!$H$2:$EP$109,経営指標DATA!$A74))*$H$5/10 -> 0 | U74: 6月上半月 | V74: =IF(H$3="","",HLOOKUP(H$3,経営指標DATA!$H$2:$EP$109,経営指標DATA!$A74))*$V$5/10 -> 0 | X74: 0
G75: 6月下半月 | H75: =IF(H$3="","",HLOOKUP(H$3,経営指標DATA!$H$2:$EP$109,経営指標DATA!$A75))*$H$5/10 -> 0 | U75: 6月下半月 | V75: =IF(H$3="","",HLOOKUP(H$3,経営指標DATA!$H$2:$EP$109,経営指標DATA!$A75))*$V$5/10 -> 0 | X75: 0
G76: 7月上半月 | H76: =IF(H$3="","",HLOOKUP(H$3,経営指標DATA!$H$2:$EP$109,経営指標DATA!$A76))*$H$5/10 -> 0 | U76: 7月上半月 | V76: =IF(H$3="","",HLOOKUP(H$3,経営指標DATA!$H$2:$EP$109,経営指標DATA!$A76))*$V$5/10 -> 0 | X76: 0
G77: 7月下半月 | H77: =IF(H$3="","",HLOOKUP(H$3,経営指標DATA!$H$2:$EP$109,経営指標DATA!$A77))*$H$5/10 -> 0 | U77: 7月下半月 | V77: =IF(H$3="","",HLOOKUP(H$3,経営指標DATA!$H$2:$EP$109,経営指標DATA!$A77))*$V$5/10 -> 0 | X77: 0
G78: 8月上半月 | H78: =IF(H$3="","",HLOOKUP(H$3,経営指標DATA!$H$2:$EP$109,経営指標DATA!$A78))*$H$5/10 -> 0 | U78: 8月上半月 | V78: =IF(H$3="","",HLOOKUP(H$3,経営指標DATA!$H$2:$EP$109,経営指標DATA!$A78))*$V$5/10 -> 0 | X78: 0
G79: 8月下半月 | H79: =IF(H$3="","",HLOOKUP(H$3,経営指標DATA!$H$2:$EP$109,経営指標DATA!$A79))*$H$5/10 -> 0 | U79: 8月下半月 | V79: =IF(H$3="","",HLOOKUP(H$3,経営指標DATA!$H$2:$EP$109,経営指標DATA!$A79))*$V$5/10 -> 0 | X79: 0
G80: 9月上半月 | H80: =IF(H$3="","",HLOOKUP(H$3,経営指標DATA!$H$2:$EP$109,経営指標DATA!$A80))*$H$5/10 -> 0 | U80: 9月上半月 | V80: =IF(H$3="","",HLOOKUP(H$3,経営指標DATA!$H$2:$EP$109,経営指標DATA!$A80))*$V$5/10 -> 0 | X80: 0
G81: 9月下半月 | H81: =IF(H$3="","",HLOOKUP(H$3,経営指標DATA!$H$2:$EP$109,経営指標DATA!$A81))*$H$5/10 -> 0 | U81: 9月下半月 | V81: =IF(H$3="","",HLOOKUP(H$3,経営指標DATA!$H$2:$EP$109,経営指標DATA!$A81))*$V$5/10 -> 0 | X81: 0
G82: 10月上半月 | H82: =IF(H$3="","",HLOOKUP(H$3,経営指標DATA!$H$2:$EP$109,経営指標DATA!$A82))*$H$5/10 -> 0 | U82: 10月上半月 | V82: =IF(H$3="","",HLOOKUP(H$3,経営指標DATA!$H$2:$EP$109,経営指標DATA!$A82))*$V$5/10 -> 0 | X82: 0
G83: 10月下半月 | H83: =IF(H$3="","",HLOOKUP(H$3,経営指標DATA!$H$2:$EP$109,経営指標DATA!$A83))*$H$5/10 -> 0 | U83: 10月下半月 | V83: =IF(H$3="","",HLOOKUP(H$3,経営指標DATA!$H$2:$EP$109,経営指標DATA!$A83))*$V$5/10 -> 0 | X83: 0
G84: 11月上半月 | H84: =IF(H$3="","",HLOOKUP(H$3,経営指標DATA!$H$2:$EP$109,経営指標DATA!$A84))*$H$5/10 -> 1.7 | U84: 11月上半月 | V84: =IF(H$3="","",HLOOKUP(H$3,経営指標DATA!$H$2:$EP$109,経営指標DATA!$A84))*$V$5/10 -> 6.8 | X84: 6.8
G85: 11月下半月 | H85: =IF(H$3="","",HLOOKUP(H$3,経営指標DATA!$H$2:$EP$109,経営指標DATA!$A85))*$H$5/10 -> 1.6 | U85: 11月下半月 | V85: =IF(H$3="","",HLOOKUP(H$3,経営指標DATA!$H$2:$EP$109,経営指標DATA!$A85))*$V$5/10 -> 6.4 | X85: 6.4
G86: 12月上半月 | H86: =IF(H$3="","",HLOOKUP(H$3,経営指標DATA!$H$2:$EP$109,経営指標DATA!$A86))*$H$5/10 -> 0.5 | U86: 12月上半月 | V86: =IF(H$3="","",HLOOKUP(H$3,経営指標DATA!$H$2:$EP$109,経営指標DATA!$A86))*$V$5/10 -> 2 | X86: 2
G87: 12月下半月 | H87: =IF(H$3="","",HLOOKUP(H$3,経営指標DATA!$H$2:$EP$109,経営指標DATA!$A87))*$H$5/10 -> 0.2 | U87: 12月下半月 | V87: =IF(H$3="","",HLOOKUP(H$3,経営指標DATA!$H$2:$EP$109,経営指標DATA!$A87))*$V$5/10 -> 0.8 | X87: 0.8
G88: 計 | H88: =SUM(H64:H87) -> 8.4 | U88: 計 | V88: =SUM(V64:V87) -> 33.6 | X88: 33.6
X89: 0
G90: 1月 | H90: =IF(H$3="","",HLOOKUP(H$3,経営指標DATA!$H$2:$EP$109,経営指標DATA!$A90))*$H$5/10 -> 1.4 | U90: 1月 | V90: =IF(H$3="","",HLOOKUP(H$3,経営指標DATA!$H$2:$EP$109,経営指標DATA!$A90))*$V$5/10 -> 5.6 | X90: 5.6
G91: 2月 | H91: =IF(H$3="","",HLOOKUP(H$3,経営指標DATA!$H$2:$EP$109,経営指標DATA!$A91))*$H$5/10 -> 1.7 | U91: 2月 | V91: =IF(H$3="","",HLOOKUP(H$3,経営指標DATA!$H$2:$EP$109,経営指標DATA!$A91))*$V$5/10 -> 6.8 | X91: 6.8
G92: 3月 | H92: =IF(H$3="","",HLOOKUP(H$3,経営指標DATA!$H$2:$EP$109,経営指標DATA!$A92))*$H$5/10 -> 0 | U92: 3月 | V92: =IF(H$3="","",HLOOKUP(H$3,経営指標DATA!$H$2:$EP$109,経営指標DATA!$A92))*$V$5/10 -> 0 | X92: 0
G93: 4月 | H93: =IF(H$3="","",HLOOKUP(H$3,経営指標DATA!$H$2:$EP$109,経営指標DATA!$A93))*$H$5/10 -> 0.2 | U93: 4月 | V93: =IF(H$3="","",HLOOKUP(H$3,経営指標DATA!$H$2:$EP$109,経営指標DATA!$A93))*$V$5/10 -> 0.8 | X93: 0.8
G94: 5月 | H94: =IF(H$3="","",HLOOKUP(H$3,経営指標DATA!$H$2:$EP$109,経営指標DATA!$A94))*$H$5/10 -> 1.1 | U94: 5月 | V94: =IF(H$3="","",HLOOKUP(H$3,経営指標DATA!$H$2:$EP$109,経営指標DATA!$A94))*$V$5/10 -> 4.4 | X94: 4.4
G95: 6月 | H95: =IF(H$3="","",HLOOKUP(H$3,経営指標DATA!$H$2:$EP$109,経営指標DATA!$A95))*$H$5/10 -> 0 | U95: 6月 | V95: =IF(H$3="","",HLOOKUP(H$3,経営指標DATA!$H$2:$EP$109,経営指標DATA!$A95))*$V$5/10 -> 0 | X95: 0
G96: 7月 | H96: =IF(H$3="","",HLOOKUP(H$3,経営指標DATA!$H$2:$EP$109,経営指標DATA!$A96))*$H$5/10 -> 0 | U96: 7月 | V96: =IF(H$3="","",HLOOKUP(H$3,経営指標DATA!$H$2:$EP$109,経営指標DATA!$A96))*$V$5/10 -> 0 | X96: 0
G97: 8月 | H97: =IF(H$3="","",HLOOKUP(H$3,経営指標DATA!$H$2:$EP$109,経営指標DATA!$A97))*$H$5/10 -> 0 | U97: 8月 | V97: =IF(H$3="","",HLOOKUP(H$3,経営指標DATA!$H$2:$EP$109,経営指標DATA!$A97))*$V$5/10 -> 0 | X97: 0
G98: 9月 | H98: =IF(H$3="","",HLOOKUP(H$3,経営指標DATA!$H$2:$EP$109,経営指標DATA!$A98))*$H$5/10 -> 0 | U98: 9月 | V98: =IF(H$3="","",HLOOKUP(H$3,経営指標DATA!$H$2:$EP$109,経営指標DATA!$A98))*$V$5/10 -> 0 | X98: 0
G99: 10月 | H99: =IF(H$3="","",HLOOKUP(H$3,経営指標DATA!$H$2:$EP$109,経営指標DATA!$A99))*$H$5/10 -> 0 | U99: 10月 | V99: =IF(H$3="","",HLOOKUP(H$3,経営指標DATA!$H$2:$EP$109,経営指標DATA!$A99))*$V$5/10 -> 0 | X99: 0
G100: 11月 | H100: =IF(H$3="","",HLOOKUP(H$3,経営指標DATA!$H$2:$EP$109,経営指標DATA!$A100))*$H$5/10 -> 3.3 | U100: 11月 | V100: =IF(H$3="","",HLOOKUP(H$3,経営指標DATA!$H$2:$EP$109,経営指標DATA!$A100))*$V$5/10 -> 13.2 | X100: 13.2
G101: 12月 | H101: =IF(H$3="","",HLOOKUP(H$3,経営指標DATA!$H$2:$EP$109,経営指標DATA!$A101))*$H$5/10 -> 0.7 | U101: 12月 | V101: =IF(H$3="","",HLOOKUP(H$3,経営指標DATA!$H$2:$EP$109,経営指標DATA!$A101))*$V$5/10 -> 2.8 | X101: 2.8
G102: 計 | H102: =SUM(H90:H101) -> 8.4 | U102: 計 | V102: =SUM(V90:V101) -> 33.6 | X102: 33.6
X103: 0
G104: 検算→ | H104: =IF(H88=H102,"OK","NG ") -> OK | U104: 検算→ | V104: =IF(V88=V102,"OK","NG ") -> OK | X104: OK

Sheet 品目シート③
B2: 基本シート※NO.面積入力後10aで自動計算
B3: 作物名・作型等 項目 | H3: =HPイメージ!D12 -> 5 | Z3: 損益分岐点粗収入＝固定費÷（１－変動費比率）
H4: =IF(H$3="","",HLOOKUP(H$3,経営指標DATA!$H$2:$EP$109,経営指標DATA!$A3)) -> 小麦 | J4: 計算シート | Z4: ＝固定費÷（１－変動費÷農業粗収入）
B5: 経営面積（a） | H5: 10 | P5: 経営面積（a） | V5: =HPイメージ!G12 -> 40 | Z5: 10a当たり
B6: 生産販売 | E6: 生産量 | G6: kg・本・頭 | H6: =IF(H$3="","",HLOOKUP(H$3,経営指標DATA!$H$2:$EP$109,経営指標DATA!$A5))*$H$5/10 -> 450 | K6: 青色セル | P6: 生産販売 | S6: 生産量 | U6: kg・本・頭 | V6: =IF(H$3="","",HLOOKUP(H$3,経営指標DATA!$H$2:$EP$109,経営指標DATA!$A5))*$V$5/10 -> 1800 | AA6: 売上(粗収益) | AB6: =$V$12 -> 298800 | AE6: 変動比率
E7: 販売量 | H7: =IF(H$3="","",HLOOKUP(H$3,経営指標DATA!$H$2:$EP$109,経営指標DATA!$A6))*$H$5/10 -> 450 | K7: ↓ 入力可能シート | S7: 販売量 | V7: =IF(H$3="","",HLOOKUP(H$3,経営指標DATA!$H$2:$EP$109,経営指標DATA!$A6))*$V$5/10 -> 1800 | AA7: 固定費 | AB7: =$L$52 -> 0 | AF7: =AB8/AB6*100 -> 73.58536758 | AG7: %
E8: 単価 | G8: 円/kg・本・頭 | H8: =IF(H$3="","",HLOOKUP(H$3,経営指標DATA!$H$2:$EP$109,経営指標DATA!$A7)) -> 166 | S8: 単価 | U8: 円/kg・本・頭 | V8: =IF(H$3="","",HLOOKUP(H$3,経営指標DATA!$H$2:$EP$109,経営指標DATA!$A7)) -> 166 | AA8: 変動費 | AB8: =$M$52*V5/H5 -> 219873.0783 | AE8: 損益分岐点粗収入
B9: 販売金額 | E9: 主産物 | H9: =IF(H$3="","",HLOOKUP(H$3,経営指標DATA!$H$2:$EP$109,経営指標DATA!$A8))*$H$5/10 -> 74700 | L9: ※固定費はそのまま | P9: 販売金額 | S9: 主産物 | V9: =IF(H$3="","",HLOOKUP(H$3,経営指標DATA!$H$2:$EP$109,経営指標DATA!$A8))*$V$5/10 -> 298800 | AA9: 経常利益 | AB9: =AB6-AB7-AB8 -> 78926.92167 | AF9: =AB7/(1-(AB8/AB6)) -> 0
E10: 副産物 | H10: =IF(H$3="","",HLOOKUP(H$3,経営指標DATA!$H$2:$EP$109,経営指標DATA!$A9))*$H$5/10 -> 0 | L10: ※変動費は面積換算し、計算シートに反映 | S10: 副産物 | V10: =IF(H$3="","",HLOOKUP(H$3,経営指標DATA!$H$2:$EP$109,経営指標DATA!$A9))*$V$5/10 -> 0
B11: 奨励金等 | E11: 奨励金・助成金 | H11: =IF(H$3="","",HLOOKUP(H$3,経営指標DATA!$H$2:$EP$109,経営指標DATA!$A10)) -> 0 | P11: 奨励金等 | S11: 奨励金・助成金 | V11: =IF(H$3="","",HLOOKUP(H$3,経営指標DATA!$H$2:$EP$109,経営指標DATA!$A10)) -> 0 | Z11: 売上範囲 | AA11: 0 | AB11: =$AB$6 -> 298800 | AD11: 定数 | AE11: =AB8/AB6 -> 0.7358536758
B12: 農業総収入 | H12: =H9+H10 -> 74700 | P12: 農業総収入 | V12: =V9+V10 -> 298800 | Z12: 売上 | AA12: 0 | AB12: =$AB$6 -> 298800 | AD12: 切片 | AE12: =AB7 -> 0
B13: 農業粗収益（販売経費差引後） | H13: =IF(H$3="","",HLOOKUP(H$3,経営指標DATA!$H$2:$EP$109,経営指標DATA!$A12))*$H$5/10 -> 62188.5 | J13: 固定費と変動費の割合を記入 | P13: 農業粗収益（販売経費差引後） | V13: =IF(H$3="","",HLOOKUP(H$3,経営指標DATA!$H$2:$EP$109,経営指標DATA!$A12))*$V$5/10 -> 248754 | X13: 結果・労働時間シート | Z13: 変動 | AA13: =$AB$7 -> 0 | AB13: =AE11*AB6+AA13 -> 219873.0783 | AD13: 損益分岐点 | AE13: =AB7/(1-AE11) -> 0
B14: 手取り単価 | H14: =IF(H$3="","",HLOOKUP(H$3,経営指標DATA!$H$2:$EP$109,経営指標DATA!$A13)) -> 138.1966667 | J14: ↓ | K14: ↓ | P14: 手取り単価 | V14: =IF(H$3="","",HLOOKUP(H$3,経営指標DATA!$H$2:$EP$109,経営指標DATA!$A13)) -> 138.1966667 | Z14: 固定 | AA14: =$AB$7 -> 0 | AB14: =$AB$7 -> 0
B15: [費 用] | J15: 固定費％ | K15: 変動費％ | L15: 固定費 | M15: 変動費 | N15: 確認欄 | P15: [費 用] | AD15: 現在の売上 | AF15: =$V$12 -> 298800
B16: 全算入生産費 | C16: 支払利子・支払地代算入生産費 | D16: 副産物価格差引生産費 | E16: 種苗費 | H16: =IF(H$3="","",HLOOKUP(H$3,経営指標DATA!$H$2:$EP$109,経営指標DATA!$A15))*$H$5/10 -> 1630 | J16: 0 | K16: 1 | L16: =H16*J16 -> 0 | M16: =H16*K16 -> 1630 | P16: 全算入生産費 | Q16: 支払利子・支払地代算入生産費 | R16: 副産物価格差引生産費 | S16: 種苗費 | V16: =L16+(M16*$V$5/$H$5) -> 6520 | AA16: 限界利益率 | AB16: =((V13-AB8)/V13)*100 -> 11.61023407 | AD16: 損益分岐点安全余裕率 | AF16: =(AF15-AE13)/AF15 -> 1
E17: 肥料費 | H17: =IF(H$3="","",HLOOKUP(H$3,経営指標DATA!$H$2:$EP$109,経営指標DATA!$A16))*$H$5/10 -> 8243 | J17: 0 | K17: 1 | L17: =H17*J17 -> 0 | M17: =H17*K17 -> 8243 | S17: 肥料費 | V17: 32972 | AD17: 利益予想 | AF17: =AF15*(1-(AB8/AB6))-AB7 -> 78926.92167
E18: 素畜費・種付費 | H18: =IF(H$3="","",HLOOKUP(H$3,経営指標DATA!$H$2:$EP$109,経営指標DATA!$A17))*$H$5/10 -> 0 | J18: 0 | K18: 1 | L18: 0 | M18: 0 | S18: 素畜費・種付費 | V18: 0
E19: 飼料費 | H19: =IF(H$3="","",HLOOKUP(H$3,経営指標DATA!$H$2:$EP$109,経営指標DATA!$A18))*$H$5/10 -> 0 | J19: 0 | K19: 1 | L19: 0 | M19: 0 | S19: 飼料費 | V19: 0
E20: 農薬・衛生費 | H20: =IF(H$3="","",HLOOKUP(H$3,経営指標DATA!$H$2:$EP$109,経営指標DATA!$A19))*$H$5/10 -> 5364 | J20: 0 | K20: 1 | L20: 0 | M20: 5364 | S20: 農薬・衛生費 | V20: 21456
E21: 動力光熱費 | H21: =IF(H$3="","",HLOOKUP(H$3,経営指標DATA!$H$2:$EP$109,経営指標DATA!$A20))*$H$5/10 -> 2093 | J21: 0 | K21: 1 | L21: 0 | M21: 2093 | S21: 動力光熱費 | V21: 8372
E22: 諸材料費・敷料費 | H22: =IF(H$3="","",HLOOKUP(H$3,経営指標DATA!$H$2:$EP$109,経営指標DATA!$A21))*$H$5/10 -> 120 | J22: 0 | K22: 1 | L22: 0 | M22: 120 | S22: 諸材料費・敷料費 | V22: 480
E23: 小農具費・作業衣料費 | H23: =IF(H$3="","",HLOOKUP(H$3,経営指標DATA!$H$2:$EP$109,経営指標DATA!$A22))*$H$5/10 -> 14.76958333 | J23: 0 | K23: 1 | L23: 0 | M23: 14.76958333 | S23: 小農具費・作業衣料費 | V23: 59.07833333
E24: 賃借料・料金 | H24: =IF(H$3="","",HLOOKUP(H$3,経営指標DATA!$H$2:$EP$109,経営指標DATA!$A23))*$H$5/10 -> 0 | J24: 0 | K24: 1 | L24: 0 | M24: 0 | S24: 賃借料・料金 | V24: 0
E25: 物件税・租税公課 | H25: =IF(H$3="","",HLOOKUP(H$3,経営指標DATA!$H$2:$EP$109,経営指標DATA!$A24))*$H$5/10 -> 791 | J25: 0 | K25: 1 | L25: 0 | M25: 791 | S25: 物件税・租税公課 | V25: 3164
E26: 保険共済費 | H26: =IF(H$3="","",HLOOKUP(H$3,経営指標DATA!$H$2:$EP$109,経営指標DATA!$A25))*$H$5/10 -> 1571 | J26: 0 | K26: 1 | L26: 0 | M26: 1571 | S26: 保険共済費 | V26: 6284
E27: 土地改良水利費 | H27: =IF(H$3="","",HLOOKUP(H$3,経営指標DATA!$H$2:$EP$109,経営指標DATA!$A26))*$H$5/10 -> 1500 | J27: 0 | K27: 1 | L27: 0 | M27: 1500 | S27: 土地改良水利費 | V27: 6000
E28: 修繕費 | H28: =IF(H$3="","",HLOOKUP(H$3,経営指標DATA!$H$2:$EP$109,経営指標DATA!$A27))*$H$5/10 -> 2415 | J28: 0 | K28: 1 | L28: 0 | M28: 2415 | S28: 修繕費 | V28: 9660
E29: 減価償却費 | H29: =SUM(H30:H33) -> 12309 | L29: =SUM(L30:L33) -> 0 | M29: =SUM(M30:M33) -> 12309 | N29: =IF(H29=SUM(L29:M29),"OK","NG") -> OK | S29: 減価償却費 | V29: =SUM(V30:V33) -> 49236
E30: ※ | F30: 建物・施設 | H30: =IF(H$3="","",HLOOKUP(H$3,経営指標DATA!$H$2:$EP$109,経営指標DATA!$A29))*$H$5/10 -> 1350 | J30: 0 | K30: 1 | L30: =H30*J30 -> 0 | M30: =H30*K30 -> 1350 | S30: ※ | T30: 建物・施設 | V30: =L30+M30*$V$5/$H$5 -> 5400
E31: ※ | F31: 農機具 | H31: =IF(H$3="","",HLOOKUP(H$3,経営指標DATA!$H$2:$EP$109,経営指標DATA!$A30))*$H$5/10 -> 10959 | J31: 0 | K31: 1 | L31: 0 | M31: 10959 | S31: ※ | T31: 農機具 | V31: =L31+M31*$V$5/$H$5 -> 43836
E32: ※ | F32: 大植物（大動物） | H32: =IF(H$3="","",HLOOKUP(H$3,経営指標DATA!$H$2:$EP$109,経営指標DATA!$A31))*$H$5/10 -> 0 | J32: 0 | K32: 1 | L32: 0 | M32: 0 | S32: ※ | T32: 大植物（大動物） | V32: =L32+M32*$V$5/$H$5 -> 0
E33: ※ | F33: 生産管理機器 | H33: =IF(H$3="","",HLOOKUP(H$3,経営指標DATA!$H$2:$EP$109,経営指標DATA!$A32))*$H$5/10 -> 0 | J33: 0 | K33: 1 | L33: 0 | M33: 0 | S33: ※ | T33: 生産管理機器 | V33: =L33+M33*$V$5/$H$5 -> 0
E34: 生産管理費 | H34: =IF(H$3="","",HLOOKUP(H$3,経営指標DATA!$H$2:$EP$109,経営指標DATA!$A33))*$H$5/10 -> 125 | J34: 0 | K34: 1 | L34: 0 | M34: 125 | S34: 生産管理費 | V34: =L34+M34*$V$5/$H$5 -> 500
E35: 物財費計 | H35: =SUM(H16:H29,H34) -> 36175.76958 | L35: =SUM(L16:L29)+L34 -> 0 | M35: =SUM(M16:M29)+M34 -> 36175.76958 | N35: =IF(H35=SUM(L35:M35),"OK","NG") -> OK | S35: 物財費計 | V35: =SUM(V16:V29,V34) -> 144703.0783
E36: 労働費 | H36: =H37+H38 -> 8190 | L36: =SUM(L37:L38) -> 0 | M36: =SUM(M37:M38) -> 8190 | N36: =IF(H36=SUM(L36:M36),"OK","NG") -> OK | S36: 労働費 | V36: =V37+V38 -> 32760
F37: 雇用労働費 | H37: =IF(H$3="","",HLOOKUP(H$3,経営指標DATA!$H$2:$EP$109,経営指標DATA!$A36))*$H$5/10 -> 0 | J37: 0 | K37: 1 | L37: =H37*J37 -> 0 | M37: =H37*K37 -> 0 | T37: 雇用労働費 | V37: =L37+M37*$V$5/$H$5 -> 0
F38: 家族労働見積額 | H38: =IF(H$3="","",HLOOKUP(H$3,経営指標DATA!$H$2:$EP$109,経営指標DATA!$A37))*$H$5/10 -> 8190 | J38: 0 | K38: 1 | L38: 0 | M38: 8190 | T38: 家族労働見積額 | V38: =L38+M38*$V$5/$H$5 -> 32760
E39: 費用計 | H39: =H35+H37 -> 36175.76958 | L39: =SUM(L35:L36) -> 0 | M39: =SUM(M35+M37) -> 36175.76958 | N39: =IF(H39=SUM(L39:M39),"OK","NG") -> OK | S39: 費用計 | V39: =V35+V37 -> 144703.0783
D40: 副産物価格差引生産費 | H40: =H39-H10 -> 36175.76958 | R40: 副産物価格差引生産費 | V40: =V39-V10 -> 144703.0783
D41: 支払い利子 | H41: =IF(H$3="","",HLOOKUP(H$3,経営指標DATA!$H$2:$EP$109,経営指標DATA!$A40))*$H$5/10 -> 156 | J41: 0 | K41: 1 | L41: =H41*J41 -> 0 | M41: =H41*K41 -> 156 | N41: =IF(H41=SUM(L41:M41),"OK","NG") -> OK | R41: 支払い利子 | V41: =L41+M41*$V$5/$H$5 -> 624
D42: 支払い地代 | H42: =IF(H$3="","",HLOOKUP(H$3,経営指標DATA!$H$2:$EP$109,経営指標DATA!$A41))*$H$5/10 -> 6125 | J42: 0 | K42: 1 | L42: 0 | M42: 6125 | N42: =IF(H42=SUM(L42:M42),"OK","NG") -> OK | R42: 支払い地代 | V42: =L42+M42*$V$5/$H$5 -> 24500
C43: 支払利子・支払地代参入生産費 | H43: =H40+H41+H42 -> 42456.76958 | Q43: 支払利子・支払地代参入生産費 | V43: =V40+V41+V42 -> 169827.0783
D44: 自己資本利子 | H44: =IF(H$3="","",HLOOKUP(H$3,経営指標DATA!$H$2:$EP$109,経営指標DATA!$A43))*$H$5/10 -> 1125 | J44: 0 | K44: 1 | L44: =H44*J44 -> 0 | M44: =H44*K44 -> 1125 | N44: =IF(H44=SUM(L44:M44),"OK","NG") -> OK | R44: 自己資本利子 | V44: =L44+M44*$V$5/$H$5 -> 4500
D45: 自作地地代 | H45: =IF(H$3="","",HLOOKUP(H$3,経営指標DATA!$H$2:$EP$109,経営指標DATA!$A44))*$H$5/10 -> 875 | J45: 0 | K45: 1 | L45: 0 | M45: =H45*K45 -> 875 | N45: =IF(H45=SUM(L45:M45),"OK","NG") -> OK | R45: 自作地地代 | V45: =L45+M45*$V$5/$H$5 -> 3500
C46: 全算入生産費 | H46: =H43+H44+H45 -> 44456.76958 | Q46: 全算入生産費 | V46: =V43+V44+V45 -> 177827.0783
B47: 販売費及び 一般管理費 | E47: 選果出荷経費 | H47: =IF(H$3="","",HLOOKUP(H$3,経営指標DATA!$H$2:$EP$109,経営指標DATA!$A46))*$H$5/10 -> 10350 | K47: 1 | L47: =H47*J47 -> 0 | M47: =H47*K47 -> 10350 | P47: 販売費及び 一般管理費 | S47: 選果出荷経費 | V47: =IF(H$3="","",HLOOKUP(H$3,経営指標DATA!$H$2:$EP$109,経営指標DATA!$A46))*$V$5/10 -> 41400
E48: 運賃 | H48: =IF(H$3="","",HLOOKUP(H$3,経営指標DATA!$H$2:$EP$109,経営指標DATA!$A47))*$H$5/10 -> 0 | K48: 1 | L48: 0 | M48: 0 | S48: 運賃 | V48: =IF(H$3="","",HLOOKUP(H$3,経営指標DATA!$H$2:$EP$109,経営指標DATA!$A47))*$V$5/10 -> 0
E49: 手数料 | H49: =IF(H$3="","",HLOOKUP(H$3,経営指標DATA!$H$2:$EP$109,経営指標DATA!$A48))*$H$5/10 -> 2161.5 | K49: 1 | L49: 0 | M49: 2161.5 | S49: 手数料 | V49: =IF(H$3="","",HLOOKUP(H$3,経営指標DATA!$H$2:$EP$109,経営指標DATA!$A48))*$V$5/10 -> 8646
E50: 一般管理費 | H50: =IF(H$3="","",HLOOKUP(H$3,経営指標DATA!$H$2:$EP$109,経営指標DATA!$A49))*$H$5/10 -> 0 | K50: 1 | L50: 0 | M50: 0 | S50: 一般管理費 | V50: =IF(H$3="","",HLOOKUP(H$3,経営指標DATA!$H$2:$EP$109,経営指標DATA!$A49))*$V$5/10 -> 0
E51: 計 | H51: =H47+H48+H49+H50 -> 12511.5 | J51: 販売費及び一般管理費 | L51: =L47+L48+L49+L50 -> 0 | M51: =M47+M48+M49+M50 -> 12511.5 | S51: 計 | V51: =V47+V48+V49+V50 -> 50046
J52: 経営費（固定費、変動費） | L52: =L39+L41+L42+L51 -> 0 | M52: =M39+M41+M42+M51 -> 54968.26958 | P52: 経営費合計 | V52: =V39+V41+V42+V51 -> 219873.0783
B53: [経営指標] | P53: [経営指標]
B54: 農業経営費（販売費及び一般管理費含む） | H54: =H35+H37+H41+H42+H51 -> 54968.26958 | P54: 農業経営費（販売費及び一般管理費含む） | V54: =V35+V37+V41+V42+V51 -> 219873.0783 | X54: 結果・労働時間シート
B55: 農業所得 | H55: =H12-H54 -> 19731.73042 | P55: 農業所得 | V55: =V12-V54 -> 78926.92167 | X55: 結果・労働時間シート
B56: 農業所得率（農業所得÷農業経営費×100） | H56: =(H55/H12)*100 -> 26.41463242 | P56: 農業所得率（農業所得÷農業経営費×100） | V56: =(V55/V12)*100 -> 26.41463242 | X56: 結果・労働時間シート
B57: 1日当たり農業所得 | H57: =IF(H$3="","",HLOOKUP(H$3,経営指標DATA!$H$2:$EP$109,経営指標DATA!$A56)) -> 18792.12421 | P57: 1日当たり農業所得 | V57: =IF(H$3="","",HLOOKUP(H$3,経営指標DATA!$H$2:$EP$109,経営指標DATA!$A56)) -> 18792.12421
B58: 1日当たり家族労働報酬 | H58: =IF(H$3="","",HLOOKUP(H$3,経営指標DATA!$H$2:$EP$109,経営指標DATA!$A57)) -> 16888.3623 | P58: 1日当たり家族労働報酬 | V58: =IF(H$3="","",HLOOKUP(H$3,経営指標DATA!$H$2:$EP$109,経営指標DATA!$A57)) -> 16888.3623
B60: 労働時間計 | H60: =IF(H$3="","",HLOOKUP(H$3,経営指標DATA!$H$2:$EP$109,経営指標DATA!$A59))*$H$5/10 -> 8.4 | P60: 労働時間計 | V60: =IF(H$3="","",HLOOKUP(H$3,経営指標DATA!$H$2:$EP$109,経営指標DATA!$A59))*$V$5/10 -> 33.6
C61: うち家族労働時間 | H61: =IF(H$3="","",HLOOKUP(H$3,経営指標DATA!$H$2:$EP$109,経営指標DATA!$A60))*$H$5/10 -> 8.4 | Q61: うち家族労働時間 | V61: =IF(H$3="","",HLOOKUP(H$3,経営指標DATA!$H$2:$EP$109,経営指標DATA!$A60))*$V$5/10 -> 33.6
C62: うち雇用労働時間 | H62: =IF(H$3="","",HLOOKUP(H$3,経営指標DATA!$H$2:$EP$109,経営指標DATA!$A61))*$H$5/10 -> 0 | Q62: うち雇用労働時間 | V62: =IF(H$3="","",HLOOKUP(H$3,経営指標DATA!$H$2:$EP$109,経営指標DATA!$A61))*$V$5/10 -> 0
X63: 記入用
G64: 1月上半月 | H64: =IF(H$3="","",HLOOKUP(H$3,経営指標DATA!$H$2:$EP$109,経営指標DATA!$A64))*$H$5/10 -> 0.7 | U64: 1月上半月 | V64: =IF(H$3="","",HLOOKUP(H$3,経営指標DATA!$H$2:$EP$109,経営指標DATA!$A64))*$V$5/10 -> 2.8 | X64: =V64 -> 2.8
G65: 1月下半月 | H65: =IF(H$3="","",HLOOKUP(H$3,経営指標DATA!$H$2:$EP$109,経営指標DATA!$A65))*$H$5/10 -> 0.7 | U65: 1月下半月 | V65: =IF(H$3="","",HLOOKUP(H$3,経営指標DATA!$H$2:$EP$109,経営指標DATA!$A65))*$V$5/10 -> 2.8 | X65: 2.8
G66: 2月上半月 | H66: =IF(H$3="","",HLOOKUP(H$3,経営指標DATA!$H$2:$EP$109,経営指標DATA!$A66))*$H$5/10 -> 0.8 | U66: 2月上半月 | V66: =IF(H$3="","",HLOOKUP(H$3,経営指標DATA!$H$2:$EP$109,経営指標DATA!$A66))*$V$5/10 -> 3.2 | X66: 3.2
G67: 2月下半月 | H67: =IF(H$3="","",HLOOKUP(H$3,経営指標DATA!$H$2:$EP$109,経営指標DATA!$A67))*$H$5/10 -> 0.9 | U67: 2月下半月 | V67: =IF(H$3="","",HLOOKUP(H$3,経営指標DATA!$H$2:$EP$109,経営指標DATA!$A67))*$V$5/10 -> 3.6 | X67: 3.6
G68: 3月上半月 | H68: =IF(H$3="","",HLOOKUP(H$3,経営指標DATA!$H$2:$EP$109,経営指標DATA!$A68))*$H$5/10 -> 0 | U68: 3月上半月 | V68: =IF(H$3="","",HLOOKUP(H$3,経営指標DATA!$H$2:$EP$109,経営指標DATA!$A68))*$V$5/10 -> 0 | X68: 0
G69: 3月下半月 | H69: =IF(H$3="","",HLOOKUP(H$3,経営指標DATA!$H$2:$EP$109,経営指標DATA!$A69))*$H$5/10 -> 0 | U69: 3月下半月 | V69: =IF(H$3="","",HLOOKUP(H$3,経営指標DATA!$H$2:$EP$109,経営指標DATA!$A69))*$V$5/10 -> 0 | X69: 0
G70: 4月上半月 | H70: =IF(H$3="","",HLOOKUP(H$3,経営指標DATA!$H$2:$EP$109,経営指標DATA!$A70))*$H$5/10 -> 0.1 | U70: 4月上半月 | V70: =IF(H$3="","",HLOOKUP(H$3,経営指標DATA!$H$2:$EP$109,経営指標DATA!$A70))*$V$5/10 -> 0.4 | X70: 0.4
G71: 4月下半月 | H71: =IF(H$3="","",HLOOKUP(H$3,経営指標DATA!$H$2:$EP$109,経営指標DATA!$A71))*$H$5/10 -> 0.1 | U71: 4月下半月 | V71: =IF(H$3="","",HLOOKUP(H$3,経営指標DATA!$H$2:$EP$109,経営指標DATA!$A71))*$V$5/10 -> 0.4 | X71: 0.4
G72: 5月上半月 | H72: =IF(H$3="","",HLOOKUP(H$3,経営指標DATA!$H$2:$EP$109,経営指標DATA!$A72))*$H$5/10 -> 0.6 | L72: ※面積換算したもの | U72: 5月上半月 | V72: =IF(H$3="","",HLOOKUP(H$3,経営指標DATA!$H$2:$EP$109,経営指標DATA!$A72))*$V$5/10 -> 2.4 | X72: 2.4
G73: 5月下半月 | H73: =IF(H$3="","",HLOOKUP(H$3,経営指標DATA!$H$2:$EP$109,経営指標DATA!$A73))*$H$5/10 -> 0.5 | U73: 5月下半月 | V73: =IF(H$3="","",HLOOKUP(H$3,経営指標DATA!$H$2:$EP$109,経営指標DATA!$A73))*$V$5/10 -> 2 | X73: 2
G74: 6月上半月 | H74: =IF(H$3="","",HLOOKUP(H$3,経営指標DATA!$H$2:$EP$109,経営指標DATA!$A74))*$H$5/10 -> 0 | U74: 6月上半月 | V74: =IF(H$3="","",HLOOKUP(H$3,経営指標DATA!$H$2:$EP$109,経営指標DATA!$A74))*$V$5/10 -> 0 | X74: 0
G75: 6月下半月 | H75: =IF(H$3="","",HLOOKUP(H$3,経営指標DATA!$H$2:$EP$109,経営指標DATA!$A75))*$H$5/10 -> 0 | U75: 6月下半月 | V75: =IF(H$3="","",HLOOKUP(H$3,経営指標DATA!$H$2:$EP$109,経営指標DATA!$A75))*$V$5/10 -> 0 | X75: 0
G76: 7月上半月 | H76: =IF(H$3="","",HLOOKUP(H$3,経営指標DATA!$H$2:$EP$109,経営指標DATA!$A76))*$H$5/10 -> 0 | U76: 7月上半月 | V76: =IF(H$3="","",HLOOKUP(H$3,経営指標DATA!$H$2:$EP$109,経営指標DATA!$A76))*$V$5/10 -> 0 | X76: 0
G77: 7月下半月 | H77: =IF(H$3="","",HLOOKUP(H$3,経営指標DATA!$H$2:$EP$109,経営指標DATA!$A77))*$H$5/10 -> 0 | U77: 7月下半月 | V77: =IF(H$3="","",HLOOKUP(H$3,経営指標DATA!$H$2:$EP$109,経営指標DATA!$A77))*$V$5/10 -> 0 | X77: 0
G78: 8月上半月 | H78: =IF(H$3="","",HLOOKUP(H$3,経営指標DATA!$H$2:$EP$109,経営指標DATA!$A78))*$H$5/10 -> 0 | U78: 8月上半月 | V78: =IF(H$3="","",HLOOKUP(H$3,経営指標DATA!$H$2:$EP$109,経営指標DATA!$A78))*$V$5/10 -> 0 | X78: 0
G79: 8月下半月 | H79: =IF(H$3="","",HLOOKUP(H$3,経営指標DATA!$H$2:$EP$109,経営指標DATA!$A79))*$H$5/10 -> 0 | U79: 8月下半月 | V79: =IF(H$3="","",HLOOKUP(H$3,経営指標DATA!$H$2:$EP$109,経営指標DATA!$A79))*$V$5/10 -> 0 | X79: 0
G80: 9月上半月 | H80: =IF(H$3="","",HLOOKUP(H$3,経営指標DATA!$H$2:$EP$109,経営指標DATA!$A80))*$H$5/10 -> 0 | U80: 9月上半月 | V80: =IF(H$3="","",HLOOKUP(H$3,経営指標DATA!$H$2:$EP$109,経営指標DATA!$A80))*$V$5/10 -> 0 | X80: 0
G81: 9月下半月 | H81: =IF(H$3="","",HLOOKUP(H$3,経営指標DATA!$H$2:$EP$109,経営指標DATA!$A81))*$H$5/10 -> 0 | U81: 9月下半月 | V81: =IF(H$3="","",HLOOKUP(H$3,経営指標DATA!$H$2:$EP$109,経営指標DATA!$A81))*$V$5/10 -> 0 | X81: 0
G82: 10月上半月 | H82: =IF(H$3="","",HLOOKUP(H$3,経営指標DATA!$H$2:$EP$109,経営指標DATA!$A82))*$H$5/10 -> 0 | U82: 10月上半月 | V82: =IF(H$3="","",HLOOKUP(H$3,経営指標DATA!$H$2:$EP$109,経営指標DATA!$A82))*$V$5/10 -> 0 | X82: 0
G83: 10月下半月 | H83: =IF(H$3="","",HLOOKUP(H$3,経営指標DATA!$H$2:$EP$109,経営指標DATA!$A83))*$H$5/10 -> 0 | U83: 10月下半月 | V83: =IF(H$3="","",HLOOKUP(H$3,経営指標DATA!$H$2:$EP$109,経営指標DATA!$A83))*$V$5/10 -> 0 | X83: 0
G84: 11月上半月 | H84: =IF(H$3="","",HLOOKUP(H$3,経営指標DATA!$H$2:$EP$109,経営指標DATA!$A84))*$H$5/10 -> 1.7 | U84: 11月上半月 | V84: =IF(H$3="","",HLOOKUP(H$3,経営指標DATA!$H$2:$EP$109,経営指標DATA!$A84))*$V$5/10 -> 6.8 | X84: 6.8
G85: 11月下半月 | H85: =IF(H$3="","",HLOOKUP(H$3,経営指標DATA!$H$2:$EP$109,経営指標DATA!$A85))*$H$5/10 -> 1.6 | U85: 11月下半月 | V85: =IF(H$3="","",HLOOKUP(H$3,経営指標DATA!$H$2:$EP$109,経営指標DATA!$A85))*$V$5/10 -> 6.4 | X85: 6.4
G86: 12月上半月 | H86: =IF(H$3="","",HLOOKUP(H$3,経営指標DATA!$H$2:$EP$109,経営指標DATA!$A86))*$H$5/10 -> 0.5 | U86: 12月上半月 | V86: =IF(H$3="","",HLOOKUP(H$3,経営指標DATA!$H$2:$EP$109,経営指標DATA!$A86))*$V$5/10 -> 2 | X86: 2
G87: 12月下半月 | H87: =IF(H$3="","",HLOOKUP(H$3,経営指標DATA!$H$2:$EP$109,経営指標DATA!$A87))*$H$5/10 -> 0.2 | U87: 12月下半月 | V87: =IF(H$3="","",HLOOKUP(H$3,経営指標DATA!$H$2:$EP$109,経営指標DATA!$A87))*$V$5/10 -> 0.8 | X87: 0.8
G88: 計 | H88: =SUM(H64:H87) -> 8.4 | U88: 計 | V88: =SUM(V64:V87) -> 33.6 | X88: 33.6
X89: 0
G90: 1月 | H90: =IF(H$3="","",HLOOKUP(H$3,経営指標DATA!$H$2:$EP$109,経営指標DATA!$A90))*$H$5/10 -> 1.4 | U90: 1月 | V90: =IF(H$3="","",HLOOKUP(H$3,経営指標DATA!$H$2:$EP$109,経営指標DATA!$A90))*$V$5/10 -> 5.6 | X90: 5.6
G91: 2月 | H91: =IF(H$3="","",HLOOKUP(H$3,経営指標DATA!$H$2:$EP$109,経営指標DATA!$A91))*$H$5/10 -> 1.7 | U91: 2月 | V91: =IF(H$3="","",HLOOKUP(H$3,経営指標DATA!$H$2:$EP$109,経営指標DATA!$A91))*$V$5/10 -> 6.8 | X91: 6.8
G92: 3月 | H92: =IF(H$3="","",HLOOKUP(H$3,経営指標DATA!$H$2:$EP$109,経営指標DATA!$A92))*$H$5/10 -> 0 | U92: 3月 | V92: =IF(H$3="","",HLOOKUP(H$3,経営指標DATA!$H$2:$EP$109,経営指標DATA!$A92))*$V$5/10 -> 0 | X92: 0
G93: 4月 | H93: =IF(H$3="","",HLOOKUP(H$3,経営指標DATA!$H$2:$EP$109,経営指標DATA!$A93))*$H$5/10 -> 0.2 | U93: 4月 | V93: =IF(H$3="","",HLOOKUP(H$3,経営指標DATA!$H$2:$EP$109,経営指標DATA!$A93))*$V$5/10 -> 0.8 | X93: 0.8
G94: 5月 | H94: =IF(H$3="","",HLOOKUP(H$3,経営指標DATA!$H$2:$EP$109,経営指標DATA!$A94))*$H$5/10 -> 1.1 | U94: 5月 | V94: =IF(H$3="","",HLOOKUP(H$3,経営指標DATA!$H$2:$EP$109,経営指標DATA!$A94))*$V$5/10 -> 4.4 | X94: 4.4
G95: 6月 | H95: =IF(H$3="","",HLOOKUP(H$3,経営指標DATA!$H$2:$EP$109,経営指標DATA!$A95))*$H$5/10 -> 0 | U95: 6月 | V95: =IF(H$3="","",HLOOKUP(H$3,経営指標DATA!$H$2:$EP$109,経営指標DATA!$A95))*$V$5/10 -> 0 | X95: 0
G96: 7月 | H96: =IF(H$3="","",HLOOKUP(H$3,経営指標DATA!$H$2:$EP$109,経営指標DATA!$A96))*$H$5/10 -> 0 | U96: 7月 | V96: =IF(H$3="","",HLOOKUP(H$3,経営指標DATA!$H$2:$EP$109,経営指標DATA!$A96))*$V$5/10 -> 0 | X96: 0
G97: 8月 | H97: =IF(H$3="","",HLOOKUP(H$3,経営指標DATA!$H$2:$EP$109,経営指標DATA!$A97))*$H$5/10 -> 0 | U97: 8月 | V97: =IF(H$3="","",HLOOKUP(H$3,経営指標DATA!$H$2:$EP$109,経営指標DATA!$A97))*$V$5/10 -> 0 | X97: 0
G98: 9月 | H98: =IF(H$3="","",HLOOKUP(H$3,経営指標DATA!$H$2:$EP$109,経営指標DATA!$A98))*$H$5/10 -> 0 | U98: 9月 | V98: =IF(H$3="","",HLOOKUP(H$3,経営指標DATA!$H$2:$EP$109,経営指標DATA!$A98))*$V$5/10 -> 0 | X98: 0
G99: 10月 | H99: =IF(H$3="","",HLOOKUP(H$3,経営指標DATA!$H$2:$EP$109,経営指標DATA!$A99))*$H$5/10 -> 0 | U99: 10月 | V99: =IF(H$3="","",HLOOKUP(H$3,経営指標DATA!$H$2:$EP$109,経営指標DATA!$A99))*$V$5/10 -> 0 | X99: 0
G100: 11月 | H100: =IF(H$3="","",HLOOKUP(H$3,経営指標DATA!$H$2:$EP$109,経営指標DATA!$A100))*$H$5/10 -> 3.3 | U100: 11月 | V100: =IF(H$3="","",HLOOKUP(H$3,経営指標DATA!$H$2:$EP$109,経営指標DATA!$A100))*$V$5/10 -> 13.2 | X100: 13.2
G101: 12月 | H101: =IF(H$3="","",HLOOKUP(H$3,経営指標DATA!$H$2:$EP$109,経営指標DATA!$A101))*$H$5/10 -> 0.7 | U101: 12月 | V101: =IF(H$3="","",HLOOKUP(H$3,経営指標DATA!$H$2:$EP$109,経営指標DATA!$A101))*$V$5/10 -> 2.8 | X101: 2.8
G102: 計 | H102: =SUM(H90:H101) -> 8.4 | U102: 計 | V102: =SUM(V90:V101) -> 33.6 | X102: 33.6
X103: 0
G104: 検算→ | H104: =IF(H88=H102,"OK","NG ") -> OK | U104: 検算→ | V104: =IF(V88=V102,"OK","NG ") -> OK | X104: OK

Sheet 品目シート④
B2: 基本シート※NO.面積入力後10aで自動計算
B3: 作物名・作型等 項目 | H3: =HPイメージ!D14 -> 5 | Z3: 損益分岐点粗収入＝固定費÷（１－変動費比率）
H4: =IF(H$3="","",HLOOKUP(H$3,経営指標DATA!$H$2:$EP$109,経営指標DATA!$A3)) -> 小麦 | J4: 計算シート | Z4: ＝固定費÷（１－変動費÷農業粗収入）
B5: 経営面積（a） | H5: 10 | P5: 経営面積（a） | V5: =HPイメージ!G14 -> 40 | Z5: 10a当たり
B6: 生産販売 | E6: 生産量 | G6: kg・本・頭 | H6: =IF(H$3="","",HLOOKUP(H$3,経営指標DATA!$H$2:$EP$109,経営指標DATA!$A5))*$H$5/10 -> 450 | K6: 青色セル | P6: 生産販売 | S6: 生産量 | U6: kg・本・頭 | V6: =IF(H$3="","",HLOOKUP(H$3,経営指標DATA!$H$2:$EP$109,経営指標DATA!$A5))*$V$5/10 -> 1800 | AA6: 売上(粗収益) | AB6: =$V$12 -> 298800 | AE6: 変動比率
E7: 販売量 | H7: =IF(H$3="","",HLOOKUP(H$3,経営指標DATA!$H$2:$EP$109,経営指標DATA!$A6))*$H$5/10 -> 450 | K7: ↓ 入力可能シート | S7: 販売量 | V7: =IF(H$3="","",HLOOKUP(H$3,経営指標DATA!$H$2:$EP$109,経営指標DATA!$A6))*$V$5/10 -> 1800 | AA7: 固定費 | AB7: =$L$52 -> 0 | AF7: =AB8/AB6*100 -> 73.58536758 | AG7: %
E8: 単価 | G8: 円/kg・本・頭 | H8: =IF(H$3="","",HLOOKUP(H$3,経営指標DATA!$H$2:$EP$109,経営指標DATA!$A7)) -> 166 | S8: 単価 | U8: 円/kg・本・頭 | V8: =IF(H$3="","",HLOOKUP(H$3,経営指標DATA!$H$2:$EP$109,経営指標DATA!$A7)) -> 166 | AA8: 変動費 | AB8: =$M$52*V5/H5 -> 219873.0783 | AE8: 損益分岐点粗収入
B9: 販売金額 | E9: 主産物 | H9: =IF(H$3="","",HLOOKUP(H$3,経営指標DATA!$H$2:$EP$109,経営指標DATA!$A8))*$H$5/10 -> 74700 | L9: ※固定費はそのまま | P9: 販売金額 | S9: 主産物 | V9: =IF(H$3="","",HLOOKUP(H$3,経営指標DATA!$H$2:$EP$109,経営指標DATA!$A8))*$V$5/10 -> 298800 | AA9: 経常利益 | AB9: =AB6-AB7-AB8 -> 78926.92167 | AF9: =AB7/(1-(AB8/AB6)) -> 0
E10: 副産物 | H10: =IF(H$3="","",HLOOKUP(H$3,経営指標DATA!$H$2:$EP$109,経営指標DATA!$A9))*$H$5/10 -> 0 | L10: ※変動費は面積換算し、計算シートに反映 | S10: 副産物 | V10: =IF(H$3="","",HLOOKUP(H$3,経営指標DATA!$H$2:$EP$109,経営指標DATA!$A9))*$V$5/10 -> 0
B11: 奨励金等 | E11: 奨励金・助成金 | H11: =IF(H$3="","",HLOOKUP(H$3,経営指標DATA!$H$2:$EP$109,経営指標DATA!$A10)) -> 0 | P11: 奨励金等 | S11: 奨励金・助成金 | V11: =IF(H$3="","",HLOOKUP(H$3,経営指標DATA!$H$2:$EP$109,経営指標DATA!$A10)) -> 0 | Z11: 売上範囲 | AA11: 0 | AB11: =$AB$6 -> 298800 | AD11: 定数 | AE11: =AB8/AB6 -> 0.7358536758
B12: 農業総収入 | H12: =H9+H10 -> 74700 | P12: 農業総収入 | V12: =V9+V10 -> 298800 | Z12: 売上 | AA12: 0 | AB12: =$AB$6 -> 298800 | AD12: 切片 | AE12: =AB7 -> 0
B13: 農業粗収益（販売経費差引後） | H13: =IF(H$3="","",HLOOKUP(H$3,経営指標DATA!$H$2:$EP$109,経営指標DATA!$A12))*$H$5/10 -> 62188.5 | J13: 固定費と変動費の割合を記入 | P13: 農業粗収益（販売経費差引後） | V13: =IF(H$3="","",HLOOKUP(H$3,経営指標DATA!$H$2:$EP$109,経営指標DATA!$A12))*$V$5/10 -> 248754 | X13: 結果・労働時間シート | Z13: 変動 | AA13: =$AB$7 -> 0 | AB13: =AE11*AB6+AA13 -> 219873.0783 | AD13: 損益分岐点 | AE13: =AB7/(1-AE11) -> 0
B14: 手取り単価 | H14: =IF(H$3="","",HLOOKUP(H$3,経営指標DATA!$H$2:$EP$109,経営指標DATA!$A13)) -> 138.1966667 | J14: ↓ | K14: ↓ | P14: 手取り単価 | V14: =IF(H$3="","",HLOOKUP(H$3,経営指標DATA!$H$2:$EP$109,経営指標DATA!$A13)) -> 138.1966667 | Z14: 固定 | AA14: =$AB$7 -> 0 | AB14: =$AB$7 -> 0
B15: [費 用] | J15: 固定費％ | K15: 変動費％ | L15: 固定費 | M15: 変動費 | N15: 確認欄 | P15: [費 用] | AD15: 現在の売上 | AF15: =$V$12 -> 298800
B16: 全算入生産費 | C16: 支払利子・支払地代算入生産費 | D16: 副産物価格差引生産費 | E16: 種苗費 | H16: =IF(H$3="","",HLOOKUP(H$3,経営指標DATA!$H$2:$EP$109,経営指標DATA!$A15))*$H$5/10 -> 1630 | J16: 0 | K16: 1 | L16: =H16*J16 -> 0 | M16: =H16*K16 -> 1630 | P16: 全算入生産費 | Q16: 支払利子・支払地代算入生産費 | R16: 副産物価格差引生産費 | S16: 種苗費 | V16: =L16+(M16*$V$5/$H$5) -> 6520 | AA16: 限界利益率 | AB16: =((V13-AB8)/V13)*100 -> 11.61023407 | AD16: 損益分岐点安全余裕率 | AF16: =(AF15-AE13)/AF15 -> 1
E17: 肥料費 | H17: =IF(H$3="","",HLOOKUP(H$3,経営指標DATA!$H$2:$EP$109,経営指標DATA!$A16))*$H$5/10 -> 8243 | J17: 0 | K17: 1 | L17: =H17*J17 -> 0 | M17: =H17*K17 -> 8243 | S17: 肥料費 | V17: 32972 | AD17: 利益予想 | AF17: =AF15*(1-(AB8/AB6))-AB7 -> 78926.92167
E18: 素畜費・種付費 | H18: =IF(H$3="","",HLOOKUP(H$3,経営指標DATA!$H$2:$EP$109,経営指標DATA!$A17))*$H$5/10 -> 0 | J18: 0 | K18: 1 | L18: 0 | M18: 0 | S18: 素畜費・種付費 | V18: 0
E19: 飼料費 | H19: =IF(H$3="","",HLOOKUP(H$3,経営指標DATA!$H$2:$EP$109,経営指標DATA!$A18))*$H$5/10 -> 0 | J19: 0 | K19: 1 | L19: 0 | M19: 0 | S19: 飼料費 | V19: 0
E20: 農薬・衛生費 | H20: =IF(H$3="","",HLOOKUP(H$3,経営指標DATA!$H$2:$EP$109,経営指標DATA!$A19))*$H$5/10 -> 5364 | J20: 0 | K20: 1 | L20: 0 | M20: 5364 | S20: 農薬・衛生費 | V20: 21456
E21: 動力光熱費 | H21: =IF(H$3="","",HLOOKUP(H$3,経営指標DATA!$H$2:$EP$109,経営指標DATA!$A20))*$H$5/10 -> 2093 | J21: 0 | K21: 1 | L21: 0 | M21: 2093 | S21: 動力光熱費 | V21: 8372
E22: 諸材料費・敷料費 | H22: =IF(H$3="","",HLOOKUP(H$3,経営指標DATA!$H$2:$EP$109,経営指標DATA!$A21))*$H$5/10 -> 120 | J22: 0 | K22: 1 | L22: 0 | M22: 120 | S22: 諸材料費・敷料費 | V22: 480
E23: 小農具費・作業衣料費 | H23: =IF(H$3="","",HLOOKUP(H$3,経営指標DATA!$H$2:$EP$109,経営指標DATA!$A22))*$H$5/10 -> 14.76958333 | J23: 0 | K23: 1 | L23: 0 | M23: 14.76958333 | S23: 小農具費・作業衣料費 | V23: 59.07833333
E24: 賃借料・料金 | H24: =IF(H$3="","",HLOOKUP(H$3,経営指標DATA!$H$2:$EP$109,経営指標DATA!$A23))*$H$5/10 -> 0 | J24: 0 | K24: 1 | L24: 0 | M24: 0 | S24: 賃借料・料金 | V24: 0
E25: 物件税・租税公課 | H25: =IF(H$3="","",HLOOKUP(H$3,経営指標DATA!$H$2:$EP$109,経営指標DATA!$A24))*$H$5/10 -> 791 | J25: 0 | K25: 1 | L25: 0 | M25: 791 | S25: 物件税・租税公課 | V25: 3164
E26: 保険共済費 | H26: =IF(H$3="","",HLOOKUP(H$3,経営指標DATA!$H$2:$EP$109,経営指標DATA!$A25))*$H$5/10 -> 1571 | J26: 0 | K26: 1 | L26: 0 | M26: 1571 | S26: 保険共済費 | V26: 6284
E27: 土地改良水利費 | H27: =IF(H$3="","",HLOOKUP(H$3,経営指標DATA!$H$2:$EP$109,経営指標DATA!$A26))*$H$5/10 -> 1500 | J27: 0 | K27: 1 | L27: 0 | M27: 1500 | S27: 土地改良水利費 | V27: 6000
E28: 修繕費 | H28: =IF(H$3="","",HLOOKUP(H$3,経営指標DATA!$H$2:$EP$109,経営指標DATA!$A27))*$H$5/10 -> 2415 | J28: 0 | K28: 1 | L28: 0 | M28: 2415 | S28: 修繕費 | V28: 9660
E29: 減価償却費 | H29: =SUM(H30:H33) -> 12309 | L29: =SUM(L30:L33) -> 0 | M29: =SUM(M30:M33) -> 12309 | N29: =IF(H29=SUM(L29:M29),"OK","NG") -> OK | S29: 減価償却費 | V29: =SUM(V30:V33) -> 49236
E30: ※ | F30: 建物・施設 | H30: =IF(H$3="","",HLOOKUP(H$3,経営指標DATA!$H$2:$EP$109,経営指標DATA!$A29))*$H$5/10 -> 1350 | J30: 0 | K30: 1 | L30: =H30*J30 -> 0 | M30: =H30*K30 -> 1350 | S30: ※ | T30: 建物・施設 | V30: =L30+M30*$V$5/$H$5 -> 5400
E31: ※ | F31: 農機具 | H31: =IF(H$3="","",HLOOKUP(H$3,経営指標DATA!$H$2:$EP$109,経営指標DATA!$A30))*$H$5/10 -> 10959 | J31: 0 | K31: 1 | L31: 0 | M31: 10959 | S31: ※ | T31: 農機具 | V31: =L31+M31*$V$5/$H$5 -> 43836
E32: ※ | F32: 大植物（大動物） | H32: =IF(H$3="","",HLOOKUP(H$3,経営指標DATA!$H$2:$EP$109,経営指標DATA!$A31))*$H$5/10 -> 0 | J32: 0 | K32: 1 | L32: 0 | M32: 0 | S32: ※ | T32: 大植物（大動物） | V32: =L32+M32*$V$5/$H$5 -> 0
E33: ※ | F33: 生産管理機器 | H33: =IF(H$3="","",HLOOKUP(H$3,経営指標DATA!$H$2:$EP$109,経営指標DATA!$A32))*$H$5/10 -> 0 | J33: 0 | K33: 1 | L33: 0 | M33: 0 | S33: ※ | T33: 生産管理機器 | V33: =L33+M33*$V$5/$H$5 -> 0
E34: 生産管理費 | H34: =IF(H$3="","",HLOOKUP(H$3,経営指標DATA!$H$2:$EP$109,経営指標DATA!$A33))*$H$5/10 -> 125 | J34: 0 | K34: 1 | L34: 0 | M34: 125 | S34: 生産管理費 | V34: =L34+M34*$V$5/$H$5 -> 500
E35: 物財費計 | H35: =SUM(H16:H29,H34) -> 36175.76958 | L35: =SUM(L16:L29)+L34 -> 0 | M35: =SUM(M16:M29)+M34 -> 36175.76958 | N35: =IF(H35=SUM(L35:M35),"OK","NG") -> OK | S35: 物財費計 | V35: =SUM(V16:V29,V34) -> 144703.0783
E36: 労働費 | H36: =H37+H38 -> 8190 | L36: =SUM(L37:L38) -> 0 | M36: =SUM(M37:M38) -> 8190 | N36: =IF(H36=SUM(L36:M36),"OK","NG") -> OK | S36: 労働費 | V36: =V37+V38 -> 32760
F37: 雇用労働費 | H37: =IF(H$3="","",HLOOKUP(H$3,経営指標DATA!$H$2:$EP$109,経営指標DATA!$A36))*$H$5/10 -> 0 | J37: 0 | K37: 1 | L37: =H37*J37 -> 0 | M37: =H37*K37 -> 0 | T37: 雇用労働費 | V37: =L37+M37*$V$5/$H$5 -> 0
F38: 家族労働見積額 | H38: =IF(H$3="","",HLOOKUP(H$3,経営指標DATA!$H$2:$EP$109,経営指標DATA!$A37))*$H$5/10 -> 8190 | J38: 0 | K38: 1 | L38: 0 | M38: 8190 | T38: 家族労働見積額 | V38: =L38+M38*$V$5/$H$5 -> 32760
E39: 費用計 | H39: =H35+H37 -> 36175.76958 | L39: =SUM(L35:L36) -> 0 | M39: =SUM(M35+M37) -> 36175.76958 | N39: =IF(H39=SUM(L39:M39),"OK","NG") -> OK | S39: 費用計 | V39: =V35+V37 -> 144703.0783
D40: 副産物価格差引生産費 | H40: =H39-H10 -> 36175.76958 | R40: 副産物価格差引生産費 | V40: =V39-V10 -> 144703.0783
D41: 支払い利子 | H41: =IF(H$3="","",HLOOKUP(H$3,経営指標DATA!$H$2:$EP$109,経営指標DATA!$A40))*$H$5/10 -> 156 | J41: 0 | K41: 1 | L41: =H41*J41 -> 0 | M41: =H41*K41 -> 156 | N41: =IF(H41=SUM(L41:M41),"OK","NG") -> OK | R41: 支払い利子 | V41: =L41+M41*$V$5/$H$5 -> 624
D42: 支払い地代 | H42: =IF(H$3="","",HLOOKUP(H$3,経営指標DATA!$H$2:$EP$109,経営指標DATA!$A41))*$H$5/10 -> 6125 | J42: 0 | K42: 1 | L42: 0 | M42: 6125 | N42: =IF(H42=SUM(L42:M42),"OK","NG") -> OK | R42: 支払い地代 | V42: =L42+M42*$V$5/$H$5 -> 24500
C43: 支払利子・支払地代参入生産費 | H43: =H40+H41+H42 -> 42456.76958 | Q43: 支払利子・支払地代参入生産費 | V43: =V40+V41+V42 -> 169827.0783
D44: 自己資本利子 | H44: =IF(H$3="","",HLOOKUP(H$3,経営指標DATA!$H$2:$EP$109,経営指標DATA!$A43))*$H$5/10 -> 1125 | J44: 0 | K44: 1 | L44: =H44*J44 -> 0 | M44: =H44*K44 -> 1125 | N44: =IF(H44=SUM(L44:M44),"OK","NG") -> OK | R44: 自己資本利子 | V44: =L44+M44*$V$5/$H$5 -> 4500
D45: 自作地地代 | H45: =IF(H$3="","",HLOOKUP(H$3,経営指標DATA!$H$2:$EP$109,経営指標DATA!$A44))*$H$5/10 -> 875 | J45: 0 | K45: 1 | L45: 0 | M45: =H45*K45 -> 875 | N45: =IF(H45=SUM(L45:M45),"OK","NG") -> OK | R45: 自作地地代 | V45: =L45+M45*$V$5/$H$5 -> 3500
C46: 全算入生産費 | H46: =H43+H44+H45 -> 44456.76958 | Q46: 全算入生産費 | V46: =V43+V44+V45 -> 177827.0783
B47: 販売費及び 一般管理費 | E47: 選果出荷経費 | H47: =IF(H$3="","",HLOOKUP(H$3,経営指標DATA!$H$2:$EP$109,経営指標DATA!$A46))*$H$5/10 -> 10350 | J47: 0 | K47: 1 | L47: =H47*J47 -> 0 | M47: =H47*K47 -> 10350 | P47: 販売費及び 一般管理費 | S47: 選果出荷経費 | V47: =IF(H$3="","",HLOOKUP(H$3,経営指標DATA!$H$2:$EP$109,経営指標DATA!$A46))*$V$5/10 -> 41400
E48: 運賃 | H48: =IF(H$3="","",HLOOKUP(H$3,経営指標DATA!$H$2:$EP$109,経営指標DATA!$A47))*$H$5/10 -> 0 | K48: 1 | L48: 0 | M48: 0 | S48: 運賃 | V48: =IF(H$3="","",HLOOKUP(H$3,経営指標DATA!$H$2:$EP$109,経営指標DATA!$A47))*$V$5/10 -> 0
E49: 手数料 | H49: =IF(H$3="","",HLOOKUP(H$3,経営指標DATA!$H$2:$EP$109,経営指標DATA!$A48))*$H$5/10 -> 2161.5 | K49: 1 | L49: 0 | M49: 2161.5 | S49: 手数料 | V49: =IF(H$3="","",HLOOKUP(H$3,経営指標DATA!$H$2:$EP$109,経営指標DATA!$A48))*$V$5/10 -> 8646
E50: 一般管理費 | H50: =IF(H$3="","",HLOOKUP(H$3,経営指標DATA!$H$2:$EP$109,経営指標DATA!$A49))*$H$5/10 -> 0 | K50: 1 | L50: 0 | M50: 0 | S50: 一般管理費 | V50: =IF(H$3="","",HLOOKUP(H$3,経営指標DATA!$H$2:$EP$109,経営指標DATA!$A49))*$V$5/10 -> 0
E51: 計 | H51: =H47+H48+H49+H50 -> 12511.5 | J51: 販売費及び一般管理費 | L51: =L47+L48+L49+L50 -> 0 | M51: =M47+M48+M49+M50 -> 12511.5 | P51: 販売費及び 一般管理費 | V51: =V47+V48+V49+V50 -> 50046
J52: 経営費（固定費、変動費） | L52: =L39+L41+L42+L51 -> 0 | M52: =M39+M41+M42+M51 -> 54968.26958 | P52: 経営費合計 | V52: =V39+V41+V42+V51 -> 219873.0783
B53: [経営指標] | P53: [経営指標]
B54: 農業経営費（販売費及び一般管理費含む） | H54: =H35+H37+H41+H42+H51 -> 54968.26958 | P54: 農業経営費（販売費及び一般管理費含む） | V54: =V35+V37+V41+V42+V51 -> 219873.0783 | X54: 結果・労働時間シート
B55: 農業所得 | H55: =H12-H54 -> 19731.73042 | P55: 農業所得 | V55: =V12-V54 -> 78926.92167 | X55: 結果・労働時間シート
B56: 農業所得率（農業所得÷農業経営費×100） | H56: =(H55/H12)*100 -> 26.41463242 | P56: 農業所得率（農業所得÷農業経営費×100） | V56: =(V55/V12)*100 -> 26.41463242 | X56: 結果・労働時間シート
B57: 1日当たり農業所得 | H57: =IF(H$3="","",HLOOKUP(H$3,経営指標DATA!$H$2:$EP$109,経営指標DATA!$A56)) -> 18792.12421 | P57: 1日当たり農業所得 | V57: =IF(H$3="","",HLOOKUP(H$3,経営指標DATA!$H$2:$EP$109,経営指標DATA!$A56)) -> 18792.12421
B58: 1日当たり家族労働報酬 | H58: =IF(H$3="","",HLOOKUP(H$3,経営指標DATA!$H$2:$EP$109,経営指標DATA!$A57)) -> 16888.3623 | P58: 1日当たり家族労働報酬 | V58: =IF(H$3="","",HLOOKUP(H$3,経営指標DATA!$H$2:$EP$109,経営指標DATA!$A57)) -> 16888.3623
B60: 労働時間計 | H60: =IF(H$3="","",HLOOKUP(H$3,経営指標DATA!$H$2:$EP$109,経営指標DATA!$A59))*$H$5/10 -> 8.4 | P60: 労働時間計 | V60: =IF(H$3="","",HLOOKUP(H$3,経営指標DATA!$H$2:$EP$109,経営指標DATA!$A59))*$V$5/10 -> 33.6
C61: うち家族労働時間 | H61: =IF(H$3="","",HLOOKUP(H$3,経営指標DATA!$H$2:$EP$109,経営指標DATA!$A60))*$H$5/10 -> 8.4 | Q61: うち家族労働時間 | V61: =IF(H$3="","",HLOOKUP(H$3,経営指標DATA!$H$2:$EP$109,経営指標DATA!$A60))*$V$5/10 -> 33.6
C62: うち雇用労働時間 | H62: =IF(H$3="","",HLOOKUP(H$3,経営指標DATA!$H$2:$EP$109,経営指標DATA!$A61))*$H$5/10 -> 0 | Q62: うち雇用労働時間 | V62: =IF(H$3="","",HLOOKUP(H$3,経営指標DATA!$H$2:$EP$109,経営指標DATA!$A61))*$V$5/10 -> 0
X63: 記入用
G64: 1月上半月 | H64: =IF(H$3="","",HLOOKUP(H$3,経営指標DATA!$H$2:$EP$109,経営指標DATA!$A64))*$H$5/10 -> 0.7 | U64: 1月上半月 | V64: =IF(H$3="","",HLOOKUP(H$3,経営指標DATA!$H$2:$EP$109,経営指標DATA!$A64))*$V$5/10 -> 2.8 | X64: =V64 -> 2.8
G65: 1月下半月 | H65: =IF(H$3="","",HLOOKUP(H$3,経営指標DATA!$H$2:$EP$109,経営指標DATA!$A65))*$H$5/10 -> 0.7 | U65: 1月下半月 | V65: =IF(H$3="","",HLOOKUP(H$3,経営指標DATA!$H$2:$EP$109,経営指標DATA!$A65))*$V$5/10 -> 2.8 | X65: 2.8
G66: 2月上半月 | H66: =IF(H$3="","",HLOOKUP(H$3,経営指標DATA!$H$2:$EP$109,経営指標DATA!$A66))*$H$5/10 -> 0.8 | U66: 2月上半月 | V66: =IF(H$3="","",HLOOKUP(H$3,経営指標DATA!$H$2:$EP$109,経営指標DATA!$A66))*$V$5/10 -> 3.2 | X66: 3.2
G67: 2月下半月 | H67: =IF(H$3="","",HLOOKUP(H$3,経営指標DATA!$H$2:$EP$109,経営指標DATA!$A67))*$H$5/10 -> 0.9 | U67: 2月下半月 | V67: =IF(H$3="","",HLOOKUP(H$3,経営指標DATA!$H$2:$EP$109,経営指標DATA!$A67))*$V$5/10 -> 3.6 | X67: 3.6
G68: 3月上半月 | H68: =IF(H$3="","",HLOOKUP(H$3,経営指標DATA!$H$2:$EP$109,経営指標DATA!$A68))*$H$5/10 -> 0 | U68: 3月上半月 | V68: =IF(H$3="","",HLOOKUP(H$3,経営指標DATA!$H$2:$EP$109,経営指標DATA!$A68))*$V$5/10 -> 0 | X68: 0
G69: 3月下半月 | H69: =IF(H$3="","",HLOOKUP(H$3,経営指標DATA!$H$2:$EP$109,経営指標DATA!$A69))*$H$5/10 -> 0 | U69: 3月下半月 | V69: =IF(H$3="","",HLOOKUP(H$3,経営指標DATA!$H$2:$EP$109,経営指標DATA!$A69))*$V$5/10 -> 0 | X69: 0
G70: 4月上半月 | H70: =IF(H$3="","",HLOOKUP(H$3,経営指標DATA!$H$2:$EP$109,経営指標DATA!$A70))*$H$5/10 -> 0.1 | U70: 4月上半月 | V70: =IF(H$3="","",HLOOKUP(H$3,経営指標DATA!$H$2:$EP$109,経営指標DATA!$A70))*$V$5/10 -> 0.4 | X70: 0.4
G71: 4月下半月 | H71: =IF(H$3="","",HLOOKUP(H$3,経営指標DATA!$H$2:$EP$109,経営指標DATA!$A71))*$H$5/10 -> 0.1 | U71: 4月下半月 | V71: =IF(H$3="","",HLOOKUP(H$3,経営指標DATA!$H$2:$EP$109,経営指標DATA!$A71))*$V$5/10 -> 0.4 | X71: 0.4
G72: 5月上半月 | H72: =IF(H$3="","",HLOOKUP(H$3,経営指標DATA!$H$2:$EP$109,経営指標DATA!$A72))*$H$5/10 -> 0.6 | L72: ※面積換算したもの | U72: 5月上半月 | V72: =IF(H$3="","",HLOOKUP(H$3,経営指標DATA!$H$2:$EP$109,経営指標DATA!$A72))*$V$5/10 -> 2.4 | X72: 2.4
G73: 5月下半月 | H73: =IF(H$3="","",HLOOKUP(H$3,経営指標DATA!$H$2:$EP$109,経営指標DATA!$A73))*$H$5/10 -> 0.5 | U73: 5月下半月 | V73: =IF(H$3="","",HLOOKUP(H$3,経営指標DATA!$H$2:$EP$109,経営指標DATA!$A73))*$V$5/10 -> 2 | X73: 2
G74: 6月上半月 | H74: =IF(H$3="","",HLOOKUP(H$3,経営指標DATA!$H$2:$EP$109,経営指標DATA!$A74))*$H$5/10 -> 0 | U74: 6月上半月 | V74: =IF(H$3="","",HLOOKUP(H$3,経営指標DATA!$H$2:$EP$109,経営指標DATA!$A74))*$V$5/10 -> 0 | X74: 0
G75: 6月下半月 | H75: =IF(H$3="","",HLOOKUP(H$3,経営指標DATA!$H$2:$EP$109,経営指標DATA!$A75))*$H$5/10 -> 0 | U75: 6月下半月 | V75: =IF(H$3="","",HLOOKUP(H$3,経営指標DATA!$H$2:$EP$109,経営指標DATA!$A75))*$V$5/10 -> 0 | X75: 0
G76: 7月上半月 | H76: =IF(H$3="","",HLOOKUP(H$3,経営指標DATA!$H$2:$EP$109,経営指標DATA!$A76))*$H$5/10 -> 0 | U76: 7月上半月 | V76: =IF(H$3="","",HLOOKUP(H$3,経営指標DATA!$H$2:$EP$109,経営指標DATA!$A76))*$V$5/10 -> 0 | X76: 0
G77: 7月下半月 | H77: =IF(H$3="","",HLOOKUP(H$3,経営指標DATA!$H$2:$EP$109,経営指標DATA!$A77))*$H$5/10 -> 0 | U77: 7月下半月 | V77: =IF(H$3="","",HLOOKUP(H$3,経営指標DATA!$H$2:$EP$109,経営指標DATA!$A77))*$V$5/10 -> 0 | X77: 0
G78: 8月上半月 | H78: =IF(H$3="","",HLOOKUP(H$3,経営指標DATA!$H$2:$EP$109,経営指標DATA!$A78))*$H$5/10 -> 0 | U78: 8月上半月 | V78: =IF(H$3="","",HLOOKUP(H$3,経営指標DATA!$H$2:$EP$109,経営指標DATA!$A78))*$V$5/10 -> 0 | X78: 0
G79: 8月下半月 | H79: =IF(H$3="","",HLOOKUP(H$3,経営指標DATA!$H$2:$EP$109,経営指標DATA!$A79))*$H$5/10 -> 0 | U79: 8月下半月 | V79: =IF(H$3="","",HLOOKUP(H$3,経営指標DATA!$H$2:$EP$109,経営指標DATA!$A79))*$V$5/10 -> 0 | X79: 0
G80: 9月上半月 | H80: =IF(H$3="","",HLOOKUP(H$3,経営指標DATA!$H$2:$EP$109,経営指標DATA!$A80))*$H$5/10 -> 0 | U80: 9月上半月 | V80: =IF(H$3="","",HLOOKUP(H$3,経営指標DATA!$H$2:$EP$109,経営指標DATA!$A80))*$V$5/10 -> 0 | X80: 0
G81: 9月下半月 | H81: =IF(H$3="","",HLOOKUP(H$3,経営指標DATA!$H$2:$EP$109,経営指標DATA!$A81))*$H$5/10 -> 0 | U81: 9月下半月 | V81: =IF(H$3="","",HLOOKUP(H$3,経営指標DATA!$H$2:$EP$109,経営指標DATA!$A81))*$V$5/10 -> 0 | X81: 0
G82: 10月上半月 | H82: =IF(H$3="","",HLOOKUP(H$3,経営指標DATA!$H$2:$EP$109,経営指標DATA!$A82))*$H$5/10 -> 0 | U82: 10月上半月 | V82: =IF(H$3="","",HLOOKUP(H$3,経営指標DATA!$H$2:$EP$109,経営指標DATA!$A82))*$V$5/10 -> 0 | X82: 0
G83: 10月下半月 | H83: =IF(H$3="","",HLOOKUP(H$3,経営指標DATA!$H$2:$EP$109,経営指標DATA!$A83))*$H$5/10 -> 0 | U83: 10月下半月 | V83: =IF(H$3="","",HLOOKUP(H$3,経営指標DATA!$H$2:$EP$109,経営指標DATA!$A83))*$V$5/10 -> 0 | X83: 0
G84: 11月上半月 | H84: =IF(H$3="","",HLOOKUP(H$3,経営指標DATA!$H$2:$EP$109,経営指標DATA!$A84))*$H$5/10 -> 1.7 | U84: 11月上半月 | V84: =IF(H$3="","",HLOOKUP(H$3,経営指標DATA!$H$2:$EP$109,経営指標DATA!$A84))*$V$5/10 -> 6.8 | X84: 6.8
G85: 11月下半月 | H85: =IF(H$3="","",HLOOKUP(H$3,経営指標DATA!$H$2:$EP$109,経営指標DATA!$A85))*$H$5/10 -> 1.6 | U85: 11月下半月 | V85: =IF(H$3="","",HLOOKUP(H$3,経営指標DATA!$H$2:$EP$109,経営指標DATA!$A85))*$V$5/10 -> 6.4 | X85: 6.4
G86: 12月上半月 | H86: =IF(H$3="","",HLOOKUP(H$3,経営指標DATA!$H$2:$EP$109,経営指標DATA!$A86))*$H$5/10 -> 0.5 | U86: 12月上半月 | V86: =IF(H$3="","",HLOOKUP(H$3,経営指標DATA!$H$2:$EP$109,経営指標DATA!$A86))*$V$5/10 -> 2 | X86: 2
G87: 12月下半月 | H87: =IF(H$3="","",HLOOKUP(H$3,経営指標DATA!$H$2:$EP$109,経営指標DATA!$A87))*$H$5/10 -> 0.2 | U87: 12月下半月 | V87: =IF(H$3="","",HLOOKUP(H$3,経営指標DATA!$H$2:$EP$109,経営指標DATA!$A87))*$V$5/10 -> 0.8 | X87: 0.8
G88: 計 | H88: =SUM(H64:H87) -> 8.4 | U88: 計 | V88: =SUM(V64:V87) -> 33.6 | X88: 33.6
X89: 0
G90: 1月 | H90: =IF(H$3="","",HLOOKUP(H$3,経営指標DATA!$H$2:$EP$109,経営指標DATA!$A90))*$H$5/10 -> 1.4 | U90: 1月 | V90: =IF(H$3="","",HLOOKUP(H$3,経営指標DATA!$H$2:$EP$109,経営指標DATA!$A90))*$V$5/10 -> 5.6 | X90: 5.6
G91: 2月 | H91: =IF(H$3="","",HLOOKUP(H$3,経営指標DATA!$H$2:$EP$109,経営指標DATA!$A91))*$H$5/10 -> 1.7 | U91: 2月 | V91: =IF(H$3="","",HLOOKUP(H$3,経営指標DATA!$H$2:$EP$109,経営指標DATA!$A91))*$V$5/10 -> 6.8 | X91: 6.8
G92: 3月 | H92: =IF(H$3="","",HLOOKUP(H$3,経営指標DATA!$H$2:$EP$109,経営指標DATA!$A92))*$H$5/10 -> 0 | U92: 3月 | V92: =IF(H$3="","",HLOOKUP(H$3,経営指標DATA!$H$2:$EP$109,経営指標DATA!$A92))*$V$5/10 -> 0 | X92: 0
G93: 4月 | H93: =IF(H$3="","",HLOOKUP(H$3,経営指標DATA!$H$2:$EP$109,経営指標DATA!$A93))*$H$5/10 -> 0.2 | U93: 4月 | V93: =IF(H$3="","",HLOOKUP(H$3,経営指標DATA!$H$2:$EP$109,経営指標DATA!$A93))*$V$5/10 -> 0.8 | X93: 0.8
G94: 5月 | H94: =IF(H$3="","",HLOOKUP(H$3,経営指標DATA!$H$2:$EP$109,経営指標DATA!$A94))*$H$5/10 -> 1.1 | U94: 5月 | V94: =IF(H$3="","",HLOOKUP(H$3,経営指標DATA!$H$2:$EP$109,経営指標DATA!$A94))*$V$5/10 -> 4.4 | X94: 4.4
G95: 6月 | H95: =IF(H$3="","",HLOOKUP(H$3,経営指標DATA!$H$2:$EP$109,経営指標DATA!$A95))*$H$5/10 -> 0 | U95: 6月 | V95: =IF(H$3="","",HLOOKUP(H$3,経営指標DATA!$H$2:$EP$109,経営指標DATA!$A95))*$V$5/10 -> 0 | X95: 0
G96: 7月 | H96: =IF(H$3="","",HLOOKUP(H$3,経営指標DATA!$H$2:$EP$109,経営指標DATA!$A96))*$H$5/10 -> 0 | U96: 7月 | V96: =IF(H$3="","",HLOOKUP(H$3,経営指標DATA!$H$2:$EP$109,経営指標DATA!$A96))*$V$5/10 -> 0 | X96: 0
G97: 8月 | H97: =IF(H$3="","",HLOOKUP(H$3,経営指標DATA!$H$2:$EP$109,経営指標DATA!$A97))*$H$5/10 -> 0 | U97: 8月 | V97: =IF(H$3="","",HLOOKUP(H$3,経営指標DATA!$H$2:$EP$109,経営指標DATA!$A97))*$V$5/10 -> 0 | X97: 0
G98: 9月 | H98: =IF(H$3="","",HLOOKUP(H$3,経営指標DATA!$H$2:$EP$109,経営指標DATA!$A98))*$H$5/10 -> 0 | U98: 9月 | V98: =IF(H$3="","",HLOOKUP(H$3,経営指標DATA!$H$2:$EP$109,経営指標DATA!$A98))*$V$5/10 -> 0 | X98: 0
G99: 10月 | H99: =IF(H$3="","",HLOOKUP(H$3,経営指標DATA!$H$2:$EP$109,経営指標DATA!$A99))*$H$5/10 -> 0 | U99: 10月 | V99: =IF(H$3="","",HLOOKUP(H$3,経営指標DATA!$H$2:$EP$109,経営指標DATA!$A99))*$V$5/10 -> 0 | X99: 0
G100: 11月 | H100: =IF(H$3="","",HLOOKUP(H$3,経営指標DATA!$H$2:$EP$109,経営指標DATA!$A100))*$H$5/10 -> 3.3 | U100: 11月 | V100: =IF(H$3="","",HLOOKUP(H$3,経営指標DATA!$H$2:$EP$109,経営指標DATA!$A100))*$V$5/10 -> 13.2 | X100: 13.2
G101: 12月 | H101: =IF(H$3="","",HLOOKUP(H$3,経営指標DATA!$H$2:$EP$109,経営指標DATA!$A101))*$H$5/10 -> 0.7 | U101: 12月 | V101: =IF(H$3="","",HLOOKUP(H$3,経営指標DATA!$H$2:$EP$109,経営指標DATA!$A101))*$V$5/10 -> 2.8 | X101: 2.8
G102: 計 | H102: =SUM(H90:H101) -> 8.4 | U102: 計 | V102: =SUM(V90:V101) -> 33.6 | X102: 33.6
X103: 0
G104: 検算→ | H104: =IF(H88=H102,"OK","NG ") -> OK | U104: 検算→ | V104: =IF(V88=V102,"OK","NG ") -> OK | X104: OK

Sheet 品目シート⑤
B2: 基本シート※NO.面積入力後10aで自動計算
B3: 作物名・作型等 項目 | H3: =HPイメージ!D16 -> 5 | Z3: 損益分岐点粗収入＝固定費÷（１－変動費比率）
H4: =IF(H$3="","",HLOOKUP(H$3,経営指標DATA!$H$2:$EP$109,経営指標DATA!$A3)) -> 小麦 | J4: 計算シート | Z4: ＝固定費÷（１－変動費÷農業粗収入）
B5: 経営面積（a） | H5: 10 | P5: 経営面積（a） | V5: =HPイメージ!G16 -> 40 | Z5: 10a当たり
B6: 生産販売 | E6: 生産量 | G6: kg・本・頭 | H6: =IF(H$3="","",HLOOKUP(H$3,経営指標DATA!$H$2:$EP$109,経営指標DATA!$A5))*$H$5/10 -> 450 | K6: 青色セル | P6: 生産販売 | S6: 生産量 | U6: kg・本・頭 | V6: =IF(H$3="","",HLOOKUP(H$3,経営指標DATA!$H$2:$EP$109,経営指標DATA!$A5))*$V$5/10 -> 1800 | AA6: 売上(粗収益) | AB6: =$V$12 -> 298800 | AE6: 変動比率
E7: 販売量 | H7: =IF(H$3="","",HLOOKUP(H$3,経営指標DATA!$H$2:$EP$109,経営指標DATA!$A6))*$H$5/10 -> 450 | K7: ↓ 入力可能シート | S7: 販売量 | V7: =IF(H$3="","",HLOOKUP(H$3,経営指標DATA!$H$2:$EP$109,経営指標DATA!$A6))*$V$5/10 -> 1800 | AA7: 固定費 | AB7: =$L$52 -> 0 | AF7: =AB8/AB6*100 -> 73.58536758 | AG7: %
E8: 単価 | G8: 円/kg・本・頭 | H8: =IF(H$3="","",HLOOKUP(H$3,経営指標DATA!$H$2:$EP$109,経営指標DATA!$A7)) -> 166 | S8: 単価 | U8: 円/kg・本・頭 | V8: =IF(H$3="","",HLOOKUP(H$3,経営指標DATA!$H$2:$EP$109,経営指標DATA!$A7)) -> 166 | AA8: 変動費 | AB8: =$M$52*V5/H5 -> 219873.0783 | AE8: 損益分岐点粗収入
B9: 販売金額 | E9: 主産物 | H9: =IF(H$3="","",HLOOKUP(H$3,経営指標DATA!$H$2:$EP$109,経営指標DATA!$A8))*$H$5/10 -> 74700 | L9: ※固定費はそのまま | P9: 販売金額 | S9: 主産物 | V9: =IF(H$3="","",HLOOKUP(H$3,経営指標DATA!$H$2:$EP$109,経営指標DATA!$A8))*$V$5/10 -> 298800 | AA9: 経常利益 | AB9: =AB6-AB7-AB8 -> 78926.92167 | AF9: =AB7/(1-(AB8/AB6)) -> 0
E10: 副産物 | H10: =IF(H$3="","",HLOOKUP(H$3,経営指標DATA!$H$2:$EP$109,経営指標DATA!$A9))*$H$5/10 -> 0 | L10: ※変動費は面積換算し、計算シートに反映 | S10: 副産物 | V10: =IF(H$3="","",HLOOKUP(H$3,経営指標DATA!$H$2:$EP$109,経営指標DATA!$A9))*$V$5/10 -> 0
B11: 奨励金等 | E11: 奨励金・助成金 | H11: =IF(H$3="","",HLOOKUP(H$3,経営指標DATA!$H$2:$EP$109,経営指標DATA!$A10)) -> 0 | P11: 奨励金等 | S11: 奨励金・助成金 | V11: =IF(H$3="","",HLOOKUP(H$3,経営指標DATA!$H$2:$EP$109,経営指標DATA!$A10)) -> 0 | Z11: 売上範囲 | AA11: 0 | AB11: =$AB$6 -> 298800 | AD11: 定数 | AE11: =AB8/AB6 -> 0.7358536758
B12: 農業総収入 | H12: =H9+H10 -> 74700 | P12: 農業総収入 | V12: =V9+V10 -> 298800 | Z12: 売上 | AA12: 0 | AB12: =$AB$6 -> 298800 | AD12: 切片 | AE12: =AB7 -> 0
B13: 農業粗収益（販売経費差引後） | H13: =IF(H$3="","",HLOOKUP(H$3,経営指標DATA!$H$2:$EP$109,経営指標DATA!$A12))*$H$5/10 -> 62188.5 | J13: 固定費と変動費の割合を記入 | P13: 農業粗収益（販売経費差引後） | V13: =IF(H$3="","",HLOOKUP(H$3,経営指標DATA!$H$2:$EP$109,経営指標DATA!$A12))*$V$5/10 -> 248754 | X13: 結果・労働時間シート | Z13: 変動 | AA13: =$AB$7 -> 0 | AB13: =AE11*AB6+AA13 -> 219873.0783 | AD13: 損益分岐点 | AE13: =AB7/(1-AE11) -> 0
B14: 手取り単価 | H14: =IF(H$3="","",HLOOKUP(H$3,経営指標DATA!$H$2:$EP$109,経営指標DATA!$A13)) -> 138.1966667 | J14: ↓ | K14: ↓ | P14: 手取り単価 | V14: =IF(H$3="","",HLOOKUP(H$3,経営指標DATA!$H$2:$EP$109,経営指標DATA!$A13)) -> 138.1966667 | Z14: 固定 | AA14: =$AB$7 -> 0 | AB14: =$AB$7 -> 0
B15: [費 用] | J15: 固定費％ | K15: 変動費％ | L15: 固定費 | M15: 変動費 | N15: 確認欄 | P15: [費 用] | AD15: 現在の売上 | AF15: =$V$12 -> 298800
B16: 全算入生産費 | C16: 支払利子・支払地代算入生産費 | D16: 副産物価格差引生産費 | E16: 種苗費 | H16: =IF(H$3="","",HLOOKUP(H$3,経営指標DATA!$H$2:$EP$109,経営指標DATA!$A15))*$H$5/10 -> 1630 | J16: 0 | K16: 1 | L16: =H16*J16 -> 0 | M16: =H16*K16 -> 1630 | P16: 全算入生産費 | Q16: 支払利子・支払地代算入生産費 | R16: 副産物価格差引生産費 | S16: 種苗費 | V16: =L16+(M16*$V$5/$H$5) -> 6520 | AA16: 限界利益率 | AB16: =((V13-AB8)/V13)*100 -> 11.61023407 | AD16: 損益分岐点安全余裕率 | AF16: =(AF15-AE13)/AF15 -> 1
E17: 肥料費 | H17: =IF(H$3="","",HLOOKUP(H$3,経営指標DATA!$H$2:$EP$109,経営指標DATA!$A16))*$H$5/10 -> 8243 | J17: 0 | K17: 1 | L17: =H17*J17 -> 0 | M17: =H17*K17 -> 8243 | S17: 肥料費 | V17: 32972 | AD17: 利益予想 | AF17: =AF15*(1-(AB8/AB6))-AB7 -> 78926.92167
E18: 素畜費・種付費 | H18: =IF(H$3="","",HLOOKUP(H$3,経営指標DATA!$H$2:$EP$109,経営指標DATA!$A17))*$H$5/10 -> 0 | J18: 0 | K18: 1 | L18: 0 | M18: 0 | S18: 素畜費・種付費 | V18: 0
E19: 飼料費 | H19: =IF(H$3="","",HLOOKUP(H$3,経営指標DATA!$H$2:$EP$109,経営指標DATA!$A18))*$H$5/10 -> 0 | J19: 0 | K19: 1 | L19: 0 | M19: 0 | S19: 飼料費 | V19: 0
E20: 農薬・衛生費 | H20: =IF(H$3="","",HLOOKUP(H$3,経営指標DATA!$H$2:$EP$109,経営指標DATA!$A19))*$H$5/10 -> 5364 | J20: 0 | K20: 1 | L20: 0 | M20: 5364 | S20: 農薬・衛生費 | V20: 21456
E21: 動力光熱費 | H21: =IF(H$3="","",HLOOKUP(H$3,経営指標DATA!$H$2:$EP$109,経営指標DATA!$A20))*$H$5/10 -> 2093 | J21: 0 | K21: 1 | L21: 0 | M21: 2093 | S21: 動力光熱費 | V21: 8372
E22: 諸材料費・敷料費 | H22: =IF(H$3="","",HLOOKUP(H$3,経営指標DATA!$H$2:$EP$109,経営指標DATA!$A21))*$H$5/10 -> 120 | J22: 0 | K22: 1 | L22: 0 | M22: 120 | S22: 諸材料費・敷料費 | V22: 480
E23: 小農具費・作業衣料費 | H23: =IF(H$3="","",HLOOKUP(H$3,経営指標DATA!$H$2:$EP$109,経営指標DATA!$A22))*$H$5/10 -> 14.76958333 | J23: 0 | K23: 1 | L23: 0 | M23: 14.76958333 | S23: 小農具費・作業衣料費 | V23: 59.07833333
E24: 賃借料・料金 | H24: =IF(H$3="","",HLOOKUP(H$3,経営指標DATA!$H$2:$EP$109,経営指標DATA!$A23))*$H$5/10 -> 0 | J24: 0 | K24: 1 | L24: 0 | M24: 0 | S24: 賃借料・料金 | V24: 0
E25: 物件税・租税公課 | H25: =IF(H$3="","",HLOOKUP(H$3,経営指標DATA!$H$2:$EP$109,経営指標DATA!$A24))*$H$5/10 -> 791 | J25: 0 | K25: 1 | L25: 0 | M25: 791 | S25: 物件税・租税公課 | V25: 3164
E26: 保険共済費 | H26: =IF(H$3="","",HLOOKUP(H$3,経営指標DATA!$H$2:$EP$109,経営指標DATA!$A25))*$H$5/10 -> 1571 | J26: 0 | K26: 1 | L26: 0 | M26: 1571 | S26: 保険共済費 | V26: 6284
E27: 土地改良水利費 | H27: =IF(H$3="","",HLOOKUP(H$3,経営指標DATA!$H$2:$EP$109,経営指標DATA!$A26))*$H$5/10 -> 1500 | J27: 0 | K27: 1 | L27: 0 | M27: 1500 | S27: 土地改良水利費 | V27: 6000
E28: 修繕費 | H28: =IF(H$3="","",HLOOKUP(H$3,経営指標DATA!$H$2:$EP$109,経営指標DATA!$A27))*$H$5/10 -> 2415 | J28: 0 | K28: 1 | L28: 0 | M28: 2415 | S28: 修繕費 | V28: 9660
E29: 減価償却費 | H29: =SUM(H30:H33) -> 12309 | L29: =SUM(L30:L33) -> 0 | M29: =SUM(M30:M33) -> 12309 | N29: =IF(H29=SUM(L29:M29),"OK","NG") -> OK | S29: 減価償却費 | V29: =SUM(V30:V33) -> 49236
E30: ※ | F30: 建物・施設 | H30: =IF(H$3="","",HLOOKUP(H$3,経営指標DATA!$H$2:$EP$109,経営指標DATA!$A29))*$H$5/10 -> 1350 | J30: 0 | K30: 1 | L30: =H30*J30 -> 0 | M30: =H30*K30 -> 1350 | S30: ※ | T30: 建物・施設 | V30: =L30+M30*$V$5/$H$5 -> 5400
E31: ※ | F31: 農機具 | H31: =IF(H$3="","",HLOOKUP(H$3,経営指標DATA!$H$2:$EP$109,経営指標DATA!$A30))*$H$5/10 -> 10959 | J31: 0 | K31: 1 | L31: 0 | M31: 10959 | S31: ※ | T31: 農機具 | V31: =L31+M31*$V$5/$H$5 -> 43836
E32: ※ | F32: 大植物（大動物） | H32: =IF(H$3="","",HLOOKUP(H$3,経営指標DATA!$H$2:$EP$109,経営指標DATA!$A31))*$H$5/10 -> 0 | J32: 0 | K32: 1 | L32: 0 | M32: 0 | S32: ※ | T32: 大植物（大動物） | V32: =L32+M32*$V$5/$H$5 -> 0
E33: ※ | F33: 生産管理機器 | H33: =IF(H$3="","",HLOOKUP(H$3,経営指標DATA!$H$2:$EP$109,経営指標DATA!$A32))*$H$5/10 -> 0 | J33: 0 | K33: 1 | L33: 0 | M33: 0 | S33: ※ | T33: 生産管理機器 | V33: =L33+M33*$V$5/$H$5 -> 0
E34: 生産管理費 | H34: =IF(H$3="","",HLOOKUP(H$3,経営指標DATA!$H$2:$EP$109,経営指標DATA!$A33))*$H$5/10 -> 125 | J34: 0 | K34: 1 | L34: 0 | M34: 125 | S34: 生産管理費 | V34: =L34+M34*$V$5/$H$5 -> 500
E35: 物財費計 | H35: =SUM(H16:H29,H34) -> 36175.76958 | L35: =SUM(L16:L29)+L34 -> 0 | M35: =SUM(M16:M29)+M34 -> 36175.76958 | N35: =IF(H35=SUM(L35:M35),"OK","NG") -> OK | S35: 物財費計 | V35: =SUM(V16:V29,V34) -> 144703.0783
E36: 労働費 | H36: =H37+H38 -> 8190 | L36: =SUM(L37:L38) -> 0 | M36: =SUM(M37:M38) -> 8190 | N36: =IF(H36=SUM(L36:M36),"OK","NG") -> OK | S36: 労働費 | V36: =V37+V38 -> 32760
F37: 雇用労働費 | H37: =IF(H$3="","",HLOOKUP(H$3,経営指標DATA!$H$2:$EP$109,経営指標DATA!$A36))*$H$5/10 -> 0 | J37: 0 | K37: 1 | L37: =H37*J37 -> 0 | M37: =H37*K37 -> 0 | T37: 雇用労働費 | V37: =L37+M37*$V$5/$H$5 -> 0
F38: 家族労働見積額 | H38: =IF(H$3="","",HLOOKUP(H$3,経営指標DATA!$H$2:$EP$109,経営指標DATA!$A37))*$H$5/10 -> 8190 | J38: 0 | K38: 1 | L38: 0 | M38: 8190 | T38: 家族労働見積額 | V38: =L38+M38*$V$5/$H$5 -> 32760
E39: 費用計 | H39: =H35+H37 -> 36175.76958 | L39: =SUM(L35:L36) -> 0 | M39: =SUM(M35+M37) -> 36175.76958 | N39: =IF(H39=SUM(L39:M39),"OK","NG") -> OK | S39: 費用計 | V39: =V35+V37 -> 144703.0783
D40: 副産物価格差引生産費 | H40: =H39-H10 -> 36175.76958 | R40: 副産物価格差引生産費 | V40: =V39-V10 -> 144703.0783
D41: 支払い利子 | H41: =IF(H$3="","",HLOOKUP(H$3,経営指標DATA!$H$2:$EP$109,経営指標DATA!$A40))*$H$5/10 -> 156 | J41: 0 | K41: 1 | L41: =H41*J41 -> 0 | M41: =H41*K41 -> 156 | N41: =IF(H41=SUM(L41:M41),"OK","NG") -> OK | R41: 支払い利子 | V41: =L41+M41*$V$5/$H$5 -> 624
D42: 支払い地代 | H42: =IF(H$3="","",HLOOKUP(H$3,経営指標DATA!$H$2:$EP$109,経営指標DATA!$A41))*$H$5/10 -> 6125 | J42: 0 | K42: 1 | L42: 0 | M42: 6125 | N42: =IF(H42=SUM(L42:M42),"OK","NG") -> OK | R42: 支払い地代 | V42: =L42+M42*$V$5/$H$5 -> 24500
C43: 支払利子・支払地代参入生産費 | H43: =H40+H41+H42 -> 42456.76958 | Q43: 支払利子・支払地代参入生産費 | V43: =V40+V41+V42 -> 169827.0783
D44: 自己資本利子 | H44: =IF(H$3="","",HLOOKUP(H$3,経営指標DATA!$H$2:$EP$109,経営指標DATA!$A43))*$H$5/10 -> 1125 | J44: 0 | K44: 1 | L44: =H44*J44 -> 0 | M44: =H44*K44 -> 1125 | N44: =IF(H44=SUM(L44:M44),"OK","NG") -> OK | R44: 自己資本利子 | V44: =L44+M44*$V$5/$H$5 -> 4500
D45: 自作地地代 | H45: =IF(H$3="","",HLOOKUP(H$3,経営指標DATA!$H$2:$EP$109,経営指標DATA!$A44))*$H$5/10 -> 875 | J45: 0 | K45: 1 | L45: 0 | M45: =H45*K45 -> 875 | N45: =IF(H45=SUM(L45:M45),"OK","NG") -> OK | R45: 自作地地代 | V45: =L45+M45*$V$5/$H$5 -> 3500
C46: 全算入生産費 | H46: =H43+H44+H45 -> 44456.76958 | Q46: 全算入生産費 | V46: =V43+V44+V45 -> 177827.0783
B47: 販売費及び 一般管理費 | E47: 選果出荷経費 | H47: =IF(H$3="","",HLOOKUP(H$3,経営指標DATA!$H$2:$EP$109,経営指標DATA!$A46))*$H$5/10 -> 10350 | K47: 1 | L47: =H47*J47 -> 0 | M47: =H47*K47 -> 10350 | P47: 販売費及び 一般管理費 | S47: 選果出荷経費 | V47: =IF(H$3="","",HLOOKUP(H$3,経営指標DATA!$H$2:$EP$109,経営指標DATA!$A46))*$V$5/10 -> 41400
E48: 運賃 | H48: =IF(H$3="","",HLOOKUP(H$3,経営指標DATA!$H$2:$EP$109,経営指標DATA!$A47))*$H$5/10 -> 0 | K48: 1 | L48: 0 | M48: 0 | S48: 運賃 | V48: =IF(H$3="","",HLOOKUP(H$3,経営指標DATA!$H$2:$EP$109,経営指標DATA!$A47))*$V$5/10 -> 0
E49: 手数料 | H49: =IF(H$3="","",HLOOKUP(H$3,経営指標DATA!$H$2:$EP$109,経営指標DATA!$A48))*$H$5/10 -> 2161.5 | K49: 1 | L49: 0 | M49: 2161.5 | S49: 手数料 | V49: =IF(H$3="","",HLOOKUP(H$3,経営指標DATA!$H$2:$EP$109,経営指標DATA!$A48))*$V$5/10 -> 8646
E50: 一般管理費 | H50: =IF(H$3="","",HLOOKUP(H$3,経営指標DATA!$H$2:$EP$109,経営指標DATA!$A49))*$H$5/10 -> 0 | K50: 1 | L50: 0 | M50: 0 | S50: 一般管理費 | V50: =IF(H$3="","",HLOOKUP(H$3,経営指標DATA!$H$2:$EP$109,経営指標DATA!$A49))*$V$5/10 -> 0
E51: 計 | H51: =H47+H48+H49+H50 -> 12511.5 | J51: 販売費及び一般管理費 | L51: =L47+L48+L49+L50 -> 0 | M51: =M47+M48+M49+M50 -> 12511.5 | S51: 計 | V51: =V47+V48+V49+V50 -> 50046
J52: 経営費（固定費、変動費） | L52: =L39+L41+L42+L51 -> 0 | M52: =M39+M41+M42+M51 -> 54968.26958 | P52: 経営費合計 | V52: =V39+V41+V42+V51 -> 219873.0783
B53: [経営指標] | P53: [経営指標]
B54: 農業経営費（販売費及び一般管理費含む） | H54: =H35+H37+H41+H42+H51 -> 54968.26958 | P54: 農業経営費（販売費及び一般管理費含む） | V54: =V35+V37+V41+V42+V51 -> 219873.0783 | X54: 結果・労働時間シート
B55: 農業所得 | H55: =H12-H54 -> 19731.73042 | P55: 農業所得 | V55: =V12-V54 -> 78926.92167 | X55: 結果・労働時間シート
B56: 農業所得率（農業所得÷農業経営費×100） | H56: =(H55/H12)*100 -> 26.41463242 | P56: 農業所得率（農業所得÷農業経営費×100） | V56: =(V55/V12)*100 -> 26.41463242 | X56: 結果・労働時間シート
B57: 1日当たり農業所得 | H57: =IF(H$3="","",HLOOKUP(H$3,経営指標DATA!$H$2:$EP$109,経営指標DATA!$A56)) -> 18792.12421 | P57: 1日当たり農業所得 | V57: =IF(H$3="","",HLOOKUP(H$3,経営指標DATA!$H$2:$EP$109,経営指標DATA!$A56)) -> 18792.12421
B58: 1日当たり家族労働報酬 | H58: =IF(H$3="","",HLOOKUP(H$3,経営指標DATA!$H$2:$EP$109,経営指標DATA!$A57)) -> 16888.3623 | P58: 1日当たり家族労働報酬 | V58: =IF(H$3="","",HLOOKUP(H$3,経営指標DATA!$H$2:$EP$109,経営指標DATA!$A57)) -> 16888.3623
B60: 労働時間計 | H60: =IF(H$3="","",HLOOKUP(H$3,経営指標DATA!$H$2:$EP$109,経営指標DATA!$A59))*$H$5/10 -> 8.4 | P60: 労働時間計 | V60: =IF(H$3="","",HLOOKUP(H$3,経営指標DATA!$H$2:$EP$109,経営指標DATA!$A59))*$V$5/10 -> 33.6
C61: うち家族労働時間 | H61: =IF(H$3="","",HLOOKUP(H$3,経営指標DATA!$H$2:$EP$109,経営指標DATA!$A60))*$H$5/10 -> 8.4 | Q61: うち家族労働時間 | V61: =IF(H$3="","",HLOOKUP(H$3,経営指標DATA!$H$2:$EP$109,経営指標DATA!$A60))*$V$5/10 -> 33.6
C62: うち雇用労働時間 | H62: =IF(H$3="","",HLOOKUP(H$3,経営指標DATA!$H$2:$EP$109,経営指標DATA!$A61))*$H$5/10 -> 0 | Q62: うち雇用労働時間 | V62: =IF(H$3="","",HLOOKUP(H$3,経営指標DATA!$H$2:$EP$109,経営指標DATA!$A61))*$V$5/10 -> 0
X63: 記入用
G64: 1月上半月 | H64: =IF(H$3="","",HLOOKUP(H$3,経営指標DATA!$H$2:$EP$109,経営指標DATA!$A64))*$H$5/10 -> 0.7 | U64: 1月上半月 | V64: =IF(H$3="","",HLOOKUP(H$3,経営指標DATA!$H$2:$EP$109,経営指標DATA!$A64))*$V$5/10 -> 2.8 | X64: =V64 -> 2.8
G65: 1月下半月 | H65: =IF(H$3="","",HLOOKUP(H$3,経営指標DATA!$H$2:$EP$109,経営指標DATA!$A65))*$H$5/10 -> 0.7 | U65: 1月下半月 | V65: =IF(H$3="","",HLOOKUP(H$3,経営指標DATA!$H$2:$EP$109,経営指標DATA!$A65))*$V$5/10 -> 2.8 | X65: 2.8
G66: 2月上半月 | H66: =IF(H$3="","",HLOOKUP(H$3,経営指標DATA!$H$2:$EP$109,経営指標DATA!$A66))*$H$5/10 -> 0.8 | U66: 2月上半月 | V66: =IF(H$3="","",HLOOKUP(H$3,経営指標DATA!$H$2:$EP$109,経営指標DATA!$A66))*$V$5/10 -> 3.2 | X66: 3.2
G67: 2月下半月 | H67: =IF(H$3="","",HLOOKUP(H$3,経営指標DATA!$H$2:$EP$109,経営指標DATA!$A67))*$H$5/10 -> 0.9 | U67: 2月下半月 | V67: =IF(H$3="","",HLOOKUP(H$3,経営指標DATA!$H$2:$EP$109,経営指標DATA!$A67))*$V$5/10 -> 3.6 | X67: 3.6
G68: 3月上半月 | H68: =IF(H$3="","",HLOOKUP(H$3,経営指標DATA!$H$2:$EP$109,経営指標DATA!$A68))*$H$5/10 -> 0 | U68: 3月上半月 | V68: =IF(H$3="","",HLOOKUP(H$3,経営指標DATA!$H$2:$EP$109,経営指標DATA!$A68))*$V$5/10 -> 0 | X68: 0
G69: 3月下半月 | H69: =IF(H$3="","",HLOOKUP(H$3,経営指標DATA!$H$2:$EP$109,経営指標DATA!$A69))*$H$5/10 -> 0 | U69: 3月下半月 | V69: =IF(H$3="","",HLOOKUP(H$3,経営指標DATA!$H$2:$EP$109,経営指標DATA!$A69))*$V$5/10 -> 0 | X69: 0
G70: 4月上半月 | H70: =IF(H$3="","",HLOOKUP(H$3,経営指標DATA!$H$2:$EP$109,経営指標DATA!$A70))*$H$5/10 -> 0.1 | U70: 4月上半月 | V70: =IF(H$3="","",HLOOKUP(H$3,経営指標DATA!$H$2:$EP$109,経営指標DATA!$A70))*$V$5/10 -> 0.4 | X70: 0.4
G71: 4月下半月 | H71: =IF(H$3="","",HLOOKUP(H$3,経営指標DATA!$H$2:$EP$109,経営指標DATA!$A71))*$H$5/10 -> 0.1 | U71: 4月下半月 | V71: =IF(H$3="","",HLOOKUP(H$3,経営指標DATA!$H$2:$EP$109,経営指標DATA!$A71))*$V$5/10 -> 0.4 | X71: 0.4
G72: 5月上半月 | H72: =IF(H$3="","",HLOOKUP(H$3,経営指標DATA!$H$2:$EP$109,経営指標DATA!$A72))*$H$5/10 -> 0.6 | L72: ※面積換算したもの | U72: 5月上半月 | V72: =IF(H$3="","",HLOOKUP(H$3,経営指標DATA!$H$2:$EP$109,経営指標DATA!$A72))*$V$5/10 -> 2.4 | X72: 2.4
G73: 5月下半月 | H73: =IF(H$3="","",HLOOKUP(H$3,経営指標DATA!$H$2:$EP$109,経営指標DATA!$A73))*$H$5/10 -> 0.5 | U73: 5月下半月 | V73: =IF(H$3="","",HLOOKUP(H$3,経営指標DATA!$H$2:$EP$109,経営指標DATA!$A73))*$V$5/10 -> 2 | X73: 2
G74: 6月上半月 | H74: =IF(H$3="","",HLOOKUP(H$3,経営指標DATA!$H$2:$EP$109,経営指標DATA!$A74))*$H$5/10 -> 0 | U74: 6月上半月 | V74: =IF(H$3="","",HLOOKUP(H$3,経営指標DATA!$H$2:$EP$109,経営指標DATA!$A74))*$V$5/10 -> 0 | X74: 0
G75: 6月下半月 | H75: =IF(H$3="","",HLOOKUP(H$3,経営指標DATA!$H$2:$EP$109,経営指標DATA!$A75))*$H$5/10 -> 0 | U75: 6月下半月 | V75: =IF(H$3="","",HLOOKUP(H$3,経営指標DATA!$H$2:$EP$109,経営指標DATA!$A75))*$V$5/10 -> 0 | X75: 0
G76: 7月上半月 | H76: =IF(H$3="","",HLOOKUP(H$3,経営指標DATA!$H$2:$EP$109,経営指標DATA!$A76))*$H$5/10 -> 0 | U76: 7月上半月 | V76: =IF(H$3="","",HLOOKUP(H$3,経営指標DATA!$H$2:$EP$109,経営指標DATA!$A76))*$V$5/10 -> 0 | X76: 0
G77: 7月下半月 | H77: =IF(H$3="","",HLOOKUP(H$3,経営指標DATA!$H$2:$EP$109,経営指標DATA!$A77))*$H$5/10 -> 0 | U77: 7月下半月 | V77: =IF(H$3="","",HLOOKUP(H$3,経営指標DATA!$H$2:$EP$109,経営指標DATA!$A77))*$V$5/10 -> 0 | X77: 0
G78: 8月上半月 | H78: =IF(H$3="","",HLOOKUP(H$3,経営指標DATA!$H$2:$EP$109,経営指標DATA!$A78))*$H$5/10 -> 0 | U78: 8月上半月 | V78: =IF(H$3="","",HLOOKUP(H$3,経営指標DATA!$H$2:$EP$109,経営指標DATA!$A78))*$V$5/10 -> 0 | X78: 0
G79: 8月下半月 | H79: =IF(H$3="","",HLOOKUP(H$3,経営指標DATA!$H$2:$EP$109,経営指標DATA!$A79))*$H$5/10 -> 0 | U79: 8月下半月 | V79: =IF(H$3="","",HLOOKUP(H$3,経営指標DATA!$H$2:$EP$109,経営指標DATA!$A79))*$V$5/10 -> 0 | X79: 0
G80: 9月上半月 | H80: =IF(H$3="","",HLOOKUP(H$3,経営指標DATA!$H$2:$EP$109,経営指標DATA!$A80))*$H$5/10 -> 0 | U80: 9月上半月 | V80: =IF(H$3="","",HLOOKUP(H$3,経営指標DATA!$H$2:$EP$109,経営指標DATA!$A80))*$V$5/10 -> 0 | X80: 0
G81: 9月下半月 | H81: =IF(H$3="","",HLOOKUP(H$3,経営指標DATA!$H$2:$EP$109,経営指標DATA!$A81))*$H$5/10 -> 0 | U81: 9月下半月 | V81: =IF(H$3="","",HLOOKUP(H$3,経営指標DATA!$H$2:$EP$109,経営指標DATA!$A81))*$V$5/10 -> 0 | X81: 0
G82: 10月上半月 | H82: =IF(H$3="","",HLOOKUP(H$3,経営指標DATA!$H$2:$EP$109,経営指標DATA!$A82))*$H$5/10 -> 0 | U82: 10月上半月 | V82: =IF(H$3="","",HLOOKUP(H$3,経営指標DATA!$H$2:$EP$109,経営指標DATA!$A82))*$V$5/10 -> 0 | X82: 0
G83: 10月下半月 | H83: =IF(H$3="","",HLOOKUP(H$3,経営指標DATA!$H$2:$EP$109,経営指標DATA!$A83))*$H$5/10 -> 0 | U83: 10月下半月 | V83: =IF(H$3="","",HLOOKUP(H$3,経営指標DATA!$H$2:$EP$109,経営指標DATA!$A83))*$V$5/10 -> 0 | X83: 0
G84: 11月上半月 | H84: =IF(H$3="","",HLOOKUP(H$3,経営指標DATA!$H$2:$EP$109,経営指標DATA!$A84))*$H$5/10 -> 1.7 | U84: 11月上半月 | V84: =IF(H$3="","",HLOOKUP(H$3,経営指標DATA!$H$2:$EP$109,経営指標DATA!$A84))*$V$5/10 -> 6.8 | X84: 6.8
G85: 11月下半月 | H85: =IF(H$3="","",HLOOKUP(H$3,経営指標DATA!$H$2:$EP$109,経営指標DATA!$A85))*$H$5/10 -> 1.6 | U85: 11月下半月 | V85: =IF(H$3="","",HLOOKUP(H$3,経営指標DATA!$H$2:$EP$109,経営指標DATA!$A85))*$V$5/10 -> 6.4 | X85: 6.4
G86: 12月上半月 | H86: =IF(H$3="","",HLOOKUP(H$3,経営指標DATA!$H$2:$EP$109,経営指標DATA!$A86))*$H$5/10 -> 0.5 | U86: 12月上半月 | V86: =IF(H$3="","",HLOOKUP(H$3,経営指標DATA!$H$2:$EP$109,経営指標DATA!$A86))*$V$5/10 -> 2 | X86: 2
G87: 12月下半月 | H87: =IF(H$3="","",HLOOKUP(H$3,経営指標DATA!$H$2:$EP$109,経営指標DATA!$A87))*$H$5/10 -> 0.2 | U87: 12月下半月 | V87: =IF(H$3="","",HLOOKUP(H$3,経営指標DATA!$H$2:$EP$109,経営指標DATA!$A87))*$V$5/10 -> 0.8 | X87: 0.8
G88: 計 | H88: =SUM(H64:H87) -> 8.4 | U88: 計 | V88: =SUM(V64:V87) -> 33.6 | X88: 33.6
X89: 0
G90: 1月 | H90: =IF(H$3="","",HLOOKUP(H$3,経営指標DATA!$H$2:$EP$109,経営指標DATA!$A90))*$H$5/10 -> 1.4 | U90: 1月 | V90: =IF(H$3="","",HLOOKUP(H$3,経営指標DATA!$H$2:$EP$109,経営指標DATA!$A90))*$V$5/10 -> 5.6 | X90: 5.6
G91: 2月 | H91: =IF(H$3="","",HLOOKUP(H$3,経営指標DATA!$H$2:$EP$109,経営指標DATA!$A91))*$H$5/10 -> 1.7 | U91: 2月 | V91: =IF(H$3="","",HLOOKUP(H$3,経営指標DATA!$H$2:$EP$109,経営指標DATA!$A91))*$V$5/10 -> 6.8 | X91: 6.8
G92: 3月 | H92: =IF(H$3="","",HLOOKUP(H$3,経営指標DATA!$H$2:$EP$109,経営指標DATA!$A92))*$H$5/10 -> 0 | U92: 3月 | V92: =IF(H$3="","",HLOOKUP(H$3,経営指標DATA!$H$2:$EP$109,経営指標DATA!$A92))*$V$5/10 -> 0 | X92: 0
G93: 4月 | H93: =IF(H$3="","",HLOOKUP(H$3,経営指標DATA!$H$2:$EP$109,経営指標DATA!$A93))*$H$5/10 -> 0.2 | U93: 4月 | V93: =IF(H$3="","",HLOOKUP(H$3,経営指標DATA!$H$2:$EP$109,経営指標DATA!$A93))*$V$5/10 -> 0.8 | X93: 0.8
G94: 5月 | H94: =IF(H$3="","",HLOOKUP(H$3,経営指標DATA!$H$2:$EP$109,経営指標DATA!$A94))*$H$5/10 -> 1.1 | U94: 5月 | V94: =IF(H$3="","",HLOOKUP(H$3,経営指標DATA!$H$2:$EP$109,経営指標DATA!$A94))*$V$5/10 -> 4.4 | X94: 4.4
G95: 6月 | H95: =IF(H$3="","",HLOOKUP(H$3,経営指標DATA!$H$2:$EP$109,経営指標DATA!$A95))*$H$5/10 -> 0 | U95: 6月 | V95: =IF(H$3="","",HLOOKUP(H$3,経営指標DATA!$H$2:$EP$109,経営指標DATA!$A95))*$V$5/10 -> 0 | X95: 0
G96: 7月 | H96: =IF(H$3="","",HLOOKUP(H$3,経営指標DATA!$H$2:$EP$109,経営指標DATA!$A96))*$H$5/10 -> 0 | U96: 7月 | V96: =IF(H$3="","",HLOOKUP(H$3,経営指標DATA!$H$2:$EP$109,経営指標DATA!$A96))*$V$5/10 -> 0 | X96: 0
G97: 8月 | H97: =IF(H$3="","",HLOOKUP(H$3,経営指標DATA!$H$2:$EP$109,経営指標DATA!$A97))*$H$5/10 -> 0 | U97: 8月 | V97: =IF(H$3="","",HLOOKUP(H$3,経営指標DATA!$H$2:$EP$109,経営指標DATA!$A97))*$V$5/10 -> 0 | X97: 0
G98: 9月 | H98: =IF(H$3="","",HLOOKUP(H$3,経営指標DATA!$H$2:$EP$109,経営指標DATA!$A98))*$H$5/10 -> 0 | U98: 9月 | V98: =IF(H$3="","",HLOOKUP(H$3,経営指標DATA!$H$2:$EP$109,経営指標DATA!$A98))*$V$5/10 -> 0 | X98: 0
G99: 10月 | H99: =IF(H$3="","",HLOOKUP(H$3,経営指標DATA!$H$2:$EP$109,経営指標DATA!$A99))*$H$5/10 -> 0 | U99: 10月 | V99: =IF(H$3="","",HLOOKUP(H$3,経営指標DATA!$H$2:$EP$109,経営指標DATA!$A99))*$V$5/10 -> 0 | X99: 0
G100: 11月 | H100: =IF(H$3="","",HLOOKUP(H$3,経営指標DATA!$H$2:$EP$109,経営指標DATA!$A100))*$H$5/10 -> 3.3 | U100: 11月 | V100: =IF(H$3="","",HLOOKUP(H$3,経営指標DATA!$H$2:$EP$109,経営指標DATA!$A100))*$V$5/10 -> 13.2 | X100: 13.2
G101: 12月 | H101: =IF(H$3="","",HLOOKUP(H$3,経営指標DATA!$H$2:$EP$109,経営指標DATA!$A101))*$H$5/10 -> 0.7 | U101: 12月 | V101: =IF(H$3="","",HLOOKUP(H$3,経営指標DATA!$H$2:$EP$109,経営指標DATA!$A101))*$V$5/10 -> 2.8 | X101: 2.8
G102: 計 | H102: =SUM(H90:H101) -> 8.4 | U102: 計 | V102: =SUM(V90:V101) -> 33.6 | X102: 33.6
X103: 0
G104: 検算→ | H104: =IF(H88=H102,"OK","NG ") -> OK | U104: 検算→ | V104: =IF(V88=V102,"OK","NG ") -> OK | X104: OK

Sheet 減価償却費（入力シート）
B2: 減価償却費試算表
C3: 種類・規模 | D3: 購入時価格 | E3: 法定耐用 | F3: 算定耐用 | G3: 減価償却費 | H3: 割合（計100％） | M3: 金額
D4: （Ａ） | E4: 年数 （B） | F4: 年数 （Ｃ） | G4: （A）/（C） | H4: 品目① | I4: 品目② | J4: 品目③ | K4: 品目④ | L4: 品目⑤ | M4: 品目① | N4: 品目② | O4: 品目③ | P4: 品目④ | Q4: 品目⑤
B5: 建 物 ・ 施 設 | C5: 農舎 | D5: 5900000 | E5: 24 | F5: 30 | G5: =D5/F5 -> 196666.6667 | H5: 0.2 | I5: 0.2 | J5: 0.2 | K5: 0.4 | L5: 0 | M5: =$G5*H5 -> 39333.33333 | N5: =$G5*I5 -> 39333.33333 | O5: =$G5*J5 -> 39333.33333 | P5: 78666.66667 | Q5: 0
H6: 0 | I6: 0 | J6: 0 | K6: 0 | L6: 0 | M6: =$G6*H6 -> 0 | N6: 0 | O6: 0 | P6: 0 | Q6: 0
H7: 0 | I7: 0 | J7: 0 | K7: 0 | L7: 0 | M7: 0 | N7: 0 | O7: 0 | P7: 0 | Q7: 0
H8: 0 | I8: 0 | J8: 0 | K8: 0 | L8: 0 | M8: 0 | N8: 0 | O8: 0 | P8: 0 | Q8: 0
H9: 0 | I9: 0 | J9: 0 | K9: 0 | L9: 0 | M9: 0 | N9: 0 | O9: 0 | P9: 0 | Q9: 0
C10: 小計 | D10: =SUM(D5:D9) -> 5900000 | G10: =SUM(G5:G9) -> 196666.6667 | M10: =SUM(M5:M9) -> 39333.33333 | N10: =SUM(N5:N9) -> 39333.33333 | O10: =SUM(O5:O9) -> 39333.33333 | P10: =SUM(P5:P9) -> 78666.66667 | Q10: =SUM(Q5:Q9) -> 0
B11: 農 機 具 | C11: は種機（育苗用） | D11: 250000 | E11: 7 | F11: 11 | G11: =D11/F11 -> 22727.27273 | H11: 0.2 | I11: 0.2 | J11: 0.2 | K11: 0.4 | L11: 0.4 | M11: =$G11*H11 -> 4545.454545 | N11: =$G11*I11 -> 4545.454545 | O11: =$G11*J11 -> 4545.454545 | P11: 9090.909091 | Q11: 9090.909091
C12: 田植機 | D12: 1400000 | E12: 7 | F12: 11 | G12: 127272.7273 | H12: 0.2 | I12: 0.2 | J12: 0.2 | K12: 0.4 | L12: 0.4 | M12: =$G12*H12 -> 25454.54545 | N12: 25454.54545 | O12: 25454.54545 | P12: 50909.09091 | Q12: 50909.09091
C13: コンバイン | D13: 2400000 | E13: 7 | F13: 11 | G13: 218181.8182 | H13: 0.2 | I13: 0.2 | J13: 0.2 | K13: 0.4 | L13: 0.4 | M13: 43636.36364 | N13: 43636.36364 | O13: 43636.36364 | P13: 87272.72727 | Q13: 87272.72727
C14: トラック | D14: 1800000 | E14: 5 | F14: 8 | G14: 225000 | H14: 0.2 | I14: 0.2 | J14: 0.2 | K14: 0.4 | L14: 0.4 | M14: 45000 | N14: 45000 | O14: 45000 | P14: 90000 | Q14: 90000
C15: トラクター・ | D15: 3000000 | E15: 7 | F15: 11 | G15: 272727.2727 | H15: 0.2 | I15: 0.2 | J15: 0.2 | K15: 0.4 | L15: 0.4 | M15: 54545.45455 | N15: 54545.45455 | O15: 54545.45455 | P15: 109090.9091 | Q15: 109090.9091
C16: ロータリー | D16: 700000 | E16: 7 | F16: 11 | G16: 63636.36364 | H16: 0.2 | I16: 0.2 | J16: 0.2 | K16: 0.4 | L16: 0.4 | M16: 12727.27273 | N16: 12727.27273 | O16: 12727.27273 | P16: 25454.54545 | Q16: 25454.54545
C17: ライムソワー | D17: 300000 | E17: 7 | F17: 11 | G17: 27272.72727 | H17: 0.2 | I17: 0.2 | J17: 0.2 | K17: 0.4 | L17: 0.4 | M17: 5454.545455 | N17: 5454.545455 | O17: 5454.545455 | P17: 10909.09091 | Q17: 10909.09091
C18: 動力噴霧器 | D18: 500000 | E18: 7 | F18: 11 | G18: 45454.54545 | H18: 0.2 | I18: 0.2 | J18: 0.2 | K18: 0.4 | L18: 0.4 | M18: 9090.909091 | N18: 9090.909091 | O18: 9090.909091 | P18: 18181.81818 | Q18: 18181.81818
H19: 0 | I19: 0 | J19: 0 | K19: 0 | L19: 0 | M19: 0 | N19: 0 | O19: 0 | P19: 0 | Q19: 0
C20: 小計 | D20: =SUM(D11:D19) -> 10350000 | G20: =SUM(G11:G19) -> 1002272.727 | M20: =SUM(M11:M19) -> 200454.5455 | N20: =SUM(N11:N19) -> 200454.5455 | O20: =SUM(O11:O19) -> 200454.5455 | P20: 10350000 | Q20: 10350001
B21: 合計 | D21: =D10+D20 -> 16250000 | G21: =G10+G20 -> 1198939.394 | M21: =M10+M20 -> 239787.8788 | N21: =N10+N20 -> 239787.8788 | O21: =O10+O20 -> 239787.8788 | P21: =P10+P20 -> 10428666.67 | Q21: =Q10+Q20 -> 10350001
M24: それぞれのシート内に転記することで、計算に反映可能

Sheet 結果・労働時間
B2: 結果集計 | P2: 作目1 | Q2: 作目2 | R2: 作目3 | S2: 作目4 | T2: 作目5 | U2: 合計 ※経営指標 から算出 | V2: 労働限界 ※労働時間 の設定転記 | W2: 労働時間の余剰 | X2: 月ごと
O3: 作目名 | P3: =品目シート①!$H4 -> 小麦 | Q3: =品目シート②!$H4 -> 小麦 | R3: =品目シート③!$H4 -> 小麦 | S3: =品目シート④!$H4 -> 小麦 | T3: =品目シート⑤!$H4 -> 小麦
B4: 種類 | C4: コード番号 | D4: 作目名 | E4: 規模面積頭羽数 | F4: 粗収入 | G4: 経営費 | H4: 農業所得 | I4: 所得率 | J4: 労働時間 | K4: 時間／単位(10ａ等)
B5: 1 | C5: =品目シート①!$H$3 -> 5 | D5: =品目シート①!$H$4 -> 小麦 | E5: =品目シート①!$V$5 -> 40 | F5: =品目シート①!$V$12 -> 298800 | G5: =品目シート①!$V$54 -> 219873.0783 | H5: =品目シート①!$V$55 -> 78926.92167 | I5: =品目シート①!$V$56 -> 26.41463242 | J5: =$P$31 -> 33.6 | K5: =J5/(結果・労働時間!E5/10) -> 8.4 | O5: 面積(a) | P5: =品目シート①!$H5 -> 10 | Q5: =品目シート②!$H5 -> 10 | R5: =品目シート③!$H5 -> 10 | S5: =品目シート④!$H5 -> 10 | T5: =品目シート⑤!$H5 -> 10 | W5: ＋余り
B6: 2 | C6: =品目シート②!$H$3 -> 5 | D6: =品目シート②!$H$4 -> 小麦 | E6: =品目シート②!$V$5 -> 40 | F6: =品目シート②!$V$12 -> 298800 | G6: =品目シート②!$V$54 -> 219873.0783 | H6: =品目シート②!$V$55 -> 78926.92167 | I6: =品目シート②!$V$56 -> 26.41463242 | J6: =$Q$31 -> 33.6 | K6: =J6/(結果・労働時間!E6/10) -> 8.4 | O6: ×指標値 | P6: =P5/10 -> 1 | Q6: =Q5/10 -> 1 | R6: 1 | S6: 1 | T6: 1 | U6: 合計 | V6: 労働限界 | W6: －不足
B7: 3 | C7: =品目シート③!$H$3 -> 5 | D7: =品目シート③!$H$4 -> 小麦 | E7: =品目シート③!$V$5 -> 40 | F7: =品目シート③!$V$12 -> 298800 | G7: =品目シート③!$V$54 -> 219873.0783 | H7: =品目シート③!$V$55 -> 78926.92167 | I7: =品目シート③!$V$56 -> 26.41463242 | J7: =$R$31 -> 33.6 | K7: =J7/(結果・労働時間!E7/10) -> 8.4 | N7: １月 | O7: 上期 | P7: =品目シート①!$X64 -> 2.8 | Q7: =品目シート②!$X64 -> 2.8 | R7: =品目シート③!$X64 -> 2.8 | S7: =品目シート④!$X64 -> 2.8 | T7: =品目シート⑤!$X64 -> 2.8 | U7: =SUM(P7:T7) -> 14 | V7: =L19/2 -> 378 | W7: =V7-U7 -> 364
B8: 4 | C8: =品目シート④!$H$3 -> 5 | D8: =品目シート④!$H$4 -> 小麦 | E8: =品目シート④!$V$5 -> 40 | F8: =品目シート④!$V$12 -> 298800 | G8: =品目シート④!$V$54 -> 219873.0783 | H8: =品目シート④!$V$55 -> 78926.92167 | I8: =品目シート④!$V$56 -> 26.41463242 | J8: =$S$31 -> 33.6 | K8: =J8/(結果・労働時間!E8/10) -> 8.4 | O8: 下期 | P8: =品目シート①!$X65 -> 2.8 | Q8: =品目シート②!$X65 -> 2.8 | R8: =品目シート③!$X65 -> 2.8 | S8: =品目シート④!$X65 -> 2.8 | T8: =品目シート⑤!$X65 -> 2.8 | U8: =SUM(P8:T8) -> 14 | V8: =L19/2 -> 378 | W8: =V8-U8 -> 364 | X8: =W7+W8 -> 728
B9: 5 | C9: =品目シート⑤!$H$3 -> 5 | D9: =品目シート⑤!$H$4 -> 小麦 | E9: =品目シート⑤!$V$5 -> 40 | F9: =品目シート⑤!$V$12 -> 298800 | G9: =品目シート⑤!$V$54 -> 219873.0783 | H9: =品目シート⑤!$V$55 -> 78926.92167 | I9: =品目シート⑤!$V$56 -> 26.41463242 | J9: =$T$31 -> 33.6 | K9: =J9/(結果・労働時間!E9/10) -> 8.4 | N9: ２月 | O9: 上期 | P9: =品目シート①!$X66 -> 3.2 | Q9: =品目シート②!$X66 -> 3.2 | R9: =品目シート③!$X66 -> 3.2 | S9: =品目シート④!$X66 -> 3.2 | T9: =品目シート⑤!$X66 -> 3.2 | U9: 16 | V9: =L20/2 -> 576 | W9: 560
B10: 計 | E10: =SUMIF(E5:E9,"<>#N/A") -> 200 | F10: =SUMIF(F5:F9,"<>#N/A") -> 1494000 | G10: =SUMIF(G5:G9,"<>#N/A") -> 1099365.392 | H10: 394634.6083 | I10: =H10/F10*100 -> 26.41463242 | J10: 168 | K10: =SUMIF(K5:K9,"<>#N/A") -> 42 | O10: 下期 | P10: =品目シート①!$X67 -> 3.6 | Q10: =品目シート②!$X67 -> 3.6 | R10: =品目シート③!$X67 -> 3.6 | S10: =品目シート④!$X67 -> 3.6 | T10: =品目シート⑤!$X67 -> 3.6 | U10: 18 | V10: =L20/2 -> 576 | W10: 558 | X10: =W9+W10 -> 1118
F11: 常雇用賃金加算額 | G11: =K32 -> 0 | H11: =H10-G11 -> 394634.6083 | N11: ３月 | O11: 上期 | P11: =品目シート①!$X68 -> 0 | Q11: =品目シート②!$X68 -> 0 | R11: =品目シート③!$X68 -> 0 | S11: =品目シート④!$X68 -> 0 | T11: =品目シート⑤!$X68 -> 0 | U11: 0 | V11: =L21/2 -> 648 | W11: 648
F12: 臨時雇用賃金加算額 | G12: =J32 -> 0 | H12: =H11-G12 -> 394634.6083 | I12: 経営全体農業所得額 | O12: 下期 | P12: =品目シート①!$X69 -> 0 | Q12: =品目シート②!$X69 -> 0 | R12: =品目シート③!$X69 -> 0 | S12: =品目シート④!$X69 -> 0 | T12: =品目シート⑤!$X69 -> 0 | U12: 0 | V12: =L21/2 -> 648 | W12: 648 | X12: =W11+W12 -> 1296
N13: ４月 | O13: 上期 | P13: =品目シート①!$X70 -> 0.4 | Q13: =品目シート②!$X70 -> 0.4 | R13: =品目シート③!$X70 -> 0.4 | S13: =品目シート④!$X70 -> 0.4 | T13: =品目シート⑤!$X70 -> 0.4 | U13: 2 | V13: =L22/2 -> 468 | W13: 466
B14: 労働時間の設定 | O14: 下期 | P14: =品目シート①!$X71 -> 0.4 | Q14: =品目シート②!$X71 -> 0.4 | R14: =品目シート③!$X71 -> 0.4 | S14: =品目シート④!$X71 -> 0.4 | T14: =品目シート⑤!$X71 -> 0.4 | U14: 2 | V14: =L22/2 -> 468 | W14: 466 | X14: =W13+W14 -> 932
B15: 家族労働 | C15: =HPイメージ!D18 -> 4 | D15: 人 | F15: 常雇の１日当り賃金設定 | I15: =HPイメージ!G18 -> 5600 | J15: 円 | N15: ５月 | O15: 上期 | P15: =品目シート①!$X72 -> 2.4 | Q15: =品目シート②!$X72 -> 2.4 | R15: =品目シート③!$X72 -> 2.4 | S15: =品目シート④!$X72 -> 2.4 | T15: =品目シート⑤!$X72 -> 2.4 | U15: 12 | V15: =L23/2 -> 324 | W15: 312
B16: 常時雇用 | C16: 0 | D16: 人 | F16: 臨時雇用の１時間当たり賃金設定 | I16: 0 | J16: 円 | O16: 下期 | P16: =品目シート①!$X73 -> 2 | Q16: =品目シート②!$X73 -> 2 | R16: =品目シート③!$X73 -> 2 | S16: =品目シート④!$X73 -> 2 | T16: =品目シート⑤!$X73 -> 2 | U16: 10 | V16: =L23/2 -> 324 | W16: 314 | X16: =W15+W16 -> 626
C17: 家族の月 | D17: 臨時雇用 | E17: 臨時雇用 | F17: 臨時雇用 | G17: 日数 | H17: １日当たり | I17: 家族 | J17: 臨時雇用 | K17: 常時雇用 | L17: 労働限界 | N17: ６月 | O17: 上期 | P17: =品目シート①!$X74 -> 0 | Q17: =品目シート②!$X74 -> 0 | R17: =品目シート③!$X74 -> 0 | S17: =品目シート④!$X74 -> 0 | T17: =品目シート⑤!$X74 -> 0 | U17: 0 | V17: =L24/2 -> 312 | W17: 312
C18: 当り休日 | D18: 月別人数 | E18: 月当日数 | F18: 延べ日数 | H18: 作業時間 | I18: 労働時間 | J18: 労働時間 | K18: 労働時間 | L18: 保有労働 | O18: 下期 | P18: =品目シート①!$X75 -> 0 | Q18: =品目シート②!$X75 -> 0 | R18: =品目シート③!$X75 -> 0 | S18: =品目シート④!$X75 -> 0 | T18: =品目シート⑤!$X75 -> 0 | U18: 0 | V18: =L24/2 -> 312 | W18: 312 | X18: =W17+W18 -> 624
B19: １月 | C19: 4 | D19: 0 | E19: 30 | F19: =D19*E19 -> 0 | G19: 31 | H19: 7 | I19: =(G19-C19)*H19*$C$15 -> 756 | J19: =D19*E19*H19 -> 0 | K19: =(G19-C19)*H19*$C$16 -> 0 | L19: =SUM(I19:K19) -> 756 | N19: ７月 | O19: 上期 | P19: =品目シート①!$X76 -> 0 | Q19: =品目シート②!$X76 -> 0 | R19: =品目シート③!$X76 -> 0 | S19: =品目シート④!$X76 -> 0 | T19: =品目シート⑤!$X76 -> 0 | U19: 0 | V19: =L25/2 -> 108 | W19: 108
B20: ２月 | C20: 4 | D20: 0 | E20: 30 | F20: =D20*E20 -> 0 | G20: 28 | H20: 12 | I20: 1152 | J20: =D20*E20*H20 -> 0 | K20: 0 | L20: =SUM(I20:K20) -> 1152 | O20: 下期 | P20: =品目シート①!$X77 -> 0 | Q20: =品目シート②!$X77 -> 0 | R20: =品目シート③!$X77 -> 0 | S20: =品目シート④!$X77 -> 0 | T20: =品目シート⑤!$X77 -> 0 | U20: 0 | V20: =L25/2 -> 108 | W20: 108 | X20: =W19+W20 -> 216
B21: ３月 | C21: 4 | D21: 0 | E21: 30 | F21: 0 | G21: 31 | H21: 12 | I21: 1296 | J21: 0 | K21: 0 | L21: 1296 | N21: ８月 | O21: 上期 | P21: =品目シート①!$X78 -> 0 | Q21: =品目シート②!$X78 -> 0 | R21: =品目シート③!$X78 -> 0 | S21: =品目シート④!$X78 -> 0 | T21: =品目シート⑤!$X78 -> 0 | U21: 0 | V21: =L26/2 -> 108 | W21: 108
B22: ４月 | C22: 4 | D22: 0 | E22: 30 | F22: 0 | G22: 30 | H22: 9 | I22: 936 | J22: 0 | K22: 0 | L22: 936 | O22: 下期 | P22: =品目シート①!$X79 -> 0 | Q22: =品目シート②!$X79 -> 0 | R22: =品目シート③!$X79 -> 0 | S22: =品目シート④!$X79 -> 0 | T22: =品目シート⑤!$X79 -> 0 | U22: 0 | V22: =L26/2 -> 108 | W22: 108 | X22: =W21+W22 -> 216
B23: ５月 | C23: 4 | D23: 0 | E23: 30 | F23: 0 | G23: 31 | H23: 6 | I23: 648 | J23: 0 | K23: 0 | L23: 648 | N23: ９月 | O23: 上期 | P23: =品目シート①!$X80 -> 0 | Q23: =品目シート②!$X80 -> 0 | R23: =品目シート③!$X80 -> 0 | S23: =品目シート④!$X80 -> 0 | T23: =品目シート⑤!$X80 -> 0 | U23: 0 | V23: =L27/2 -> 312 | W23: 312
B24: ６月 | C24: 4 | D24: 0 | E24: 30 | F24: 0 | G24: 30 | H24: 6 | I24: 624 | J24: 0 | K24: 0 | L24: 624 | O24: 下期 | P24: =品目シート①!$X81 -> 0 | Q24: =品目シート②!$X81 -> 0 | R24: =品目シート③!$X81 -> 0 | S24: =品目シート④!$X81 -> 0 | T24: =品目シート⑤!$X81 -> 0 | U24: 0 | V24: =L27/2 -> 312 | W24: 312 | X24: =W23+W24 -> 624
B25: ７月 | C25: 4 | D25: 0 | E25: 30 | F25: 0 | G25: 31 | H25: 2 | I25: 216 | J25: 0 | K25: 0 | L25: 216 | N25: １０月 | O25: 上期 | P25: =品目シート①!$X82 -> 0 | Q25: =品目シート②!$X82 -> 0 | R25: =品目シート③!$X82 -> 0 | S25: =品目シート④!$X82 -> 0 | T25: =品目シート⑤!$X82 -> 0 | U25: 0 | V25: =L28/2 -> 108 | W25: 108
B26: ８月 | C26: 4 | D26: 0 | E26: 30 | F26: 0 | G26: 31 | H26: 2 | I26: 216 | J26: 0 | K26: 0 | L26: 216 | O26: 下期 | P26: =品目シート①!$X83 -> 0 | Q26: =品目シート②!$X83 -> 0 | R26: =品目シート③!$X83 -> 0 | S26: =品目シート④!$X83 -> 0 | T26: =品目シート⑤!$X83 -> 0 | U26: 0 | V26: =L28/2 -> 108 | W26: 108 | X26: =W25+W26 -> 216
B27: ９月 | C27: 4 | D27: 0 | E27: 30 | F27: 0 | G27: 30 | H27: 6 | I27: 624 | J27: 0 | K27: 0 | L27: 624 | N27: １１月 | O27: 上期 | P27: =品目シート①!$X84 -> 6.8 | Q27: =品目シート②!$X84 -> 6.8 | R27: =品目シート③!$X84 -> 6.8 | S27: =品目シート④!$X84 -> 6.8 | T27: =品目シート⑤!$X84 -> 6.8 | U27: 34 | V27: =L29/2 -> 201 | W27: 167
B28: １０月 | C28: 4 | D28: 0 | E28: 30 | F28: 0 | G28: 31 | H28: 2 | I28: 216 | J28: 0 | K28: 0 | L28: 216 | O28: 下期 | P28: =品目シート①!$X85 -> 6.4 | Q28: =品目シート②!$X85 -> 6.4 | R28: =品目シート③!$X85 -> 6.4 | S28: =品目シート④!$X85 -> 6.4 | T28: =品目シート⑤!$X85 -> 6.4 | U28: 32 | V28: =L29/2 -> 201 | W28: 169 | X28: =W27+W28 -> 336
B29: １１月 | C29: 4 | D29: 1 | E29: 30 | F29: 30 | G29: 30 | H29: 3 | I29: 312 | J29: 90 | K29: 0 | L29: 402 | N29: １２月 | O29: 上期 | P29: =品目シート①!$X86 -> 2 | Q29: =品目シート②!$X86 -> 2 | R29: =品目シート③!$X86 -> 2 | S29: =品目シート④!$X86 -> 2 | T29: =品目シート⑤!$X86 -> 2 | U29: 10 | V29: =L30/2 -> 306 | W29: 296
B30: １２月 | C30: 0 | D30: 4 | E30: 20 | F30: 80 | G30: 31 | H30: 3 | I30: 372 | J30: 240 | K30: 0 | L30: =SUM(I30:K30) -> 612 | O30: 下期 | P30: =品目シート①!$X87 -> 0.8 | Q30: =品目シート②!$X87 -> 0.8 | R30: =品目シート③!$X87 -> 0.8 | S30: =品目シート④!$X87 -> 0.8 | T30: =品目シート⑤!$X87 -> 0.8 | U30: 4 | V30: =L30/2 -> 306 | W30: 302 | X30: =W29+W30 -> 598
B31: 合計 | C31: =SUM(C19:C30) -> 44 | D31: 臨時雇用延べ日数→ | F31: =SUM(F19:F30) -> 110 | G31: 平均→ | H31: =AVERAGE(H19:H30) -> 5.833333333 | I31: =SUM(I19:I30) -> 7368 | J31: =SUM(J19:J30) -> 330 | K31: 0 | L31: 7698 | N31: ◇◇合 計◇◇ | P31: =SUMIF(P7:P30,"<>#N/A") -> 33.6 | Q31: =SUMIF(Q7:Q30,"<>#N/A") -> 33.6 | R31: 33.6 | S31: 33.6 | T31: =SUMIF(T7:T30,"<>#N/A") -> 33.6 | U31: =SUMIF(U7:U30,"<>#N/A") -> 168 | V31: 7698 | W31: 7530 | X31: 7530
J32: =J31*I16 -> 0 | K32: =K31*I15 -> 0

Sheet 経営指標DATA
A1: 行番号↓
A2: 1 | B2: [生産販売］ | G2: 列番号→ | H2: 1 | I2: 2 | J2: 3 | K2: 4 | L2: 5 | M2: 6 | N2: 7 | O2: 8 | P2: 9 | Q2: 10 | R2: 11 | S2: 12 | T2: 13 | U2: 14 | V2: 15 | W2: 16 | X2: 17 | Y2: 18 | Z2: 19 | AA2: 20 | AB2: 21 | AC2: 22 | AD2: 23 | AE2: 24 | AF2: 25 | AG2: 26 | AH2: 27 | AI2: 28 | AJ2: 29 | AK2: 30 | AL2: 31 | AM2: 32 | AN2: 33 | AO2: 34 | AP2: 35 | AQ2: 36 | AR2: 37 | AS2: 38 | AT2: 39 | AU2: 40 | AV2: 41 | AW2: 42 | AX2: 43 | AY2: 44 | AZ2: 45 | BA2: 46 | BB2: 47 | BC2: 48 | BD2: 49 | BE2: 50 | BF2: 51 | BG2: 52 | BH2: 53 | BI2: 54 | BJ2: 55 | BK2: 56 | BL2: 57 | BM2: 58 | BN2: 59 | BO2: 60 | BP2: 61 | BQ2: 62 | BR2: 63 | BS2: 64 | BT2: 65 | BU2: 66 | BV2: 67 | BW2: 68 | BX2: 69 | BY2: 70 | BZ2: 71 | CA2: 72 | CB2: 73 | CC2: 74 | CD2: 75 | CE2: 76 | CF2: 77 | CG2: 78 | CH2: 79 | CI2: 80 | CJ2: 81 | CK2: 82 | CL2: 83 | CM2: 84 | CN2: 85 | CO2: 86 | CP2: 87 | CQ2: 88 | CR2: 89 | CS2: 90 | CT2: 91 | CU2: 92 | CV2: 93 | CW2: 94 | CX2: 95 | CY2: 96 | CZ2: 97 | DA2: 98 | DB2: 99 | DC2: 100 | DD2: 101 | DE2: 102 | DF2: 103 | DG2: 104 | DH2: 105 | DI2: 106 | DJ2: 107 | DK2: 108 | DL2: 109 | DM2: 110 | DN2: 111 | DO2: 112 | DP2: 113 | DQ2: 114 | DR2: 115 | DS2: 116 | DT2: 117 | DU2: 118 | DV2: 119 | DW2: 120 | DX2: 121 | DY2: 122 | DZ2: 123 | EA2: 124 | EB2: 125 | EC2: 126 | ED2: 127 | EE2: 128 | EF2: 129 | EG2: 130 | EH2: 131 | EI2: 132 | EJ2: 133 | EK2: 134 | EL2: 146 | EM2: 147 | EN2: 148 | EO2: 149 | EP2: 150
A3: 2 | B3: 作物名・作型等 項 目 | H3: 水稲 40ha | I3: 水稲 20ha | J3: 水稲 10ha | K3: 水稲 5ha | L3: 小麦 | M3: 大麦 | N3: 大豆 | O3: ｶﾝｼｮ | P3: ﾊﾞﾚｲｼｮ | Q3: ｻﾄｲﾓ | R3: 冬ﾆﾝｼﾞﾝ | S3: 春ﾆﾝｼﾞﾝ | T3: 夏秋ﾀﾞｲｺﾝ | U3: 春ﾀﾞｲｺﾝ | V3: 水田ｺﾞﾎﾞｳ | W3: ﾀﾏﾈｷﾞ | X3: ｽｨｰﾄｺｰﾝ | Y3: 夏秋ﾄﾏﾄ | Z3: 冬ﾄﾏﾄ | AA3: 冬春ﾄﾏﾄ | AB3: ﾐﾆﾄﾏﾄ | AC3: 夏秋ﾐﾆﾄﾏﾄ | AD3: 冬春ﾅｽ | AE3: 夏秋ﾅｽ | AF3: 冬春ｷｭｳﾘ | AG3: 夏秋ｷｭｳﾘ | AH3: 夏秋ﾋﾟｰﾏﾝ | AI3: 冬春ﾋﾟｰﾏﾝ | AJ3: 春夏ｽｲｶ | AK3: 小玉ｽｲｶ | AL3: 春夏ﾒﾛﾝ ｱﾝﾃﾞｽ | AM3: 春夏ﾒﾛﾝ ｸｲﾝｼｰ | AN3: 春夏ﾒﾛﾝ 肥後ｸﾞﾘｰﾝ | AO3: 春夏ﾒﾛﾝ ｱｰﾙｽ | AP3: 秋冬ﾒﾛﾝ 抑制 | AQ3: ｲﾁｺﾞ | AR3: ｲﾁｺﾞ高設 | AS3: ｲﾝｹﾞﾝ 半促成 | AT3: ｲﾝｹﾞﾝ 抑制 | AU3: ｵｸﾗ 露地 | AV3: ｱｽﾊﾟﾗｶﾞｽ | AW3: ｷｬﾍﾞﾂ 夏秋 | AX3: ｷｬﾍﾞﾂ 冬 | AY3: 冬ﾚﾀｽ | AZ3: ﾎｳﾚﾝｿｳ 夏秋 | BA3: ﾊｸｻｲ 秋冬 | BB3: 小ﾈｷﾞ | BC3: ｼｮｳｶﾞ | BD3: ﾚﾝｺﾝ ﾊｳｽ | BE3: ﾚﾝｺﾝ | BF3: ﾆｶﾞｳﾘ | BG3: 深ﾈｷﾞ | BH3: ﾆﾗ | BI3: ｽﾅｯﾌﾟｴﾝﾄﾞｳ | BJ3: ﾌﾞﾛｯｺﾘｰ | BK3: 電照ｷﾞｸ 12月切り | BL3: 小ｷﾞｸ 夏秋切り | BM3: ｽﾌﾟﾚｰｷﾞｸ 12月切り | BN3: ｶｰﾈｰｼｮﾝ | BO3: ｽﾌﾟﾚｰ ｶｰﾈｰｼｮﾝ | BP3: ﾊﾞﾗ | BQ3: 宿根ｶｽﾐｿｳ 二度切り | BR3: 宿根ｶｽﾐｿｳ 加温促成 | BS3: ｸｼﾞｬｸｱｽﾀｰ 周年 | BT3: ｽﾀｰﾁｽ 加温促成 | BU3: ｽﾀｰﾁｽ 夏秋切り | BV3: ﾄﾙｺｷﾞｷｮｳ 年内 | BW3: ﾄﾙｺｷﾞｷｮｳ 夏秋切り | BX3: ｽﾄｯｸ 11~12月 | BY3: ﾘﾝﾄﾞｳ 夏秋 | BZ3: ｱﾘｳﾑ 3~4月 | CA3: ｶﾗｰ 周年 | CB3: ｵﾘｴﾝﾀﾙﾕﾘ 12月 | CC3: ｼｸﾗﾒﾝ 12月 | CD3: ﾊﾟﾝｼﾞｰ 10~11月 | CE3: 極早生温州 | CF3: 早生温州 | CG3: 普通温州 | CH3: ﾊｳｽみかん | CI3: ﾊｳｽみかん (ｸﾞﾘｰﾝ) | CJ3: 不知火 露地 | CK3: 不知火 屋根かけ | CL3: 不知火 加温 | CM3: 甘夏 | CN3: 晩白柚 露地 | CO3: 晩白柚 ﾊｳｽ | CP3: ﾎﾟﾝｶﾝ | CQ3: 清見 | CR3: 河内晩柑 | CS3: ﾊｳｽｷﾝｶﾝ | CT3: ゆず | CU3: なし 幸水･露地 | CV3: なし 幸水ﾄﾝﾈﾙ | CW3: なし 豊水 | CX3: なし 新高 | CY3: なし あきづき | CZ3: なし 秋麗 | DA3: もも 露地 | DB3: もも ﾄﾝﾈﾙ | DC3: もも 加温 | DD3: すもも ﾊｳｽ | DE3: かき 太秋 | DF3: ぶどう ﾄﾝﾈﾙ | DG3: ぶどう 無加温 | DH3: くり | DI3: いちじく 無加温 | DJ3: いちじく 加温 | DK3: ﾌﾞﾙｰﾍﾞﾘｰ | DL3: ﾏﾝｺﾞｰ | DM3: 茶 | DN3: いぐさ 畳表 | DO3: 葉たばこ | DP3: 乳牛50頭 | DQ3: 乳牛80頭 | DR3: 乳牛200頭 | DS3: 肉用牛(繁殖) 30頭(黒毛) | DT3: 肉用牛(繁殖) 80頭(黒毛) | DU3: 肉用牛(繁殖) 200頭(黒毛) | DV3: 肉用牛(繁殖肥育) 100頭(黒毛) | DW3: 肉用牛(肥育) 300頭(黒毛) | DX3: 肉用牛(肥育) 400頭(交雑種) | DY3: 豚 | DZ3: 鶏採卵 | EA3: 鶏肉用鶏 | EB3: 飼料用米 | EC3: 鶏:採卵3万羽規模千羽当 | ED3: 鶏:ﾌﾞﾛｲﾗｰ5万羽規模千羽当 | EE3: 水稲（４０ｈａ）ドローン | EF3: 酪農（８０頭）餌よせロボット、哺乳ロボット | EG3: 酪農（200頭）餌よせロボット、哺乳ロボット、分娩発情監視装置 | EH3: 肉用牛繁殖（８０頭）哺乳ロボット、分娩発情監視装置 | EI3: 肉用牛（２００頭）哺乳ロボット、分娩発情監視装置
A4: 3 | EI4: 親子づけ
A5: 4 | B5: 生産販売 | E5: 生産量 | G5: kg・本・頭 | H5: 520 | I5: 510 | J5: 520 | K5: 520 | L5: 450 | M5: 420 | N5: 250 | O5: 3000 | P5: 2315.789474 | Q5: 2409.638554 | R5: 5000 | S5: 4444.444444 | T5: 4200 | U5: 5555.555556 | V5: 1650 | W5: 4000 | X5: 1579 | Y5: 12500 | Z5: 8500 | AA5: 20000 | AB5: 12500 | AC5: 7368 | AD5: 20000 | AE5: 9473.684211 | AF5: 16209.47368 | AG5: 8244 | AH5: 8065 | AI5: 12632 | AJ5: 7388 | AK5: 3146 | AL5: 2772 | AM5: 3309 | AN5: 3831 | AO5: 3598 | AP5: 3000 | AQ5: 5133 | AR5: 5833 | AS5: 1383 | AT5: 906 | AU5: 3020 | AV5: 3200 | AW5: 3685 | AX5: 4920 | AY5: 3456 | AZ5: 3691 | BA5: 6315.789474 | BB5: 3978 | BC5: 5000 | BD5: 1158 | BE5: 2317 | BF5: 3300 | BG5: 2287 | BH5: 3672 | BI5: 3500 | BJ5: 1054 | BK5: 40000 | BL5: 47000 | BM5: 43000 | BN5: 140000 | BO5: 120000 | BP5: 80000 | BQ5: 33600 | BR5: 16800 | BS5: 60000 | BT5: 63300 | BU5: 76000 | BV5: 30000 | BW5: 30000 | BX5: 38000 | BY5: 36000 | BZ5: 62800 | CA5: 45000 | CB5: 20000 | CC5: 10000 | CD5: 76000 | CE5: 3500 | CF5: 4000 | CG5: 4000 | CH5: 5500 | CI5: 6100 | CJ5: 3000 | CK5: 3500 | CL5: 4500 | CM5: 4000 | CN5: 3000 | CO5: 3600 | CP5: 3000 | CQ5: 3500 | CR5: 4000 | CS5: 2200 | CT5: 2000 | CU5: 3000 | CV5: 3200 | CW5: 4000 | CX5: 4500 | CY5: 3500 | CZ5: 3000 | DA5: 2000 | DB5: 2000 | DC5: 2500 | DD5: 2800 | DE5: 2000 | DF5: 1300 | DG5: 1600 | DH5: 300 | DI5: 2400 | DJ5: 3300 | DK5: 600 | DL5: 2000 | DM5: 344 | DN5: 1300 | DO5: 255 | DP5: 9991 | DQ5: 9991 | DR5: 10423 | DS5: 0.96 | DT5: 0.96 | DU5: 0.96 | DV5: 488 | DW5: 490 | DX5: 480 | DY5: 74.1 | DZ5: 19710 | EA5: 1000 | EB5: 520 | EC5: 18615 | ED5: 2800 | EE5: 520 | EF5: 10452 | EG5: 10423 | EH5: 0.96 | EI5: 0.96
A6: 5 | E6: 販売量 | H6: 494 | I6: 485 | J6: 494 | K6: 494 | L6: 450 | M6: 420 | N6: 250 | O6: 2700 | P6: 2200 | Q6: 2000 | R6: 4500 | S6: 4000 | T6: 4000 | U6: 5000 | V6: 1600 | W6: 3800 | X6: 1500 | Y6: 11500 | Z6: 8000 | AA6: 18400 | AB6: 11500 | AC6: 7000 | AD6: 18400 | AE6: 9000 | AF6: 15399 | AG6: 7832 | AH6: 7500 | AI6: 12000 | AJ6: 6649 | AK6: 2926 | AL6: 2633 | AM6: 3143 | AN6: 3448 | AO6: 3238 | AP6: 2700 | AQ6: 4877 | AR6: 5542 | AS6: 1314 | AT6: 861 | AU6: 2239 | AV6: 3000 | AW6: 3501 | AX6: 4674 | AY6: 3284 | AZ6: 3506 | BA6: 6000 | BB6: 2625 | BC6: 4000 | BD6: 1100 | BE6: 2200 | BF6: 3135 | BG6: 2173 | BH6: 3488 | BI6: 3000 | BJ6: 1001 | BK6: 37800 | BL6: 43000 | BM6: 38700 | BN6: 120000 | BO6: 100000 | BP6: 75000 | BQ6: 30240 | BR6: 15120 | BS6: 50000 | BT6: 57000 | BU6: 68400 | BV6: 26000 | BW6: 26000 | BX6: 34200 | BY6: 32000 | BZ6: 56500 | CA6: 42000 | CB6: 19000 | CC6: 9500 | CD6: 65000 | CE6: 3325 | CF6: 3600 | CG6: 3600 | CH6: 5225 | CI6: 5795 | CJ6: 2400 | CK6: 3150 | CL6: 4275 | CM6: 3600 | CN6: 2700 | CO6: 3240 | CP6: 2700 | CQ6: 2975 | CR6: 3400 | CS6: 1980 | CT6: 1800 | CU6: 2850 | CV6: 3040 | CW6: 3400 | CX6: 3600 | CY6: 3150 | CZ6: 2850 | DA6: 1700 | DB6: 1800 | DC6: 2375 | DD6: 2520 | DE6: 1800 | DF6: 1170 | DG6: 1520 | DH6: 270 | DI6: 2160 | DJ6: 2970 | DK6: 570 | DL6: 1800 | DM6: 344 | DN6: 420 | DO6: 255 | DP6: 9991 | DQ6: 9991 | DR6: 10423 | DS6: 0.94 | DT6: 0.94 | DU6: 0.95 | DV6: 0.921 | DW6: 0.653 | DX6: 0.535 | DY6: 25 | DZ6: 19316 | EA6: 1000 | EB6: 520 | EC6: 18242.7 | ED6: 2800 | EE6: 494 | EF6: 10452 | EG6: 10423 | EH6: 0.95 | EI6: 0.95
A7: 6 | E7: 単価 | G7: 円/kg・本・頭 | H7: 240 | I7: 248 | J7: 240 | K7: 240 | L7: 166 | M7: 150 | N7: 320 | O7: 180 | P7: 167 | Q7: 230 | R7: 100 | S7: 91 | T7: 75 | U7: 87 | V7: 492 | W7: 140 | X7: 338.44 | Y7: 318 | Z7: 400 | AA7: 338 | AB7: 540 | AC7: 579 | AD7: 361 | AE7: 310 | AF7: 280 | AG7: 278 | AH7: 307 | AI7: 356 | AJ7: 238 | AK7: 464 | AL7: 486 | AM7: 473 | AN7: 355 | AO7: 591 | AP7: 637 | AQ7: 1153 | AR7: 1158 | AS7: 837 | AT7: 1161 | AU7: 695 | AV7: 1100 | AW7: 93 | AX7: 80 | AY7: 191 | AZ7: 606 | BA7: 52 | BB7: 733 | BC7: 700 | BD7: 1044 | BE7: 278 | BF7: 387 | BG7: 332 | BH7: 473 | BI7: 1041 | BJ7: 424 | BK7: 75 | BL7: 37 | BM7: 55 | BN7: 50 | BO7: 55 | BP7: 90 | BQ7: 105 | BR7: 127 | BS7: 45 | BT7: 70 | BU7: 50 | BV7: 165 | BW7: 115 | BX7: 55 | BY7: 45 | BZ7: 60 | CA7: 75 | CB7: 280 | CC7: 520 | CD7: 36 | CE7: 220 | CF7: 230 | CG7: 250 | CH7: 820 | CI7: 720 | CJ7: 410 | CK7: 560 | CL7: 860 | CM7: 220 | CN7: 360 | CO7: 570 | CP7: 270 | CQ7: 260 | CR7: 190 | CS7: 900 | CT7: 280 | CU7: 400 | CV7: 560 | CW7: 320 | CX7: 320 | CY7: 330 | CZ7: 520 | DA7: 560 | DB7: 680 | DC7: 890 | DD7: 900 | DE7: 480 | DF7: 830 | DG7: 1100 | DH7: 750 | DI7: 690 | DJ7: 1000 | DK7: 840 | DL7: 2400 | DM7: 1348 | DN7: 2000 | DO7: 2050 | DP7: 112 | DQ7: 112 | DR7: 112 | DS7: 650000 | DT7: 650000 | DU7: 650000 | DV7: 2278 | DW7: 2578 | DX7: 1450 | DY7: 530 | DZ7: 196 | EA7: 2834 | EB7: 192 | EC7: 177 | ED7: 170 | EE7: 240 | EF7: 112 | EG7: 112 | EH7: 650000 | EI7: 650000
A8: 7 | B8: 販売金額 | E8: 主産物 | H8: 118560 | I8: 120280 | J8: 118560 | K8: 118560 | L8: 74700 | M8: 63076 | N8: 80094 | O8: 486000 | P8: 367400 | Q8: 460000 | R8: 450000 | S8: 364000 | T8: 300000 | U8: 435000 | V8: 787200 | W8: 532000 | X8: 507650 | Y8: 3657000 | Z8: 3200000 | AA8: 6219200 | AB8: 6210000 | AC8: 4053000 | AD8: 6642400 | AE8: 2790000 | AF8: 4311720 | AG8: 2180498 | AH8: 2302673 | AI8: 4272000 | AJ8: 1580924 | AK8: 1357176 | AL8: 1279832 | AM8: 1486809 | AN8: 1224018 | AO8: 1914967 | AP8: 1720980 | AQ8: 5624422 | AR8: 6416142 | AS8: 1100061 | AT8: 999118 | AU8: 1556759 | AV8: 3300000 | AW8: 324893 | AX8: 374855 | AY8: 627805 | AZ8: 2124086 | BA8: 312000 | BB8: 1923494 | BC8: 2800000 | BD8: 1148400 | BE8: 612624 | BF8: 1213899 | BG8: 721270 | BH8: 1649824 | BI8: 3123000 | BJ8: 424090 | BK8: 2835000 | BL8: 1591000 | BM8: 2128500 | BN8: 6000000 | BO8: 5500000 | BP8: 6750000 | BQ8: 3175200 | BR8: 1920240 | BS8: 2250000 | BT8: 3990000 | BU8: 3420000 | BV8: 4290000 | BW8: 2990000 | BX8: 1881000 | BY8: 1440000 | BZ8: 3390000 | CA8: 3150000 | CB8: 5320000 | CC8: 4940000 | CD8: 2340000 | CE8: 731500 | CF8: 828000 | CG8: 900000 | CH8: 4284500 | CI8: 4172400 | CJ8: 984000 | CK8: 1764000 | CL8: 3676500 | CM8: 792000 | CN8: 972000 | CO8: 1846800 | CP8: 729000 | CQ8: 773500 | CR8: 646000 | CS8: 1782000 | CT8: 504000 | CU8: 1140000 | CV8: 1702400 | CW8: 1088000 | CX8: 1152000 | CY8: 1039500 | CZ8: 1482000 | DA8: 952000 | DB8: 1224000 | DC8: 2113750 | DD8: 2268000 | DE8: 864000 | DF8: 971100 | DG8: 1672000 | DH8: 202500 | DI8: 1490400 | DJ8: 2970000 | DK8: 478800 | DL8: 4320000 | DM8: 463712 | DN8: 840000 | DO8: 522750 | DP8: 1118969 | DQ8: 1118969 | DR8: 1167376 | DS8: 611000 | DT8: 611000 | DU8: 617500 | DV8: 1022824 | DW8: 824882.66 | DX8: 372360 | DY8: 981825 | DZ8: 3785897 | EA8: 2834000 | EB8: 99840 | EC8: 3228957.9 | ED8: 476000 | EE8: 118560 | EF8: 1170624 | EG8: 1167376 | EH8: 617500 | EI8: 617500
A9: 8 | E9: 副産物 | H9: 300 | I9: 300 | J9: 300 | K9: 300 | L9: 0 | M9: 0 | N9: 0 | O9: 14000 | P9: 0 | Q9: 0 | R9: 0 | S9: 0 | T9: 28907 | U9: 0 | V9: 0 | W9: 0 | X9: 0 | Y9: 0 | Z9: 0 | AA9: 0 | AB9: 0 | AC9: 0 | AD9: 0 | AE9: 0 | AF9: 0 | AG9: 0 | AH9: 0 | AI9: 0 | AJ9: 0 | AK9: 0 | AL9: 0 | AM9: 0 | AN9: 0 | AO9: 0 | AP9: 0 | AQ9: 0 | AR9: 0 | AS9: 0 | AT9: 0 | AU9: 0 | AV9: 0 | AW9: 0 | AX9: 0 | AY9: 0 | AZ9: 0 | BA9: 0 | BB9: 0 | BC9: 130000 | BD9: 0 | BE9: 0 | BF9: 0 | BG9: 0 | BH9: 0 | BI9: 0 | BJ9: 0 | BK9: 0 | BL9: 0 | BM9: 0 | BN9: 0 | BO9: 0 | BP9: 0 | BQ9: 0 | BR9: 0 | BS9: 0 | BT9: 0 | BU9: 0 | BV9: 0 | BW9: 0 | BX9: 0 | BY9: 0 | BZ9: 0 | CA9: 0 | CB9: 0 | CC9: 0 | CD9: 0 | CE9: 0 | CF9: 0 | CG9: 0 | CH9: 0 | CI9: 0 | CJ9: 0 | CK9: 0 | CL9: 0 | CM9: 0 | CN9: 0 | CO9: 0 | CP9: 0 | CQ9: 0 | CR9: 0 | CS9: 0 | CU9: 0 | CV9: 0 | CW9: 0 | CX9: 0 | CY9: 0 | CZ9: 0 | DA9: 0 | DB9: 0 | DC9: 0 | DD9: 0 | DE9: 0 | DF9: 0 | DG9: 0 | DH9: 0 | DI9: 0 | DJ9: 0 | DK9: 0 | DL9: 0 | DM9: 0 | DN9: 0 | DO9: 0 | DP9: 150400 | DQ9: 150400 | DR9: 150400 | DV9: 18400 | DW9: 13060 | DX9: 17861 | DY9: 12440 | DZ9: 18750 | EA9: 196868.6046 | EB9: 0 | EC9: 208750 | ED9: 13400 | EE9: 300 | EF9: 150400 | EG9: 150400
A10: 9 | B10: 奨励金等 | E10: 奨励金・助成金
A11: 10 | B11: 農業総収入 | H11: 118860 | I11: 120580 | J11: 118860 | K11: 118860 | L11: 74700 | M11: 63076 | N11: 80094 | O11: 500000 | P11: 367400 | Q11: 460000 | R11: 450000 | S11: 364000 | T11: 328907 | U11: 435000 | V11: 787200 | W11: 532000 | X11: 507650 | Y11: 3657000 | Z11: 3200000 | AA11: 6219200 | AB11: 6210000 | AC11: 4053000 | AD11: 6642400 | AE11: 2790000 | AF11: 4311720 | AG11: 2180498 | AH11: 2302673 | AI11: 4272000 | AJ11: 1580924 | AK11: 1357176 | AL11: 1279832 | AM11: 1486809 | AN11: 1224018 | AO11: 1914967 | AP11: 1720980 | AQ11: 5624422 | AR11: 6416142 | AS11: 1100061 | AT11: 999118 | AU11: 1556759 | AV11: 3300000 | AW11: 324893 | AX11: 374855 | AY11: 627805 | AZ11: 2124086 | BA11: 312000 | BB11: 1923494 | BC11: 2930000 | BD11: 1148400 | BE11: 612624 | BF11: 1213899 | BG11: 721270 | BH11: 1649824 | BI11: 3123000 | BJ11: 424090 | BK11: 2835000 | BL11: 1591000 | BM11: 2128500 | BN11: 6000000 | BO11: 5500000 | BP11: 6750000 | BQ11: 3175200 | BR11: 1920240 | BS11: 2250000 | BT11: 3990000 | BU11: 3420000 | BV11: 4290000 | BW11: 2990000 | BX11: 1881000 | BY11: 1440000 | BZ11: 3390000 | CA11: 3150000 | CB11: 5320000 | CC11: 4940000 | CD11: 2340000 | CE11: 731500 | CF11: 828000 | CG11: 900000 | CH11: 4284500 | CI11: 4172400 | CJ11: 984000 | CK11: 1764000 | CL11: 3676500 | CM11: 792000 | CN11: 972000 | CO11: 1846800 | CP11: 729000 | CQ11: 773500 | CR11: 646000 | CS11: 1782000 | CT11: 504000 | CU11: 1140000 | CV11: 1702400 | CW11: 1088000 | CX11: 1152000 | CY11: 1039500 | CZ11: 1482000 | DA11: 952000 | DB11: 1224000 | DC11: 2113750 | DD11: 2268000 | DE11: 864000 | DF11: 971100 | DG11: 1672000 | DH11: 202500 | DI11: 1490400 | DJ11: 2970000 | DK11: 478800 | DL11: 4320000 | DM11: 463712 | DN11: 840000 | DO11: 522750 | DP11: 1269369 | DQ11: 1269369 | DR11: 1317776 | DS11: 611000 | DT11: 611000 | DU11: 617500 | DV11: 1041224 | DW11: 837942.66 | DX11: 390221 | DY11: 994265 | DZ11: 3804647 | EA11: 3030868.605 | EB11: 99840 | EC11: 3437707.9 | ED11: 489400 | EE11: 118860 | EF11: 1321024 | EG11: 1317776 | EH11: 617500 | EI11: 617500
A12: 11 | B12: 農業粗収益（販売経費差引後） | H12: 101102 | I12: 115509 | J12: 99008.77467 | K12: 98624.66667 | L12: 62188.5 | M12: 61057.6 | N12: 74635.66667 | O12: 352310 | P12: 293236 | Q12: 313100 | R12: 326430 | S12: 258120 | T12: 228807 | U12: 274625 | V12: 622340 | W12: 365408 | X12: 332270 | Y12: 2530695 | Z12: 2184600 | AA12: 4228872 | AB12: 4764450 | AC12: 3249547 | AD12: 4947484 | AE12: 1987020 | AF12: 2983956.12 | AG12: 1523595 | AH12: 1637031 | AI12: 3139387 | AJ12: 1234492 | AK12: 1028791 | AL12: 975797 | AM12: 1131853 | AN12: 930529 | AO12: 1540535 | AP12: 1437257 | AQ12: 4306750.3 | AR12: 4965822 | AS12: 650083 | AT12: 746529 | AU12: 921003 | AV12: 2344800 | AW12: 217510 | AX12: 238267 | AY12: 375343 | AZ12: 1676454 | BA12: 196920 | BB12: 1408674 | BC12: 2225700 | BD12: 927358 | BE12: 454722 | BF12: 946920 | BG12: 556710 | BH12: 1286322 | BI12: 1998855 | BJ12: 283630 | BK12: 2254834 | BL12: 1354435 | BM12: 1565979 | BN12: 5258960 | BO12: 4824460 | BP12: 5851300 | BQ12: 1833027 | BR12: 1208184 | BS12: 1924373 | BT12: 3472680 | BU12: 2933520 | BV12: 3185946 | BW12: 2301415 | BX12: 1639470 | BY12: 1205440 | BZ12: 2605780 | CA12: 2126340 | CB12: 3933950 | CC12: 3771500 | CD12: 2042071 | CE12: 442225 | CF12: 511200 | CG12: 576000 | CH12: 3411925 | CI12: 3262585 | CJ12: 625050 | CK12: 1241100 | CL12: 2721015 | CM12: 460800 | CN12: 644940 | CO12: 1341036 | CP12: 467100 | CQ12: 487900 | CR12: 414020 | CS12: 1465200 | CT12: 327600 | CU12: 798000 | CV12: 1288960 | CW12: 689200 | CX12: 748800 | CY12: 683550 | CZ12: 1105800 | DA12: 703800 | DB12: 939600 | DC12: 1676750 | DD12: 1827000 | DE12: 604350 | DF12: 679770 | DG12: 1252480 | DH12: 162450 | DI12: 1090800 | DJ12: 2275020 | DK12: 363660 | DL12: 3365558 | DM12: 443394 | DN12: 818580 | DO12: 522750 | DP12: 1210915 | DQ12: 1213915 | DR12: 1263140 | DS12: 582738.9 | DT12: 582738.9 | DU12: 587438 | DV12: 1004120 | DW12: 811306.46 | DX12: 374468 | DY12: 886006 | DZ12: 3766788 | EA12: 2274868.605 | EB12: 95636.06667 | EC12: 3405418.321 | ED12: 482736 | EE12: 101102 | EF12: 1263241 | EG12: 1263140 | EH12: 588938 | EI12: 587438
A13: 12 | B13: 手取り単価 | H13: 204.659919 | I13: 238.1628866 | J13: 200.4226208 | K13: 199.6450742 | L13: 138.1966667 | M13: 145.3752381 | N13: 298.5426667 | O13: 130.4851852 | P13: 133.2890909 | Q13: 156.55 | R13: 72.54 | S13: 64.53 | T13: 57.20175 | U13: 54.925 | V13: 388.9625 | W13: 96.16 | X13: 221.5133333 | Y13: 220.0604348 | Z13: 273.075 | AA13: 229.83 | AB13: 414.3 | AC13: 464.221 | AD13: 268.885 | AE13: 220.78 | AF13: 193.7759673 | AG13: 194.5346016 | AH13: 218.2708 | AI13: 261.6155833 | AJ13: 185.6658144 | AK13: 351.6032126 | AL13: 370.6027345 | AM13: 360.1186764 | AN13: 269.875 | AO13: 475.767449 | AP13: 532.3174074 | AQ13: 883.0736723 | AR13: 896.0342837 | AS13: 494.7359209 | AT13: 867.0487805 | AU13: 411.34569 | AV13: 781.6 | AW13: 62.12796344 | AX13: 50.9771074 | AY13: 114.294458 | AZ13: 478.167142 | BA13: 32.82 | BB13: 536.6377143 | BC13: 556.425 | BD13: 843.0527273 | BE13: 206.6918182 | BF13: 302.0478469 | BG13: 256.1942016 | BH13: 368.7849771 | BI13: 666.285 | BJ13: 283.3466533 | BK13: 59.65169312 | BL13: 31.49848837 | BM13: 40.46457364 | BN13: 43.82466667 | BO13: 48.2446 | BP13: 78.01733333 | BQ13: 60.61597222 | BR13: 79.90634921 | BS13: 38.48746 | BT13: 60.92421053 | BU13: 42.8877193 | BV13: 122.5363846 | BW13: 88.51596154 | BX13: 47.9377193 | BY13: 37.67 | BZ13: 46.12 | CA13: 50.62714286 | CB13: 207.05 | CC13: 397 | CD13: 31.41647692 | CE13: 133 | CF13: 142 | CG13: 160 | CH13: 653 | CI13: 563 | CJ13: 260.4375 | CK13: 394 | CL13: 636.4947368 | CM13: 128 | CN13: 238.8666667 | CO13: 413.9 | CP13: 173 | CQ13: 164 | CR13: 121.7705882 | CS13: 740 | CT13: 182 | CU13: 280 | CV13: 424 | CW13: 202.7058824 | CX13: 208 | CY13: 217 | CZ13: 388 | DA13: 414 | DB13: 522 | DC13: 706 | DD13: 725 | DE13: 335.75 | DF13: 581 | DG13: 824 | DH13: 601.6666667 | DI13: 505 | DJ13: 766 | DK13: 638 | DL13: 1869.754444 | DM13: 1288.936047 | DN13: 1949 | DO13: 2050 | DP13: 121.2005805 | DQ13: 121.5008508 | DR13: 121.1877578 | DS13: 607020 | DT13: 607200 | DU13: 611915 | DV13: 2058 | DW13: 315 | DX13: 258 | DY13: 11957 | DZ13: 195.0086975 | EA13: 2274.868605 | EB13: 183.9155128 | EC13: 186.6729333 | ED13: 172.4057143 | EE13: 205 | EF13: 120.86 | EG13: 121.19 | EH13: 613477 | EI13: 611915
A14: 13 | B14: [費 用]
A15: 14 | B15: 全 算 入 生 産 費 | C15: 支 払 利 子 ・ 支 払 地 代 算 入 生 産 費 | D15: 副 産 物 価 格 差 引 生 産 費 | E15: 種苗費 | H15: 1586 | I15: 1359 | J15: 1254 | K15: 1115 | L15: 1630 | M15: 1566 | N15: 2056 | O15: 10950 | P15: 48000 | Q15: 5000 | R15: 25380 | S15: 24000 | T15: 16915 | U15: 13200 | V15: 12200 | W15: 25000 | X15: 16684.5 | Y15: 204000 | Z15: 52175 | AA15: 63572 | AB15: 70265 | AC15: 204000 | AD15: 135000 | AE15: 126000 | AF15: 180000 | AG15: 157500 | AH15: 151200 | AI15: 170640 | AJ15: 28745 | AK15: 28270 | AL15: 41500 | AM15: 35200 | AN15: 53950 | AO15: 78000 | AP15: 78000 | AQ15: 733.3333333 | AR15: 733.3333333 | AS15: 14250 | AT15: 14250 | AU15: 29600 | AV15: 4667 | AW15: 10831.7 | AX15: 10494 | AY15: 3030 | AZ15: 8900 | BA15: 21000 | BB15: 49650 | BC15: 130000 | BD15: 99000 | BE15: 99000 | BF15: 43200 | BG15: 12045 | BH15: 6000 | BI15: 20000 | BJ15: 7632 | BK15: 180000 | BL15: 40000 | BM15: 58500 | BN15: 900000 | BO15: 940000 | BP15: 162000 | BQ15: 235200 | BR15: 268800 | BS15: 33600 | BT15: 1026000 | BU15: 608000 | BV15: 126000 | BW15: 126000 | BX15: 176256 | BY15: 8000 | BZ15: 25000 | CA15: 33000 | CB15: 1400000 | CC15: 300000 | CD15: 302400 | CE15: 0 | CF15: 0 | CG15: 0 | CH15: 0 | CI15: 0 | CJ15: 0 | CK15: 0 | CL15: 0 | CM15: 0 | CN15: 0 | CO15: 0 | CP15: 0 | CQ15: 0 | CR15: 0 | CS15: 0 | CT15: 0 | CU15: 0 | CV15: 0 | CW15: 0 | CX15: 0 | CY15: 0 | CZ15: 0 | DA15: 0 | DB15: 0 | DC15: 0 | DD15: 0 | DE15: 0 | DF15: 0 | DG15: 0 | DH15: 0 | DI15: 0 | DJ15: 0 | DK15: 0 | DL15: 0 | DM15: 2345 | DN15: 1200 | DO15: 0 | DP15: 0 | DQ15: 5625 | DR15: 5850 | DS15: 0 | DT15: 0 | DU15: 0 | DV15: 0 | DW15: 0 | DX15: 0 | DY15: 0 | DZ15: 0 | EA15: 0 | EB15: 1496 | EC15: 0 | ED15: 0 | EE15: 1586 | EF15: 5625 | EG15: 5850 | EH15: 0 | EI15: 0
A16: 15 | E16: 肥料費 | H16: 8485 | I16: 9658 | J16: 7124 | K16: 12289 | L16: 8243 | M16: 8246 | N16: 1970 | O16: 13204 | P16: 23744 | Q16: 26330 | R16: 15868 | S16: 17832 | T16: 9690 | U16: 15155 | V16: 30769 | W16: 45011 | X16: 68012 | Y16: 94787 | Z16: 48361 | AA16: 114879 | AB16: 114447 | AC16: 104344 | AD16: 158297 | AE16: 95290 | AF16: 80633 | AG16: 36867 | AH16: 67740 | AI16: 79577 | AJ16: 36527 | AK16: 30975 | AL16: 30593 | AM16: 25753 | AN16: 17609 | AO16: 32910 | AP16: 31079 | AQ16: 74037 | AR16: 68991 | AS16: 79400 | AT16: 33850 | AU16: 40849 | AV16: 71870 | AW16: 26388 | AX16: 28756 | AY16: 38472 | AZ16: 77318 | BA16: 34367 | BB16: 155914 | BC16: 42720 | BD16: 57842 | BE16: 41050 | BF16: 20498 | BG16: 26289 | BH16: 48435 | BI16: 28077 | BJ16: 26002 | BK16: 40437 | BL16: 33637 | BM16: 23517 | BN16: 111858 | BO16: 170525 | BP16: 465686 | BQ16: 24866 | BR16: 16286 | BS16: 54754 | BT16: 48080 | BU16: 48080 | BV16: 29077 | BW16: 47592 | BX16: 32872 | BY16: 49144 | BZ16: 33637 | CA16: 13508 | CB16: 25300 | CC16: 120378.8 | CD16: 50089.2 | CE16: 30516 | CF16: 34522 | CG16: 34522 | CH16: 42159 | CI16: 42159 | CJ16: 55909 | CK16: 60914 | CL16: 60914 | CM16: 42916 | CN16: 42904 | CO16: 47254 | CP16: 42254 | CQ16: 42254 | CR16: 42254 | CS16: 25158 | CT16: 29516 | CU16: 57296 | CV16: 57296 | CW16: 38555 | CX16: 42904 | CY16: 40730 | CZ16: 38555 | DA16: 34783 | DB16: 34783 | DC16: 34783 | DD16: 17377 | DE16: 32296 | DF16: 18844 | DG16: 18844 | DH16: 11616 | DI16: 30599 | DJ16: 30599 | DK16: 64655 | DL16: 35675 | DM16: 41409 | DN16: 44542 | DO16: 44018 | DP16: 0 | DQ16: 4375 | DR16: 4420 | DS16: 0 | DT16: 0 | DU16: 0 | DV16: 0 | DW16: 0 | DX16: 0 | DY16: 0 | DZ16: 0 | EA16: 0 | EB16: 9657.5 | EC16: 0 | ED16: 0 | EE16: 8485 | EF16: 4375 | EG16: 4420 | EH16: 0 | EI16: 0
A17: 16 | E17: 素畜費・種付費 | H17: 0 | I17: 0 | J17: 0 | K17: 0 | L17: 0 | M17: 0 | N17: 0 | O17: 0 | P17: 0 | Q17: 0 | R17: 0 | S17: 0 | T17: 0 | U17: 0 | V17: 0 | W17: 0 | X17: 0 | Y17: 0 | Z17: 0 | AA17: 0 | AB17: 0 | AC17: 0 | AD17: 0 | AE17: 0 | AF17: 0 | AG17: 0 | AH17: 0 | AI17: 0 | AJ17: 0 | AK17: 0 | AL17: 0 | AM17: 0 | AN17: 0 | AO17: 0 | AP17: 0 | AQ17: 0 | AR17: 0 | AS17: 0 | AT17: 0 | AU17: 0 | AV17: 0 | AW17: 0 | AX17: 0 | AY17: 0 | AZ17: 0 | BA17: 0 | BB17: 0 | BC17: 0 | BD17: 0 | BE17: 0 | BF17: 0 | BG17: 0 | BH17: 0 | BI17: 0 | BJ17: 0 | BK17: 0 | BL17: 0 | BM17: 0 | BN17: 0 | BO17: 0 | BP17: 0 | BQ17: 0 | BR17: 0 | BS17: 0 | BT17: 0 | BU17: 0 | BV17: 0 | BW17: 0 | BX17: 0 | BY17: 0 | BZ17: 0 | CA17: 0 | CB17: 0 | CC17: 0 | CD17: 0 | CE17: 0 | CF17: 0 | CG17: 0 | CH17: 0 | CI17: 0 | CJ17: 0 | CK17: 0 | CL17: 0 | CM17: 0 | CN17: 0 | CO17: 0 | CP17: 0 | CQ17: 0 | CR17: 0 | CS17: 0 | CT17: 0 | CU17: 0 | CV17: 0 | CW17: 0 | CX17: 0 | CY17: 0 | CZ17: 0 | DA17: 0 | DB17: 0 | DC17: 0 | DD17: 0 | DE17: 0 | DF17: 0 | DG17: 0 | DH17: 0 | DI17: 0 | DJ17: 0 | DK17: 0 | DL17: 0 | DM17: 0 | DN17: 0 | DO17: 0 | DP17: 13600 | DQ17: 13600 | DR17: 13600 | DS17: 8640 | DT17: 18240 | DU17: 18240 | DV17: 19000 | DW17: 433333 | DX17: 134125 | DY17: 2200 | DZ17: 614864 | EA17: 268367.3469 | EB17: 0 | EC17: 597600 | ED17: 70000 | EE17: 0 | EF17: 13600 | EG17: 13600 | EH17: 18240 | EI17: 18240
A18: 17 | E18: 飼料費 | H18: 0 | I18: 0 | J18: 0 | K18: 0 | L18: 0 | M18: 0 | N18: 0 | O18: 0 | P18: 0 | Q18: 0 | R18: 0 | S18: 0 | T18: 0 | U18: 0 | V18: 0 | W18: 0 | X18: 0 | Y18: 0 | Z18: 0 | AA18: 0 | AB18: 0 | AC18: 0 | AD18: 0 | AE18: 0 | AF18: 0 | AG18: 0 | AH18: 0 | AI18: 0 | AJ18: 0 | AK18: 0 | AL18: 0 | AM18: 0 | AN18: 0 | AO18: 0 | AP18: 0 | AQ18: 0 | AR18: 0 | AS18: 0 | AT18: 0 | AU18: 0 | AV18: 0 | AW18: 0 | AX18: 0 | AY18: 0 | AZ18: 0 | BA18: 0 | BB18: 0 | BC18: 0 | BD18: 0 | BE18: 0 | BF18: 0 | BG18: 0 | BH18: 0 | BI18: 0 | BJ18: 0 | BK18: 0 | BL18: 0 | BM18: 0 | BN18: 0 | BO18: 0 | BP18: 0 | BQ18: 0 | BR18: 0 | BS18: 0 | BT18: 0 | BU18: 0 | BV18: 0 | BW18: 0 | BX18: 0 | BY18: 0 | BZ18: 0 | CA18: 0 | CB18: 0 | CC18: 0 | CD18: 0 | CE18: 0 | CF18: 0 | CG18: 0 | CH18: 0 | CI18: 0 | CJ18: 0 | CK18: 0 | CL18: 0 | CM18: 0 | CN18: 0 | CO18: 0 | CP18: 0 | CQ18: 0 | CR18: 0 | CS18: 0 | CT18: 0 | CU18: 0 | CV18: 0 | CW18: 0 | CX18: 0 | CY18: 0 | CZ18: 0 | DA18: 0 | DB18: 0 | DC18: 0 | DD18: 0 | DE18: 0 | DF18: 0 | DG18: 0 | DH18: 0 | DI18: 0 | DJ18: 0 | DK18: 0 | DL18: 0 | DM18: 0 | DN18: 0 | DO18: 0 | DP18: 560140 | DQ18: 501578 | DR18: 534318 | DS18: 104299 | DT18: 104653 | DU18: 110238 | DV18: 263513 | DW18: 160218.96 | DX18: 144093 | DY18: 511283 | DZ18: 2252488 | EA18: 924836 | EB18: 0 | EC18: 2019472 | ED18: 300549.48 | EE18: 0 | EF18: 539356 | EG18: 534318 | EH18: 105465 | EI18: 105238
A19: 18 | E19: 農薬・衛生費 | H19: 8436 | I19: 8806 | J19: 15835 | K19: 4357 | L19: 5364 | M19: 6979 | N19: 4243 | O19: 47828 | P19: 15959 | Q19: 17671 | R19: 9556 | S19: 3126 | T19: 1285 | U19: 21075 | V19: 4840 | W19: 12878 | X19: 9087 | Y19: 84847 | Z19: 66715 | AA19: 101499 | AB19: 97814 | AC19: 120078 | AD19: 210000 | AE19: 89180 | AF19: 17952 | AG19: 23623.65 | AH19: 31414 | AI19: 128667 | AJ19: 24655 | AK19: 18841 | AL19: 30637 | AM19: 33634 | AN19: 32518 | AO19: 33795 | AP19: 33573 | AQ19: 88354 | AR19: 88527 | AS19: 30562 | AT19: 18614 | AU19: 8598 | AV19: 25301 | AW19: 27758 | AX19: 12368 | AY19: 13267 | AZ19: 39630 | BA19: 7058 | BB19: 111621 | BC19: 70800 | BD19: 1979 | BE19: 6512 | BF19: 7287 | BG19: 12058 | BH19: 11541 | BI19: 25301 | BJ19: 12715 | BK19: 82829 | BL19: 122781 | BM19: 43700 | BN19: 84840 | BO19: 84840 | BP19: 135153 | BQ19: 50625 | BR19: 40454 | BS19: 58059 | BT19: 44217 | BU19: 62533 | BV19: 55833 | BW19: 63382 | BX19: 34470 | BY19: 65815 | BZ19: 28107 | CA19: 49674 | CB19: 26849 | CC19: 49347.22 | CD19: 25083.4 | CE19: 53159 | CF19: 50418 | CG19: 50418 | CH19: 64791.254 | CI19: 64909 | CJ19: 43983 | CK19: 43983 | CL19: 43983 | CM19: 43223 | CN19: 43298.211 | CO19: 43298.211 | CP19: 42593 | CQ19: 37923 | CR19: 41263 | CS19: 45308 | CT19: 35523 | CU19: 43870 | CV19: 43870 | CW19: 43870 | CX19: 41612 | CY19: 43870 | CZ19: 43870 | DA19: 54622 | DB19: 54622 | DC19: 54622 | DD19: 33179 | DE19: 37447 | DF19: 32314 | DG19: 32314 | DH19: 9059 | DI19: 63019 | DJ19: 63019 | DK19: 21749 | DL19: 31951 | DM19: 17280 | DN19: 17029 | DO19: 20737 | DP19: 20000 | DQ19: 16625 | DR19: 22730 | DS19: 17000 | DT19: 17000 | DU19: 16170 | DV19: 23000 | DW19: 5224 | DX19: 2675 | DY19: 43333 | DZ19: 36000 | EA19: 60594 | EB19: 7862.6 | EC19: 36000 | ED19: 10000 | EE19: 8436 | EF19: 16625 | EG19: 22730 | EH19: 17180 | EI19: 16170
A20: 19 | E20: 動力光熱費 | H20: 3221 | I20: 3221 | J20: 2223 | K20: 2425 | L20: 2093 | M20: 3221 | N20: 1765 | O20: 6925 | P20: 4400 | Q20: 4075 | R20: 8475 | S20: 8475 | T20: 6500 | U20: 8625 | V20: 11535 | W20: 7248 | X20: 3375 | Y20: 16300 | Z20: 275813 | AA20: 473948 | AB20: 499448 | AC20: 16300 | AD20: 749750 | AE20: 13700 | AF20: 689240 | AG20: 8550 | AH20: 16300 | AI20: 570450 | AJ20: 199713 | AK20: 185550 | AL20: 4150 | AM20: 23300 | AN20: 70763 | AO20: 219288 | AP20: 344950 | AQ20: 374000 | AR20: 374000 | AS20: 10600 | AT20: 9050 | AU20: 4400 | AV20: 13670 | AW20: 4150 | AX20: 4800 | AY20: 4150 | AZ20: 19700 | BA20: 4400 | BB20: 13700 | BC20: 4400 | BD20: 12925 | BE20: 12925 | BF20: 5050 | BG20: 13525 | BH20: 7500 | BI20: 34900 | BJ20: 4800 | BK20: 344793 | BL20: 76500 | BM20: 343093 | BN20: 911000 | BO20: 911000 | BP20: 2094400 | BQ20: 213100 | BR20: 103375 | BS20: 385600 | BT20: 994500 | BU20: 279950 | BV20: 398022 | BW20: 1300 | BX20: 61800 | BY20: 9050 | BZ20: 22200 | CA20: 197621 | CB20: 470350 | CC20: 864452 | CD20: 7750 | CE20: 7250 | CF20: 7250 | CG20: 7250 | CH20: 1764750 | CI20: 1339750 | CJ20: 29625 | CK20: 42625 | CL20: 736450 | CM20: 7250 | CN20: 7250 | CO20: 7250 | CP20: 7250 | CQ20: 7250 | CR20: 7250 | CS20: 180700 | CT20: 3500 | CU20: 7250 | CV20: 7250 | CW20: 7250 | CX20: 9450 | CY20: 7250 | CZ20: 7250 | DA20: 7250 | DB20: 7250 | DC20: 180700 | DD20: 181850 | DE20: 8400 | DF20: 19500 | DG20: 57500 | DH20: 1555 | DI20: 7250 | DJ20: 941250 | DK20: 1550 | DL20: 1704400 | DM20: 53947 | DN20: 57400 | DO20: 24845 | DP20: 28300 | DQ20: 29039 | DR20: 32069 | DS20: 1900 | DT20: 7228 | DU20: 5734 | DV20: 22814 | DW20: 8890 | DX20: 3836 | DY20: 36000 | DZ20: 57000 | EA20: 100000 | EB20: 3221 | EC20: 57000 | ED20: 15000 | EE20: 3190 | EF20: 32847 | EG20: 32241 | EH20: 7244 | EI20: 5734
A21: 20 | E21: 諸材料費・敷料費 | H21: 2569 | I21: 2876 | J21: 1814 | K21: 1460 | L21: 120 | M21: 120 | N21: 0 | O21: 30724.33333 | P21: 13464 | Q21: 13847 | R21: 0 | S21: 33912 | T21: 14640 | U21: 40764.5 | V21: 36085 | W21: 9567 | X21: 89915 | Y21: 141625.4667 | Z21: 312923 | AA21: 379779 | AB21: 293942.6667 | AC21: 143933 | AD21: 214046.7333 | AE21: 21286 | AF21: 109578 | AG21: 132492 | AH21: 168960 | AI21: 150184 | AJ21: 160527 | AK21: 158959 | AL21: 214989 | AM21: 226338 | AN21: 154179 | AO21: 134012 | AP21: 125852 | AQ21: 209484 | AR21: 203484 | AS21: 81159 | AT21: 194868 | AU21: 62459 | AV21: 140147.3333 | AW21: 16758 | AX21: 1396 | AY21: 32978 | AZ21: 88296 | BA21: 3550 | BB21: 74683 | BC21: 2592.857143 | BD21: 34874 | BE21: 525 | BF21: 133024 | BG21: 0 | BH21: 256186 | BI21: 198686.6667 | BJ21: 1550 | BK21: 149091 | BL21: 90498 | BM21: 95222 | BN21: 269210 | BO21: 270772 | BP21: 159261.5 | BQ21: 263122 | BR21: 207629 | BS21: 125920 | BT21: 213292 | BU21: 184870 | BV21: 160902 | BW21: 249767 | BX21: 95852 | BY21: 64705 | BZ21: 130076 | CA21: 197284 | CB21: 70734 | CC21: 498765.8235 | CD21: 299979.6471 | CE21: 39740 | CF21: 39740 | CG21: 39740 | CH21: 114965 | CI21: 114965 | CJ21: 21000 | CK21: 97013 | CL21: 113645 | CM21: 5000 | CN21: 30700 | CO21: 91386.66667 | CP21: 5000 | CQ21: 5000 | CR21: 5000 | CS21: 132680 | CT21: 1900 | CU21: 16375 | CV21: 52388.33333 | CW21: 16375 | CX21: 38575 | CY21: 3575 | CZ21: 16375 | DA21: 15075 | DB21: 50075 | DC21: 143680 | DD21: 130500 | DE21: 25350 | DF21: 66300 | DG21: 99633.33333 | DH21: 3213 | DI21: 107913.3333 | DJ21: 149580 | DK21: 13500 | DL21: 170180 | DM21: 22377 | DN21: 104228 | DO21: 24262 | DP21: 13400 | DQ21: 14400 | DR21: 14440 | DS21: 16904.55264 | DT21: 5200 | DU21: 5200 | DV21: 17940 | DW21: 8489 | DX21: 4280 | DY21: 3000 | DZ21: 11000 | EA21: 33000 | EB21: 2544.518 | EC21: 11000 | ED21: 3000 | EE21: 2569 | EF21: 14400 | EG21: 14440 | EH21: 5200 | EI21: 5200
A22: 21 | E22: 小農具費・作業衣料費 | H22: 177 | I22: 224 | J22: 219 | K22: 567 | L22: 14.76958333 | M22: 189.0506667 | N22: 5761.190476 | O22: 2103.24 | P22: 1707.181429 | Q22: 2467.916667 | R22: 1066.4 | S22: 1392.007692 | T22: 550 | U22: 709 | V22: 1275.878049 | W22: 9090 | X22: 9042.6 | Y22: 20333.38889 | Z22: 2990 | AA22: 6629.5 | AB22: 20218.6 | AC22: 20333.38889 | AD22: 18762.5 | AE22: 34772 | AF22: 8555 | AG22: 13123 | AH22: 17803.125 | AI22: 13272 | AJ22: 2659.02 | AK22: 2659.02 | AL22: 2914 | AM22: 1871 | AN22: 3130 | AO22: 2730 | AP22: 2235 | AQ22: 6120 | AR22: 6094 | AS22: 3231 | AT22: 3553 | AU22: 3258 | AV22: 3036.7 | AW22: 520.78 | AX22: 12000 | AY22: 4868 | AZ22: 3218 | BA22: 1233.74359 | BB22: 8854 | BC22: 1309.52381 | BD22: 3175 | BE22: 1690.4 | BF22: 3897 | BG22: 2635.164103 | BH22: 1875 | BI22: 19220 | BJ22: 12000 | BK22: 2012.802909 | BL22: 3538 | BM22: 3682 | BN22: 4720 | BO22: 4067 | BP22: 7420.095652 | BQ22: 4018 | BR22: 4568 | BS22: 5686.183333 | BT22: 5498 | BU22: 2424 | BV22: 5670 | BW22: 7416 | BX22: 3397 | BY22: 2452 | BZ22: 4223.77619 | CA22: 2540 | CB22: 15398 | CC22: 10421.86716 | CD22: 3713.538462 | CE22: 3723 | CF22: 2706 | CG22: 3709 | CH22: 4139 | CI22: 4139 | CJ22: 7446 | CK22: 7446 | CL22: 7446 | CM22: 4390 | CN22: 5967 | CO22: 5967 | CP22: 6941 | CQ22: 7046 | CR22: 7046 | CS22: 12015 | CT22: 26885 | CU22: 3899 | CV22: 3794 | CW22: 3870 | CX22: 3794 | CY22: 3794 | CZ22: 5294 | DA22: 5887 | DB22: 5887 | DC22: 17862 | DD22: 2832 | DE22: 5757 | DF22: 4456 | DG22: 4456 | DH22: 1997 | DI22: 2887 | DJ22: 2887 | DK22: 5295 | DL22: 3180 | DM22: 1063.333333 | DN22: 293 | DO22: 2755 | DP22: 1200 | DQ22: 1200 | DR22: 1200 | DS22: 1880 | DT22: 1880 | DU22: 1900 | DV22: 2000 | DW22: 200 | DX22: 200 | DY22: 1000 | DZ22: 5500 | EA22: 500 | EB22: 161.3133333 | EC22: 5500 | ED22: 500 | EE22: 177 | EF22: 1200 | EG22: 1200 | EH22: 1900 | EI22: 1900
A23: 22 | E23: 賃借料・料金 | H23: 0 | I23: 0 | J23: 0 | K23: 0 | L23: 0 | M23: 0 | N23: 6000 | O23: 0 | P23: 0 | Q23: 0 | R23: 0 | S23: 0 | T23: 0 | U23: 0 | V23: 0 | W23: 8000 | X23: 0 | Y23: 750 | Z23: 1500 | AA23: 1500 | AB23: 1500 | AC23: 750 | AD23: 1500 | AE23: 0 | AF23: 0 | AG23: 0 | AH23: 1500 | AI23: 1500 | AJ23: 6000 | AK23: 6000 | AL23: 6000 | AM23: 6000 | AN23: 6000 | AO23: 6000 | AP23: 6000 | AQ23: 8000 | AR23: 8000 | AS23: 0 | AT23: 1500 | AU23: 0 | AV23: 1500 | AW23: 0 | AX23: 0 | AY23: 0 | AZ23: 0 | BA23: 0 | BB23: 0 | BC23: 0 | BD23: 1500 | BE23: 0 | BF23: 0 | BG23: 0 | BH23: 0 | BI23: 1500 | BJ23: 0 | BK23: 0 | BL23: 0 | BM23: 0 | BN23: 0 | BO23: 0 | BP23: 0 | BQ23: 0 | BR23: 0 | BS23: 0 | BT23: 0 | BU23: 0 | BV23: 0 | BW23: 0 | BX23: 0 | BY23: 0 | BZ23: 0 | CA23: 0 | CB23: 0 | CC23: 0 | CD23: 0 | CE23: 0 | CF23: 0 | CG23: 0 | CH23: 500 | CI23: 500 | CJ23: 0 | CK23: 500 | CL23: 500 | CM23: 0 | CN23: 0 | CO23: 0 | CP23: 0 | CQ23: 0 | CR23: 0 | CS23: 750 | CT23: 0 | CU23: 0 | CV23: 500 | CW23: 0 | CX23: 0 | CY23: 0 | CZ23: 0 | DA23: 0 | DB23: 500 | DC23: 500 | DD23: 0 | DE23: 0 | DF23: 500 | DG23: 500 | DH23: 0 | DI23: 500 | DJ23: 500 | DK23: 0 | DL23: 750 | DM23: 0 | DN23: 0 | DO23: 38283 | DP23: 45145.6 | DQ23: 69432 | DR23: 70082 | DS23: 16750 | DT23: 57368.64757 | DU23: 53470 | DV23: 92412.32627 | DW23: 14925 | DX23: 13825 | DY23: 0 | DZ23: 19867 | EA23: 0 | EB23: 0 | EC23: 22000 | ED23: 15000 | EE23: 0 | EF23: 69432 | EG23: 70082 | EH23: 57369 | EI23: 53470
A24: 23 | E24: 物件税・租税公課 | H24: 4100 | I24: 4100 | J24: 4100 | K24: 4100 | L24: 791 | M24: 791 | N24: 273 | O24: 5100 | P24: 5100 | Q24: 5100 | R24: 5100 | S24: 5100 | T24: 5100 | U24: 5100 | V24: 3890.243902 | W24: 5100 | X24: 5100 | Y24: 11600 | Z24: 7250 | AA24: 14500 | AB24: 14500 | AC24: 11600 | AD24: 40000 | AE24: 5100 | AF24: 14500 | AG24: 14500 | AH24: 11600 | AI24: 14500 | AJ24: 7250 | AK24: 7250 | AL24: 7250 | AM24: 7250 | AN24: 7250 | AO24: 7250 | AP24: 7250 | AQ24: 14500 | AR24: 14500 | AS24: 7250 | AT24: 7250 | AU24: 7250 | AV24: 14500 | AW24: 5100 | AX24: 5100 | AY24: 5100 | AZ24: 14500 | BA24: 5100 | BB24: 3000 | BC24: 5100 | BD24: 14500 | BE24: 5100 | BF24: 7250 | BG24: 14500 | BH24: 14500 | BI24: 14500 | BJ24: 5100 | BK24: 5212 | BL24: 6515 | BM24: 4343.333333 | BN24: 13030 | BO24: 13030 | BP24: 38667 | BQ24: 13030 | BR24: 6515 | BS24: 13030 | BT24: 13030 | BU24: 13030 | BV24: 13030 | BW24: 13030 | BX24: 6515 | BY24: 13030 | BZ24: 6515 | CA24: 13030 | CB24: 4343.333333 | CC24: 6515 | CD24: 6515 | CE24: 10100 | CF24: 10100 | CG24: 10100 | CH24: 14500 | CI24: 14500 | CJ24: 10100 | CK24: 14500 | CL24: 14500 | CM24: 10100 | CN24: 10100 | CO24: 14500 | CP24: 10100 | CQ24: 10100 | CR24: 10100 | CS24: 10100 | CT24: 10100 | CU24: 10100 | CV24: 10100 | CW24: 10100 | CX24: 10100 | CY24: 10100 | CZ24: 10100 | DA24: 10100 | DB24: 10100 | DC24: 14500 | DD24: 10100 | DE24: 10100 | DF24: 14500 | DG24: 14500 | DH24: 2500 | DI24: 14500 | DJ24: 14500 | DK24: 10100 | DL24: 14500 | DM24: 6000 | DN24: 15700 | DO24: 10134 | DP24: 9557 | DQ24: 9557 | DR24: 9557 | DS24: 7000 | DT24: 7000 | DU24: 7000 | DV24: 7360 | DW24: 2938.5 | DX24: 2097 | DY24: 3500 | DZ24: 22000 | EA24: 2000 | EB24: 4100 | EC24: 26000 | ED24: 2000 | EE24: 4100 | EF24: 9557 | EG24: 9557 | EH24: 7000 | EI24: 7000
A25: 24 | E25: 保険共済費 | H25: 825 | I25: 825 | J25: 1300 | K25: 1300 | L25: 1571 | M25: 1571 | N25: 1571 | O25: 0 | P25: 0 | Q25: 0 | R25: 0 | S25: 0 | T25: 0 | U25: 0 | V25: 0 | W25: 0 | X25: 0 | Y25: 16100 | Z25: 8050 | AA25: 22300 | AB25: 22300 | AC25: 16100 | AD25: 21000 | AE25: 0 | AF25: 18400 | AG25: 16100 | AH25: 10100 | AI25: 16100 | AJ25: 18400 | AK25: 11810 | AL25: 5050 | AM25: 10100 | AN25: 8050 | AO25: 11000 | AP25: 8050 | AQ25: 22300 | AR25: 22300 | AS25: 0 | AT25: 0 | AU25: 0 | AV25: 10100 | AW25: 0 | AX25: 0 | AY25: 0 | AZ25: 10100 | BA25: 0 | BB25: 7000 | BC25: 0 | BD25: 16100 | BE25: 0 | BF25: 8050 | BG25: 0 | BH25: 14000 | BI25: 10100 | BJ25: 0 | BK25: 16100 | BL25: 16100 | BM25: 16100 | BN25: 16100 | BO25: 16100 | BP25: 28402 | BQ25: 16100 | BR25: 8050 | BS25: 16100 | BT25: 16100 | BU25: 16100 | BV25: 40674 | BW25: 16100 | BX25: 16100 | BY25: 10100 | BZ25: 16100 | CA25: 16100 | CB25: 5366.666667 | CC25: 8050 | CD25: 16100 | CE25: 23846 | CF25: 29002 | CG25: 27475 | CH25: 16100 | CI25: 16100 | CJ25: 54264 | CK25: 84672 | CL25: 167580 | CM25: 9300 | CN25: 0 | CO25: 16100 | CP25: 24600 | CQ25: 24600 | CR25: 24600 | CS25: 16100 | CT25: 0 | CU25: 15100 | CV25: 15100 | CW25: 15100 | CX25: 15100 | CY25: 15100 | CZ25: 15100 | DA25: 0 | DB25: 0 | DC25: 16000 | DD25: 16100 | DE25: 0 | DF25: 10100 | DG25: 16100 | DH25: 2100 | DI25: 10100 | DJ25: 16100 | DK25: 0 | DL25: 16100 | DM25: 0 | DN25: 8300 | DO25: 2500 | DP25: 14365 | DQ25: 14365 | DR25: 14365 | DS25: 16508 | DT25: 16508 | DU25: 16508 | DV25: 13000 | DW25: 1500 | DX25: 1500 | DY25: 19046 | DZ25: 69418 | EA25: 9685 | EB25: 0 | EC25: 69418 | ED25: 2683.4775 | EE25: 825 | EF25: 14365 | EG25: 14365 | EH25: 16508 | EI25: 16508
A26: 25 | E26: 土地改良水利費 | H26: 3000 | I26: 3000 | J26: 3000 | K26: 3000 | L26: 1500 | M26: 0 | N26: 1500 | O26: 0 | P26: 0 | Q26: 3000 | R26: 0 | S26: 0 | T26: 0 | U26: 0 | V26: 2414.634146 | W26: 3000 | X26: 2000 | Y26: 3000 | Z26: 1500 | AA26: 0 | AB26: 3000 | AC26: 3000 | AD26: 3000 | AE26: 3000 | AF26: 3000 | AG26: 3000 | AH26: 3000 | AI26: 3000 | AJ26: 1500 | AK26: 1500 | AL26: 0 | AM26: 0 | AN26: 1500 | AO26: 1500 | AP26: 1500 | AQ26: 3000 | AR26: 3000 | AS26: 1500 | AT26: 1500 | AU26: 3000 | AV26: 3000 | AW26: 0 | AX26: 2000 | AY26: 1500 | AZ26: 3000 | BA26: 1714.285714 | BB26: 3000 | BC26: 0 | BD26: 3000 | BE26: 3225 | BF26: 1500 | BG26: 0 | BH26: 3000 | BI26: 3000 | BJ26: 2000 | BK26: 1680 | BL26: 1500 | BM26: 1000 | BN26: 3000 | BO26: 3000 | BP26: 3000 | BQ26: 3000 | BR26: 1500 | BS26: 3000 | BT26: 3000 | BU26: 3000 | BV26: 1500 | BW26: 3000 | BX26: 1500 | BY26: 3000 | BZ26: 2500 | CA26: 3000 | CB26: 1000 | CC26: 1500 | CE26: 0 | CF26: 0 | CG26: 0 | CH26: 0 | CI26: 0 | CJ26: 0 | CK26: 0 | CL26: 0 | CM26: 0 | CN26: 0 | CO26: 0 | CP26: 0 | CQ26: 0 | CR26: 0 | CS26: 0 | CT26: 0 | CU26: 0 | CV26: 0 | CW26: 0 | CX26: 0 | CY26: 0 | CZ26: 0 | DA26: 0 | DB26: 0 | DC26: 0 | DD26: 0 | DE26: 0 | DF26: 0 | DG26: 0 | DH26: 0 | DI26: 0 | DJ26: 0 | DK26: 0 | DL26: 3000 | DM26: 0 | DN26: 5109 | DO26: 1732.941176 | DP26: 600 | DQ26: 375 | DR26: 150 | DS26: 0 | DT26: 0 | DU26: 0 | DV26: 0 | DW26: 0 | DX26: 0 | DY26: 0 | DZ26: 0 | EA26: 0 | EB26: 3000 | EC26: 0 | ED26: 0 | EE26: 3000 | EF26: 375 | EG26: 150 | EH26: 0 | EI26: 0
A27: 26 | E27: 修繕費 | H27: 3173 | I27: 4633 | J27: 3328 | K27: 5530 | L27: 2415 | M27: 2732.939203 | N27: 2106 | O27: 11175 | P27: 11303.89916 | Q27: 4912.166667 | R27: 8095.708333 | S27: 9122.472 | T27: 10654 | U27: 8690.892857 | V27: 19041.55211 | W27: 10916 | X27: 8007 | Y27: 64515 | Z27: 49443 | AA27: 99600 | AB27: 96683 | AC27: 113468 | AD27: 92800 | AE27: 14742.4 | AF27: 74350 | AG27: 40377 | AH27: 57440 | AI27: 43500 | AJ27: 38732 | AK27: 42847 | AL27: 32440 | AM27: 32213 | AN27: 44100 | AO27: 46963 | AP27: 39623 | AQ27: 96433 | AR27: 174133 | AS27: 21660 | AT27: 21660 | AU27: 15474 | AV27: 52848 | AW27: 8532 | AX27: 16170 | AY27: 12987 | AZ27: 54737.37705 | BA27: 6325.186813 | BB27: 174766 | BC27: 17089.71429 | BD27: 47500 | BE27: 7830 | BF27: 12125 | BG27: 12861.74725 | BH27: 34242 | BI27: 42975 | BJ27: 16170 | BK27: 57264 | BL27: 60849 | BM27: 38894 | BN27: 116001 | BO27: 120055 | BP27: 267348 | BQ27: 56663 | BR27: 35786 | BS27: 95380 | BT27: 71763 | BU27: 55173 | BV27: 77910 | BW27: 90861 | BX27: 22868 | BY27: 18357 | BZ27: 68930 | CA27: 40717 | CB27: 14437 | CC27: 150028 | CD27: 43262 | CE27: 15372 | CF27: 15372 | CG27: 17650 | CH27: 78231 | CI27: 78231 | CJ27: 12932 | CK27: 42932 | CL27: 84683 | CM27: 14090 | CN27: 7788.888889 | CO27: 71836.88889 | CP27: 11785 | CQ27: 20358.33333 | CR27: 11785 | CS27: 86664 | CT27: 7875 | CU27: 28458 | CV27: 33911.66667 | CW27: 28457.66667 | CX27: 35095.66667 | CY27: 25507.66667 | CZ27: 28457.66667 | DA27: 12931.83333 | DB27: 20232 | DC27: 95470 | DD27: 92570 | DE27: 18426 | DF27: 16826.5 | DG27: 75327 | DH27: 1655 | DI27: 42870 | DJ27: 84190 | DK27: 5995 | DL27: 85189 | DM27: 24815 | DN27: 52245 | DO27: 21296 | DP27: 20015 | DQ27: 34375 | DR27: 37299 | DS27: 18055 | DT27: 15251 | DU27: 15769 | DV27: 24387 | DW27: 9761 | DX27: 9008 | DY27: 15200 | DZ27: 65805 | EA27: 58095 | EB27: 4499 | EC27: 60330 | ED27: 5142.935262 | EE27: 3069 | EF27: 37057 | EG27: 37629 | EH27: 15439 | EI27: 15769
A28: 27 | E28: 減価償却費 | H28: 10448 | I28: 16385.59184 | J28: 10799.84091 | K28: 17748.33333 | L28: 12309 | M28: 9668.165936 | N28: 6937.714286 | O28: 38216.75758 | P28: 41323.51668 | Q28: 16786.31313 | R28: 26509.72222 | S28: 22952.49611 | T28: 36240.09324 | U28: 29131.49351 | V28: 62627.76322 | W28: 39354.34343 | X28: 29515.75758 | Y28: 368267.3814 | Z28: 307693.5455 | AA28: 623058.3939 | AB28: 611263.4949 | AC28: 513941.8636 | AD28: 564167.3182 | AE28: 57253.45455 | AF28: 487719 | AG28: 221359.7693 | AH28: 346960.9086 | AI28: 530227 | AJ28: 202705.2424 | AK28: 276721 | AL28: 180041.6667 | AM28: 178954.5455 | AN28: 277755.303 | AO28: 295432.0909 | AP28: 258728.8312 | AQ28: 609471.5758 | AR28: 1147103 | AS28: 101466.6667 | AT28: 101466.6667 | AU28: 56304.24242 | AV28: 330144.4732 | AW28: 29072.72727 | AX28: 52068.18182 | AY28: 43045.68182 | AZ28: 280542.9707 | BA28: 23951.75491 | BB28: 386564.1818 | BC28: 62075.01025 | BD28: 262150 | BE28: 26219.69697 | BF28: 59213.18182 | BG28: 44585.38129 | BH28: 326306.6364 | BI28: 335276.4141 | BJ28: 52068.18182 | BK28: 344048.6801 | BL28: 380322.1212 | BM28: 220255.3485 | BN28: 721753.329 | BO28: 763035.2626 | BP28: 1346307.765 | BQ28: 465211.785 | BR28: 266071.0248 | BS28: 597671.9899 | BT28: 470453.4242 | BU28: 360913.6263 | BV28: 426934.2424 | BW28: 466176 | BX28: 241034.6823 | BY28: 62370.12121 | BZ28: 396974.7879 | CA28: 311145.6797 | CB28: 271961.3774 | CC28: 667849 | CD28: 233623 | CE28: 112677.8555 | CF28: 113466.4077 | CG28: 116448.87 | CH28: 572686.0909 | CI28: 572685.7576 | CJ28: 92069.94172 | CK28: 297079 | CL28: 471948.6061 | CM28: 102150 | CN28: 70143 | CO28: 491548 | CP28: 109764.3357 | CQ28: 143767.5103 | CR28: 96597.669 | CS28: 569861.0833 | CT28: 71538.38384 | CU28: 157442 | CV28: 180646.8773 | CW28: 162875.404 | CX28: 181080.5195 | CY28: 130624.2222 | CZ28: 157442.404 | DA28: 76630.26382 | DB28: 137646.1472 | DC28: 552884.6087 | DD28: 569444 | DE28: 114175.2857 | DF28: 125434.0606 | DG28: 509818 | DH28: 20197 | DI28: 305201 | DJ28: 610535 | DK28: 49814.44444 | DL28: 659691.1501 | DM28: 159599 | DN28: 149576 | DO28: 67304 | DP28: 193229 | DQ28: 233860 | DR28: 244164 | DS28: 151073.8636 | DT28: 141724 | DU28: 142807 | DV28: 177984 | DW28: 33698.0101 | DX28: 31123.95455 | DY28: 61526 | DZ28: 198084.7701 | EA28: 201602.4108 | EB28: 15812.21212 | EC28: 176619.2529 | ED28: 20438.7047 | EE28: 10132 | EF28: 242119 | EG28: 245164 | EH28: 142292 | EI28: 142806
A29: 28 | E29: ※ | F29: 建物・施設 | H29: 1397 | I29: 3779.591837 | J29: 1352.840909 | K29: 2458.333333 | L29: 1350 | M29: 2692.929293 | N29: 1285.714286 | O29: 10988 | P29: 6988.235294 | Q29: 785.5555556 | R29: 3000 | S29: 2564.102564 | T29: 3846.153846 | U29: 4500 | V29: 4390.243902 | W29: 7920 | X29: 6940 | Y29: 310333 | Z29: 252239 | AA29: 531619 | AB29: 541314 | AC29: 314193 | AD29: 497548 | AE29: 18041.33333 | AF29: 472578 | AG29: 149891 | AH29: 310144 | AI29: 498333 | AJ29: 143328 | AK29: 254028 | AL29: 152000 | AM29: 151000 | AN29: 240600 | AO29: 250483 | AP29: 245560 | AQ29: 542214 | AR29: 1083164 | AS29: 60800 | AT29: 60800 | AU29: 11880 | AV29: 306151 | AW29: 8400 | AX29: 10000 | AY29: 8000 | AZ29: 162921.0134 | BA29: 3655.384615 | BB29: 302746 | BC29: 20248.17043 | BD29: 209922 | BE29: 4500 | BF29: 42020 | BG29: 5523.809524 | BH29: 291818 | BI29: 307635 | BJ29: 10000 | BK29: 288914 | BL29: 346610 | BM29: 181208 | BN29: 623999 | BO29: 672909 | BP29: 1327566 | BQ29: 442719 | BR29: 242414 | BS29: 526523 | BT29: 436211 | BU29: 342151 | BV29: 347010 | BW29: 425476 | BX29: 157217 | BY29: 5408 | BZ29: 289846 | CA29: 281492 | CB29: 192460 | CC29: 396903 | CD29: 159751 | CE29: 42505.12821 | CF29: 43142.16524 | CG29: 52409.47603 | CH29: 509110 | CI29: 509110 | CJ29: 28179.48718 | CK29: 228179 | CL29: 399588 | CM29: 28179 | CN29: 15190 | CO29: 436595 | CP29: 21846.15385 | CQ29: 62671.55067 | CR29: 21846.15385 | CS29: 502459 | CT29: 15000 | CU29: 59640 | CV29: 82844.87734 | CW29: 59640.40404 | CX29: 57193.65079 | CY29: 32822.22222 | CZ29: 59640.40404 | DA29: 27909.52381 | DB29: 81286.14719 | DC29: 446218 | DD29: 443414 | DE29: 72104.28571 | DF29: 65256.06061 | DG29: 452150 | DH29: 2704 | DI29: 247767 | DJ29: 553101 | DK29: 10816.66667 | DL29: 538019 | DM29: 120393 | DN29: 9474 | DO29: 9663 | DP29: 26568 | DQ29: 43376 | DR29: 42802 | DS29: 22076 | DT29: 33561 | DU29: 34906 | DV29: 63993 | DW29: 26897 | DX29: 25991 | DY29: 41897 | DZ29: 91293.10345 | EA29: 155370 | EB29: 3346.212121 | EC29: 84827.58621 | ED29: 18998.49306 | EE29: 1397 | EF29: 44453 | EG29: 42802 | EH29: 33561 | EI29: 34906
A30: 29 | E30: ※ | F30: 農機具 | H30: 9051 | I30: 12606 | J30: 9447 | K30: 15290 | L30: 10959 | M30: 6975.236643 | N30: 5652 | O30: 27228.75758 | P30: 34335.28139 | Q30: 16000.75758 | R30: 23509.72222 | S30: 20388.39355 | T30: 32393.93939 | U30: 24631.49351 | V30: 58237.51932 | W30: 31434.34343 | X30: 22575.75758 | Y30: 57933.38143 | Z30: 55454.54545 | AA30: 91439.39394 | AB30: 69949.49495 | AC30: 199748.8636 | AD30: 66619.31818 | AE30: 39212.12121 | AF30: 15141 | AG30: 71468.76933 | AH30: 36816.90858 | AI30: 31894 | AJ30: 59377.24242 | AK30: 22693 | AL30: 28041.66667 | AM30: 27954.54545 | AN30: 37155.30303 | AO30: 44949.09091 | AP30: 13168.83117 | AQ30: 67257.57576 | AR30: 63939 | AS30: 40666.66667 | AT30: 40666.66667 | AU30: 44424.24242 | AV30: 23993.47319 | AW30: 20672.72727 | AX30: 42068.18182 | AY30: 35045.68182 | AZ30: 117621.9573 | BA30: 20296.3703 | BB30: 83818.18182 | BC30: 41826.83983 | BD30: 52228 | BE30: 21719.69697 | BF30: 17193.18182 | BG30: 39061.57176 | BH30: 34488.63636 | BI30: 27641.41414 | BJ30: 42068.18182 | BK30: 55134.68013 | BL30: 33712.12121 | BM30: 39047.34848 | BN30: 97754.329 | BO30: 90126.26263 | BP30: 18741.76548 | BQ30: 22492.78499 | BR30: 23657.02479 | BS30: 71148.9899 | BT30: 34242.42424 | BU30: 18762.62626 | BV30: 79924.24242 | BW30: 40700 | BX30: 83817.68232 | BY30: 56962.12121 | BZ30: 107128.7879 | CA30: 29653.67965 | CB30: 79501.37741 | CC30: 270946 | CD30: 73872 | CE30: 22506.06061 | CF30: 22657.57576 | CG30: 22506.06061 | CH30: 15909.09091 | CI30: 15909.09091 | CJ30: 18195.45455 | CK30: 20800 | CL30: 24260.60606 | CM30: 25871 | CN30: 14520 | CO30: 14520 | CP30: 26651.51515 | CQ30: 26651.51515 | CR30: 26651.51515 | CS30: 30468.75 | CT30: 17171.71717 | CU30: 64535 | CV30: 64535 | CW30: 64535 | CX30: 85353.53535 | CY30: 64535 | CZ30: 64535 | DA30: 21938.13131 | DB30: 29577 | DC30: 79884 | DD30: 76030 | DE30: 16932 | DF30: 21004 | DG30: 18494 | DH30: 4293 | DI30: 14375 | DJ30: 14375 | DK30: 15277.77778 | DL30: 25072.15007 | DM30: 26477 | DN30: 140102 | DO30: 57641 | DP30: 43288 | DQ30: 67111 | DR30: 77989 | DS30: 38719.86364 | DT30: 17885 | DU30: 17623 | DV30: 21134 | DW30: 6801.010101 | DX30: 5132.954545 | DY30: 9629 | DZ30: 106791.6667 | EA30: 46232.41077 | EB30: 12466 | EC30: 91791.66667 | ED30: 1440.21164 | EE30: 8735 | EF30: 74293 | EG30: 78989 | EH30: 18453 | EI30: 17623
A31: 30 | E31: ※ | F31: 大植物（大動物） | H31: 0 | I31: 0 | J31: 0 | K31: 0 | L31: 0 | M31: 0 | N31: 0 | O31: 0 | P31: 0 | Q31: 0 | R31: 0 | S31: 0 | T31: 0 | U31: 0 | V31: 0 | W31: 0 | X31: 0 | Y31: 0 | Z31: 0 | AA31: 0 | AB31: 0 | AC31: 0 | AD31: 0 | AE31: 0 | AF31: 0 | AG31: 0 | AH31: 0 | AI31: 0 | AJ31: 0 | AK31: 0 | AL31: 0 | AM31: 0 | AN31: 0 | AO31: 0 | AP31: 0 | AQ31: 0 | AR31: 0 | AS31: 0 | AT31: 0 | AU31: 0 | AV31: 0 | AW31: 0 | AX31: 0 | AY31: 0 | AZ31: 0 | BA31: 0 | BB31: 0 | BC31: 0 | BD31: 0 | BE31: 0 | BF31: 0 | BG31: 0 | BH31: 0 | BI31: 0 | BJ31: 0 | BK31: 0 | BL31: 0 | BM31: 0 | BN31: 0 | BO31: 0 | BP31: 0 | BQ31: 0 | BR31: 0 | BS31: 0 | BT31: 0 | BU31: 0 | BV31: 0 | BW31: 0 | BX31: 0 | BY31: 0 | BZ31: 0 | CA31: 0 | CB31: 0 | CC31: 0 | CD31: 0 | CE31: 47666.66667 | CF31: 47666.66667 | CG31: 41533.33333 | CH31: 47667 | CI31: 47666.66667 | CJ31: 45695 | CK31: 48100 | CL31: 48100 | CM31: 48100 | CN31: 40433 | CO31: 40433 | CP31: 61266.66667 | CQ31: 54444.44444 | CR31: 48100 | CS31: 36933.33333 | CT31: 39366.66667 | CU31: 33267 | CV31: 33267 | CW31: 38700 | CX31: 38533.33333 | CY31: 33267 | CZ31: 33267 | DA31: 26782.6087 | DB31: 26783 | DC31: 26782.6087 | DD31: 50000 | DE31: 25139 | DF31: 39174 | DG31: 39174 | DH31: 13200 | DI31: 43059 | DJ31: 43059 | DK31: 23720 | DL31: 96600 | DM31: 12729 | DN31: 0 | DO31: 0 | DP31: 123373 | DQ31: 123373 | DR31: 123373 | DS31: 90278 | DT31: 90278 | DU31: 90278 | DV31: 92857 | DW31: 0 | DX31: 0 | DY31: 10000 | DZ31: 0 | EA31: 0 | EB31: 0 | EC31: 0 | ED31: 0 | EE31: 0 | EF31: 123373 | EG31: 123373 | EH31: 90278 | EI31: 90278
A32: 31 | E32: ※ | F32: 生産管理機器 | H32: 0 | I32: 0 | J32: 0 | K32: 0 | L32: 0 | M32: 0 | N32: 0 | O32: 0 | P32: 0 | Q32: 0 | R32: 0 | S32: 0 | T32: 0 | U32: 0 | V32: 0 | W32: 0 | X32: 0 | Y32: 0 | Z32: 0 | AA32: 0 | AB32: 0 | AC32: 0 | AD32: 0 | AE32: 0 | AF32: 0 | AG32: 0 | AH32: 0 | AI32: 0 | AJ32: 0 | AK32: 0 | AL32: 0 | AM32: 0 | AN32: 0 | AO32: 0 | AP32: 0 | AQ32: 0 | AR32: 0 | AS32: 0 | AT32: 0 | AU32: 0 | AV32: 0 | AW32: 0 | AX32: 0 | AY32: 0 | AZ32: 0 | BA32: 0 | BB32: 0 | BC32: 0 | BD32: 0 | BE32: 0 | BF32: 0 | BG32: 0 | BH32: 0 | BI32: 0 | BJ32: 0 | BK32: 0 | BL32: 0 | BM32: 0 | BN32: 0 | BO32: 0 | BP32: 0 | BQ32: 0 | BR32: 0 | BS32: 0 | BT32: 0 | BU32: 0 | BV32: 0 | BW32: 0 | BX32: 0 | BY32: 0 | BZ32: 0 | CA32: 0 | CB32: 0 | CC32: 0 | CD32: 0 | CE32: 0 | CF32: 0 | CG32: 0 | CH32: 0 | CI32: 0 | CJ32: 0 | CK32: 0 | CL32: 0 | CM32: 0 | CN32: 0 | CO32: 0 | CP32: 0 | CQ32: 0 | CR32: 0 | CS32: 0 | CT32: 0 | CU32: 0 | CV32: 0 | CW32: 0 | CX32: 0 | CY32: 0 | CZ32: 0 | DA32: 0 | DB32: 0 | DC32: 0 | DD32: 0 | DE32: 0 | DF32: 0 | DG32: 0 | DH32: 0 | DI32: 0 | DJ32: 0 | DK32: 0 | DL32: 0 | DM32: 0 | DN32: 0 | DO32: 0 | DP32: 0 | DQ32: 0 | DR32: 0 | DS32: 0 | DT32: 0 | DU32: 0 | DV32: 0 | DW32: 0 | DX32: 0 | DY32: 0 | DZ32: 0 | EA32: 0 | EB32: 0 | EC32: 0 | ED32: 0 | EE32: 0 | EF32: 0 | EG32: 0 | EH32: 0 | EI32: 0
A33: 32 | E33: 生産管理費 | H33: 100 | I33: 117.6470588 | J33: 250 | K33: 500 | L33: 125 | M33: 266.6666667 | N33: 285.7142857 | O33: 650 | P33: 1529.411765 | Q33: 1083.333333 | R33: 433.3333333 | S33: 130.2 | T33: 520 | U33: 650 | V33: 634.1463415 | W33: 1733.333333 | X33: 1300 | Y33: 2222.222222 | Z33: 650 | AA33: 1733.333333 | AB33: 1733.333333 | AC33: 2222.222222 | AD33: 1625 | AE33: 480 | AF33: 787.8787879 | AG33: 866.6666667 | AH33: 1529.411765 | AI33: 1857 | AJ33: 866.6666667 | AK33: 866.6666667 | AL33: 1444.444444 | AM33: 1300 | AN33: 650 | AO33: 684.2105263 | AP33: 742.8571429 | AQ33: 866.6666667 | AR33: 866.6666667 | AS33: 2363.636364 | AT33: 2363.636364 | AU33: 0 | AV33: 0 | AW33: 260 | AX33: 361.1111111 | AY33: 866.6666667 | AZ33: 1300 | BA33: 1000 | BB33: 600 | BC33: 600 | BD33: 1529 | BE33: 650 | BF33: 962.962963 | BG33: 742.8571429 | BH33: 375 | BI33: 2080 | BJ33: 361.1111111 | BK33: 945.4545455 | BL33: 1200 | BM33: 2050 | BN33: 1857.142857 | BO33: 1300 | BP33: 1130.434783 | BQ33: 1405.405405 | BR33: 1733.333333 | BS33: 2166.666667 | BT33: 1733.333333 | BU33: 866.6666667 | BV33: 1170 | BW33: 2600 | BX33: 3076.923077 | BY33: 1300 | BZ33: 0 | CA33: 1733.333333 | CB33: 2363.636364 | CC33: 4000 | CD33: 2000 | CE33: 866.6666667 | CF33: 866.6666667 | CG33: 866.6666667 | CH33: 1130.434783 | CI33: 1130.434783 | CJ33: 1300 | CK33: 1300 | CL33: 1733.333333 | CM33: 1300 | CN33: 1444.444444 | CO33: 1444.444444 | CP33: 1300 | CQ33: 1300 | CR33: 1300 | CS33: 812.5 | CT33: 2166.666667 | CU33: 1300 | CV33: 1300 | CW33: 1300 | CX33: 1300 | CY33: 1300 | CZ33: 1300 | DA33: 1083.333333 | DB33: 1083.333333 | DC33: 1444.444444 | DD33: 1040 | DE33: 1300 | DF33: 1625 | DG33: 1625 | DH33: 520 | DI33: 1444.444444 | DJ33: 1444.444444 | DK33: 2166.666667 | DL33: 1238.095238 | DM33: 520 | DN33: 742.8571429 | DO33: 448.2758621 | DP33: 520 | DQ33: 325 | DR33: 885 | DS33: 1833.333333 | DT33: 1000 | DU33: 1455 | DV33: 1165 | DW33: 133.3333333 | DX33: 100 | DY33: 240 | DZ33: 800 | EA33: 17556.61169 | EB33: 117.6470588 | EC33: 800 | ED33: 634.9206349 | EE33: 100 | EF33: 325 | EG33: 885 | EH33: 1956 | EI33: 1455
A34: 33 | E34: 物財費計 | H34: 46120 | I34: 55205.2389 | J34: 51246.84091 | K34: 54390.33333 | L34: 36175.76958 | M34: 35349.82247 | N34: 34468.61905 | O34: 166877.3309 | P34: 166531.009 | Q34: 100272.7298 | R34: 100484.1639 | S34: 126042.1758 | T34: 102094.0932 | U34: 143100.8864 | V34: 185313.2178 | W34: 176896.6768 | X34: 242038.8576 | Y34: 1028347.459 | Z34: 1135063.545 | AA34: 1902999.227 | AB34: 1847115.095 | AC34: 1270071.475 | AD34: 2209947.552 | AE34: 460803.8545 | AF34: 1684714.879 | AG34: 668360.086 | AH34: 885547.4453 | AI34: 1723473 | AJ34: 728278.9291 | AK34: 772248.6867 | AL34: 557008.1111 | AM34: 581911.5455 | AN34: 677454.303 | AO34: 869564.3014 | AP34: 937582.6883 | AQ34: 1507298.576 | AR34: 2111732 | AS34: 353442.303 | AT34: 409925.303 | AU34: 231192.2424 | AV34: 670784.5065 | AW34: 129371.2073 | AX34: 145513.2929 | AY34: 160263.3485 | AZ34: 601242.3477 | BA34: 109699.971 | BB34: 989352.1818 | BC34: 336687.1055 | BD34: 556074 | BE34: 204727.097 | BF34: 302057.1448 | BG34: 139242.1498 | BH34: 723960.6364 | BI34: 735616.0808 | BJ34: 140398.2929 | BK34: 1224412.938 | BL34: 833440.1212 | BM34: 850356.6818 | BN34: 3153369.472 | BO34: 3297724.263 | BP34: 4708775.796 | BQ34: 1346341.19 | BR34: 960767.3581 | BS34: 1390967.84 | BT34: 2907666.758 | BU34: 1634940.293 | BV34: 1336722.242 | BW34: 1087224 | BX34: 695741.6054 | BY34: 307323.1212 | BZ34: 734263.5641 | CA34: 879353.013 | CB34: 2308103.014 | CC34: 2681307.711 | CD34: 990515.7855 | CE34: 297250.5221 | CF34: 303443.0743 | CG34: 308179.5366 | CH34: 2673951.78 | CI34: 2249069.192 | CJ34: 328628.9417 | CK34: 692964 | CL34: 1703382.939 | CM34: 239719 | CN34: 219595.5443 | CO34: 790585.211 | CP34: 261587.3357 | CQ34: 299598.8436 | CR34: 247195.669 | CS34: 1080148.583 | CT34: 189004.0505 | CU34: 341090 | CV34: 406156.8773 | CW34: 327753.0707 | CX34: 379011.1861 | CY34: 281850.8889 | CZ34: 323744.0707 | DA34: 218362.4305 | DB34: 322178.4805 | DC34: 1112446.053 | DD34: 1054992 | DE34: 253251.2857 | DF34: 310399.5606 | DG34: 830617.3333 | DH34: 54412 | DI34: 586283.7778 | DJ34: 1914604.444 | DK34: 174825.1111 | DL34: 2725854.245 | DM34: 329355.3333 | DN34: 456364.8571 | DO34: 258315.217 | DP34: 920071.6 | DQ34: 948731 | DR34: 1005129 | DS34: 361843.7496 | DT34: 393052.6476 | DU34: 394491 | DV34: 664575.3263 | DW34: 679310.8034 | DX34: 346862.9545 | DY34: 696328 | DZ34: 3352826.77 | EA34: 1676236.369 | EB34: 52471.79051 | EC34: 3081739.253 | ED34: 444949.5181 | EE34: 45669 | EF34: 1001258 | EG34: 1006630 | EH34: 395791 | EI34: 389490
A35: 34 | E35: 労働費 | H35: 11927 | I35: 15675 | J35: 17843 | K35: 22815 | L35: 8190 | M35: 8580 | N35: 11115 | O35: 68055 | P35: 214500 | Q35: 192075 | R35: 53625 | S35: 87750 | T35: 93810 | U35: 151613 | V35: 273935 | W35: 179205 | X35: 147225 | Y35: 651203 | Z35: 576415 | AA35: 1264575 | AB35: 1570725 | AC35: 992940 | AD35: 1419560 | AE35: 927713 | AF35: 1539525 | AG35: 776100 | AH35: 711750 | AI35: 785850 | AJ35: 216938 | AK35: 198900 | AL35: 242775 | AM35: 242775 | AN35: 219320 | AO35: 220540 | AP35: 231075 | AQ35: 1557025 | AR35: 1682800 | AS35: 1371825 | AT35: 759525 | AU35: 1552200 | AV35: 960570 | AW35: 114075 | AX35: 110175 | AY35: 128200 | AZ35: 555668 | BA35: 107250 | BB35: 2425800 | BC35: 422175 | BD35: 247650 | BE35: 231075 | BF35: 231075 | BG35: 236900 | BH35: 1480830 | BI35: 960570 | BJ35: 124800 | BK35: 745775 | BL35: 562750 | BM35: 448215 | BN35: 2169275 | BO35: 2281400 | BP35: 1866930 | BQ35: 701105 | BR35: 379275 | BS35: 784580 | BT35: 850200 | BU35: 700190 | BV35: 910650 | BW35: 894075 | BX35: 490425 | BY35: 592380 | BZ35: 390975 | CA35: 1020825 | CB35: 523575 | CC35: 1288325 | CD35: 1384400 | CE35: 168090 | CF35: 167115 | CG35: 171015 | CH35: 469950 | CI35: 469950 | CJ35: 193050 | CK35: 268125 | CL35: 333450 | CM35: 179790 | CN35: 224250 | CO35: 255450 | CP35: 156000 | CQ35: 181350 | CR35: 181350 | CS35: 406575 | CT35: 169680 | CU35: 230100 | CV35: 290550 | CW35: 211575 | CX35: 301680 | CY35: 228150 | CZ35: 239850 | DA35: 263250 | DB35: 274950 | DC35: 319800 | DD35: 410475 | DE35: 366600 | DF35: 263250 | DG35: 319800 | DH35: 51675 | DI35: 386100 | DJ35: 415350 | DK35: 202060 | DL35: 434850 | DM35: 40549 | DN35: 295323 | DO35: 144983 | DP35: 84270 | DQ35: 62363 | DR35: 54055 | DS35: 71598 | DT35: 54490 | DU35: 40747 | DV35: 61250 | DW35: 16796 | DX35: 12848 | DY35: 29679 | DZ35: 195344 | EA35: 349726 | EB35: 16575 | EC35: 186160 | ED35: 17822.85714 | EE35: 11633 | EF35: 58305 | EG35: 51317 | EH35: 53625 | EI35: 40747
A36: 35 | F36: 雇用労働費 | H36: 4030 | I36: 4560 | J36: 0 | K36: 0 | L36: 0 | M36: 0 | N36: 0 | O36: 0 | P36: 0 | Q36: 0 | R36: 0 | S36: 0 | T36: 6840 | U36: 0 | V36: 31160 | W36: 0 | X36: 0 | Y36: 0 | Z36: 37240 | AA36: 0 | AB36: 0 | AC36: 0 | AD36: 327560 | AE36: 0 | AF36: 0 | AG36: 0 | AH36: 0 | AI36: 0 | AJ36: 0 | AK36: 0 | AL36: 0 | AM36: 0 | AN36: 24320 | AO36: 37240 | AP36: 0 | AQ36: 76000 | AR36: 76000 | AS36: 0 | AT36: 0 | AU36: 0 | AV36: 0 | AW36: 0 | AX36: 0 | AY36: 19000 | AZ36: 6840 | BA36: 0 | BB36: 0 | BC36: 0 | BD36: 0 | BE36: 0 | BF36: 0 | BG36: 38000 | BH36: 0 | BI36: 0 | BJ36: 0 | BK36: 152000 | BL36: 30400 | BM36: 18240 | BN36: 152000 | BO36: 152000 | BP36: 0 | BQ36: 85880 | BR36: 0 | BS36: 63080 | BT36: 0 | BU36: 113240 | BV36: 0 | BW36: 0 | BX36: 0 | BY36: 104880 | BZ36: 0 | CA36: 0 | CB36: 0 | CC36: 60800 | CD36: 152000 | CE36: 0 | CF36: 0 | CG36: 0 | CH36: 0 | CI36: 0 | CJ36: 0 | CK36: 0 | CL36: 0 | CM36: 0 | CN36: 0 | CO36: 0 | CP36: 0 | CQ36: 0 | CR36: 0 | CS36: 0 | CT36: 13680 | CU36: 0 | CV36: 0 | CW36: 0 | CX36: 36480 | CY36: 0 | CZ36: 0 | DA36: 0 | DB36: 0 | DC36: 0 | DD36: 0 | DE36: 0 | DF36: 0 | DG36: 0 | DH36: 0 | DI36: 0 | DJ36: 0 | DK36: 57760 | DL36: 0 | DM36: 2280 | DN36: 7600 | DO36: 14820 | DP36: 25770 | DQ36: 1425 | DR36: 24805 | DS36: 0 | DT36: 0 | DU36: 17347 | DV36: 22250 | DW36: 3796 | DX36: 3098 | DY36: 13429 | DZ36: 117344 | EA36: 7372 | EB36: 0 | EC36: 81760 | ED36: 4013.333333 | EE36: 3930 | EF36: 0 | EG36: 22068 | EH36: 0 | EI36: 17347
A37: 36 | F37: 家族労働見積額 | H37: 7898 | I37: 11115 | J37: 17843 | K37: 22815 | L37: 8190 | M37: 8580 | N37: 11115 | O37: 68055 | P37: 214500 | Q37: 192075 | R37: 53625 | S37: 87750 | T37: 86970 | U37: 151613 | V37: 242775 | W37: 179205 | X37: 147225 | Y37: 651203 | Z37: 539175 | AA37: 1264575 | AB37: 1570725 | AC37: 992940 | AD37: 1092000 | AE37: 927713 | AF37: 1539525 | AG37: 776100 | AH37: 711750 | AI37: 785850 | AJ37: 216938 | AK37: 198900 | AL37: 242775 | AM37: 242775 | AN37: 195000 | AO37: 183300 | AP37: 231075 | AQ37: 1481025 | AR37: 1606800 | AS37: 1371825 | AT37: 759525 | AU37: 1552200 | AV37: 960570 | AW37: 114075 | AX37: 110175 | AY37: 109200 | AZ37: 548828 | BA37: 107250 | BB37: 2425800 | BC37: 422175 | BD37: 247650 | BE37: 231075 | BF37: 231075 | BG37: 198900 | BH37: 1480830 | BI37: 960570 | BJ37: 124800 | BK37: 593775 | BL37: 532350 | BM37: 429975 | BN37: 2017275 | BO37: 2129400 | BP37: 1866930 | BQ37: 615225 | BR37: 379275 | BS37: 721500 | BT37: 850200 | BU37: 586950 | BV37: 910650 | BW37: 894075 | BX37: 490425 | BY37: 487500 | BZ37: 390975 | CA37: 1020825 | CB37: 523575 | CC37: 1227525 | CD37: 1232400 | CE37: 168090 | CF37: 167115 | CG37: 171015 | CH37: 469950 | CI37: 469950 | CJ37: 193050 | CK37: 268125 | CL37: 333450 | CM37: 179790 | CN37: 224250 | CO37: 255450 | CP37: 156000 | CQ37: 181350 | CR37: 181350 | CS37: 406575 | CT37: 156000 | CU37: 230100 | CV37: 290550 | CW37: 211575 | CX37: 265200 | CY37: 228150 | CZ37: 239850 | DA37: 263250 | DB37: 274950 | DC37: 319800 | DD37: 410475 | DE37: 366600 | DF37: 263250 | DG37: 319800 | DH37: 51675 | DI37: 386100 | DJ37: 415350 | DK37: 144300 | DL37: 434850 | DM37: 38269 | DN37: 287723 | DO37: 130163 | DP37: 58500 | DQ37: 60938 | DR37: 29250 | DS37: 71598 | DT37: 54490 | DU37: 23400 | DV37: 39000 | DW37: 13000 | DX37: 9750 | DY37: 16250 | DZ37: 78000 | EA37: 342354 | EB37: 16575 | EC37: 104400 | ED37: 13809.52381 | EE37: 7703 | EF37: 58305 | EG37: 29250 | EH37: 53625 | EI37: 23400
A38: 37 | E38: 費用計 | H38: 58047 | I38: 70880 | J38: 69089 | K38: 77205 | L38: 44366 | M38: 43930 | N38: 45584 | O38: 234932 | P38: 381031 | Q38: 292348 | R38: 154109 | S38: 213792 | T38: 195904 | U38: 294713 | V38: 459248 | W38: 356102 | X38: 389264 | Y38: 1679549 | Z38: 1711479 | AA38: 3167574 | AB38: 3417840 | AC38: 2263011 | AD38: 3629508 | AE38: 1388516 | AF38: 3224240 | AG38: 1444460 | AH38: 1597297 | AI38: 2509323 | AJ38: 945217 | AK38: 971149 | AL38: 799783 | AM38: 824687 | AN38: 896774 | AO38: 1090104 | AP38: 1168658 | AQ38: 3064324 | AR38: 3794532 | AS38: 1725267 | AT38: 1169450 | AU38: 1783392 | AV38: 1631354 | AW38: 243446 | AX38: 255688 | AY38: 288463.3485 | AZ38: 1156910.348 | BA38: 216949.971 | BB38: 3415152.182 | BC38: 758862.1055 | BD38: 803724 | BE38: 435802.097 | BF38: 533132.1448 | BG38: 376142.1498 | BH38: 2204790.636 | BI38: 1696186.081 | BJ38: 265198.2929 | BK38: 1970187.938 | BL38: 1396190.121 | BM38: 1298571.682 | BN38: 5322644.472 | BO38: 5579124.263 | BP38: 6575705.796 | BQ38: 2047446.19 | BR38: 1340042.358 | BS38: 2175547.84 | BT38: 3757866.758 | BU38: 2335130.293 | BV38: 2247372.242 | BW38: 1981299 | BX38: 1186166.605 | BY38: 899703.1212 | BZ38: 1125238.564 | CA38: 1900178.013 | CB38: 2831678.014 | CC38: 3969632.711 | CD38: 2374915.786 | CE38: 465340.5221 | CF38: 470558.0743 | CG38: 479194.5366 | CH38: 3143901.78 | CI38: 2719019.192 | CJ38: 521678.9417 | CK38: 961090 | CL38: 2036832.939 | CM38: 419509 | CN38: 443845.5443 | CO38: 1046035.211 | CP38: 417587.3357 | CQ38: 480948.8436 | CR38: 428545.669 | CS38: 1486723.583 | CT38: 358684.0505 | CU38: 571190 | CV38: 696706.8773 | CW38: 539328.0707 | CX38: 680691.1861 | CY38: 510000.8889 | CZ38: 563594.0707 | DA38: 481612.4305 | DB38: 597128.4805 | DC38: 1432246.053 | DD38: 1465467 | DE38: 619851.2857 | DF38: 573649.5606 | DG38: 1150417.333 | DH38: 106087 | DI38: 972383.7778 | DJ38: 2329954.444 | DK38: 376885.1111 | DL38: 3160704.245 | DM38: 369904.3333 | DN38: 751687.8571 | DO38: 403298.217 | DP38: 1004341.6 | DQ38: 1011094 | DR38: 1059184 | DS38: 433439.7496 | DT38: 447542.6476 | DU38: 435238 | DV38: 725825.3263 | DW38: 696106.8034 | DX38: 359710.9545 | DY38: 726007 | DZ38: 3548170.77 | EA38: 2025962.369 | EB38: 69047 | EC38: 3267899.253 | ED38: 462772.3752 | EE38: 57302 | EF38: 1059563 | EG38: 1057947 | EH38: 449416 | EI38: 430237
A39: 38 | D39: 副産物価格差引生産費 | H39: 57747 | I39: 70580 | J39: 68789 | K39: 76905 | L39: 44366 | M39: 43930 | N39: 45584 | O39: 220932 | P39: 381031 | Q39: 292348 | R39: 154109 | S39: 213792 | T39: 166997 | U39: 294713 | V39: 459248 | W39: 356102 | X39: 389264 | Y39: 1679549 | Z39: 1711479 | AA39: 3167574 | AB39: 3417840 | AC39: 2263011 | AD39: 3629508 | AE39: 1388516 | AF39: 3224240 | AG39: 1444460 | AH39: 1597297 | AI39: 2509323 | AJ39: 945217 | AK39: 971149 | AL39: 799783 | AM39: 824687 | AN39: 896774 | AO39: 1090104 | AP39: 1168658 | AQ39: 3064324 | AR39: 3794532 | AS39: 1725267 | AT39: 1169450 | AU39: 1783392 | AV39: 1631354 | AW39: 243446 | AX39: 255688 | AY39: 288463.3485 | AZ39: 1156910.348 | BA39: 216949.971 | BB39: 3415152.182 | BC39: 628862.1055 | BD39: 803724 | BE39: 435802.097 | BF39: 533132.1448 | BG39: 376142.1498 | BH39: 2204790.636 | BI39: 1696186.081 | BJ39: 265198.2929 | BK39: 1970187.938 | BL39: 1396190.121 | BM39: 1298571.682 | BN39: 5322644.472 | BO39: 5579124.263 | BP39: 6575705.796 | BQ39: 2047446.19 | BR39: 1340042.358 | BS39: 2175547.84 | BT39: 3757866.758 | BU39: 2335130.293 | BV39: 2247372.242 | BW39: 1981299 | BX39: 1186166.605 | BY39: 899703.1212 | BZ39: 1125238.564 | CA39: 1900178.013 | CB39: 2831678.014 | CC39: 3969632.711 | CD39: 2374915.786 | CE39: 465340.5221 | CF39: 470558.0743 | CG39: 479194.5366 | CH39: 3143901.78 | CI39: 2719019.192 | CJ39: 521678.9417 | CK39: 961090 | CL39: 2036832.939 | CM39: 419509 | CN39: 443845.5443 | CO39: 1046035.211 | CP39: 417587.3357 | CQ39: 480948.8436 | CR39: 428545.669 | CS39: 1486723.583 | CT39: 358684.0505 | CU39: 571190 | CV39: 696706.8773 | CW39: 539328.0707 | CX39: 680691.1861 | CY39: 510000.8889 | CZ39: 563594.0707 | DA39: 481612.4305 | DB39: 597128.4805 | DC39: 1432246.053 | DD39: 1465467 | DE39: 619851.2857 | DF39: 573649.5606 | DG39: 1150417.333 | DH39: 106087 | DI39: 972383.7778 | DJ39: 2329954.444 | DK39: 376885.1111 | DL39: 3160704.245 | DM39: 369904.3333 | DN39: 751687.8571 | DO39: 403298.217 | DP39: 853941.6 | DQ39: 860694 | DR39: 908784 | DS39: 433439.7496 | DT39: 447542.6476 | DU39: 435238 | DV39: 707425.3263 | DW39: 683046.8034 | DX39: 341849.9545 | DY39: 713567 | DZ39: 3529420.77 | EA39: 1829093.765 | EB39: 69047 | EC39: 3059149.253 | ED39: 449372.3752 | EE39: 57002 | EF39: 909163 | EG39: 907547 | EH39: 449416 | EI39: 430237
A40: 39 | D40: 支払い利子 | H40: 562 | I40: 854 | J40: 210 | K40: 1100 | L40: 156 | M40: 206 | N40: 153 | O40: 920 | P40: 826 | Q40: 287 | R40: 528 | S40: 465 | T40: 690 | U40: 608 | V40: 1156 | W40: 1100 | X40: 633 | Y40: 8566 | Z40: 6527 | AA40: 13471 | AB40: 13347 | AC40: 11259 | AD40: 12755 | AE40: 1011 | AF40: 11363 | AG40: 4678 | AH40: 6109 | AI40: 12250 | AJ40: 4388 | AK40: 6226 | AL40: 4322 | AM40: 4278 | AN40: 6069 | AO40: 6378 | AP40: 5938 | AQ40: 13672 | AR40: 26425 | AS40: 209 | AT40: 2301 | AU40: 1205 | AV40: 7837 | AW40: 705 | AX40: 1166 | AY40: 917 | AZ40: 5369 | BA40: 454 | BB40: 7323 | BC40: 1555 | BD40: 6061 | BE40: 562 | BF40: 1415 | BG40: 863 | BH40: 5593 | BI40: 6147 | BJ40: 1166 | BK40: 8861 | BL40: 8745 | BM40: 4940 | BN40: 15526 | BO40: 16206 | BP40: 42337 | BQ40: 8360 | BR40: 4893 | BS40: 13181 | BT40: 10421 | BU40: 8265 | BV40: 10012 | BW40: 10873 | BX40: 4506 | BY40: 1187 | BZ40: 7558 | CA40: 5680 | CB40: 5787 | CC40: 14836 | CD40: 5809 | CE40: 1342 | CF40: 1790 | CG40: 1366 | CH40: 14339 | CI40: 14339 | CJ40: 3968 | CK40: 8645 | CL40: 12839 | CM40: 724 | CN40: 2796 | CO40: 2174 | CP40: 4214 | CQ40: 5258 | CR40: 3582 | CS40: 1084 | CT40: 2790 | CU40: 315 | CV40: 190 | CW40: 334 | CX40: 377 | CY40: 3779 | CZ40: 4251 | DA40: 2372 | DB40: 3394 | DC40: 13569 | DD40: 14061 | DE40: 3908 | DF40: 4134 | DG40: 12978 | DH40: 898 | DI40: 7643 | DJ40: 14254 | DK40: 1615 | DL40: 16854 | DM40: 9661 | DN40: 3090 | DO40: 1420 | DP40: 7345 | DQ40: 10625 | DR40: 10981 | DS40: 7177 | DT40: 7730 | DU40: 7882 | DV40: 12961 | DW40: 5992 | DX40: 4467 | DY40: 6914 | DZ40: 16950 | EA40: 20558 | EB40: 815 | EC40: 19463.66042 | ED40: 2764.88514 | EE40: 548 | EF40: 11077 | EG40: 11024 | EH40: 7757 | EI40: 7874
A41: 40 | D41: 支払い地代 | H41: 8000 | I41: 12353 | J41: 6125 | K41: 8750 | L41: 6125 | M41: 5600 | N41: 5000 | O41: 0 | P41: 0 | Q41: 0 | R41: 0 | S41: 0 | T41: 1800 | U41: 0 | V41: 0 | W41: 0 | X41: 0 | Y41: 0 | Z41: 0 | AA41: 0 | AB41: 0 | AC41: 0 | AD41: 0 | AE41: 0 | AF41: 0 | AG41: 0 | AH41: 0 | AI41: 0 | AJ41: 0 | AK41: 0 | AL41: 0 | AM41: 0 | AN41: 0 | AO41: 0 | AP41: 0 | AQ41: 0 | AR41: 0 | AS41: 0 | AT41: 0 | AU41: 0 | AV41: 0 | AW41: 0 | AX41: 0 | AY41: 4667 | AZ41: 0 | BA41: 0 | BB41: 0 | BC41: 0 | BD41: 0 | BE41: 0 | BF41: 0 | BG41: 0 | BH41: 0 | BI41: 0 | BJ41: 0 | BK41: 0 | BL41: 0 | BM41: 0 | BN41: 0 | BO41: 0 | BP41: 0 | BQ41: 0 | BR41: 0 | BS41: 0 | BT41: 0 | BU41: 0 | BV41: 0 | BW41: 0 | BX41: 0 | BY41: 4000 | BZ41: 0 | CA41: 0 | CB41: 0 | CC41: 0 | CD41: 0 | CE41: 0 | CF41: 0 | CG41: 0 | CH41: 0 | CI41: 0 | CJ41: 0 | CK41: 0 | CL41: 0 | CM41: 0 | CN41: 0 | CO41: 0 | CP41: 0 | CQ41: 0 | CR41: 0 | CS41: 0 | CT41: 0 | CU41: 0 | CV41: 0 | CW41: 0 | CX41: 0 | CY41: 0 | CZ41: 0 | DA41: 0 | DB41: 0 | DC41: 0 | DD41: 0 | DE41: 0 | DF41: 0 | DG41: 0 | DH41: 0 | DI41: 0 | DJ41: 0 | DK41: 0 | DL41: 0 | DM41: 0 | DN41: 0 | DO41: 8345 | DP41: 0 | DQ41: 1125 | DR41: 3150 | DS41: 0 | DT41: 0 | DU41: 0 | DV41: 0 | DW41: 0 | DX41: 0 | DY41: 0 | DZ41: 0 | EA41: 0 | EB41: 12205 | EC41: 0 | ED41: 0 | EE41: 8000 | EF41: 1125 | EG41: 3150 | EH41: 0 | EI41: 0
A42: 41 | C42: 支払利子・支払地代参入生産費 | H42: 66309 | I42: 83786 | J42: 75125 | K42: 86755 | L42: 50646 | M42: 49736 | N42: 50738 | O42: 221851 | P42: 381858 | Q42: 292635 | R42: 154637 | S42: 214257 | T42: 169487 | U42: 295321 | V42: 460404 | W42: 357202 | X42: 389897 | Y42: 1688115 | Z42: 1718006 | AA42: 3181045 | AB42: 3431187 | AC42: 2274270 | AD42: 3642263 | AE42: 1389527 | AF42: 3235603 | AG42: 1449138 | AH42: 1603407 | AI42: 2521573 | AJ42: 949605 | AK42: 977376 | AL42: 804106 | AM42: 828965 | AN42: 902842 | AO42: 1096482 | AP42: 1174596 | AQ42: 3077997 | AR42: 3820957 | AS42: 1725476 | AT42: 1171751 | AU42: 1784597 | AV42: 1639191 | AW42: 244151 | AX42: 256854 | AY42: 294047.3485 | AZ42: 1162279.348 | BA42: 217403.971 | BB42: 3422475.182 | BC42: 630417.1055 | BD42: 809785 | BE42: 436364.097 | BF42: 534547.1448 | BG42: 377005.1498 | BH42: 2210383.636 | BI42: 1702333.081 | BJ42: 266364.2929 | BK42: 1979048.938 | BL42: 1404935.121 | BM42: 1303511.682 | BN42: 5338170.472 | BO42: 5595330.263 | BP42: 6618042.796 | BQ42: 2055806.19 | BR42: 1344935.358 | BS42: 2188728.84 | BT42: 3768287.758 | BU42: 2343395.293 | BV42: 2257384.242 | BW42: 1992172 | BX42: 1190672.605 | BY42: 904890.1212 | BZ42: 1132796.564 | CA42: 1905858.013 | CB42: 2837465.014 | CC42: 3984468.711 | CD42: 2380724.786 | CE42: 466682.5221 | CF42: 472348.0743 | CG42: 480560.5366 | CH42: 3158240.78 | CI42: 2733358.192 | CJ42: 525646.9417 | CK42: 969735 | CL42: 2049671.939 | CM42: 420233 | CN42: 446641.5443 | CO42: 1048209.211 | CP42: 421801.3357 | CQ42: 486206.8436 | CR42: 432127.669 | CS42: 1487807.583 | CT42: 361474.0505 | CU42: 571505 | CV42: 696896.8773 | CW42: 539662.0707 | CX42: 681068.1861 | CY42: 513779.8889 | CZ42: 567845.0707 | DA42: 483984.4305 | DB42: 600522.4805 | DC42: 1445815.053 | DD42: 1479528 | DE42: 623759.2857 | DF42: 577783.5606 | DG42: 1163395.333 | DH42: 106985 | DI42: 980026.7778 | DJ42: 2344208.444 | DK42: 378500.1111 | DL42: 3177558.245 | DM42: 379565.3333 | DN42: 754777.8571 | DO42: 413063.217 | DP42: 861286.6 | DQ42: 872444 | DR42: 922913 | DS42: 440616.7496 | DT42: 455272.6476 | DU42: 443120 | DV42: 720386.3263 | DW42: 689038.8034 | DX42: 346316.9545 | DY42: 720481 | DZ42: 3546370.77 | EA42: 1849651.765 | EB42: 82067 | EC42: 3078612.913 | ED42: 452137.2604 | EE42: 65550 | EF42: 921365 | EG42: 921721 | EH42: 457173 | EI42: 438110
A43: 42 | D43: 自己資本利子 | H43: 674 | I43: 988 | J43: 1056 | K43: 1724 | L43: 1125 | M43: 983 | N43: 760 | O43: 4413 | P43: 4668 | Q43: 2987 | R43: 2624 | S43: 2499 | T43: 3560 | U43: 3317 | V43: 2874 | W43: 1982 | X43: 4268 | Y43: 34265 | Z43: 31749 | AA43: 64116 | AB43: 64666 | AC43: 45035 | AD43: 75643 | AE43: 12846 | AF43: 61939 | AG43: 23623 | AH43: 39283 | AI43: 48999 | AJ43: 20540 | AK43: 27241 | AL43: 19369 | AM43: 19279 | AN43: 26359 | AO43: 28181 | AP43: 27415 | AQ43: 71146 | AR43: 123525 | AS43: 15699 | AT43: 12057 | AU43: 12887 | AV43: 41819 | AW43: 3535 | AX43: 5894 | AY43: 3666 | AZ43: 26767 | BA43: 1817 | BB43: 53578 | BC43: 9632 | BD43: 27897 | BE43: 5528 | BF43: 6926 | BG43: 6110 | BH43: 37445 | BI43: 35526 | BJ43: 5951 | BK43: 38933 | BL43: 39079 | BM43: 22649 | BN43: 99035 | BO43: 103483 | BP43: 211524 | BQ43: 44044 | BR43: 23168 | BS43: 53430 | BT43: 57073 | BU43: 48920 | BV43: 46151 | BW43: 52647 | BX43: 18276 | BY43: 11487 | BZ43: 33665 | CA43: 35480 | CB43: 23150 | CC43: 59345 | CD43: 23236 | CE43: 8202 | CF43: 10031 | CG43: 8376 | CH43: 78040 | CI43: 74641 | CJ43: 19339 | CK43: 39963 | CL43: 63979 | CM43: 5439 | CN43: 14196 | CO43: 13149 | CP43: 19351 | CQ43: 23771 | CR43: 17011 | CS43: 11680 | CT43: 13478 | CU43: 7091 | CV43: 6407 | CW43: 7025 | CX43: 8523 | CY43: 18181 | CZ43: 20287 | DA43: 12749 | DB43: 17278 | DC43: 61419 | DD43: 56245 | DE43: 19709 | DF43: 20154 | DG43: 57140 | DH43: 4287 | DI43: 35971 | DJ43: 65428 | DK43: 9088 | DL43: 87560 | DM43: 14276 | DN43: 15586 | DO43: 7754 | DP43: 7879 | DQ43: 11136 | DR43: 11534 | DS43: 8568 | DT43: 9236 | DU43: 9324 | DV43: 12970 | DW43: 6003 | DX43: 4472 | DY43: 6918 | DZ43: 16950 | EA43: 20558 | EB43: 947 | EC43: 19464.16403 | ED43: 2765.184681 | EE43: 659 | EF43: 11620 | EG43: 11566 | EH43: 9269 | EI43: 9292
A44: 43 | D44: 自作地地代 | H44: 2000 | I44: 1647 | J44: 875 | K44: 5250 | L44: 875 | M44: 2800 | N44: 2500 | O44: 9000 | P44: 9000 | Q44: 9000 | R44: 3375 | S44: 5625 | T44: 7200 | U44: 4500 | V44: 11268 | W44: 9333 | X44: 14000 | Y44: 22000 | Z44: 11000 | AA44: 22000 | AB44: 22000 | AC44: 22000 | AD44: 22000 | AE44: 14000 | AF44: 22000 | AG44: 22000 | AH44: 22000 | AI44: 22000 | AJ44: 11000 | AK44: 11000 | AL44: 11000 | AM44: 11000 | AN44: 11000 | AO44: 11000 | AP44: 11000 | AQ44: 22000 | AR44: 22000 | AS44: 11000 | AT44: 11000 | AU44: 14000 | AV44: 22000 | AW44: 9000 | AX44: 9333 | AY44: 4667 | AZ44: 22000 | BA44: 10769 | BB44: 22000 | BC44: 14000 | BD44: 22000 | BE44: 14000 | BF44: 11000 | BG44: 6300 | BH44: 22000 | BI44: 22000 | BJ44: 9333 | BK44: 11000 | BL44: 22000 | BM44: 7333 | BN44: 22000 | BO44: 22000 | BP44: 22000 | BQ44: 22000 | BR44: 11000 | BS44: 22000 | BT44: 22000 | BU44: 22000 | BV44: 11000 | BW44: 22000 | BX44: 11000 | BY44: 16500 | BZ44: 21666 | CA44: 22000 | CB44: 11000 | CC44: 22000 | CD44: 11000 | CE44: 10000 | CF44: 10000 | CG44: 10000 | CH44: 22000 | CI44: 22000 | CJ44: 10000 | CK44: 22000 | CL44: 22000 | CM44: 10000 | CN44: 10000 | CO44: 22000 | CP44: 10000 | CQ44: 10000 | CR44: 10000 | CS44: 22000 | CT44: 10000 | CU44: 10000 | CV44: 22000 | CW44: 10000 | CX44: 10000 | CY44: 10000 | CZ44: 10000 | DA44: 10000 | DB44: 22000 | DC44: 22000 | DD44: 22000 | DE44: 10000 | DF44: 22000 | DG44: 22000 | DH44: 10000 | DI44: 22000 | DJ44: 22000 | DK44: 10000 | DL44: 22000 | DM44: 9000 | DN44: 10000 | DO44: 4552 | DP44: 10200 | DQ44: 6375 | DR44: 3250 | DS44: 7333 | DT44: 2750 | DU44: 1100 | DV44: 0 | DW44: 0 | DX44: 0 | DY44: 1100 | DZ44: 66000 | EA44: 57937 | EB44: 2059 | EC44: 78000 | ED44: 2476.190476 | EE44: 2000 | EF44: 6375 | EG44: 3250 | EH44: 2750 | EI44: 1100
A45: 44 | C45: 全算入生産費 | H45: 68983 | I45: 86421 | J45: 77056 | K45: 93729 | L45: 52646 | M45: 53519 | N45: 53998 | O45: 235264 | P45: 395526 | Q45: 304623 | R45: 160636 | S45: 222381 | T45: 180248 | U45: 303138 | V45: 474546 | W45: 368518 | X45: 408165 | Y45: 1744380 | Z45: 1760755 | AA45: 3267161 | AB45: 3517853 | AC45: 2341304 | AD45: 3739906 | AE45: 1416374 | AF45: 3319542 | AG45: 1494761 | AH45: 1664689 | AI45: 2592572 | AJ45: 981145 | AK45: 1015617 | AL45: 834474 | AM45: 859244 | AN45: 940201 | AO45: 1135662 | AP45: 1213011 | AQ45: 3171143 | AR45: 3966482 | AS45: 1752175 | AT45: 1194808 | AU45: 1811484 | AV45: 1703010 | AW45: 256686 | AX45: 272081 | AY45: 302380.3485 | AZ45: 1211046.348 | BA45: 229989.971 | BB45: 3498053.182 | BC45: 654049.1055 | BD45: 859682 | BE45: 455892.097 | BF45: 552473.1448 | BG45: 389415.1498 | BH45: 2269828.636 | BI45: 1759859.081 | BJ45: 281648.2929 | BK45: 2028981.938 | BL45: 1466014.121 | BM45: 1333493.682 | BN45: 5459205.472 | BO45: 5720813.263 | BP45: 6851566.796 | BQ45: 2121850.19 | BR45: 1379103.358 | BS45: 2264158.84 | BT45: 3847360.758 | BU45: 2414315.293 | BV45: 2314535.242 | BW45: 2066819 | BX45: 1219948.605 | BY45: 932877.1212 | BZ45: 1188127.564 | CA45: 1963338.013 | CB45: 2871615.014 | CC45: 4065813.711 | CD45: 2414960.786 | CE45: 484884.5221 | CF45: 492379.0743 | CG45: 498936.5366 | CH45: 3258280.78 | CI45: 2830000.192 | CJ45: 554985.9417 | CK45: 1031698 | CL45: 2135650.939 | CM45: 435672 | CN45: 470837.5443 | CO45: 1083358.211 | CP45: 451152.3357 | CQ45: 519977.8436 | CR45: 459138.669 | CS45: 1521487.583 | CT45: 384952.0505 | CU45: 588596 | CV45: 725302.8773 | CW45: 556687.0707 | CX45: 699591.1861 | CY45: 541960.8889 | CZ45: 598132.0707 | DA45: 506733.4305 | DB45: 639800.4805 | DC45: 1529234.053 | DD45: 1557775 | DE45: 653468.2857 | DF45: 619937.5606 | DG45: 1242535.333 | DH45: 121272 | DI45: 1037997.778 | DJ45: 2431636.444 | DK45: 397588.1111 | DL45: 3287118.245 | DM45: 402841.3333 | DN45: 780363.8571 | DO45: 425369.217 | DP45: 879365.6 | DQ45: 889955 | DR45: 937697 | DS45: 456517.7496 | DT45: 467258.6476 | DU45: 453544 | DV45: 733356.3263 | DW45: 695041.8034 | DX45: 350788.9545 | DY45: 728499 | DZ45: 3629320.77 | EA45: 1928146.765 | EB45: 85073 | EC45: 3176077.077 | ED45: 457378.6355 | EE45: 68209 | EF45: 939360 | EG45: 936537 | EH45: 469192 | EI45: 448502
A46: 45 | B46: 販売費及び 一般管理費 | E46: 選果出荷経費 | H46: 10950 | I46: 672 | J46: 10950.33333 | K46: 10790 | L46: 10350 | M46: 0 | N46: 4000 | O46: 24300 | P46: 21617 | Q46: 48000 | R46: 26820 | S46: 24020 | T46: 36800 | U46: 75000 | V46: 26244 | W46: 48032 | X46: 49500 | Y46: 568125 | Z46: 445000 | AA46: 809600 | AB46: 423967 | AC46: 270000 | AD46: 563040 | AE46: 311130 | AF46: 598010.88 | AG46: 303053 | AH46: 340833 | AI46: 545333 | AJ46: 79790 | AK46: 118888 | AL46: 101317 | AM46: 117261 | AN46: 73545 | AO46: 107449 | AP46: 89583 | AQ46: 460909.7 | AR46: 514386 | AS46: 111670 | AT46: 73148 | AU46: 232842 | AV46: 527700 | AW46: 45513 | AX46: 60762 | AY46: 85699 | AZ46: 140951 | BA46: 37200 | BB46: 126118 | BC46: 296000 | BD46: 36448 | BE46: 45100 | BF46: 106969 | BG46: 45623 | BH46: 131567 | BI46: 495000 | BJ46: 48440 | BK46: 59471 | BL46: 61865 | BM46: 83609 | BN46: 115000 | BO46: 99500 | BP46: 136600 | BQ46: 340273 | BR46: 170026 | BS46: 75667 | BT46: 68400 | BU46: 82080 | BV46: 357404 | BW46: 150168 | BX46: 22230 | BY46: 42560 | BZ46: 135600 | CA46: 167910 | CB46: 246050 | CC46: 256500 | CD46: 46429 | CE46: 139650 | CF46: 151200 | CG46: 151200 | CH46: 313500 | CI46: 347700 | CJ46: 208800 | CK46: 274050 | CL46: 484335 | CM46: 169200 | CN46: 148500 | CO46: 178200 | CP46: 126900 | CQ46: 139825 | CR46: 89180 | CS46: 93060 | CT46: 84600 | CU46: 156750 | CV46: 167200 | CW46: 205000 | CX46: 198000 | CY46: 173250 | CZ46: 156750 | DA46: 102000 | DB46: 108000 | DC46: 154375 | DD46: 138600 | DE46: 117000 | DF46: 157950 | DG46: 205200 | DH46: 11700 | DI46: 112320 | DJ46: 207900 | DK46: 38760 | DL46: 463636 | DM46: 1336 | DN46: 2520 | DO46: 0 | DP46: 11989 | DQ46: 11989 | DR46: 12508 | DS46: 766.1 | DT46: 766.1 | DU46: 774 | DV46: 10236 | DW46: 7265 | DX46: 5952 | DY46: 58788 | DZ46: 37859 | EA46: 735000 | EB46: 728 | EC46: 32289.579 | ED46: 6664 | EE46: 10950 | EF46: 12542 | EG46: 12508 | EH46: 774 | EI46: 774
A47: 46 | E47: 運賃 | H47: 0 | I47: 0 | J47: 0 | K47: 0 | L47: 0 | M47: 0 | N47: 0 | O47: 67500 | P47: 10296 | Q47: 46000 | R47: 45000 | S47: 40000 | T47: 28800 | U47: 35350 | V47: 56000 | W47: 57380 | X47: 67500 | Y47: 135125 | Z47: 200000 | AA47: 460000 | AB47: 302833 | AC47: 67200 | AD47: 368000 | AE47: 171000 | AF47: 292581 | AG47: 133000 | AH47: 60000 | AI47: 96000 | AJ47: 107550 | AK47: 72780 | AL47: 73735 | AM47: 88014 | AN47: 96542 | AO47: 74485 | AP47: 62100 | AQ47: 293320 | AR47: 293320 | AS47: 98533 | AT47: 64543 | AU47: 223887 | AV47: 48000 | AW47: 24507 | AX47: 32718 | AY47: 94565 | AZ47: 62411 | BA47: 42000 | BB47: 167500 | BC47: 80000 | BD47: 52528 | BE47: 42350 | BF47: 37621 | BG47: 35991 | BH47: 42205 | BI47: 270000 | BJ47: 43250 | BK47: 166320 | BL47: 15600 | BM47: 212850 | BN47: 26040 | BO47: 26040 | BP47: 87100 | BQ47: 605000 | BR47: 302000 | BS47: 24960 | BT47: 49920 | BU47: 62400 | BV47: 210400 | BW47: 164667 | BX47: 31200 | BY47: 48000 | BZ47: 207920 | CA47: 462000 | CB47: 475000 | CC47: 418000 | CD47: 17500 | CE47: 76475 | CF47: 82800 | CG47: 82800 | CH47: 130625 | CI47: 144875 | CJ47: 51750 | CK47: 72450 | CL47: 103500 | CM47: 82800 | CN47: 72900 | CO47: 87480 | CP47: 62100 | CQ47: 68425 | CR47: 78200 | CS47: 45540 | CT47: 41400 | CU47: 71250 | CV47: 76000 | CW47: 85000 | CX47: 90000 | CY47: 78750 | CZ47: 71250 | DA47: 51000 | DB47: 54000 | DC47: 71250 | DD47: 75600 | DE47: 45000 | DF47: 35100 | DG47: 45600 | DH47: 8100 | DI47: 138240 | DJ47: 190080 | DK47: 28500 | DL47: 58806 | DM47: 2752 | DN47: 2100 | DO47: 0 | DP47: 16485 | DQ47: 16485 | DR47: 17198 | DS47: 0 | DT47: 0 | DU47: 0 | DV47: 4048 | DW47: 2873.2 | DX47: 2354 | DY47: 20000 | DZ47: 0 | EA47: 0 | EB47: 0 | EC47: 0 | ED47: 0 | EE47: 0 | EF47: 17246 | EG47: 17198 | EH47: 0 | EI47: 0
A48: 47 | E48: 手数料 | H48: 6248 | I48: 4119 | J48: 8324.558667 | K48: 8869 | L48: 2161.5 | M48: 2017.4 | N48: 1458.333333 | O48: 55890 | P48: 42251 | Q48: 52900 | R48: 51750 | S48: 41860 | T48: 34500 | U48: 50025 | V48: 82616 | W48: 61180 | X48: 58380 | Y48: 423055 | Z48: 368000 | AA48: 715208 | AB48: 714150 | AC48: 466253 | AD48: 763876 | AE48: 320850 | AF48: 431172 | AG48: 218050 | AH48: 264807 | AI48: 491280 | AJ48: 158092 | AK48: 135718 | AL48: 127983 | AM48: 148681 | AN48: 122402 | AO48: 191497 | AP48: 131040 | AQ48: 562442 | AR48: 641614 | AS48: 239775 | AT48: 114899 | AU48: 179027 | AV48: 379500 | AW48: 37363 | AX48: 43108 | AY48: 72198 | AZ48: 244270 | BA48: 35880 | BB48: 221202 | BC48: 322000 | BD48: 132066 | BE48: 70452 | BF48: 121390 | BG48: 82946 | BH48: 189730 | BI48: 359145 | BJ48: 48770 | BK48: 354375 | BL48: 159100 | BM48: 266063 | BN48: 600000 | BO48: 550000 | BP48: 675000 | BQ48: 396900 | BR48: 240030 | BS48: 225000 | BT48: 399000 | BU48: 342000 | BV48: 536250 | BW48: 373750 | BX48: 188100 | BY48: 144000 | BZ48: 440700 | CA48: 393750 | CB48: 665000 | CC48: 494000 | CD48: 234000 | CE48: 73150 | CF48: 82800 | CG48: 90000 | CH48: 428450 | CI48: 417240 | CJ48: 98400 | CK48: 176400 | CL48: 367650 | CM48: 79200 | CN48: 105660 | CO48: 240084 | CP48: 72900 | CQ48: 77350 | CR48: 64600 | CS48: 178200 | CT48: 50400 | CU48: 114000 | CV48: 170240 | CW48: 108800 | CX48: 115200 | CY48: 103950 | CZ48: 148200 | DA48: 95200 | DB48: 122400 | DC48: 211375 | DD48: 226800 | DE48: 86400 | DF48: 97110 | DG48: 167200 | DH48: 20250 | DI48: 149040 | DJ48: 297000 | DK48: 47880 | DL48: 432000 | DM48: 16230 | DN48: 16800 | DO48: 0 | DP48: 21980 | DQ48: 21980 | DR48: 22931 | DS48: 27495 | DT48: 27495 | DU48: 27788 | DV48: 18820 | DW48: 16498 | DX48: 7447 | DY48: 27137 | DZ48: 0 | EA48: 0 | EB48: 3475.933333 | EC48: 0 | ED48: 0 | EE48: 6248 | EF48: 22994 | EG48: 22931 | EH48: 27788 | EI48: 27788
A49: 48 | E49: 一般管理費 | H49: 560 | I49: 280 | J49: 576.3333333 | K49: 576.3333333 | L49: 0 | M49: 0 | N49: 0 | O49: 0 | P49: 0 | Q49: 0 | R49: 0 | S49: 0 | T49: 0 | U49: 0 | V49: 0 | W49: 0 | X49: 0 | Y49: 0 | Z49: 2400 | AA49: 5520 | AB49: 4600 | AC49: 0 | AD49: 0 | AE49: 0 | AF49: 6000 | AG49: 2800 | AH49: 0 | AI49: 0 | AJ49: 1000 | AK49: 1000 | AL49: 1000 | AM49: 1000 | AN49: 1000 | AO49: 1000 | AP49: 1000 | AQ49: 1000 | AR49: 1000 | AS49: 0 | AT49: 0 | AU49: 0 | AV49: 0 | AW49: 0 | AX49: 0 | AY49: 0 | AZ49: 0 | BA49: 0 | BB49: 0 | BC49: 6300 | BD49: 0 | BE49: 0 | BF49: 1000 | BG49: 0 | BH49: 0 | BI49: 0 | BJ49: 0 | BK49: 0 | BL49: 0 | BM49: 0 | BN49: 0 | BO49: 0 | BP49: 0 | BQ49: 0 | BR49: 0 | BS49: 0 | BT49: 0 | BU49: 0 | BV49: 0 | BW49: 0 | BX49: 0 | BY49: 0 | BZ49: 0 | CA49: 0 | CB49: 0 | CC49: 0 | CD49: 0 | CE49: 0 | CF49: 0 | CG49: 0 | CH49: 0 | CI49: 0 | CJ49: 0 | CK49: 0 | CL49: 0 | CM49: 0 | CN49: 0 | CO49: 0 | CP49: 0 | CQ49: 0 | CR49: 0 | CS49: 0 | CT49: 0 | CU49: 0 | CV49: 0 | CW49: 0 | CX49: 0 | CY49: 0 | CZ49: 0 | DA49: 0 | DB49: 0 | DC49: 0 | DD49: 0 | DE49: 11250 | DF49: 1170 | DG49: 1520 | DH49: 0 | DI49: 0 | DJ49: 0 | DK49: 0 | DL49: 0 | DM49: 0 | DN49: 0 | DO49: 0 | DP49: 8000 | DQ49: 5000 | DR49: 2000 | DS49: 0 | DT49: 0 | DU49: 1500 | DV49: 4000 | DW49: 0 | DX49: 0 | DY49: 2334 | DZ49: 0 | EA49: 21000 | EB49: 0 | EC49: 0 | ED49: 0 | EE49: 560 | EF49: 5000 | EG49: 2000 | EH49: 0 | EI49: 1500
A50: 49 | E50: 計 | H50: 17758 | I50: 5071 | J50: 19851.22533 | K50: 20235.33333 | L50: 12511.5 | M50: 2017.4 | N50: 5458.333333 | O50: 147690 | P50: 74164 | Q50: 146900 | R50: 123570 | S50: 105880 | T50: 100100 | U50: 160375 | V50: 164860 | W50: 166592 | X50: 175380 | Y50: 1126305 | Z50: 1015400 | AA50: 1990328 | AB50: 1445550 | AC50: 803453 | AD50: 1694916 | AE50: 802980 | AF50: 1327763.88 | AG50: 656903 | AH50: 665641 | AI50: 1132613 | AJ50: 346432 | AK50: 328386 | AL50: 304035 | AM50: 354956 | AN50: 293489 | AO50: 374431 | AP50: 283723 | AQ50: 1317671.7 | AR50: 1450320 | AS50: 449978 | AT50: 252590 | AU50: 635756 | AV50: 955200 | AW50: 107383 | AX50: 136588 | AY50: 252462 | AZ50: 447632 | BA50: 115080 | BB50: 514820 | BC50: 704300 | BD50: 221042 | BE50: 157902 | BF50: 266980 | BG50: 164560 | BH50: 363502 | BI50: 1124145 | BJ50: 140460 | BK50: 580166 | BL50: 236565 | BM50: 562522 | BN50: 741040 | BO50: 675540 | BP50: 898700 | BQ50: 1342173 | BR50: 712056 | BS50: 325627 | BT50: 517320 | BU50: 486480 | BV50: 1104054 | BW50: 688585 | BX50: 241530 | BY50: 234560 | BZ50: 784220 | CA50: 1023660 | CB50: 1386050 | CC50: 1168500 | CD50: 297929 | CE50: 289275 | CF50: 316800 | CG50: 324000 | CH50: 872575 | CI50: 909815 | CJ50: 358950 | CK50: 522900 | CL50: 955485 | CM50: 331200 | CN50: 327060 | CO50: 505764 | CP50: 261900 | CQ50: 285600 | CR50: 231980 | CS50: 316800 | CT50: 176400 | CU50: 342000 | CV50: 413440 | CW50: 398800 | CX50: 403200 | CY50: 355950 | CZ50: 376200 | DA50: 248200 | DB50: 284400 | DC50: 437000 | DD50: 441000 | DE50: 259650 | DF50: 291330 | DG50: 419520 | DH50: 40050 | DI50: 399600 | DJ50: 694980 | DK50: 115140 | DL50: 954442 | DM50: 20318 | DN50: 21420 | DO50: 0 | DP50: 58454 | DQ50: 55454 | DR50: 54637 | DS50: 28261.1 | DT50: 28261.1 | DU50: 30062 | DV50: 37104 | DW50: 26636.2 | DX50: 15753 | DY50: 108259 | DZ50: 37859 | EA50: 756000 | EB50: 4203.933333 | EC50: 32289.579 | ED50: 6664 | EE50: 17758 | EF50: 57783 | EG50: 54636 | EH50: 28562 | EI50: 30062
A51: 50
A52: 51 | B52: [経営指標]
A53: 52 | B53: 農業経営費（販売費及び一般管理費含む） | H53: 76470 | I53: 78042.2389 | J53: 77434.06624 | K53: 84474.66667 | L53: 54968.26958 | M53: 43173.22247 | N53: 45080.95238 | O53: 315487.3309 | P53: 241522 | Q53: 247459.7298 | R53: 224582.1639 | S53: 232387.1758 | T53: 211524.0932 | U53: 304083 | V53: 382489.2178 | W53: 344589 | X53: 418051.8576 | Y53: 2163218 | Z53: 2194230.545 | AA53: 3906798 | AB53: 3306012.095 | AC53: 2084782.475 | AD53: 4245179 | AE53: 1264794.855 | AF53: 3023841.759 | AG53: 1329941.086 | AH53: 1557297 | AI53: 2868336 | AJ53: 1079099 | AK53: 1106862 | AL53: 865365.1111 | AM53: 941146 | AN53: 1001331 | AO53: 1287613.301 | AP53: 1227244 | AQ53: 2914643.276 | AR53: 3664477 | AS53: 803629.303 | AT53: 664815 | AU53: 868153.2424 | AV53: 1633821 | AW53: 237459.2073 | AX53: 283268 | AY53: 437308 | AZ53: 1061084 | BA53: 225233.971 | BB53: 1511495.182 | BC53: 1042542.105 | BD53: 783177 | BE53: 363190 | BF53: 570451 | BG53: 342665.1498 | BH53: 1093055.636 | BI53: 1865908.081 | BJ53: 282025 | BK53: 1965439.938 | BL53: 1109150.121 | BM53: 1436057 | BN53: 4061936 | BO53: 4141470.263 | BP53: 5649814 | BQ53: 2782755 | BR53: 1677716.358 | BS53: 1792855 | BT53: 3435407 | BU53: 2242926.293 | BV53: 2450788.242 | BW53: 1786681 | BX53: 941776.6054 | BY53: 651950.1212 | BZ53: 1526040.564 | CA53: 1908693.013 | CB53: 3699940.014 | CC53: 3925443.711 | CD53: 1446252.786 | CE53: 587868.5221 | CF53: 622033.0743 | CG53: 633545.5366 | CH53: 3560865.78 | CI53: 3173224.192 | CJ53: 691545.9417 | CK53: 1224510 | CL53: 2671706.939 | CM53: 571643 | CN53: 549451.5443 | CO53: 1298523.211 | CP53: 527700.3357 | CQ53: 590455.8436 | CR53: 482756.669 | CS53: 1398032.583 | CT53: 381873.0505 | CU53: 683405 | CV53: 819785.8773 | CW53: 726888.0707 | CX53: 819068.1861 | CY53: 641578.8889 | CZ53: 704195.0707 | DA53: 468935.4305 | DB53: 609971.4805 | DC53: 1563014.053 | DD53: 1510054 | DE53: 516809.2857 | DF53: 605862.5606 | DG53: 1263115.333 | DH53: 95360 | DI53: 993525.7778 | DJ53: 2623838.444 | DK53: 349339.1111 | DL53: 3697152.245 | DM53: 361614.3333 | DN53: 488473.8571 | DO53: 282900.217 | DP53: 1011638.6 | DQ53: 1017358 | DR53: 1098700 | DS53: 397280.8496 | DT53: 429042.7476 | DU53: 449780 | DV53: 736890.3263 | DW53: 715736.0034 | DX53: 370180.9545 | DY53: 824929 | DZ53: 3524978.77 | EA53: 2460166.369 | EB53: 69694.72385 | EC53: 3215252.492 | ED53: 458391.7366 | EE53: 75905 | EF53: 1071242 | EG53: 1097508 | EH53: 432110 | EI53: 444772
A54: 53 | B54: 農業所得 | H54: 42390 | I54: 42537.7611 | J54: 41425.93376 | K54: 34385.33333 | L54: 19731.73042 | M54: 19901.77753 | N54: 35013.04762 | O54: 184512.6691 | P54: 125878 | Q54: 212540.2702 | R54: 225417.8361 | S54: 131612.8242 | T54: 117382.9068 | U54: 130917 | V54: 404710.7822 | W54: 187411 | X54: 89598.14242 | Y54: 1493782 | Z54: 1005769.455 | AA54: 2312402 | AB54: 2903987.905 | AC54: 1968217.525 | AD54: 2397221 | AE54: 1525205.145 | AF54: 1287878.241 | AG54: 850557.914 | AH54: 745376 | AI54: 1403664 | AJ54: 501825 | AK54: 250315 | AL54: 414467 | AM54: 545663 | AN54: 222687 | AO54: 627353.6986 | AP54: 493736 | AQ54: 2709778.724 | AR54: 2751665 | AS54: 296431.697 | AT54: 334303 | AU54: 688605 | AV54: 1666179 | AW54: 87433.79273 | AX54: 91587 | AY54: 190497 | AZ54: 1063002 | BA54: 86766.02897 | BB54: 411998.8182 | BC54: 1887457.895 | BD54: 365223 | BE54: 249434 | BF54: 643448 | BG54: 378604.8502 | BH54: 556768.3636 | BI54: 1257091.919 | BJ54: 142065 | BK54: 869560.0624 | BL54: 481849.8788 | BM54: 692443 | BN54: 1938064 | BO54: 1358529.737 | BP54: 1100186 | BQ54: 392445 | BR54: 242523.6419 | BS54: 457145 | BT54: 554593 | BU54: 1177073.707 | BV54: 1839211.758 | BW54: 1203319 | BX54: 939223.3946 | BY54: 788049.8788 | BZ54: 1863959.436 | CA54: 1241306.987 | CB54: 1620059.986 | CC54: 1014556.289 | CD54: 893747.2145 | CE54: 143631.4779 | CF54: 205966.9257 | CG54: 266454.4634 | CH54: 723634.2203 | CI54: 999175.8076 | CJ54: 292454.0583 | CK54: 539490 | CL54: 1004793.061 | CM54: 220357 | CN54: 422548.4557 | CO54: 548276.789 | CP54: 201299.6643 | CQ54: 183044.1564 | CR54: 163243.331 | CS54: 383967.4167 | CT54: 122126.9495 | CU54: 456595 | CV54: 882614.1227 | CW54: 361111.9293 | CX54: 332931.8139 | CY54: 397921.1111 | CZ54: 777804.9293 | DA54: 483064.5695 | DB54: 614028.5195 | DC54: 550735.9469 | DD54: 757946 | DE54: 347190.7143 | DF54: 365237.4394 | DG54: 408884.6667 | DH54: 107140 | DI54: 496874.2222 | DJ54: 346161.5556 | DK54: 129460.8889 | DL54: 622847.7547 | DM54: 102097.6667 | DN54: 351526.1429 | DO54: 239849.783 | DP54: 257730.4 | DQ54: 252011 | DR54: 219076 | DS54: 213719.1504 | DT54: 181957.2524 | DU54: 167720 | DV54: 304333.6737 | DW54: 122206.6566 | DX54: 20040.04545 | DY54: 169336 | DZ54: 279667 | EA54: 570702.2352 | EB54: 30145.27615 | EC54: 222455.4077 | ED54: 31008.26343 | EE54: 42955 | EF54: 249782 | EG54: 220268 | EH54: 185390 | EI54: 172728
A55: 54 | B55: 農業所得率（農業所得÷農業経営費×100） | H55: 35.66380616 | I55: 35.27762573 | J55: 34.85271223 | K55: 28.92927253 | L55: 26.41463242 | M55: 31.55206026 | N55: 43.71494446 | O55: 36.90253382 | P55: 34.26183996 | Q55: 46.20440657 | R55: 50.09285247 | S55: 36.15736928 | T55: 35.68878338 | U55: 30.09586207 | V55: 51.41143067 | W55: 35.22763158 | X55: 17.64958976 | Y55: 40.84719716 | Z55: 31.43029545 | AA55: 37.18166324 | AB55: 46.76309026 | AC55: 48.56199174 | AD55: 36.08968144 | AE55: 54.66685109 | AF55: 29.86924571 | AG55: 39.00750718 | AH55: 32.37003257 | AI55: 32.85730337 | AJ55: 31.74251261 | AK55: 18.44381274 | AL55: 32.38448484 | AM55: 36.70027556 | AN55: 18.19311481 | AO55: 32.7605488 | AP55: 28.6892352 | AQ55: 48.17879463 | AR55: 42.88659758 | AS55: 26.94684176 | AT55: 33.45981155 | AU55: 44.23324355 | AV55: 50.49027273 | AW55: 26.91156557 | AX55: 24.43264729 | AY55: 30.34333909 | AZ55: 50.04514883 | BA55: 27.80962467 | BB55: 21.41929313 | BC55: 64.41835817 | BD55: 31.80276907 | BE55: 40.71567552 | BF55: 53.00671637 | BG55: 52.49141795 | BH55: 33.74713688 | BI55: 40.25270314 | BJ55: 33.49878564 | BK55: 30.67231261 | BL55: 30.28597604 | BM55: 32.53197087 | BN55: 32.30106667 | BO55: 24.70054068 | BP55: 16.29905185 | BQ55: 12.35969388 | BR55: 12.62986095 | BS55: 20.31755556 | BT55: 13.89957393 | BU55: 34.41735986 | BV55: 42.87206894 | BW55: 40.24478261 | BX55: 49.93213156 | BY55: 54.72568603 | BZ55: 54.98405416 | CA55: 39.40657102 | CB55: 30.45225538 | CC55: 20.53757671 | CD55: 38.19432541 | CE55: 19.63519861 | CF55: 24.87523257 | CG55: 29.60605148 | CH55: 16.88958386 | CI55: 23.94726794 | CJ55: 29.72094088 | CK55: 30.58333333 | CL55: 27.33015261 | CM55: 27.82285354 | CN55: 43.47206334 | CO55: 29.68793529 | CP55: 27.61312268 | CQ55: 23.6644029 | CR55: 25.26986548 | CS55: 21.54699308 | CT55: 24.2315376 | CU55: 40.05219298 | CV55: 51.84528446 | CW55: 33.19043468 | CX55: 28.90033106 | CY55: 38.28004917 | CZ55: 52.48346352 | DA55: 50.74207663 | DB55: 50.16572872 | DC55: 26.05492357 | DD55: 33.4191358 | DE55: 40.18411045 | DF55: 37.61069297 | DG55: 24.45482456 | DH55: 52.90864198 | DI55: 33.33831335 | DJ55: 11.65527123 | DK55: 27.03861506 | DL55: 14.4177721 | DM55: 22.01747349 | DN55: 41.84835034 | DO55: 45.88231142 | DP55: 20.30382024 | DQ55: 19.85324992 | DR55: 16.62467673 | DS55: 34.97858435 | DT55: 29.78023771 | DU55: 27.1611336 | DV55: 29.2284536 | DW55: 14.58413116 | DX55: 5.135563041 | DY55: 17.03127436 | DZ55: 7.350668801 | EA55: 18.8296594 | EB55: 30.19358589 | EC55: 6.471038674 | ED55: 6.335975364 | EE55: 36 | EF55: 19 | EG55: 17 | EH55: 30 | EI55: 28
A56: 55 | B56: 1日当たり農業所得 | H56: 41867 | I56: 29852 | J56: 18110 | K56: 11755 | L56: 18792.12421 | M56: 18092.52502 | N56: 24570.55973 | O56: 21147.58385 | P56: 4577.381818 | Q56: 8631.076963 | R56: 32788.04889 | S56: 11698.91771 | T56: 8023.438603 | U56: 6735 | V56: 13002.75606 | W56: 8157.170838 | X56: 4746.921453 | Y56: 17892.28328 | Z56: 14550.01019 | AA56: 14263.08096 | AB56: 14420.79655 | AC56: 15461 | AD56: 18621.0001 | AE56: 12823.58504 | AF56: 6525.032254 | AG56: 8548.320744 | AH56: 8168 | AI56: 13932.14888 | AJ56: 18043.14607 | AK56: 9816.27451 | AL56: 13316.20884 | AM56: 17531.34137 | AN56: 8907.48 | AO56: 26695.90207 | AP56: 16666.19409 | AQ56: 14271.38235 | AR56: 13357.59709 | AS56: 1685.468071 | AT56: 3433.150193 | AU56: 3460.326633 | AV56: 13350.79327 | AW56: 5978.37899 | AX56: 6484.035398 | AY56: 13606.92857 | AZ56: 15107.50755 | BA56: 6310.256652 | BB56: 1324.755042 | BC56: 34872.20128 | BD56: 11503.08661 | BE56: 8419.71308 | BF56: 21719.76371 | BG56: 14847.24903 | BH56: 2932.675078 | BI56: 7783.850893 | BJ56: 8879.0625 | BK56: 11422.79228 | BL56: 7060.071484 | BM56: 12561.32426 | BN56: 7493.722571 | BO56: 4976.299404 | BP56: 4596.557343 | BQ56: 4218.704649 | BR56: 4987.632738 | BS56: 4942.108108 | BT56: 5088.009174 | BU56: 15642.17551 | BV56: 15753.41977 | BW56: 10497.87568 | BX56: 14937.94663 | BY56: 12608.79806 | BZ56: 37186.22316 | CA56: 9484.676119 | CB56: 24134.97186 | CC56: 6446.743697 | CD56: 5656.62794 | CE56: 6665.033775 | CF56: 9613.392096 | CG56: 12152.99719 | CH56: 12010.52648 | CI56: 16583.83083 | CJ56: 11816.32559 | CK56: 15694.25455 | CL56: 23503.93124 | CM56: 9559.956616 | CN56: 14697.33759 | CO56: 16741.276 | CP56: 10064.98322 | CQ56: 7872.866942 | CR56: 7021.218538 | CS56: 7366.281375 | CT56: 6106.347475 | CU56: 15477.79661 | CV56: 23694.33886 | CW56: 13312.88219 | CX56: 10404.11918 | CY56: 13604.14055 | CZ56: 25294.46925 | DA56: 14313.02428 | DB56: 17419.24878 | DC56: 13432.58407 | DD56: 18046.33333 | DE56: 10211.4916 | DF56: 10821.85006 | DG56: 9972.796748 | DH56: 16172.07547 | DI56: 10037.86308 | DJ56: 6500.686489 | DK56: 6997.885886 | DL56: 11172.15703 | DM56: 20809.7155 | DN56: 9530 | DO56: 14373.0207 | DP56: 34364.05333 | DQ56: 32257.408 | DR56: 58420.26667 | DS56: 23293.64037 | DT56: 26040.39391 | DU56: 67088 | DV56: 43414.21879 | DW56: 73288.35026 | DX56: 16032.03636 | DY56: 81119.04192 | DZ56: 27966.7 | EA56: 13003.75358 | EB56: 14186.01231 | EC56: 14830.36051 | ED56: 15601.64198 | EE56: 43498 | EF56: 33416 | EG56: 58738 | EH56: 29662 | EI56: 69091
A57: 56 | B57: 1日当たり家族労働報酬 | H57: 39226 | I57: 28001.93762 | J57: 17266 | K57: 9371 | L57: 16888.3623 | M57: 14654.43412 | N57: 22282.84043 | O57: 19610.27726 | P57: 4080.363636 | Q57: 8144.295237 | R57: 31916.46707 | S57: 10976.78437 | T57: 7287.963552 | U57: 6333 | V57: 12548.39461 | W57: 7664.678999 | X57: 3779.080393 | Y57: 17218.35005 | Z57: 13931.57981 | AA57: 13731.91056 | AB57: 13990.42535 | AC57: 14935 | AD57: 17862.53423 | AE57: 12597.86985 | AF57: 6099.755497 | AG57: 8089.798131 | AH57: 7496.909589 | AI57: 13227.44417 | AJ57: 16909.1236 | AK57: 8316.627451 | AL57: 12340.49799 | AM57: 16558.52209 | AN57: 7413.12 | AO57: 25028.62547 | AP57: 15370.48523 | AQ57: 13780.81751 | AR57: 12651.16505 | AS57: 1533.66139 | AT57: 3196.36457 | AU57: 3325.21608 | AV57: 12839.42308 | AW57: 5121.284973 | AX57: 5406.017699 | AY57: 13011.71429 | AZ57: 14414.4253 | BA57: 5394.911198 | BB57: 1081.738965 | BC57: 34435.58235 | BD57: 9931.527559 | BE57: 7760.540084 | BF57: 21114.66667 | BG57: 14360.58236 | BH57: 2619.559461 | BI57: 7427.65275 | BJ57: 7923.8125 | BK57: 10766.85796 | BL57: 6165.141081 | BM57: 12017.43311 | BN57: 7025.728371 | BO57: 4516.654716 | BP57: 3620.898266 | BQ57: 3508.744961 | BR57: 4284.948933 | BS57: 4126.648649 | BT57: 4362.568807 | BU57: 14699.71704 | BV57: 15263.90371 | BW57: 9846.647764 | BX57: 14472.32437 | BY57: 12161.00606 | BZ57: 36082.36281 | CA57: 9045.478411 | CB57: 23626.21953 | CC57: 5929.857279 | CD57: 5439.944395 | CE57: 5820.393404 | CF57: 8678.456274 | CG57: 11314.8672 | CH57: 10350.11154 | CI57: 14979.83083 | CJ57: 10630.91145 | CK57: 13891.69455 | CL57: 21492.72656 | CM57: 8890.151844 | CN57: 13855.73759 | CO57: 15668.02409 | CP57: 8597.433217 | CQ57: 6420.350813 | CR57: 5859.455097 | CS57: 6720.142286 | CT57: 4932.447475 | CU57: 14898.44068 | CV57: 22931.73484 | CW57: 12685.23242 | CX57: 9825.275433 | CY57: 12640.68756 | CZ57: 24309.52616 | DA57: 13638.97984 | DB57: 16304.97928 | DC57: 11397.97431 | DD57: 16183.35714 | DE57: 9337.697479 | DF57: 9572.842649 | DG57: 8042.552846 | DH57: 14015.54717 | DI57: 8866.731762 | DJ57: 4858.846114 | DK57: 5966.102102 | DL57: 9206.955241 | DM57: 16065.56263 | DN57: 8836 | DO57: 13635.5825 | DP57: 31953.52 | DQ57: 30016 | DR57: 54477.86667 | DS57: 21560.56135 | DT57: 24325.04507 | DU57: 62918.4 | DV57: 41564.00481 | DW57: 69688.35026 | DX57: 12454.43636 | DY57: 77278.08383 | DZ57: 19671.7 | EA57: 11215.20331 | EB57: 12771.42407 | EC57: 8332.749579 | ED57: 12964.47209 | EE57: 40805 | EF57: 31008 | EG57: 54787 | EH57: 27739 | EI57: 64934
A58: 57
A59: 58 | B59: 労働時間計 | H59: 12 | I59: 17 | J59: 18 | K59: 23 | L59: 8.4 | M59: 8.8 | N59: 11.4 | O59: 69.8 | P59: 220 | Q59: 197 | R59: 55 | S59: 90 | T59: 126.04 | U59: 156 | V59: 290 | W59: 183.8 | X59: 151 | Y59: 667.9 | Z59: 602 | AA59: 1297 | AB59: 1611 | AC59: 1018 | AD59: 1460.9 | AE59: 951.5 | AF59: 1579 | AG59: 796 | AH59: 730 | AI59: 806 | AJ59: 222.5 | AK59: 204 | AL59: 249 | AM59: 249 | AN59: 232 | AO59: 237 | AP59: 237 | AQ59: 1619 | AR59: 1748 | AS59: 1407 | AT59: 779 | AU59: 1592 | AV59: 998.4 | AW59: 117 | AX59: 113 | AY59: 137 | AZ59: 571.9 | BA59: 110 | BB59: 2488 | BC59: 433 | BD59: 254 | BE59: 237 | BF59: 237 | BG59: 254 | BH59: 1518.8 | BI59: 1292 | BJ59: 128 | BK59: 809 | BL59: 586 | BM59: 465 | BN59: 2269 | BO59: 2384 | BP59: 1914.8 | BQ59: 744.2 | BR59: 389 | BS59: 823 | BT59: 872 | BU59: 751 | BV59: 934 | BW59: 917 | BX59: 503 | BY59: 638 | BZ59: 401 | CA59: 1047 | CB59: 537 | CC59: 1339 | CD59: 1464 | CE59: 172.4 | CF59: 171.4 | CG59: 175.4 | CH59: 482 | CI59: 482 | CJ59: 198 | CK59: 275 | CL59: 342 | CM59: 184.4 | CN59: 230 | CO59: 262 | CP59: 160 | CQ59: 186 | CR59: 186 | CS59: 417 | CT59: 178 | CU59: 236 | CV59: 298 | CW59: 217 | CX59: 304 | CY59: 234 | CZ59: 246 | DA59: 270 | DB59: 282 | DC59: 328 | DD59: 336 | DE59: 272 | DF59: 270 | DG59: 328 | DH59: 53 | DI59: 396 | DJ59: 426 | DK59: 224 | DL59: 446 | DM59: 42.25 | DN59: 305 | DO59: 152.5 | DP59: 77.2 | DQ59: 63.5 | DR59: 48 | DS59: 73.4 | DT59: 55.9 | DU59: 38 | DV59: 76.08 | DW59: 18.3346 | DX59: 14.076 | DY59: 29.8 | DZ59: 234 | EA59: 360.8 | EB59: 17 | EC59: 237 | ED59: 21.6 | EE59: 11.9 | EF59: 59.8 | EG59: 46.3 | EH59: 51.3 | EI59: 38
A60: 59 | C60: うち家族労働時間 | H60: 8 | I60: 11.4 | J60: 18 | K60: 23 | L60: 8.4 | M60: 8.8 | N60: 11.4 | O60: 69.8 | P60: 220 | Q60: 197 | R60: 55 | S60: 90 | T60: 117.04 | U60: 156 | V60: 249 | W60: 183.8 | X60: 151 | Y60: 667.9 | Z60: 553 | AA60: 1297 | AB60: 1611 | AC60: 1018 | AD60: 1029.9 | AE60: 951.5 | AF60: 1579 | AG60: 796 | AH60: 730 | AI60: 806 | AJ60: 222.5 | AK60: 204 | AL60: 249 | AM60: 249 | AN60: 200 | AO60: 188 | AP60: 237 | AQ60: 1519 | AR60: 1648 | AS60: 1407 | AT60: 779 | AU60: 1592 | AV60: 998.4 | AW60: 117 | AX60: 113 | AY60: 112 | AZ60: 562.9 | BA60: 110 | BB60: 2488 | BC60: 433 | BD60: 254 | BE60: 237 | BF60: 237 | BG60: 204 | BH60: 1518.8 | BI60: 1292 | BJ60: 128 | BK60: 609 | BL60: 546 | BM60: 441 | BN60: 2069 | BO60: 2184 | BP60: 1914.8 | BQ60: 744.2 | BR60: 389 | BS60: 740 | BT60: 872 | BU60: 602 | BV60: 934 | BW60: 917 | BX60: 503 | BY60: 500 | BZ60: 401 | CA60: 1047 | CB60: 537 | CC60: 1259 | CD60: 1264 | CE60: 172.4 | CF60: 171.4 | CG60: 175.4 | CH60: 482 | CI60: 482 | CJ60: 198 | CK60: 275 | CL60: 342 | CM60: 184.4 | CN60: 230 | CO60: 262 | CP60: 160 | CQ60: 186 | CR60: 186 | CS60: 417 | CT60: 160 | CU60: 236 | CV60: 298 | CW60: 217 | CX60: 256 | CY60: 234 | CZ60: 246 | DA60: 270 | DB60: 282 | DC60: 328 | DD60: 336 | DE60: 272 | DF60: 270 | DG60: 328 | DH60: 53 | DI60: 396 | DJ60: 426 | DK60: 148 | DL60: 446 | DM60: 39.25 | DN60: 295 | DO60: 133.5 | DP60: 60 | DQ60: 62.5 | DR60: 30 | DS60: 73.4 | DT60: 55.9 | DU60: 20 | DV60: 56.08 | DW60: 13.34 | DX60: 10 | DY60: 16.7 | DZ60: 80 | EA60: 351.1 | EB60: 17 | EC60: 120 | ED60: 15.9 | EE60: 8 | EF60: 59.8 | EG60: 30 | EH60: 50 | EI60: 20
A61: 60 | C61: うち雇用労働時間 | H61: 4 | I61: 6 | J61: 0 | K61: 0 | L61: 0 | M61: 0 | N61: 0 | O61: 0 | P61: 0 | Q61: 0 | R61: 0 | S61: 0 | T61: 9 | U61: 0 | V61: 41 | W61: 0 | X61: 0 | Y61: 0 | Z61: 49 | AA61: 0 | AB61: 0 | AC61: 0 | AD61: 431 | AE61: 0 | AF61: 0 | AG61: 0 | AH61: 0 | AI61: 0 | AJ61: 0 | AK61: 0 | AL61: 0 | AM61: 0 | AN61: 32 | AO61: 49 | AP61: 0 | AQ61: 100 | AR61: 100 | AS61: 0 | AT61: 0 | AU61: 0 | AV61: 0 | AW61: 0 | AX61: 0 | AY61: 25 | AZ61: 9 | BA61: 0 | BB61: 0 | BC61: 0 | BD61: 0 | BE61: 0 | BF61: 0 | BG61: 50 | BH61: 0 | BI61: 0 | BJ61: 0 | BK61: 200 | BL61: 40 | BM61: 24 | BN61: 200 | BO61: 200 | BP61: 0 | BQ61: 0 | BR61: 0 | BS61: 83 | BT61: 0 | BU61: 149 | BV61: 0 | BW61: 0 | BX61: 0 | BY61: 138 | BZ61: 0 | CA61: 0 | CB61: 0 | CC61: 80 | CD61: 200 | CE61: 0 | CF61: 0 | CG61: 0 | CH61: 0 | CI61: 0 | CJ61: 0 | CK61: 0 | CL61: 0 | CM61: 0 | CN61: 0 | CO61: 0 | CP61: 0 | CQ61: 0 | CR61: 0 | CS61: 0 | CT61: 18 | CU61: 0 | CV61: 0 | CW61: 0 | CX61: 48 | CY61: 0 | CZ61: 0 | DA61: 0 | DB61: 0 | DC61: 0 | DD61: 0 | DE61: 0 | DF61: 0 | DG61: 0 | DH61: 0 | DI61: 0 | DJ61: 0 | DK61: 76 | DL61: 0 | DM61: 3 | DN61: 10 | DO61: 19 | DP61: 17.2 | DQ61: 1 | DR61: 18 | DS61: 0 | DT61: 0 | DU61: 18 | DV61: 20 | DW61: 4.9946 | DX61: 4.076 | DY61: 13.1 | DZ61: 154 | EA61: 9.7 | EB61: 0 | EC61: 117 | ED61: 5.7 | EE61: 3.9 | EF61: 0 | EG61: 16.3 | EH61: 1.3 | EI61: 18
A62: 61 | G62: 検算→ | I62: =SUM(I59-I88) -> 0.05 | J62: -3.552713679e-15 | K62: 0 | L62: 0 | M62: 1.776356839e-15 | N62: 1.776356839e-15 | O62: -1.421085472e-14 | P62: 0 | Q62: 0 | R62: 0 | S62: 0 | T62: 0.04 | U62: 0 | V62: 0 | W62: 0 | X62: 0 | Y62: 0 | Z62: 0 | AA62: 0 | AB62: 0 | AC62: =SUM(AC59-AC88) -> 0 | AD62: 0 | AE62: 0 | AF62: 0 | AG62: 0 | AH62: 0 | AI62: 0 | AJ62: 0 | AK62: 0 | AL62: 0 | AM62: 0 | AN62: 0 | AO62: 0 | AP62: 0 | AQ62: 0 | AR62: 0 | AS62: 0 | AT62: 0 | AU62: 0 | AV62: 0 | AW62: 0 | AX62: 0 | AY62: 0 | AZ62: 0 | BA62: 0 | BB62: 0 | BC62: 0 | BD62: 0 | BE62: 0 | BF62: 0 | BG62: 0 | BH62: 0 | BI62: =SUM(BI59-BI88) -> 0 | BJ62: 0 | BK62: 0 | BL62: 0 | BM62: 0 | BN62: 0 | BO62: 0 | BP62: -2.273736754e-13 | BQ62: 0 | BR62: 0 | BS62: 0 | BT62: 0 | BU62: 0 | BV62: 0 | BW62: 0 | BX62: 0 | BY62: 0 | BZ62: 0 | CA62: 0 | CB62: 0 | CC62: 0 | CD62: 0 | CE62: 0 | CF62: 2.842170943e-14 | CG62: 0 | CH62: 0 | CI62: 0 | CJ62: 0 | CK62: 0 | CL62: 0 | CM62: 0 | CN62: 0 | CO62: =SUM(CO59-CO88) -> 0 | CP62: 0 | CQ62: 0 | CR62: 0 | CS62: 0 | CT62: 0 | CU62: 0 | CV62: 0 | CW62: 0 | CX62: 0 | CY62: 0 | CZ62: 0 | DA62: 0 | DB62: 0 | DC62: 0 | DD62: 0 | DE62: 0 | DF62: 0 | DG62: 0 | DH62: 0 | DI62: 0 | DJ62: 0 | DK62: 0 | DL62: 0 | DM62: 0.05 | DN62: 0 | DO62: 2.842170943e-14 | DP62: -0.04 | DQ62: 0.04 | DR62: 0.0275 | DS62: -0.0308 | DT62: -2.131628207e-14 | DU62: =SUM(DU59-DU88) -> 0.03 | DV62: -1.421085472e-14 | DW62: 0.0092 | DX62: -0.005 | DY62: -0.0009 | DZ62: -5.684341886e-14 | EA62: 0 | EB62: 0 | EC62: -1.136868377e-13 | ED62: 7.105427358e-15 | EE62: 0.05 | EF62: 0.0128 | EG62: 0.05 | EH62: -0.0118 | EI62: 0.035
A63: 62 | G63: 作物名・作型等→ | H63: =H3 -> 水稲 40ha | I63: 水稲 20ha | J63: 水稲 10ha | K63: 水稲 5ha | L63: 小麦 | M63: 大麦 | N63: 大豆 | O63: ｶﾝｼｮ | P63: ﾊﾞﾚｲｼｮ | Q63: ｻﾄｲﾓ | R63: 冬ﾆﾝｼﾞﾝ | S63: 春ﾆﾝｼﾞﾝ | T63: 夏秋ﾀﾞｲｺﾝ | U63: 春ﾀﾞｲｺﾝ | V63: 水田ｺﾞﾎﾞｳ | W63: ﾀﾏﾈｷﾞ | X63: ｽｨｰﾄｺｰﾝ | Y63: 夏秋ﾄﾏﾄ | Z63: 冬ﾄﾏﾄ | AA63: 冬春ﾄﾏﾄ | AB63: ﾐﾆﾄﾏﾄ | AC63: =AC3 -> 夏秋ﾐﾆﾄﾏﾄ | AD63: 冬春ﾅｽ | AE63: 夏秋ﾅｽ | AF63: 冬春ｷｭｳﾘ | AG63: 夏秋ｷｭｳﾘ | AH63: 夏秋ﾋﾟｰﾏﾝ | AI63: 冬春ﾋﾟｰﾏﾝ | AJ63: 春夏ｽｲｶ | AK63: 小玉ｽｲｶ | AL63: 春夏ﾒﾛﾝ ｱﾝﾃﾞｽ | AM63: 春夏ﾒﾛﾝ ｸｲﾝｼｰ | AN63: 春夏ﾒﾛﾝ 肥後ｸﾞﾘｰﾝ | AO63: 春夏ﾒﾛﾝ ｱｰﾙｽ | AP63: 秋冬ﾒﾛﾝ 抑制 | AQ63: ｲﾁｺﾞ | AR63: ｲﾁｺﾞ高設 | AS63: ｲﾝｹﾞﾝ 半促成 | AT63: ｲﾝｹﾞﾝ 抑制 | AU63: ｵｸﾗ 露地 | AV63: ｱｽﾊﾟﾗｶﾞｽ | AW63: ｷｬﾍﾞﾂ 夏秋 | AX63: ｷｬﾍﾞﾂ 冬 | AY63: 冬ﾚﾀｽ | AZ63: ﾎｳﾚﾝｿｳ 夏秋 | BA63: ﾊｸｻｲ 秋冬 | BB63: 小ﾈｷﾞ | BC63: ｼｮｳｶﾞ | BD63: ﾚﾝｺﾝ ﾊｳｽ | BE63: ﾚﾝｺﾝ | BF63: ﾆｶﾞｳﾘ | BG63: 深ﾈｷﾞ | BH63: ﾆﾗ | BI63: =BI3 -> ｽﾅｯﾌﾟｴﾝﾄﾞｳ | BJ63: ﾌﾞﾛｯｺﾘｰ | BK63: 電照ｷﾞｸ 12月切り | BL63: 小ｷﾞｸ 夏秋切り | BM63: ｽﾌﾟﾚｰｷﾞｸ 12月切り | BN63: ｶｰﾈｰｼｮﾝ | BO63: ｽﾌﾟﾚｰ ｶｰﾈｰｼｮﾝ | BP63: ﾊﾞﾗ | BQ63: 宿根ｶｽﾐｿｳ 二度切り | BR63: 宿根ｶｽﾐｿｳ 加温促成 | BS63: ｸｼﾞｬｸｱｽﾀｰ 周年 | BT63: ｽﾀｰﾁｽ 加温促成 | BU63: ｽﾀｰﾁｽ 夏秋切り | BV63: ﾄﾙｺｷﾞｷｮｳ 年内 | BW63: ﾄﾙｺｷﾞｷｮｳ 夏秋切り | BX63: ｽﾄｯｸ 11~12月 | BY63: ﾘﾝﾄﾞｳ 夏秋 | BZ63: ｱﾘｳﾑ 3~4月 | CA63: ｶﾗｰ 周年 | CB63: ｵﾘｴﾝﾀﾙﾕﾘ 12月 | CC63: ｼｸﾗﾒﾝ 12月 | CD63: ﾊﾟﾝｼﾞｰ 10~11月 | CE63: 極早生温州 | CF63: 早生温州 | CG63: 普通温州 | CH63: ﾊｳｽみかん | CI63: ﾊｳｽみかん (ｸﾞﾘｰﾝ) | CJ63: 不知火 露地 | CK63: 不知火 屋根かけ | CL63: 不知火 加温 | CM63: 甘夏 | CN63: 晩白柚 露地 | CO63: =CO3 -> 晩白柚 ﾊｳｽ | CP63: ﾎﾟﾝｶﾝ | CQ63: 清見 | CR63: 河内晩柑 | CS63: ﾊｳｽｷﾝｶﾝ | CT63: ゆず | CU63: なし 幸水･露地 | CV63: なし 幸水ﾄﾝﾈﾙ | CW63: なし 豊水 | CX63: なし 新高 | CY63: なし あきづき | CZ63: なし 秋麗 | DA63: もも 露地 | DB63: もも ﾄﾝﾈﾙ | DC63: もも 加温 | DD63: すもも ﾊｳｽ | DE63: かき 太秋 | DF63: ぶどう ﾄﾝﾈﾙ | DG63: ぶどう 無加温 | DH63: くり | DI63: いちじく 無加温 | DJ63: いちじく 加温 | DK63: ﾌﾞﾙｰﾍﾞﾘｰ | DL63: ﾏﾝｺﾞｰ | DM63: 茶 | DN63: いぐさ 畳表 | DO63: 葉たばこ | DP63: 乳牛50頭 | DQ63: 乳牛80頭 | DR63: 乳牛200頭 | DS63: 肉用牛(繁殖) 30頭(黒毛) | DT63: 肉用牛(繁殖) 80頭(黒毛) | DU63: =DU3 -> 肉用牛(繁殖) 200頭(黒毛) | DV63: 肉用牛(繁殖肥育) 100頭(黒毛) | DW63: 肉用牛(肥育) 300頭(黒毛) | DX63: 肉用牛(肥育) 400頭(交雑種) | DY63: 豚 | DZ63: 鶏採卵 | EA63: 鶏肉用鶏 | EB63: 飼料用米 | EC63: 鶏:採卵3万羽規模千羽当 | ED63: 鶏:ﾌﾞﾛｲﾗｰ5万羽規模千羽当 | EE63: 水稲（４０ｈａ）ドローン | EF63: 酪農（８０頭）餌よせロボット、哺乳ロボット | EG63: 酪農（200頭）餌よせロボット、哺乳ロボット、分娩発情監視装置 | EH63: 肉用牛繁殖（８０頭）哺乳ロボット、分娩発情監視装置 | EI63: 肉用牛（２００頭）哺乳ロボット、分娩発情監視装置 | EJ63: 0 | EK63: 0 | EL63: 0 | EM63: 0 | EN63: 0 | EO63: 0 | EP63: 0 | EQ63: 0 | ER63: 0 | ES63: 0 | ET63: 0
A64: 63 | D64: 半月労働時間 | G64: 1月上半月 | H64: 0 | I64: 0.1 | J64: 0 | K64: 0 | L64: 0.7 | M64: 0.7 | N64: 0 | O64: 1.5 | P64: 19 | Q64: 0 | R64: 0 | S64: 0 | T64: 0 | U64: 4 | V64: 1 | W64: 2 | X64: 8.5 | Y64: 5 | Z64: 32 | AA64: 71 | AB64: 95 | AC64: 5 | AD64: 65.5 | AE64: 0 | AF64: 99 | AG64: 0 | AH64: 5 | AI64: 74 | AJ64: 20 | AK64: 22 | AL64: 10 | AM64: 29 | AN64: 22 | AO64: 9 | AP64: 12 | AQ64: 60 | AR64: 66 | AS64: 13.5 | AT64: 0 | AU64: 0 | AV64: 9 | AW64: 0 | AX64: 11 | AY64: 50 | AZ64: 0 | BA64: 0 | BB64: 103.5 | BC64: 7 | BD64: 1 | BE64: 12.5 | BF64: 0 | BG64: 21 | BH64: 47 | BI64: 74 | BJ64: 11 | BK64: 0 | BL64: 0 | BM64: 0 | BN64: 80 | BO64: 115 | BP64: 40 | BQ64: 15 | BR64: 0 | BS64: 0 | BT64: 63 | BU64: 16 | BV64: 0 | BW64: 0 | BX64: 16 | BY64: 0 | BZ64: 2 | CA64: 54 | CB64: 0 | CC64: 15 | CD64: 32 | CE64: 4.5 | CF64: 4.5 | CG64: 10 | CH64: 4 | CI64: 4 | CJ64: 0 | CK64: 56 | CL64: 22 | CM64: 28 | CN64: 24 | CO64: 6 | CP64: 16 | CQ64: 0 | CR64: 0 | CS64: 13 | CT64: 8 | CU64: 8 | CV64: 10 | CW64: 8 | CX64: 12 | CY64: 8 | CZ64: 8 | DA64: 12 | DB64: 12 | DC64: 2 | DD64: 0 | DE64: 16 | DF64: 8 | DG64: 9 | DH64: 4 | DI64: 14 | DJ64: 4 | DK64: 0 | DL64: 9 | DM64: 0 | DN64: 12.5 | DO64: 1.1 | DP64: 3.27 | DQ64: 2.68 | DR64: 1.9725 | DS64: 3.133 | DT64: 2.23 | DU64: 1.485 | DV64: 3.015 | DW64: 0.723 | DX64: 0.5563 | DY64: 1.275 | DZ64: 9.93 | EA64: 15.27 | EB64: 0.05 | EC64: 9.9 | ED64: 0.9 | EE64: 0 | EF64: 2.525 | EG64: 1.895 | EH64: 2.0375 | EI64: 1.485
A65: 64 | G65: 1月下半月 | H65: 0 | I65: 0.1 | J65: 0 | K65: 0 | L65: 0.7 | M65: 0.7 | N65: 0 | O65: 1.5 | P65: 20 | Q65: 0 | R65: 0 | S65: 0 | T65: 0 | U65: 4 | V65: 11 | W65: 3 | X65: 8 | Y65: 5 | Z65: 23 | AA65: 71 | AB65: 95 | AC65: 5 | AD65: 65.5 | AE65: 0 | AF65: 99 | AG65: 0 | AH65: 5 | AI65: 0 | AJ65: 20 | AK65: 32 | AL65: 20 | AM65: 22 | AN65: 14 | AO65: 0 | AP65: 0 | AQ65: 101 | AR65: 110 | AS65: 13.5 | AT65: 0 | AU65: 0 | AV65: 119 | AW65: 0 | AX65: 11 | AY65: 50 | AZ65: 0 | BA65: 0 | BB65: 103.5 | BC65: 6 | BD65: 0 | BE65: 12.5 | BF65: 8 | BG65: 21 | BH65: 46 | BI65: 74 | BJ65: 11 | BK65: 0 | BL65: 0 | BM65: 0 | BN65: 100 | BO65: 119 | BP65: 47 | BQ65: 25 | BR65: 0 | BS65: 32 | BT65: 74 | BU65: 15 | BV65: 0 | BW65: 0 | BX65: 0 | BY65: 25 | BZ65: 6 | CA65: 69 | CB65: 0 | CC65: 29 | CD65: 0 | CE65: 4.5 | CF65: 4.5 | CG65: 10 | CH65: 9 | CI65: 9 | CJ65: 62 | CK65: 26 | CL65: 22 | CM65: 28 | CN65: 24 | CO65: 6 | CP65: 10 | CQ65: 0 | CR65: 0 | CS65: 33 | CT65: 6 | CU65: 10 | CV65: 10 | CW65: 8 | CX65: 12 | CY65: 12 | CZ65: 12 | DA65: 8 | DB65: 12 | DC65: 24 | DD65: 24 | DE65: 16 | DF65: 0 | DG65: 37 | DH65: 4 | DI65: 14 | DJ65: 4 | DK65: 8 | DL65: 9 | DM65: 0 | DN65: 12.5 | DO65: 2.7 | DP65: 3.27 | DQ65: 2.68 | DR65: 1.9725 | DS65: 3.133 | DT65: 2.23 | DU65: 1.485 | DV65: 3.015 | DW65: 0.723 | DX65: 0.5563 | DY65: 1.275 | DZ65: 9.93 | EA65: 15.27 | EB65: 0.05 | EC65: 9.9 | ED65: 0.9 | EE65: 0 | EF65: 2.525 | EG65: 1.895 | EH65: 2.0375 | EI65: 1.485
A66: 65 | G66: 2月上半月 | H66: 0 | I66: 0.1 | J66: 0 | K66: 0 | L66: 0.8 | M66: 0.9 | N66: 0 | O66: 3.5 | P66: 5 | Q66: 0 | R66: 0 | S66: 35 | T66: 0 | U66: 4 | V66: 4 | W66: 0.5 | X66: 17 | Y66: 4 | Z66: 42 | AA66: 71 | AB66: 95 | AC66: 4 | AD66: 75 | AE66: 0 | AF66: 103 | AG66: 0 | AH66: 4 | AI66: 76 | AJ66: 12 | AK66: 20 | AL66: 20 | AM66: 26 | AN66: 34 | AO66: 0 | AP66: 0 | AQ66: 88 | AR66: 97 | AS66: 24.5 | AT66: 0 | AU66: 0 | AV66: 7 | AW66: 0 | AX66: 11 | AY66: 1.5 | AZ66: 3.5 | BA66: 0 | BB66: 103.5 | BC66: 16 | BD66: 0 | BE66: 7.5 | BF66: 16 | BG66: 21 | BH66: 30 | BI66: 133 | BJ66: 11 | BK66: 0 | BL66: 8 | BM66: 0 | BN66: 92 | BO66: 129 | BP66: 134 | BQ66: 25 | BR66: 0 | BS66: 0 | BT66: 74 | BU66: 15 | BV66: 0 | BW66: 16 | BX66: 0 | BY66: 5 | BZ66: 6 | CA66: 74 | CB66: 0 | CC66: 12 | CD66: 0 | CE66: 6 | CF66: 6 | CG66: 4 | CH66: 8 | CI66: 8 | CJ66: 13 | CK66: 14 | CL66: 14 | CM66: 23 | CN66: 8.5 | CO66: 16 | CP66: 9 | CQ66: 16 | CR66: 13 | CS66: 67 | CT66: 8 | CU66: 10 | CV66: 10 | CW66: 8 | CX66: 7 | CY66: 12 | CZ66: 12 | DA66: 0 | DB66: 8 | DC66: 14 | DD66: 3 | DE66: 4 | DF66: 1 | DG66: 4 | DH66: 4 | DI66: 19 | DJ66: 8.5 | DK66: 10 | DL66: 18 | DM66: 0.2 | DN66: 11.5 | DO66: 4.7 | DP66: 3.01 | DQ66: 2.48 | DR66: 1.83 | DS66: 2.7 | DT66: 2.02 | DU66: 1.35 | DV66: 2.755 | DW66: 0.668 | DX66: 0.5113 | DY66: 1.1567 | DZ66: 9.09 | EA66: 14.14 | EB66: 0.05 | EC66: 9.9 | ED66: 0.9 | EE66: 0 | EF66: 2.3375 | EG66: 1.76 | EH66: 1.8437 | EI66: 1.35
A67: 66 | G67: 2月下半月 | H67: 0 | I67: 0.1 | J67: 0 | K67: 0 | L67: 0.9 | M67: 0.9 | N67: 0 | O67: 2.5 | P67: 5 | Q67: 3 | R67: 0 | S67: 2 | T67: 0 | U67: 19 | V67: 14 | W67: 0.5 | X67: 17.5 | Y67: 0 | Z67: 0 | AA67: 71 | AB67: 90 | AC67: 0 | AD67: 75 | AE67: 23 | AF67: 103 | AG67: 0 | AH67: 6 | AI67: 0 | AJ67: 14 | AK67: 15 | AL67: 20 | AM67: 18 | AN67: 6 | AO67: 0 | AP67: 0 | AQ67: 126 | AR67: 136 | AS67: 24.5 | AT67: 0 | AU67: 0 | AV67: 18 | AW67: 1 | AX67: 12 | AY67: 1.5 | AZ67: 4.2 | BA67: 0 | BB67: 103.5 | BC67: 16 | BD67: 18 | BE67: 7.5 | BF67: 16 | BG67: 20 | BH67: 29 | BI67: 133 | BJ67: 12 | BK67: 0 | BL67: 72 | BM67: 0 | BN67: 99 | BO67: 137 | BP67: 143 | BQ67: 29 | BR67: 0 | BS67: 0 | BT67: 82 | BU67: 13 | BV67: 0 | BW67: 8 | BX67: 0 | BY67: 0 | BZ67: 46 | CA67: 74 | CB67: 0 | CC67: 15 | CD67: 0 | CE67: 6 | CF67: 6 | CG67: 4 | CH67: 11 | CI67: 11 | CJ67: 13 | CK67: 26 | CL67: 14 | CM67: 15 | CN67: 8.5 | CO67: 16 | CP67: 19 | CQ67: 16 | CR67: 13 | CS67: 83 | CT67: 12 | CU67: 11 | CV67: 32 | CW67: 12 | CX67: 7 | CY67: 13 | CZ67: 13 | DA67: 2 | DB67: 22 | DC67: 13 | DD67: 3 | DE67: 2 | DF67: 1 | DG67: 5 | DH67: 2 | DI67: 19 | DJ67: 8.5 | DK67: 0 | DL67: 18 | DM67: 0 | DN67: 11.5 | DO67: 4.7 | DP67: 3.01 | DQ67: 2.48 | DR67: 1.83 | DS67: 2.7 | DT67: 2.02 | DU67: 1.35 | DV67: 2.755 | DW67: 0.668 | DX67: 0.5113 | DY67: 1.1567 | DZ67: 9.09 | EA67: 14.14 | EB67: 0.05 | EC67: 9.9 | ED67: 0.9 | EE67: 0 | EF67: 2.3375 | EG67: 1.76 | EH67: 1.8437 | EI67: 1.35
A68: 67 | G68: 3月上半月 | H68: 0 | I68: 0.55 | J68: 0 | K68: 0 | L68: 0 | M68: 0 | N68: 0 | O68: 1.7 | P68: 1 | Q68: 0 | R68: 0 | S68: 1 | T68: 0.3 | U68: 19.5 | V68: 5 | W68: 2 | X68: 0.5 | Y68: 0 | Z68: 0 | AA68: 77 | AB68: 91 | AC68: 0 | AD68: 89.5 | AE68: 17 | AF68: 116 | AG68: 0 | AH68: 12 | AI68: 105 | AJ68: 8 | AK68: 15 | AL68: 26 | AM68: 24 | AN68: 19 | AO68: 0 | AP68: 0 | AQ68: 135 | AR68: 150 | AS68: 32.5 | AT68: 0 | AU68: 40 | AV68: 9 | AW68: 0 | AX68: 11 | AY68: 0 | AZ68: 3.2 | BA68: 0 | BB68: 103.5 | BC68: 8 | BD68: 2 | BE68: 19 | BF68: 10 | BG68: 2 | BH68: 40 | BI68: 134 | BJ68: 11 | BK68: 0 | BL68: 4 | BM68: 0 | BN68: 101 | BO68: 157 | BP68: 75 | BQ68: 30 | BR68: 0 | BS68: 8 | BT68: 73 | BU68: 35 | BV68: 0 | BW68: 2 | BX68: 0 | BY68: 38 | BZ68: 38 | CA68: 89 | CB68: 0 | CC68: 14 | CD68: 0 | CE68: 6.5 | CF68: 6.5 | CG68: 7.5 | CH68: 26 | CI68: 26 | CJ68: 21 | CK68: 6 | CL68: 6 | CM68: 10 | CN68: 13 | CO68: 9 | CP68: 12 | CQ68: 36 | CR68: 16 | CS68: 39 | CT68: 12 | CU68: 3 | CV68: 9 | CW68: 3 | CX68: 3.5 | CY68: 3 | CZ68: 3 | DA68: 0 | DB68: 16 | DC68: 25 | DD68: 26 | DE68: 0 | DF68: 0 | DG68: 7 | DH68: 0 | DI68: 5.5 | DJ68: 7 | DK68: 0 | DL68: 20 | DM68: 1.1 | DN68: 12 | DO68: 8.2 | DP68: 3.27 | DQ68: 2.69 | DR68: 2.115 | DS68: 3.133 | DT68: 2.23 | DU68: 2.08 | DV68: 3.015 | DW68: 0.723 | DX68: 0.5563 | DY68: 1.2917 | DZ68: 9.93 | EA68: 15.27 | EB68: 0.75 | EC68: 9.9 | ED68: 0.9 | EE68: 0 | EF68: 2.5312 | EG68: 2.0375 | EH68: 2.0375 | EI68: 2.0775
A69: 68 | G69: 3月下半月 | H69: 0 | I69: 0.55 | J69: 0 | K69: 0 | L69: 0 | M69: 0 | N69: 0 | O69: 8.3 | P69: 1 | Q69: 3 | R69: 0 | S69: 10 | T69: 0.3 | U69: 17.5 | V69: 38 | W69: 3 | X69: 0.5 | Y69: 6 | Z69: 0 | AA69: 75 | AB69: 94 | AC69: 6 | AD69: 89.5 | AE69: 0 | AF69: 116 | AG69: 0 | AH69: 18 | AI69: 0 | AJ69: 20 | AK69: 4 | AL69: 26 | AM69: 15 | AN69: 19 | AO69: 0 | AP69: 0 | AQ69: 141 | AR69: 155 | AS69: 32.5 | AT69: 0 | AU69: 24 | AV69: 10 | AW69: 2.2 | AX69: 7 | AY69: 0 | AZ69: 3.6 | BA69: 0 | BB69: 103.5 | BC69: 8 | BD69: 42 | BE69: 19 | BF69: 14 | BG69: 1 | BH69: 57 | BI69: 134 | BJ69: 7 | BK69: 0 | BL69: 36 | BM69: 0 | BN69: 139 | BO69: 161 | BP69: 108 | BQ69: 39 | BR69: 0 | BS69: 28 | BT69: 84 | BU69: 23 | BV69: 0 | BW69: 8 | BX69: 0 | BY69: 34 | BZ69: 70 | CA69: 90 | CB69: 0 | CC69: 38 | CD69: 0 | CE69: 6.5 | CF69: 6.5 | CG69: 7.5 | CH69: 26 | CI69: 26 | CJ69: 8 | CK69: 32 | CL69: 4 | CM69: 6 | CN69: 13 | CO69: 9 | CP69: 4 | CQ69: 36 | CR69: 16 | CS69: 30 | CT69: 2 | CU69: 2 | CV69: 6 | CW69: 2 | CX69: 3.5 | CY69: 2 | CZ69: 14 | DA69: 13 | DB69: 18 | DC69: 11 | DD69: 21 | DE69: 1 | DF69: 19 | DG69: 10 | DH69: 0 | DI69: 5.5 | DJ69: 7 | DK69: 2 | DL69: 20 | DM69: 0 | DN69: 12 | DO69: 7.2 | DP69: 3.27 | DQ69: 2.69 | DR69: 2.115 | DS69: 3.133 | DT69: 2.23 | DU69: 2.08 | DV69: 3.015 | DW69: 0.723 | DX69: 0.5563 | DY69: 1.2917 | DZ69: 9.93 | EA69: 15.27 | EB69: 0.75 | EC69: 9.9 | ED69: 0.9 | EE69: 0 | EF69: 2.5312 | EG69: 2.0375 | EH69: 2.0375 | EI69: 2.0775
A70: 69 | G70: 4月上半月 | H70: 0.4 | I70: 1.85 | J70: 0 | K70: 0 | L70: 0.1 | M70: 0.4 | N70: 0 | O70: 2.8 | P70: 18 | Q70: 21 | R70: 0 | S70: 0 | T70: 1.3 | U70: 16 | V70: 44 | W70: 45 | X70: 13 | Y70: 29 | Z70: 0 | AA70: 85 | AB70: 94 | AC70: 29 | AD70: 81 | AE70: 38 | AF70: 114 | AG70: 0 | AH70: 30 | AI70: 110 | AJ70: 20 | AK70: 12 | AL70: 18 | AM70: 8 | AN70: 17 | AO70: 0 | AP70: 0 | AQ70: 106 | AR70: 117 | AS70: 259.5 | AT70: 0 | AU70: 0 | AV70: 16 | AW70: 0 | AX70: 7 | AY70: 0 | AZ70: 1.1 | BA70: 0 | BB70: 103.5 | BC70: 28 | BD70: 0 | BE70: 13 | BF70: 18 | BG70: 3 | BH70: 105 | BI70: 134 | BJ70: 2 | BK70: 0 | BL70: 69 | BM70: 0 | BN70: 112 | BO70: 156 | BP70: 146 | BQ70: 71 | BR70: 0 | BS70: 32 | BT70: 43 | BU70: 56 | BV70: 0 | BW70: 12 | BX70: 0 | BY70: 52 | BZ70: 72 | CA70: 72 | CB70: 0 | CC70: 117 | CD70: 0 | CE70: 2.5 | CF70: 0.5 | CG70: 1.5 | CH70: 24 | CI70: 24 | CJ70: 7 | CK70: 5 | CL70: 4 | CM70: 2 | CN70: 2.5 | CO70: 9.5 | CP70: 0 | CQ70: 5 | CR70: 13 | CS70: 6 | CT70: 3 | CU70: 11 | CV70: 24 | CW70: 11 | CX70: 15.5 | CY70: 3 | CZ70: 3 | DA70: 12 | DB70: 28 | DC70: 15 | DD70: 18 | DE70: 3 | DF70: 4 | DG70: 12 | DH70: 1 | DI70: 9 | DJ70: 7.5 | DK70: 4 | DL70: 34 | DM70: 1.4 | DN70: 14 | DO70: 6.1 | DP70: 3.18 | DQ70: 2.63 | DR70: 2.1775 | DS70: 3.9 | DT70: 3.14 | DU70: 2.0575 | DV70: 4.34 | DW70: 1.045 | DX70: 0.875 | DY70: 1.2183 | DZ70: 9.65 | EA70: 14.88 | EB70: 1.75 | EC70: 9.9 | ED70: 0.9 | EE70: 0.4 | EF70: 2.475 | EG70: 2.1025 | EH70: 2.7062 | EI70: 2.0575
A71: 70 | G71: 4月下半月 | H71: 0.4 | I71: 1.85 | J71: 0 | K71: 0 | L71: 0.1 | M71: 0.4 | N71: 0 | O71: 2.8 | P71: 19 | Q71: 8 | R71: 0 | S71: 16 | T71: 1.3 | U71: 15.5 | V71: 56 | W71: 45 | X71: 15 | Y71: 51 | Z71: 0 | AA71: 85 | AB71: 94 | AC71: 51 | AD71: 81 | AE71: 86 | AF71: 113 | AG71: 0 | AH71: 35 | AI71: 0 | AJ71: 18 | AK71: 8 | AL71: 30 | AM71: 24 | AN71: 11 | AO71: 0 | AP71: 0 | AQ71: 133 | AR71: 146 | AS71: 259.5 | AT71: 0 | AU71: 0 | AV71: 37 | AW71: 5.4 | AX71: 2 | AY71: 0 | AZ71: 31 | BA71: 0 | BB71: 103.5 | BC71: 27 | BD71: 26 | BE71: 13 | BF71: 18 | BG71: 12 | BH71: 103 | BI71: 134 | BJ71: 0 | BK71: 0 | BL71: 19 | BM71: 0 | BN71: 139 | BO71: 163 | BP71: 155 | BQ71: 69 | BR71: 0 | BS71: 14 | BT71: 20 | BU71: 25 | BV71: 0 | BW71: 39 | BX71: 0 | BY71: 36 | BZ71: 63 | CA71: 75 | CB71: 0 | CC71: 40 | CD71: 0 | CE71: 2.5 | CF71: 0.5 | CG71: 1.5 | CH71: 24 | CI71: 24 | CJ71: 4 | CK71: 2 | CL71: 6 | CM71: 4 | CN71: 2.5 | CO71: 9.5 | CP71: 2 | CQ71: 5 | CR71: 13 | CS71: 6 | CT71: 0 | CU71: 18 | CV71: 35 | CW71: 18 | CX71: 15.5 | CY71: 22 | CZ71: 22 | DA71: 31 | DB71: 25 | DC71: 13 | DD71: 17 | DE71: 10 | DF71: 7 | DG71: 49 | DH71: 0 | DI71: 9 | DJ71: 7.5 | DK71: 6 | DL71: 34 | DM71: 2.3 | DN71: 14 | DO71: 10 | DP71: 3.18 | DQ71: 2.63 | DR71: 2.1775 | DS71: 3.9 | DT71: 3.14 | DU71: 2.0575 | DV71: 4.34 | DW71: 1.045 | DX71: 0.875 | DY71: 1.2183 | DZ71: 9.65 | EA71: 14.88 | EB71: 1.75 | EC71: 9.9 | ED71: 0.9 | EE71: 0.4 | EF71: 2.475 | EG71: 2.1025 | EH71: 2.7062 | EI71: 2.0575
A72: 71 | G72: 5月上半月 | H72: 1.8 | I72: 1.25 | J72: 2.7 | K72: 1.7 | L72: 0.6 | M72: 0.4 | N72: 0 | O72: 2.7 | P72: 48 | Q72: 12 | R72: 0 | S72: 6 | T72: 4.8 | U72: 15.5 | V72: 31 | W72: 4 | X72: 30 | Y72: 53 | Z72: 0 | AA72: 65 | AB72: 89 | AC72: 49 | AD72: 73.5 | AE72: 67 | AF72: 76 | AG72: 14 | AH72: 24 | AI72: 140 | AJ72: 4 | AK72: 8 | AL72: 10 | AM72: 16 | AN72: 10 | AO72: 0 | AP72: 0 | AQ72: 44 | AR72: 49 | AS72: 284.5 | AT72: 0 | AU72: 8 | AV72: 60 | AW72: 0 | AX72: 0 | AY72: 0 | AZ72: 37 | BA72: 0 | BB72: 103.5 | BC72: 4 | BD72: 0 | BE72: 1 | BF72: 18 | BG72: 12 | BH72: 61 | BI72: 68 | BJ72: 0 | BK72: 0 | BL72: 9 | BM72: 0 | BN72: 92 | BO72: 147 | BP72: 85 | BQ72: 65 | BR72: 0 | BS72: 17 | BT72: 0 | BU72: 49 | BV72: 20 | BW72: 20 | BX72: 0 | BY72: 6 | BZ72: 8 | CA72: 122 | CB72: 0 | CC72: 6 | CD72: 0 | CE72: 2.5 | CF72: 3 | CG72: 3 | CH72: 26 | CI72: 26 | CJ72: 2 | CK72: 5 | CL72: 4 | CM72: 4 | CN72: 13.5 | CO72: 8.5 | CP72: 0 | CQ72: 3 | CR72: 13 | CS72: 6 | CT72: 4 | CU72: 29 | CV72: 22 | CW72: 13 | CX72: 26 | CY72: 17 | CZ72: 17 | DA72: 48 | DB72: 16 | DC72: 17 | DD72: 17 | DE72: 11 | DF72: 11 | DG72: 37 | DH72: 0 | DI72: 8.5 | DJ72: 31 | DK72: 0 | DL72: 15 | DM72: 9.9 | DN72: 16 | DO72: 6.8 | DP72: 3.27 | DQ72: 2.68 | DR72: 2 | DS72: 3.133 | DT72: 2.35 | DU72: 1.5325 | DV72: 3.11 | DW72: 0.723 | DX72: 0.5563 | DY72: 1.2583 | DZ72: 9.93 | EA72: 15.27 | EB72: 1.95 | EC72: 9.9 | ED72: 0.9 | EE72: 1.8 | EF72: 2.525 | EG72: 1.92 | EH72: 2.4062 | EI72: 1.5325
A73: 72 | G73: 5月下半月 | H73: 1.8 | I73: 1.25 | J73: 2.7 | K73: 1.7 | L73: 0.5 | M73: 0.4 | N73: 0 | O73: 2.1 | P73: 49 | Q73: 4 | R73: 0 | S73: 0 | T73: 8.8 | U73: 15.5 | V73: 30 | W73: 0 | X73: 29 | Y73: 24.9 | Z73: 0 | AA73: 63 | AB73: 87 | AC73: 12 | AD73: 73.5 | AE73: 24 | AF73: 84 | AG73: 14 | AH73: 36 | AI73: 0 | AJ73: 8 | AK73: 12 | AL73: 0 | AM73: 0 | AN73: 10 | AO73: 0 | AP73: 0 | AQ73: 88 | AR73: 93 | AS73: 284.5 | AT73: 0 | AU73: 6 | AV73: 88 | AW73: 6.2 | AX73: 0 | AY73: 0 | AZ73: 45 | BA73: 0 | BB73: 103.5 | BC73: 1 | BD73: 15 | BE73: 1 | BF73: 19 | BG73: 12 | BH73: 38 | BI73: 33 | BJ73: 0 | BK73: 0 | BL73: 10 | BM73: 0 | BN73: 126 | BO73: 40 | BP73: 82 | BQ73: 20 | BR73: 0 | BS73: 1 | BT73: 0 | BU73: 17 | BV73: 1 | BW73: 45 | BX73: 0 | BY73: 6 | BZ73: 8 | CA73: 57 | CB73: 0 | CC73: 63 | CD73: 0 | CE73: 2.5 | CF73: 3 | CG73: 3 | CH73: 20 | CI73: 20 | CJ73: 4 | CK73: 2 | CL73: 50 | CM73: 2 | CN73: 13.5 | CO73: 8.5 | CP73: 4 | CQ73: 3 | CR73: 13 | CS73: 1 | CT73: 2 | CU73: 14 | CV73: 22 | CW73: 14 | CX73: 26 | CY73: 22 | CZ73: 22 | DA73: 33 | DB73: 7 | DC73: 28 | DD73: 46 | DE73: 2 | DF73: 48 | DG73: 26 | DH73: 0 | DI73: 8.5 | DJ73: 31 | DK73: 4 | DL73: 15 | DM73: 3.5 | DN73: 16 | DO73: 17 | DP73: 3.27 | DQ73: 2.68 | DR73: 2 | DS73: 3.133 | DT73: 2.35 | DU73: 1.5325 | DV73: 3.11 | DW73: 0.723 | DX73: 0.5563 | DY73: 1.2583 | DZ73: 9.93 | EA73: 15.27 | EB73: 1.95 | EC73: 9.9 | ED73: 0.9 | EE73: 1.8 | EF73: 2.525 | EG73: 1.92 | EH73: 2.4062 | EI73: 1.5325
A74: 73 | G74: 6月上半月 | H74: 1.25 | I74: 1.6 | J74: 2.5 | K74: 3.05 | L74: 0 | M74: 0 | N74: 0 | O74: 0 | P74: 4 | Q74: 11 | R74: 0 | S74: 0 | T74: 8.9 | U74: 1.5 | V74: 0 | W74: 0 | X74: 3 | Y74: 35 | Z74: 0 | AA74: 65 | AB74: 59 | AC74: 21 | AD74: 60 | AE74: 37 | AF74: 0 | AG74: 32 | AH74: 50 | AI74: 104 | AJ74: 8 | AK74: 0 | AL74: 0 | AM74: 0 | AN74: 8 | AO74: 0 | AP74: 0 | AQ74: 5 | AR74: 5 | AS74: 85 | AT74: 0 | AU74: 122 | AV74: 59 | AW74: 5 | AX74: 0 | AY74: 0 | AZ74: 44 | BA74: 0 | BB74: 103.5 | BC74: 11 | BD74: 0 | BE74: 0 | BF74: 20 | BG74: 4 | BH74: 33 | BI74: 3 | BJ74: 0 | BK74: 0 | BL74: 24 | BM74: 0 | BN74: 97 | BO74: 108 | BP74: 53 | BQ74: 10 | BR74: 0 | BS74: 9 | BT74: 0 | BU74: 54 | BV74: 29 | BW74: 39 | BX74: 0 | BY74: 10 | BZ74: 0 | CA74: 35 | CB74: 0 | CC74: 66 | CD74: 0 | CE74: 11.5 | CF74: 0.6 | CG74: 0.5 | CH74: 19 | CI74: 19 | CJ74: 5 | CK74: 5 | CL74: 28 | CM74: 6 | CN74: 14 | CO74: 10 | CP74: 4 | CQ74: 3 | CR74: 8 | CS74: 3 | CT74: 6 | CU74: 20 | CV74: 12 | CW74: 12 | CX74: 31.5 | CY74: 20 | CZ74: 20 | DA74: 5 | DB74: 9 | DC74: 44 | DD74: 43 | DE74: 3 | DF74: 35 | DG74: 3 | DH74: 1 | DI74: 8 | DJ74: 50 | DK74: 2 | DL74: 16.5 | DM74: 1.9 | DN74: 12 | DO74: 19.2 | DP74: 3.18 | DQ74: 2.61 | DR74: 1.925 | DS74: 2.8167 | DT74: 2.25 | DU74: 1.475 | DV74: 3 | DW74: 0.705 | DX74: 0.5413 | DY74: 1.2183 | DZ74: 9.65 | EA74: 14.88 | EB74: 0.8 | EC74: 9.9 | ED74: 0.9 | EE74: 1.25 | EF74: 2.4625 | EG74: 1.85 | EH74: 2.0625 | EI74: 1.475
A75: 74 | G75: 6月下半月 | H75: 1.25 | I75: 1.6 | J75: 2.5 | K75: 3.05 | L75: 0 | M75: 0 | N75: 0 | O75: 0.5 | P75: 4 | Q75: 10 | R75: 0 | S75: 0 | T75: 8.9 | U75: 0 | V75: 0 | W75: 0 | X75: 2 | Y75: 36 | Z75: 1 | AA75: 50 | AB75: 65 | AC75: 39 | AD75: 60 | AE75: 79 | AF75: 0 | AG75: 52 | AH75: 56 | AI75: 0 | AJ75: 0 | AK75: 0 | AL75: 0 | AM75: 0 | AN75: 20 | AO75: 0 | AP75: 0 | AQ75: 44 | AR75: 44 | AS75: 85 | AT75: 0 | AU75: 146 | AV75: 72 | AW75: 22.2 | AX75: 0 | AY75: 0 | AZ75: 39 | BA75: 0 | BB75: 103.5 | BC75: 10 | BD75: 34 | BE75: 0 | BF75: 18 | BG75: 0 | BH75: 20 | BI75: 48 | BJ75: 0 | BK75: 0 | BL75: 20 | BM75: 0 | BN75: 42 | BO75: 44 | BP75: 62 | BQ75: 0 | BR75: 0 | BS75: 9 | BT75: 0 | BU75: 38 | BV75: 6 | BW75: 60 | BX75: 0 | BY75: 38 | BZ75: 0 | CA75: 111 | CB75: 10 | CC75: 60 | CD75: 0 | CE75: 11.5 | CF75: 0.6 | CG75: 0.5 | CH75: 34 | CI75: 34 | CJ75: 18 | CK75: 32 | CL75: 40 | CM75: 2 | CN75: 14 | CO75: 10 | CP75: 2 | CQ75: 3 | CR75: 8 | CS75: 2 | CT75: 2 | CU75: 1 | CV75: 5 | CW75: 9 | CX75: 31.5 | CY75: 1 | CZ75: 1 | DA75: 5 | DB75: 25 | DC75: 29 | DD75: 27 | DE75: 8 | DF75: 20 | DG75: 7 | DH75: 0 | DI75: 8 | DJ75: 50 | DK75: 25 | DL75: 16.5 | DM75: 7.6 | DN75: 12 | DO75: 17.8 | DP75: 3.18 | DQ75: 2.61 | DR75: 1.925 | DS75: 2.8167 | DT75: 2.25 | DU75: 1.475 | DV75: 3 | DW75: 0.705 | DX75: 0.5413 | DY75: 1.2183 | DZ75: 9.65 | EA75: 14.88 | EB75: 0.8 | EC75: 9.9 | ED75: 0.9 | EE75: 1.25 | EF75: 2.4625 | EG75: 1.85 | EH75: 2.0625 | EI75: 1.475
A76: 75 | G76: 7月上半月 | H76: 0.9 | I76: 0.3 | J76: 0.55 | K76: 1.8 | L76: 0 | M76: 0 | N76: 2.6 | O76: 0.2 | P76: 0 | Q76: 1 | R76: 3 | S76: 0 | T76: 8.9 | U76: 0 | V76: 0 | W76: 0.6 | X76: 0 | Y76: 57 | Z76: 1 | AA76: 20 | AB76: 24 | AC76: 74 | AD76: 2 | AE76: 0 | AF76: 0 | AG76: 29 | AH76: 66 | AI76: 0 | AJ76: 12 | AK76: 0 | AL76: 0 | AM76: 0 | AN76: 0 | AO76: 0 | AP76: 12 | AQ76: 20 | AR76: 23 | AS76: 0 | AT76: 0 | AU76: 177 | AV76: 64 | AW76: 0 | AX76: 0 | AY76: 0 | AZ76: 39 | BA76: 0 | BB76: 103.5 | BC76: 27 | BD76: 0 | BE76: 2.5 | BF76: 18 | BG76: 2 | BH76: 56 | BI76: 0 | BJ76: 0 | BK76: 0 | BL76: 22 | BM76: 0 | BN76: 17 | BO76: 37 | BP76: 53 | BQ76: 3 | BR76: 0 | BS76: 21 | BT76: 0 | BU76: 54 | BV76: 24 | BW76: 58 | BX76: 0 | BY76: 38 | BZ76: 0 | CA76: 2 | CB76: 0 | CC76: 23 | CD76: 39 | CE76: 3.5 | CF76: 10.5 | CG76: 1.5 | CH76: 45 | CI76: 45 | CJ76: 6 | CK76: 7 | CL76: 16 | CM76: 4 | CN76: 13 | CO76: 18 | CP76: 6 | CQ76: 9 | CR76: 13 | CS76: 24 | CT76: 4 | CU76: 6 | CV76: 4 | CW76: 2 | CX76: 2.5 | CY76: 6 | CZ76: 6 | DA76: 19 | DB76: 23 | DC76: 22 | DD76: 15 | DE76: 15 | DF76: 1 | DG76: 25 | DH76: 1 | DI76: 32.5 | DJ76: 46.5 | DK76: 29 | DL76: 33.5 | DM76: 1.5 | DN76: 13 | DO76: 16.4 | DP76: 3.27 | DQ76: 2.69 | DR76: 2.11 | DS76: 3.1 | DT76: 2.34 | DU76: 1.5275 | DV76: 3.1 | DW76: 0.723 | DX76: 0.5563 | DY76: 1.2583 | DZ76: 9.93 | EA76: 15.27 | EB76: 0.45 | EC76: 9.9 | ED76: 0.9 | EE76: 0.825 | EF76: 2.5312 | EG76: 2.0325 | EH76: 2.1437 | EI76: 1.5275
A77: 76 | G77: 7月下半月 | H77: 0.9 | I77: 0.3 | J77: 0.55 | K77: 1.8 | L77: 0 | M77: 0 | N77: 2.6 | O77: 0 | P77: 0 | Q77: 3 | R77: 6 | S77: 0 | T77: 9.1 | U77: 0 | V77: 0 | W77: 0.7 | X77: 0 | Y77: 66 | Z77: 55 | AA77: 0 | AB77: 12 | AC77: 79 | AD77: 2 | AE77: 181 | AF77: 0 | AG77: 30 | AH77: 58 | AI77: 0 | AJ77: 0 | AK77: 0 | AL77: 0 | AM77: 0 | AN77: 0 | AO77: 6 | AP77: 12 | AQ77: 58 | AR77: 62 | AS77: 0 | AT77: 0 | AU77: 176 | AV77: 73 | AW77: 21.2 | AX77: 0 | AY77: 0 | AZ77: 40 | BA77: 0 | BB77: 103.5 | BC77: 26 | BD77: 92 | BE77: 2.5 | BF77: 14 | BG77: 0 | BH77: 55 | BI77: 0 | BJ77: 8 | BK77: 16 | BL77: 4 | BM77: 0 | BN77: 40 | BO77: 11 | BP77: 62 | BQ77: 10 | BR77: 20 | BS77: 20 | BT77: 0 | BU77: 41 | BV77: 23 | BW77: 100 | BX77: 56 | BY77: 38 | BZ77: 0 | CA77: 5 | CB77: 0 | CC77: 23 | CD77: 57 | CE77: 3.5 | CF77: 10.5 | CG77: 1.5 | CH77: 40 | CI77: 40 | CJ77: 10 | CK77: 1 | CL77: 19 | CM77: 11 | CN77: 13 | CO77: 18 | CP77: 12 | CQ77: 9 | CR77: 13 | CS77: 4 | CT77: 11 | CU77: 22 | CV77: 38 | CW77: 6 | CX77: 2.5 | CY77: 6 | CZ77: 6 | DA77: 18 | DB77: 16 | DC77: 2 | DD77: 10 | DE77: 35 | DF77: 10 | DG77: 32 | DH77: 1 | DI77: 32.5 | DJ77: 46.5 | DK77: 29 | DL77: 33.5 | DM77: 1.6 | DN77: 13 | DO77: 14.8 | DP77: 3.27 | DQ77: 2.69 | DR77: 2.11 | DS77: 3.1 | DT77: 2.34 | DU77: 1.5275 | DV77: 3.1 | DW77: 0.723 | DX77: 0.5563 | DY77: 1.2583 | DZ77: 9.93 | EA77: 15.27 | EB77: 0.45 | EC77: 9.9 | ED77: 0.9 | EE77: 0.825 | EF77: 2.5312 | EG77: 2.0325 | EH77: 2.1437 | EI77: 1.5275
A78: 77 | G78: 8月上半月 | H78: 0.45 | I78: 0.3 | J78: 0.45 | K78: 1.75 | L78: 0 | M78: 0 | N78: 2 | O78: 0.2 | P78: 0 | Q78: 0 | R78: 1 | S78: 0 | T78: 9.1 | U78: 0 | V78: 0 | W78: 0 | X78: 0 | Y78: 57 | Z78: 62 | AA78: 12 | AB78: 52 | AC78: 126 | AD78: 23 | AE78: 0 | AF78: 0 | AG78: 71 | AH78: 61 | AI78: 0 | AJ78: 0 | AK78: 0 | AL78: 0 | AM78: 0 | AN78: 0 | AO78: 18 | AP78: 12 | AQ78: 26 | AR78: 30 | AS78: 0 | AT78: 6 | AU78: 140 | AV78: 63 | AW78: 0 | AX78: 8 | AY78: 0 | AZ78: 42 | BA78: 21 | BB78: 103.5 | BC78: 20 | BD78: 0 | BE78: 12.5 | BF78: 12 | BG78: 1 | BH78: 65 | BI78: 0 | BJ78: 1 | BK78: 36 | BL78: 120 | BM78: 0 | BN78: 27 | BO78: 29 | BP78: 45 | BQ78: 16 | BR78: 44 | BS78: 129 | BT78: 0 | BU78: 54 | BV78: 103 | BW78: 74 | BX78: 60 | BY78: 56 | BZ78: 0 | CA78: 2 | CB78: 0 | CC78: 31 | CD78: 216 | CE78: 3.5 | CF78: 6.5 | CG78: 5.5 | CH78: 46 | CI78: 46 | CJ78: 4 | CK78: 21 | CL78: 1 | CM78: 9 | CN78: 8.5 | CO78: 8.5 | CP78: 4 | CQ78: 7 | CR78: 6 | CS78: 4 | CT78: 11 | CU78: 25 | CV78: 17 | CW78: 1 | CX78: 2 | CY78: 1 | CZ78: 17 | DA78: 18 | DB78: 5 | DC78: 2 | DD78: 0 | DE78: 35 | DF78: 8 | DG78: 16 | DH78: 5 | DI78: 46.5 | DJ78: 22.5 | DK78: 31 | DL78: 43 | DM78: 0.8 | DN78: 12 | DO78: 4.5 | DP78: 3.27 | DQ78: 2.68 | DR78: 1.9725 | DS78: 2.9 | DT78: 2.32 | DU78: 1.5175 | DV78: 3.08 | DW78: 0.723 | DX78: 0.5563 | DY78: 1.2583 | DZ78: 9.93 | EA78: 15.27 | EB78: 0.45 | EC78: 9.9 | ED78: 0.9 | EE78: 0.375 | EF78: 2.525 | EG78: 1.895 | EH78: 2.1187 | EI78: 1.5175
A79: 78 | G79: 8月下半月 | H79: 0.45 | I79: 0.3 | J79: 0.45 | K79: 1.75 | L79: 0 | M79: 0 | N79: 2 | O79: 0.2 | P79: 0 | Q79: 2 | R79: 8 | S79: 0 | T79: 9.1 | U79: 0 | V79: 0 | W79: 0 | X79: 0 | Y79: 59 | Z79: 50 | AA79: 52 | AB79: 68 | AC79: 124 | AD79: 23 | AE79: 149 | AF79: 0 | AG79: 71 | AH79: 58 | AI79: 0 | AJ79: 0 | AK79: 0 | AL79: 0 | AM79: 0 | AN79: 0 | AO79: 27 | AP79: 28 | AQ79: 64 | AR79: 68 | AS79: 0 | AT79: 6 | AU79: 174 | AV79: 73 | AW79: 20 | AX79: 1 | AY79: 0 | AZ79: 43 | BA79: 0 | BB79: 103.5 | BC79: 28 | BD79: 22 | BE79: 12.5 | BF79: 16 | BG79: 1 | BH79: 64 | BI79: 0 | BJ79: 1 | BK79: 109 | BL79: 120 | BM79: 56 | BN79: 50 | BO79: 27 | BP79: 54 | BQ79: 18 | BR79: 39 | BS79: 128 | BT79: 34 | BU79: 39 | BV79: 13 | BW79: 93 | BX79: 110 | BY79: 52 | BZ79: 0 | CA79: 4 | CB79: 65 | CC79: 31 | CD79: 125 | CE79: 3.5 | CF79: 6.5 | CG79: 5.5 | CH79: 17 | CI79: 17 | CJ79: 8 | CK79: 15 | CL79: 1 | CM79: 11 | CN79: 8.5 | CO79: 8.5 | CP79: 8 | CQ79: 7 | CR79: 6 | CS79: 20 | CT79: 9 | CU79: 10 | CV79: 2 | CW79: 30 | CX79: 2 | CY79: 2 | CZ79: 34 | DA79: 6 | DB79: 2 | DC79: 2 | DD79: 5 | DE79: 20 | DF79: 32 | DG79: 10 | DH79: 6 | DI79: 46.5 | DJ79: 22.5 | DK79: 31 | DL79: 43 | DM79: 0.7 | DN79: 12 | DO79: 0 | DP79: 3.27 | DQ79: 2.68 | DR79: 1.9725 | DS79: 2.9 | DT79: 2.32 | DU79: 1.5175 | DV79: 3.08 | DW79: 0.723 | DX79: 0.5563 | DY79: 1.2583 | DZ79: 9.93 | EA79: 15.27 | EB79: 0.45 | EC79: 9.9 | ED79: 0.9 | EE79: 0.375 | EF79: 2.525 | EG79: 1.895 | EH79: 2.1187 | EI79: 1.5175
A80: 79 | G80: 9月上半月 | H80: 0.25 | I80: 0.25 | J80: 0.3 | K80: 1.4 | L80: 0 | M80: 0 | N80: 1 | O80: 4.9 | P80: 0 | Q80: 0 | R80: 5 | S80: 0 | T80: 9.1 | U80: 0 | V80: 0 | W80: 2.5 | X80: 0 | Y80: 69 | Z80: 38 | AA80: 68 | AB80: 71 | AC80: 124 | AD80: 38 | AE80: 0 | AF80: 29 | AG80: 113 | AH80: 58 | AI80: 4 | AJ80: 0 | AK80: 0 | AL80: 0 | AM80: 0 | AN80: 0 | AO80: 33 | AP80: 40 | AQ80: 0 | AR80: 0 | AS80: 0 | AT80: 7.5 | AU80: 140 | AV80: 60 | AW80: 0 | AX80: 5 | AY80: 3.5 | AZ80: 41 | BA80: 20 | BB80: 103.5 | BC80: 29 | BD80: 0 | BE80: 12.5 | BF80: 0 | BG80: 2 | BH80: 26 | BI80: 26 | BJ80: 4 | BK80: 28 | BL80: 0 | BM80: 56 | BN80: 48 | BO80: 21 | BP80: 53 | BQ80: 21 | BR80: 22 | BS80: 29 | BT80: 55 | BU80: 40 | BV80: 17 | BW80: 95 | BX80: 29 | BY80: 55 | BZ80: 0 | CA80: 2 | CB80: 0 | CC80: 31 | CD80: 183 | CE80: 8.5 | CF80: 5 | CG80: 5 | CH80: 5 | CI80: 5 | CJ80: 5 | CK80: 5 | CL80: 17 | CM80: 10 | CN80: 3.5 | CO80: 4 | CP80: 2 | CQ80: 3 | CR80: 6.5 | CS80: 16 | CT80: 5 | CU80: 2 | CV80: 2 | CW80: 26 | CX80: 12.5 | CY80: 2 | CZ80: 2 | DA80: 5 | DB80: 3 | DC80: 8 | DD80: 5 | DE80: 1 | DF80: 20 | DG80: 2 | DH80: 6 | DI80: 47 | DJ80: 1 | DK80: 23 | DL80: 2 | DM80: 0.5 | DN80: 12 | DO80: 0 | DP80: 3.18 | DQ80: 2.61 | DR80: 1.95 | DS80: 3.0167 | DT80: 2.28 | DU80: 1.485 | DV80: 3.02 | DW80: 0.705 | DX80: 0.5413 | DY80: 1.2183 | DZ80: 9.65 | EA80: 14.88 | EB80: 0.3 | EC80: 9.9 | ED80: 0.9 | EE80: 0.225 | EF80: 2.4625 | EG80: 1.875 | EH80: 2.0875 | EI80: 1.485
A81: 80 | G81: 9月下半月 | H81: 0.25 | I81: 0.25 | J81: 0.3 | K81: 1.4 | L81: 0 | M81: 0 | N81: 1 | O81: 4.7 | P81: 0 | Q81: 8 | R81: 9 | S81: 0 | T81: 8.6 | U81: 0 | V81: 0 | W81: 2.5 | X81: 0 | Y81: 33 | Z81: 43 | AA81: 71 | AB81: 45 | AC81: 112 | AD81: 38 | AE81: 140 | AF81: 99 | AG81: 113 | AH81: 42 | AI81: 0 | AJ81: 0 | AK81: 0 | AL81: 0 | AM81: 0 | AN81: 0 | AO81: 21 | AP81: 16 | AQ81: 157 | AR81: 161 | AS81: 0 | AT81: 7.5 | AU81: 136 | AV81: 73 | AW81: 17 | AX81: 4 | AY81: 3.5 | AZ81: 31 | BA81: 0 | BB81: 103.5 | BC81: 36 | BD81: 0 | BE81: 12.5 | BF81: 0 | BG81: 3 | BH81: 65 | BI81: 50 | BJ81: 4 | BK81: 24 | BL81: 12 | BM81: 9 | BN81: 59 | BO81: 29 | BP81: 91 | BQ81: 16 | BR81: 34 | BS81: 1 | BT81: 23 | BU81: 24 | BV81: 55 | BW81: 20 | BX81: 23 | BY81: 47 | BZ81: 0 | CA81: 4 | CB81: 110 | CC81: 133 | CD81: 44 | CE81: 8.5 | CF81: 5 | CG81: 5 | CH81: 16 | CI81: 16 | CJ81: 2 | CK81: 1 | CL81: 2 | CM81: 0 | CN81: 3.5 | CO81: 4 | CP81: 4 | CQ81: 3 | CR81: 6.5 | CS81: 8 | CT81: 0 | CU81: 2 | CV81: 4 | CW81: 2 | CX81: 12.5 | CY81: 50 | CZ81: 2 | DA81: 1 | DB81: 1 | DC81: 0 | DD81: 8 | DE81: 2 | DF81: 5 | DG81: 0 | DH81: 6 | DI81: 47 | DJ81: 1 | DK81: 12 | DL81: 2 | DM81: 3.7 | DN81: 12 | DO81: 0 | DP81: 3.18 | DQ81: 2.61 | DR81: 1.95 | DS81: 3.0167 | DT81: 2.28 | DU81: 1.485 | DV81: 3.02 | DW81: 0.705 | DX81: 0.5413 | DY81: 1.2183 | DZ81: 9.65 | EA81: 14.88 | EB81: 0.3 | EC81: 9.9 | ED81: 0.9 | EE81: 0.225 | EF81: 2.4625 | EG81: 1.875 | EH81: 2.0875 | EI81: 1.485
A82: 81 | G82: 10月上半月 | H82: 0.15 | I82: 1.45 | J82: 2.2 | K82: 1.75 | L82: 0 | M82: 0 | N82: 0 | O82: 5.2 | P82: 0 | Q82: 0 | R82: 0 | S82: 0 | T82: 8.2 | U82: 0 | V82: 2 | W82: 12 | X82: 0 | Y82: 22 | Z82: 46 | AA82: 47 | AB82: 11 | AC82: 67 | AD82: 80 | AE82: 0 | AF82: 21 | AG82: 72 | AH82: 32 | AI82: 56 | AJ82: 0 | AK82: 0 | AL82: 0 | AM82: 0 | AN82: 0 | AO82: 26 | AP82: 26 | AQ82: 0 | AR82: 0 | AS82: 0 | AT82: 25 | AU82: 116 | AV82: 32 | AW82: 0 | AX82: 5 | AY82: 12 | AZ82: 31 | BA82: 5 | BB82: 103.5 | BC82: 30 | BD82: 0 | BE82: 12.5 | BF82: 0 | BG82: 0 | BH82: 36 | BI82: 8 | BJ82: 5 | BK82: 81 | BL82: 16 | BM82: 11 | BN82: 95 | BO82: 76 | BP82: 75 | BQ82: 30 | BR82: 30 | BS82: 27 | BT82: 25 | BU82: 32 | BV82: 53 | BW82: 85 | BX82: 5 | BY82: 51 | BZ82: 40 | CA82: 1 | CB82: 0 | CC82: 55 | CD82: 99 | CE82: 33 | CF82: 4.5 | CG82: 4.5 | CH82: 0 | CI82: 0 | CJ82: 0 | CK82: 3 | CL82: 1 | CM82: 2 | CN82: 1.5 | CO82: 2 | CP82: 0 | CQ82: 1 | CR82: 1 | CS82: 33 | CT82: 2 | CU82: 3 | CV82: 1 | CW82: 3 | CX82: 26.5 | CY82: 3 | CZ82: 3 | DA82: 1 | DB82: 1 | DC82: 6 | DD82: 0 | DE82: 4 | DF82: 3 | DG82: 0 | DH82: 7 | DI82: 5 | DJ82: 4 | DK82: 2 | DL82: 3 | DM82: 2.5 | DN82: 11.5 | DO82: 0 | DP82: 3.27 | DQ82: 2.68 | DR82: 1.9725 | DS82: 2.9 | DT82: 2.32 | DU82: 1.5175 | DV82: 3.595 | DW82: 0.9967 | DX82: 0.6925 | DY82: 1.2583 | DZ82: 9.93 | EA82: 15.27 | EB82: 0.95 | EC82: 9.8 | ED82: 0.9 | EE82: 0.15 | EF82: 2.525 | EG82: 1.895 | EH82: 2.1187 | EI82: 1.5175
A83: 82 | G83: 10月下半月 | H83: 0.15 | I83: 1.45 | J83: 2.2 | K83: 1.75 | L83: 0 | M83: 0 | N83: 0 | O83: 7 | P83: 0 | Q83: 0 | R83: 5 | S83: 3 | T83: 8.2 | U83: 6.5 | V83: 7 | W83: 11.5 | X83: 0 | Y83: 9 | Z83: 43 | AA83: 19 | AB83: 21 | AC83: 30 | AD83: 80 | AE83: 76 | AF83: 60 | AG83: 72 | AH83: 20 | AI83: 0 | AJ83: 12 | AK83: 12 | AL83: 10 | AM83: 0 | AN83: 0 | AO83: 26 | AP83: 27 | AQ83: 83 | AR83: 84 | AS83: 0 | AT83: 25 | AU83: 94 | AV83: 25 | AW83: 16.5 | AX83: 3 | AY83: 12 | AZ83: 29 | BA83: 31 | BB83: 103.5 | BC83: 7 | BD83: 0 | BE83: 12.5 | BF83: 0 | BG83: 26 | BH83: 36 | BI83: 9 | BJ83: 2.5 | BK83: 41 | BL83: 13 | BM83: 29 | BN83: 101 | BO83: 92 | BP83: 84 | BQ83: 37 | BR83: 11 | BS83: 18 | BT83: 46 | BU83: 25 | BV83: 53 | BW83: 89 | BX83: 6 | BY83: 32 | BZ83: 22 | CA83: 31 | CB83: 54 | CC83: 120 | CD83: 131 | CE83: 33 | CF83: 4.5 | CG83: 4.5 | CH83: 17 | CI83: 17 | CJ83: 0 | CK83: 4 | CL83: 2 | CM83: 0 | CN83: 1.5 | CO83: 2 | CP83: 2 | CQ83: 1 | CR83: 1 | CS83: 13 | CT83: 7 | CU83: 1 | CV83: 1 | CW83: 1 | CX83: 26.5 | CY83: 1 | CZ83: 1 | DA83: 0 | DB83: 0 | DC83: 0 | DD83: 0 | DE83: 28 | DF83: 0 | DG83: 0 | DH83: 0 | DI83: 5 | DJ83: 4 | DK83: 2 | DL83: 3 | DM83: 0.4 | DN83: 11.5 | DO83: 1.6 | DP83: 3.27 | DQ83: 2.68 | DR83: 1.9725 | DS83: 2.9 | DT83: 2.32 | DU83: 1.5175 | DV83: 3.595 | DW83: 0.9967 | DX83: 0.6925 | DY83: 1.2583 | DZ83: 9.93 | EA83: 15.27 | EB83: 0.95 | EC83: 9.8 | ED83: 0.9 | EE83: 0.15 | EF83: 2.525 | EG83: 1.895 | EH83: 2.1187 | EI83: 1.5175
A84: 83 | G84: 11月上半月 | H84: 0.7 | I84: 0.6 | J84: 0.25 | K84: 0 | L84: 1.7 | M84: 1.9 | N84: 0 | O84: 7 | P84: 4 | Q84: 41 | R84: 16 | S84: 16 | T84: 8 | U84: 4 | V84: 23 | W84: 20 | X84: 0 | Y84: 4 | Z84: 41 | AA84: 35 | AB84: 29 | AC84: 19 | AD84: 71.5 | AE84: 31 | AF84: 36 | AG84: 30 | AH84: 16 | AI84: 70 | AJ84: 2 | AK84: 0 | AL84: 17 | AM84: 18 | AN84: 0 | AO84: 20 | AP84: 20 | AQ84: 0 | AR84: 0 | AS84: 0 | AT84: 219.5 | AU84: 65 | AV84: 0 | AW84: 0 | AX84: 1 | AY84: 0.5 | AZ84: 29.8 | BA84: 31 | BB84: 103.5 | BC84: 26 | BD84: 0 | BE84: 12.5 | BF84: 0 | BG84: 21 | BH84: 92 | BI84: 20 | BJ84: 6 | BK84: 51 | BL84: 0 | BM84: 21 | BN84: 139 | BO84: 121 | BP84: 50 | BQ84: 47 | BR84: 3 | BS84: 9 | BT84: 5 | BU84: 23 | BV84: 186 | BW84: 25 | BX84: 14 | BY84: 12 | BZ84: 2 | CA84: 5 | CB84: 0 | CC84: 111 | CD84: 179 | CE84: 3 | CF84: 35 | CG84: 27.5 | CH84: 9 | CI84: 9 | CJ84: 3 | CK84: 5 | CL84: 3 | CM84: 3 | CN84: 5 | CO84: 11 | CP84: 4 | CQ84: 9 | CR84: 2.5 | CS84: 1 | CT84: 28 | CU84: 4 | CV84: 4 | CW84: 4 | CX84: 3.5 | CY84: 4 | CZ84: 4 | DA84: 6 | DB84: 6 | DC84: 4 | DD84: 4 | DE84: 26 | DF84: 1 | DG84: 3 | DH84: 0 | DI84: 0 | DJ84: 9 | DK84: 0 | DL84: 19 | DM84: 0 | DN84: 16 | DO84: 1.7 | DP84: 3.18 | DQ84: 2.62 | DR84: 2.04 | DS84: 3.05 | DT84: 2.27 | DU84: 1.4825 | DV84: 3.015 | DW84: 0.705 | DX84: 0.5413 | DY84: 1.2183 | DZ84: 9.65 | EA84: 14.88 | EB84: 0.95 | EC84: 9.8 | ED84: 0.9 | EE84: 0.7 | EF84: 2.4687 | EG84: 1.9675 | EH84: 2.0812 | EI84: 1.4825
A85: 84 | G85: 11月下半月 | H85: 0.7 | I85: 0.6 | J85: 0.25 | K85: 0 | L85: 1.6 | M85: 1.9 | N85: 0 | O85: 6.5 | P85: 5 | Q85: 0 | R85: 1 | S85: 0 | T85: 8 | U85: 4 | V85: 19 | W85: 20 | X85: 0 | Y85: 15 | Z85: 37 | AA85: 34 | AB85: 60 | AC85: 20 | AD85: 71.5 | AE85: 0 | AF85: 87 | AG85: 29 | AH85: 10 | AI85: 0 | AJ85: 18 | AK85: 18 | AL85: 8 | AM85: 22 | AN85: 4 | AO85: 22 | AP85: 6 | AQ85: 48 | AR85: 51 | AS85: 0 | AT85: 219.5 | AU85: 0 | AV85: 0 | AW85: 0.3 | AX85: 0 | AY85: 0.5 | AZ85: 28.5 | BA85: 0 | BB85: 103.5 | BC85: 30 | BD85: 0 | BE85: 12.5 | BF85: 0 | BG85: 23 | BH85: 104 | BI85: 20 | BJ85: 9 | BK85: 101 | BL85: 0 | BM85: 30 | BN85: 162 | BO85: 147 | BP85: 59 | BQ85: 49 | BR85: 18 | BS85: 11 | BT85: 35 | BU85: 22 | BV85: 216 | BW85: 25 | BX85: 90 | BY85: 5 | BZ85: 4 | CA85: 6 | CB85: 9 | CC85: 91 | CD85: 183 | CE85: 3 | CF85: 35 | CG85: 27.5 | CH85: 19 | CI85: 19 | CJ85: 0 | CK85: 0 | CL85: 0 | CM85: 0 | CN85: 5 | CO85: 11 | CP85: 0 | CQ85: 9 | CR85: 2.5 | CS85: 1 | CT85: 20 | CU85: 6 | CV85: 6 | CW85: 6 | CX85: 3.5 | CY85: 6 | CZ85: 6 | DA85: 4 | DB85: 4 | DC85: 6 | DD85: 4 | DE85: 6 | DF85: 2 | DG85: 0 | DH85: 0 | DI85: 0 | DJ85: 9 | DK85: 0 | DL85: 19 | DM85: 0.7 | DN85: 16 | DO85: 2.2 | DP85: 3.18 | DQ85: 2.62 | DR85: 2.04 | DS85: 3.05 | DT85: 2.27 | DU85: 1.4825 | DV85: 3.015 | DW85: 0.705 | DX85: 0.5413 | DY85: 1.2183 | DZ85: 9.65 | EA85: 14.88 | EB85: 0.95 | EC85: 9.8 | ED85: 0.9 | EE85: 0.7 | EF85: 2.4687 | EG85: 1.9675 | EH85: 2.0812 | EI85: 1.4825
A86: 85 | G86: 12月上半月 | H86: 0.2 | I86: 0.25 | J86: 0 | K86: 0 | L86: 0.5 | M86: 0 | N86: 0 | O86: 2 | P86: 9 | Q86: 0 | R86: 0 | S86: 0 | T86: 4.1 | U86: 4 | V86: 5 | W86: 4.5 | X86: 3.5 | Y86: 18 | Z86: 52 | AA86: 34 | AB86: 85 | AC86: 10 | AD86: 69.5 | AE86: 0 | AF86: 110 | AG86: 25 | AH86: 14 | AI86: 67 | AJ86: 12 | AK86: 4 | AL86: 22 | AM86: 13 | AN86: 18 | AO86: 14 | AP86: 24 | AQ86: 22 | AR86: 24 | AS86: 0 | AT86: 127.5 | AU86: 24 | AV86: 0 | AW86: 0 | AX86: 5 | AY86: 1 | AZ86: 1 | BA86: 0 | BB86: 103.5 | BC86: 17 | BD86: 0 | BE86: 12.5 | BF86: 0 | BG86: 21 | BH86: 155 | BI86: 29 | BJ86: 11 | BK86: 155 | BL86: 0 | BM86: 129 | BN86: 147 | BO86: 155 | BP86: 73 | BQ86: 49 | BR86: 67 | BS86: 136 | BT86: 55 | BU86: 22 | BV86: 135 | BW86: 0 | BX86: 90 | BY86: 0 | BZ86: 4 | CA86: 25 | CB86: 90 | CC86: 136 | CD86: 116 | CE86: 0 | CF86: 2.1 | CG86: 16 | CH86: 25 | CI86: 25 | CJ86: 0 | CK86: 0 | CL86: 38 | CM86: 0 | CN86: 7 | CO86: 27.5 | CP86: 18 | CQ86: 0 | CR86: 0 | CS86: 1 | CT86: 10 | CU86: 8 | CV86: 10 | CW86: 8 | CX86: 8.5 | CY86: 8 | CZ86: 8 | DA86: 9 | DB86: 9 | DC86: 16 | DD86: 20 | DE86: 14 | DF86: 16 | DG86: 16 | DH86: 0 | DI86: 2 | DJ86: 21 | DK86: 2 | DL86: 9 | DM86: 1 | DN86: 10 | DO86: 2.6 | DP86: 3.27 | DQ86: 2.68 | DR86: 1.9725 | DS86: 2.933 | DT86: 2.2 | DU86: 1.475 | DV86: 2.995 | DW86: 0.723 | DX86: 0.5563 | DY86: 1.2583 | DZ86: 9.73 | EA86: 15.12 | EB86: 0.05 | EC86: 9.8 | ED86: 0.9 | EE86: 0.2 | EF86: 2.525 | EG86: 1.895 | EH86: 2.0125 | EI86: 1.475
A87: 86 | G87: 12月下半月 | H87: 0.2 | I87: 0 | J87: 0.1 | K87: 0.1 | L87: 0.2 | M87: 0.2 | N87: 0.2 | O87: 2 | P87: 9 | Q87: 70 | R87: 1 | S87: 1 | T87: 1 | U87: 5.5 | V87: 0 | W87: 4.5 | X87: 3.5 | Y87: 10 | Z87: 36 | AA87: 56 | AB87: 85 | AC87: 12 | AD87: 73.4 | AE87: 3.5 | AF87: 114 | AG87: 29 | AH87: 14 | AI87: 0 | AJ87: 14.5 | AK87: 22 | AL87: 12 | AM87: 14 | AN87: 20 | AO87: 15 | AP87: 2 | AQ87: 70 | AR87: 77 | AS87: 8 | AT87: 135.5 | AU87: 4 | AV87: 31.4 | AW87: 0 | AX87: 9 | AY87: 1 | AZ87: 5 | BA87: 2 | BB87: 107.5 | BC87: 15 | BD87: 2 | BE87: 13.5 | BF87: 2 | BG87: 25 | BH87: 155.8 | BI87: 28 | BJ87: 11.5 | BK87: 167 | BL87: 8 | BM87: 124 | BN87: 165 | BO87: 163 | BP87: 85.8 | BQ87: 50.2 | BR87: 101 | BS87: 144 | BT87: 81 | BU87: 19 | BV87: 0 | BW87: 4 | BX87: 4 | BY87: 2 | BZ87: 10 | CA87: 38 | CB87: 199 | CC87: 79 | CD87: 60 | CE87: 2.4 | CF87: 4.1 | CG87: 18.4 | CH87: 12 | CI87: 12 | CJ87: 3 | CK87: 2 | CL87: 28 | CM87: 4.4 | CN87: 9 | CO87: 29.5 | CP87: 18 | CQ87: 2 | CR87: 2 | CS87: 3 | CT87: 6 | CU87: 10 | CV87: 12 | CW87: 10 | CX87: 10.5 | CY87: 10 | CZ87: 10 | DA87: 14 | DB87: 14 | DC87: 25 | DD87: 20 | DE87: 10 | DF87: 18 | DG87: 18 | DH87: 5 | DI87: 4 | DJ87: 23 | DK87: 2 | DL87: 11 | DM87: 0.9 | DN87: 10 | DO87: 3.2 | DP87: 3.27 | DQ87: 2.68 | DR87: 1.87 | DS87: 2.933 | DT87: 2.2 | DU87: 1.475 | DV87: 2.995 | DW87: 0.723 | DX87: 0.5563 | DY87: 1.283 | DZ87: 9.73 | EA87: 15.12 | EB87: 0.05 | EC87: 9.8 | ED87: 0.9 | EE87: 0.2 | EF87: 2.525 | EG87: 1.895 | EH87: 2.0125 | EI87: 1.475
A88: 87 | G88: 計 | H88: =SUM(H64:H87) -> 12.2 | I88: =SUM(I64:I87) -> 16.95 | J88: 18 | K88: 23 | L88: 8.4 | M88: 8.8 | N88: 11.4 | O88: 69.8 | P88: 220 | Q88: 197 | R88: 55 | S88: 90 | T88: 126 | U88: 156 | V88: 290 | W88: =SUM(W64:W87) -> 183.8 | X88: 151 | Y88: 667.9 | Z88: 602 | AA88: 1297 | AB88: 1611 | AC88: 1018 | AD88: 1460.9 | AE88: 951.5 | AF88: 1579 | AG88: 796 | AH88: 730 | AI88: 806 | AJ88: 222.5 | AK88: 204 | AL88: 249 | AM88: 249 | AN88: 232 | AO88: 237 | AP88: 237 | AQ88: 1619 | AR88: 1748 | AS88: 1407 | AT88: 779 | AU88: 1592 | AV88: 998.4 | AW88: 117 | AX88: 113 | AY88: 137 | AZ88: 571.9 | BA88: 110 | BB88: 2488 | BC88: 433 | BD88: 254 | BE88: 237 | BF88: 237 | BG88: 254 | BH88: 1518.8 | BI88: 1292 | BJ88: 128 | BK88: 809 | BL88: 586 | BM88: 465 | BN88: 2269 | BO88: 2384 | BP88: 1914.8 | BQ88: 744.2 | BR88: 389 | BS88: 823 | BT88: 872 | BU88: =SUM(BU64:BU87) -> 751 | BV88: 934 | BW88: 917 | BX88: 503 | BY88: 638 | BZ88: 401 | CA88: 1047 | CB88: 537 | CC88: 1339 | CD88: 1464 | CE88: 172.4 | CF88: 171.4 | CG88: 175.4 | CH88: 482 | CI88: 482 | CJ88: 198 | CK88: 275 | CL88: 342 | CM88: 184.4 | CN88: 230 | CO88: 262 | CP88: 160 | CQ88: 186 | CR88: 186 | CS88: 417 | CT88: 178 | CU88: 236 | CV88: 298 | CW88: 217 | CX88: 304 | CY88: 234 | CZ88: 246 | DA88: 270 | DB88: 282 | DC88: 328 | DD88: 336 | DE88: 272 | DF88: 270 | DG88: 328 | DH88: 53 | DI88: 396 | DJ88: 426 | DK88: 224 | DL88: 446 | DM88: 42.2 | DN88: 305 | DO88: 152.5 | DP88: 77.24 | DQ88: 63.46 | DR88: 47.9725 | DS88: 73.4308 | DT88: 55.9 | DU88: 37.97 | DV88: 76.08 | DW88: 18.3254 | DX88: 14.081 | DY88: 29.8009 | DZ88: 234 | EA88: 360.8 | EB88: 17 | EC88: 237 | ED88: 21.6 | EE88: =SUM(EE64:EE87) -> 11.85 | EF88: =SUM(EF64:EF87) -> 59.7872 | EG88: =SUM(EG64:EG87) -> 46.25 | EH88: 51.3118 | EI88: =SUM(EI64:EI87) -> 37.965 | EJ88: 0
A89: 88 | H89: 1 | I89: 1 | J89: 2 | K89: 3 | L89: 16 | M89: 17 | N89: 18 | O89: 19 | P89: 20 | Q89: 21 | R89: 22 | S89: 23 | T89: 24 | U89: 25 | V89: 26 | W89: 27 | X89: 28 | Y89: 29 | Z89: 30 | AA89: 31 | AB89: 32 | AC89: 33 | AD89: 34 | AE89: 35 | AF89: 36 | AG89: 37 | AH89: 38 | AI89: 39 | AJ89: 40 | AK89: 41 | AL89: 42 | AM89: 43 | AN89: 44 | AO89: 45 | AP89: 46 | AQ89: 47 | AR89: 48 | AS89: 49 | AT89: 50 | AU89: 51 | AV89: 52 | AW89: 53 | AX89: 54 | AY89: 55 | AZ89: 56 | BA89: 57 | BB89: 58 | BC89: 59 | BD89: 60 | BE89: 61 | BF89: 62 | BG89: 63 | BH89: 64 | BI89: 65 | BJ89: 66 | BK89: 67 | BL89: 68 | BM89: 69 | BN89: 70 | BO89: 71 | BP89: 72 | BQ89: 73 | BR89: 74 | BS89: 75 | BT89: 76 | BU89: 77 | BV89: 78 | BW89: 79 | BX89: 80 | BY89: 81 | BZ89: 82 | CA89: 83 | CB89: 84 | CC89: 85 | CD89: 86 | CE89: 87 | CF89: 88 | CG89: 89 | CH89: 90 | CI89: 91 | CJ89: 92 | CK89: 93 | CL89: 94 | CM89: 95 | CN89: 96 | CO89: 97 | CP89: 98 | CQ89: 99 | CR89: 100 | CS89: 101 | CT89: 102 | CU89: 103 | CV89: 104 | CW89: 105 | CX89: 106 | CY89: 107 | CZ89: 108 | DA89: 109 | DB89: 110 | DC89: 111 | DD89: 112 | DE89: 113 | DF89: 114 | DG89: 115 | DH89: 116 | DI89: 117 | DJ89: 118 | DK89: 119 | DL89: 120 | DM89: 121 | DN89: 122 | DO89: 123 | DP89: 124 | DQ89: 125 | DR89: 126 | DS89: 127 | DT89: 128 | DU89: 129 | DV89: 130 | DW89: 131 | DX89: 132 | DY89: 133 | DZ89: 134 | EA89: 135 | EB89: 136 | EC89: 137 | ED89: 138 | EE89: 139 | EF89: 140 | EG89: 141 | EH89: 142 | EI89: 143 | EJ89: 144 | EK89: 145 | EL89: 146 | EM89: 147 | EN89: 148 | EO89: 149 | EP89: 150
A90: 89 | D90: 月 | G90: 1月 | H90: =SUM(H64:H65) -> 0 | I90: 0.2 | J90: 0 | K90: 0 | L90: 1.4 | M90: 1.4 | N90: 0 | O90: 3 | P90: 39 | Q90: 0 | R90: 0 | S90: 0 | T90: 0 | U90: 8 | V90: 12 | W90: 5 | X90: 16.5 | Y90: 10 | Z90: 55 | AA90: 142 | AB90: 190 | AC90: 10 | AD90: 131 | AE90: 0 | AF90: 198 | AG90: 0 | AH90: 10 | AI90: 74 | AJ90: 40 | AK90: 54 | AL90: 30 | AM90: 51 | AN90: 36 | AO90: 9 | AP90: 12 | AQ90: 161 | AR90: 176 | AS90: 27 | AT90: 0 | AU90: 0 | AV90: 128 | AW90: 0 | AX90: 22 | AY90: 100 | AZ90: 0 | BA90: 0 | BB90: 207 | BC90: 13 | BD90: 1 | BE90: 25 | BF90: 8 | BG90: 42 | BH90: 93 | BI90: 148 | BJ90: 22 | BK90: 0 | BL90: 0 | BM90: 0 | BN90: 180 | BO90: 234 | BP90: 87 | BQ90: 40 | BR90: 0 | BS90: 32 | BT90: =SUM(BT64:BT65) -> 137 | BU90: 31 | BV90: 0 | BW90: 0 | BX90: 16 | BY90: 25 | BZ90: 8 | CA90: 123 | CB90: 0 | CC90: 44 | CD90: 32 | CE90: 9 | CF90: 9 | CG90: 20 | CH90: 13 | CI90: 13 | CJ90: 62 | CK90: 82 | CL90: 44 | CM90: 56 | CN90: 48 | CO90: 12 | CP90: 26 | CQ90: 0 | CR90: 0 | CS90: 46 | CT90: 14 | CU90: 18 | CV90: 20 | CW90: 16 | CX90: 24 | CY90: 20 | CZ90: 20 | DA90: 20 | DB90: 24 | DC90: 26 | DD90: 24 | DE90: 32 | DF90: 8 | DG90: 46 | DH90: 8 | DI90: 28 | DJ90: 8 | DK90: 8 | DL90: 18 | DM90: 0 | DN90: 25 | DO90: 3.8 | DP90: 6.54 | DQ90: 5.36 | DR90: 3.945 | DS90: 6.266 | DT90: 4.46 | DU90: 2.97 | DV90: 6.03 | DW90: 1.446 | DX90: 1.1126 | DY90: 2.55 | DZ90: 19.86 | EA90: 30.54 | EB90: 0.1 | EC90: 19.8 | ED90: 1.8 | EE90: 0 | EF90: =SUM(EF64:EF65) -> 5.05 | EG90: 3.79 | EH90: =SUM(EH64:EH65) -> 4.075 | EI90: 2.97
A91: 90 | D91: 労 | G91: 2月 | H91: =SUM(H66:H67) -> 0 | I91: 0.2 | J91: 0 | K91: 0 | L91: 1.7 | M91: 1.8 | N91: 0 | O91: 6 | P91: 10 | Q91: 3 | R91: 0 | S91: 37 | T91: 0 | U91: 23 | V91: 18 | W91: 1 | X91: 34.5 | Y91: 4 | Z91: 42 | AA91: 142 | AB91: 185 | AC91: 4 | AD91: 150 | AE91: 23 | AF91: 206 | AG91: 0 | AH91: 10 | AI91: 76 | AJ91: 26 | AK91: 35 | AL91: 40 | AM91: 44 | AN91: 40 | AO91: 0 | AP91: 0 | AQ91: 214 | AR91: 233 | AS91: 49 | AT91: 0 | AU91: 0 | AV91: 25 | AW91: 1 | AX91: 23 | AY91: 3 | AZ91: 7.7 | BA91: 0 | BB91: 207 | BC91: 32 | BD91: 18 | BE91: 15 | BF91: 32 | BG91: 41 | BH91: 59 | BI91: 266 | BJ91: 23 | BK91: 0 | BL91: 80 | BM91: 0 | BN91: 191 | BO91: 266 | BP91: 277 | BQ91: 54 | BR91: 0 | BS91: 0 | BT91: =SUM(BT66:BT67) -> 156 | BU91: 28 | BV91: 0 | BW91: 24 | BX91: 0 | BY91: 5 | BZ91: 52 | CA91: 148 | CB91: 0 | CC91: 27 | CD91: 0 | CE91: 12 | CF91: 12 | CG91: 8 | CH91: 19 | CI91: 19 | CJ91: 26 | CK91: 40 | CL91: 28 | CM91: 38 | CN91: 17 | CO91: 32 | CP91: 28 | CQ91: 32 | CR91: 26 | CS91: 150 | CT91: 20 | CU91: 21 | CV91: 42 | CW91: 20 | CX91: 14 | CY91: 25 | CZ91: 25 | DA91: 2 | DB91: 30 | DC91: 27 | DD91: 6 | DE91: 6 | DF91: 2 | DG91: 9 | DH91: 6 | DI91: 38 | DJ91: 17 | DK91: 10 | DL91: 36 | DM91: 0.2 | DN91: 23 | DO91: 9.4 | DP91: 6.02 | DQ91: 4.96 | DR91: 3.66 | DS91: 5.4 | DT91: 4.04 | DU91: 2.7 | DV91: 5.51 | DW91: 1.336 | DX91: 1.0226 | DY91: 2.3134 | DZ91: 18.18 | EA91: 28.28 | EB91: 0.1 | EC91: 19.8 | ED91: 1.8 | EE91: 0 | EF91: =SUM(EF66:EF67) -> 4.675 | EG91: 3.52 | EH91: =SUM(EH66:EH67) -> 3.6874 | EI91: 2.7
A92: 91 | D92: 働 | G92: 3月 | H92: =SUM(H68:H69) -> 0 | I92: 1.1 | J92: 0 | K92: 0 | L92: 0 | M92: 0 | N92: 0 | O92: 10 | P92: 2 | Q92: 3 | R92: 0 | S92: 11 | T92: 0.6 | U92: 37 | V92: 43 | W92: 5 | X92: 1 | Y92: 6 | Z92: 0 | AA92: 152 | AB92: 185 | AC92: 6 | AD92: 179 | AE92: 17 | AF92: 232 | AG92: 0 | AH92: 30 | AI92: 105 | AJ92: 28 | AK92: 19 | AL92: 52 | AM92: 39 | AN92: 38 | AO92: 0 | AP92: 0 | AQ92: 276 | AR92: 305 | AS92: 65 | AT92: 0 | AU92: 64 | AV92: 19 | AW92: 2.2 | AX92: 18 | AY92: 0 | AZ92: 6.8 | BA92: 0 | BB92: 207 | BC92: 16 | BD92: 44 | BE92: 38 | BF92: 24 | BG92: 3 | BH92: 97 | BI92: 268 | BJ92: 18 | BK92: 0 | BL92: 40 | BM92: 0 | BN92: 240 | BO92: 318 | BP92: 183 | BQ92: 69 | BR92: 0 | BS92: 36 | BT92: =SUM(BT68:BT69) -> 157 | BU92: 58 | BV92: 0 | BW92: 10 | BX92: 0 | BY92: 72 | BZ92: 108 | CA92: 179 | CB92: 0 | CC92: 52 | CD92: 0 | CE92: 13 | CF92: 13 | CG92: 15 | CH92: 52 | CI92: 52 | CJ92: 29 | CK92: 38 | CL92: 10 | CM92: 16 | CN92: 26 | CO92: 18 | CP92: 16 | CQ92: 72 | CR92: 32 | CS92: 69 | CT92: 14 | CU92: 5 | CV92: 15 | CW92: 5 | CX92: 7 | CY92: 5 | CZ92: 17 | DA92: 13 | DB92: 34 | DC92: 36 | DD92: 47 | DE92: 1 | DF92: 19 | DG92: 17 | DH92: 0 | DI92: 11 | DJ92: 14 | DK92: 2 | DL92: 40 | DM92: 1.1 | DN92: 24 | DO92: 15.4 | DP92: 6.54 | DQ92: 5.38 | DR92: 4.23 | DS92: 6.266 | DT92: 4.46 | DU92: 4.16 | DV92: 6.03 | DW92: 1.446 | DX92: 1.1126 | DY92: 2.5834 | DZ92: 19.86 | EA92: 30.54 | EB92: 1.5 | EC92: 19.8 | ED92: 1.8 | EE92: 0 | EF92: =SUM(EF68:EF69) -> 5.0624 | EG92: 4.075 | EH92: =SUM(EH68:EH69) -> 4.075 | EI92: 4.155
A93: 92 | D93: 間 | G93: 4月 | H93: =SUM(H70:H71) -> 0.8 | I93: 3.7 | J93: 0 | K93: 0 | L93: 0.2 | M93: 0.8 | N93: 0 | O93: 5.6 | P93: 37 | Q93: 29 | R93: 0 | S93: 16 | T93: 2.6 | U93: 31.5 | V93: 100 | W93: 90 | X93: 28 | Y93: 80 | Z93: 0 | AA93: 170 | AB93: 188 | AC93: 80 | AD93: 162 | AE93: 124 | AF93: 227 | AG93: 0 | AH93: 65 | AI93: 110 | AJ93: 38 | AK93: 20 | AL93: 48 | AM93: 32 | AN93: 28 | AO93: 0 | AP93: 0 | AQ93: 239 | AR93: 263 | AS93: 519 | AT93: 0 | AU93: 0 | AV93: 53 | AW93: 5.4 | AX93: 9 | AY93: 0 | AZ93: 32.1 | BA93: 0 | BB93: 207 | BC93: 55 | BD93: 26 | BE93: 26 | BF93: 36 | BG93: 15 | BH93: 208 | BI93: 268 | BJ93: 2 | BK93: 0 | BL93: 88 | BM93: 0 | BN93: 251 | BO93: 319 | BP93: 301 | BQ93: 140 | BR93: 0 | BS93: 46 | BT93: =SUM(BT70:BT71) -> 63 | BU93: 81 | BV93: 0 | BW93: 51 | BX93: 0 | BY93: 88 | BZ93: 135 | CA93: 147 | CB93: 0 | CC93: 157 | CD93: 0 | CE93: 5 | CF93: 1 | CG93: 3 | CH93: 48 | CI93: 48 | CJ93: 11 | CK93: 7 | CL93: 10 | CM93: 6 | CN93: 5 | CO93: 19 | CP93: 2 | CQ93: 10 | CR93: 26 | CS93: 12 | CT93: 3 | CU93: 29 | CV93: 59 | CW93: 29 | CX93: 31 | CY93: 25 | CZ93: 25 | DA93: 43 | DB93: 53 | DC93: 28 | DD93: 35 | DE93: 13 | DF93: 11 | DG93: 61 | DH93: 1 | DI93: 18 | DJ93: 15 | DK93: 10 | DL93: 68 | DM93: 3.7 | DN93: 28 | DO93: 16.1 | DP93: 6.36 | DQ93: 5.26 | DR93: 4.355 | DS93: 7.8 | DT93: 6.28 | DU93: 4.115 | DV93: 8.68 | DW93: 2.09 | DX93: 1.75 | DY93: 2.4366 | DZ93: 19.3 | EA93: 29.76 | EB93: 3.5 | EC93: 19.8 | ED93: 1.8 | EE93: 0.8 | EF93: =SUM(EF70:EF71) -> 4.95 | EG93: 4.205 | EH93: =SUM(EH70:EH71) -> 5.4124 | EI93: 4.115
A94: 93 | G94: 5月 | H94: =SUM(H72:H73) -> 3.6 | I94: 2.5 | J94: 5.4 | K94: 3.4 | L94: 1.1 | M94: 0.8 | N94: 0 | O94: 4.8 | P94: 97 | Q94: 16 | R94: 0 | S94: 6 | T94: 13.6 | U94: 31 | V94: 61 | W94: 4 | X94: 59 | Y94: 77.9 | Z94: 0 | AA94: 128 | AB94: 176 | AC94: 61 | AD94: 147 | AE94: 91 | AF94: 160 | AG94: 28 | AH94: 60 | AI94: 140 | AJ94: 12 | AK94: 20 | AL94: 10 | AM94: 16 | AN94: 20 | AO94: 0 | AP94: 0 | AQ94: 132 | AR94: 142 | AS94: 569 | AT94: 0 | AU94: 14 | AV94: 148 | AW94: 6.2 | AX94: 0 | AY94: 0 | AZ94: 82 | BA94: 0 | BB94: 207 | BC94: 5 | BD94: 15 | BE94: 2 | BF94: 37 | BG94: 24 | BH94: 99 | BI94: 101 | BJ94: 0 | BK94: 0 | BL94: 19 | BM94: 0 | BN94: 218 | BO94: 187 | BP94: 167 | BQ94: 85 | BR94: 0 | BS94: 18 | BT94: =SUM(BT72:BT73) -> 0 | BU94: 66 | BV94: 21 | BW94: 65 | BX94: 0 | BY94: 12 | BZ94: 16 | CA94: 179 | CB94: 0 | CC94: 69 | CD94: 0 | CE94: 5 | CF94: 6 | CG94: 6 | CH94: 46 | CI94: 46 | CJ94: 6 | CK94: 7 | CL94: 54 | CM94: 6 | CN94: 27 | CO94: 17 | CP94: 4 | CQ94: 6 | CR94: 26 | CS94: 7 | CT94: 6 | CU94: 43 | CV94: 44 | CW94: 27 | CX94: 52 | CY94: 39 | CZ94: 39 | DA94: 81 | DB94: 23 | DC94: 45 | DD94: 63 | DE94: 13 | DF94: 59 | DG94: 63 | DH94: 0 | DI94: 17 | DJ94: 62 | DK94: 4 | DL94: 30 | DM94: 13.4 | DN94: 32 | DO94: 23.8 | DP94: 6.54 | DQ94: 5.36 | DR94: 4 | DS94: 6.266 | DT94: 4.7 | DU94: 3.065 | DV94: 6.22 | DW94: 1.446 | DX94: 1.1126 | DY94: 2.5166 | DZ94: 19.86 | EA94: 30.54 | EB94: 3.9 | EC94: 19.8 | ED94: 1.8 | EE94: 3.6 | EF94: =SUM(EF72:EF73) -> 5.05 | EG94: 3.84 | EH94: =SUM(EH72:EH73) -> 4.8124 | EI94: 3.065
A95: 94 | G95: 6月 | H95: =SUM(H74:H75) -> 2.5 | I95: 3.2 | J95: 5 | K95: 6.1 | L95: 0 | M95: 0 | N95: 0 | O95: 0.5 | P95: 8 | Q95: 21 | R95: 0 | S95: 0 | T95: 17.8 | U95: 1.5 | V95: 0 | W95: 0 | X95: 5 | Y95: 71 | Z95: 1 | AA95: 115 | AB95: 124 | AC95: 60 | AD95: 120 | AE95: 116 | AF95: 0 | AG95: 84 | AH95: 106 | AI95: 104 | AJ95: 8 | AK95: 0 | AL95: 0 | AM95: 0 | AN95: 28 | AO95: 0 | AP95: 0 | AQ95: 49 | AR95: 49 | AS95: 170 | AT95: 0 | AU95: 268 | AV95: 131 | AW95: 27.2 | AX95: 0 | AY95: 0 | AZ95: 83 | BA95: 0 | BB95: 207 | BC95: 21 | BD95: 34 | BE95: 0 | BF95: 38 | BG95: 4 | BH95: 53 | BI95: 51 | BJ95: 0 | BK95: 0 | BL95: 44 | BM95: 0 | BN95: 139 | BO95: 152 | BP95: 115 | BQ95: 10 | BR95: 0 | BS95: 18 | BT95: =SUM(BT74:BT75) -> 0 | BU95: 92 | BV95: 35 | BW95: 99 | BX95: 0 | BY95: 48 | BZ95: 0 | CA95: 146 | CB95: 10 | CC95: 126 | CD95: 0 | CE95: 23 | CF95: 1.2 | CG95: 1 | CH95: 53 | CI95: 53 | CJ95: 23 | CK95: 37 | CL95: 68 | CM95: 8 | CN95: 28 | CO95: 20 | CP95: 6 | CQ95: 6 | CR95: 16 | CS95: 5 | CT95: 8 | CU95: 21 | CV95: 17 | CW95: 21 | CX95: 63 | CY95: 21 | CZ95: 21 | DA95: 10 | DB95: 34 | DC95: 73 | DD95: 70 | DE95: 11 | DF95: 55 | DG95: 10 | DH95: 1 | DI95: 16 | DJ95: 100 | DK95: 27 | DL95: 33 | DM95: 9.5 | DN95: 24 | DO95: 37 | DP95: 6.36 | DQ95: 5.22 | DR95: 3.85 | DS95: 5.6334 | DT95: 4.5 | DU95: 2.95 | DV95: 6 | DW95: 1.41 | DX95: 1.0826 | DY95: 2.4366 | DZ95: 19.3 | EA95: 29.76 | EB95: 1.6 | EC95: 19.8 | ED95: 1.8 | EE95: 2.5 | EF95: =SUM(EF74:EF75) -> 4.925 | EG95: 3.7 | EH95: =SUM(EH74:EH75) -> 4.125 | EI95: 2.95
A96: 95 | G96: 7月 | H96: =SUM(H76:H77) -> 1.8 | I96: 0.6 | J96: 1.1 | K96: 3.6 | L96: 0 | M96: 0 | N96: 5.2 | O96: 0.2 | P96: 0 | Q96: 4 | R96: 9 | S96: 0 | T96: 18 | U96: 0 | V96: 0 | W96: 1.3 | X96: 0 | Y96: 123 | Z96: 56 | AA96: 20 | AB96: 36 | AC96: 153 | AD96: 4 | AE96: 181 | AF96: 0 | AG96: 59 | AH96: 124 | AI96: 0 | AJ96: 12 | AK96: 0 | AL96: 0 | AM96: 0 | AN96: 0 | AO96: 6 | AP96: 24 | AQ96: 78 | AR96: 85 | AS96: 0 | AT96: 0 | AU96: 353 | AV96: 137 | AW96: 21.2 | AX96: 0 | AY96: 0 | AZ96: 79 | BA96: 0 | BB96: 207 | BC96: 53 | BD96: 92 | BE96: 5 | BF96: 32 | BG96: 2 | BH96: 111 | BI96: 0 | BJ96: 8 | BK96: 16 | BL96: 26 | BM96: 0 | BN96: 57 | BO96: 48 | BP96: 115 | BQ96: 13 | BR96: 20 | BS96: 41 | BT96: =SUM(BT76:BT77) -> 0 | BU96: 95 | BV96: 47 | BW96: 158 | BX96: 56 | BY96: 76 | BZ96: 0 | CA96: 7 | CB96: 0 | CC96: 46 | CD96: 96 | CE96: 7 | CF96: 21 | CG96: 3 | CH96: 85 | CI96: 85 | CJ96: 16 | CK96: 8 | CL96: 35 | CM96: 15 | CN96: 26 | CO96: 36 | CP96: 18 | CQ96: 18 | CR96: 26 | CS96: 28 | CT96: 15 | CU96: 28 | CV96: 42 | CW96: 8 | CX96: 5 | CY96: 12 | CZ96: 12 | DA96: 37 | DB96: 39 | DC96: 24 | DD96: 25 | DE96: 50 | DF96: 11 | DG96: 57 | DH96: 2 | DI96: 65 | DJ96: 93 | DK96: 58 | DL96: 67 | DM96: 3.1 | DN96: 26 | DO96: 31.2 | DP96: 6.54 | DQ96: 5.38 | DR96: 4.22 | DS96: 6.2 | DT96: 4.68 | DU96: 3.055 | DV96: 6.2 | DW96: 1.446 | DX96: 1.1126 | DY96: 2.5166 | DZ96: 19.86 | EA96: 30.54 | EB96: 0.9 | EC96: 19.8 | ED96: 1.8 | EE96: 1.65 | EF96: =SUM(EF76:EF77) -> 5.0624 | EG96: 4.065 | EH96: =SUM(EH76:EH77) -> 4.2874 | EI96: 3.055
A97: 96 | G97: 8月 | H97: =SUM(H78:H79) -> 0.9 | I97: 0.6 | J97: 0.9 | K97: 3.5 | L97: 0 | M97: 0 | N97: 4 | O97: 0.4 | P97: 0 | Q97: 2 | R97: 9 | S97: 0 | T97: 18.2 | U97: 0 | V97: 0 | W97: 0 | X97: 0 | Y97: 116 | Z97: 112 | AA97: 64 | AB97: 120 | AC97: 250 | AD97: 46 | AE97: 149 | AF97: 0 | AG97: 142 | AH97: 119 | AI97: 0 | AJ97: 0 | AK97: 0 | AL97: 0 | AM97: 0 | AN97: 0 | AO97: 45 | AP97: 40 | AQ97: 90 | AR97: 98 | AS97: 0 | AT97: 12 | AU97: 314 | AV97: 136 | AW97: 20 | AX97: 9 | AY97: 0 | AZ97: 85 | BA97: 21 | BB97: 207 | BC97: 48 | BD97: 22 | BE97: 25 | BF97: 28 | BG97: 2 | BH97: 129 | BI97: 0 | BJ97: 2 | BK97: 145 | BL97: 240 | BM97: 56 | BN97: 77 | BO97: 56 | BP97: 99 | BQ97: 34 | BR97: 83 | BS97: 257 | BT97: =SUM(BT78:BT79) -> 34 | BU97: 93 | BV97: 116 | BW97: 167 | BX97: 170 | BY97: 108 | BZ97: 0 | CA97: 6 | CB97: 65 | CC97: 62 | CD97: 341 | CE97: 7 | CF97: 13 | CG97: 11 | CH97: 63 | CI97: 63 | CJ97: 12 | CK97: 36 | CL97: 2 | CM97: 20 | CN97: 17 | CO97: 17 | CP97: 12 | CQ97: 14 | CR97: 12 | CS97: 24 | CT97: 20 | CU97: 35 | CV97: 19 | CW97: 31 | CX97: 4 | CY97: 3 | CZ97: 51 | DA97: 24 | DB97: 7 | DC97: 4 | DD97: 5 | DE97: 55 | DF97: 40 | DG97: 26 | DH97: 11 | DI97: 93 | DJ97: 45 | DK97: 62 | DL97: 86 | DM97: 1.5 | DN97: 24 | DO97: 4.5 | DP97: 6.54 | DQ97: 5.36 | DR97: 3.945 | DS97: 5.8 | DT97: 4.64 | DU97: 3.035 | DV97: 6.16 | DW97: 1.446 | DX97: 1.1126 | DY97: 2.5166 | DZ97: 19.86 | EA97: 30.54 | EB97: 0.9 | EC97: 19.8 | ED97: 1.8 | EE97: 0.75 | EF97: =SUM(EF78:EF79) -> 5.05 | EG97: 3.79 | EH97: =SUM(EH78:EH79) -> 4.2374 | EI97: 3.035
A98: 97 | G98: 9月 | H98: =SUM(H80:H81) -> 0.5 | I98: 0.5 | J98: 0.6 | K98: 2.8 | L98: 0 | M98: 0 | N98: 2 | O98: 9.6 | P98: 0 | Q98: 8 | R98: 14 | S98: 0 | T98: 17.7 | U98: 0 | V98: 0 | W98: 5 | X98: 0 | Y98: 102 | Z98: 81 | AA98: 139 | AB98: 116 | AC98: 236 | AD98: 76 | AE98: 140 | AF98: 128 | AG98: 226 | AH98: 100 | AI98: 4 | AJ98: 0 | AK98: 0 | AL98: 0 | AM98: 0 | AN98: 0 | AO98: 54 | AP98: 56 | AQ98: 157 | AR98: 161 | AS98: 0 | AT98: 15 | AU98: 276 | AV98: 133 | AW98: 17 | AX98: 9 | AY98: 7 | AZ98: 72 | BA98: 20 | BB98: 207 | BC98: 65 | BD98: 0 | BE98: 25 | BF98: 0 | BG98: 5 | BH98: 91 | BI98: 76 | BJ98: 8 | BK98: 52 | BL98: 12 | BM98: 65 | BN98: 107 | BO98: 50 | BP98: 144 | BQ98: 37 | BR98: 56 | BS98: 30 | BT98: =SUM(BT80:BT81) -> 78 | BU98: 64 | BV98: 72 | BW98: 115 | BX98: 52 | BY98: 102 | BZ98: 0 | CA98: 6 | CB98: 110 | CC98: 164 | CD98: 227 | CE98: 17 | CF98: 10 | CG98: 10 | CH98: 21 | CI98: 21 | CJ98: 7 | CK98: 6 | CL98: 19 | CM98: 10 | CN98: 7 | CO98: 8 | CP98: 6 | CQ98: 6 | CR98: 13 | CS98: 24 | CT98: 5 | CU98: 4 | CV98: 6 | CW98: 28 | CX98: 25 | CY98: 52 | CZ98: 4 | DA98: 6 | DB98: 4 | DC98: 8 | DD98: 13 | DE98: 3 | DF98: 25 | DG98: 2 | DH98: 12 | DI98: 94 | DJ98: 2 | DK98: 35 | DL98: 4 | DM98: 4.2 | DN98: 24 | DO98: 0 | DP98: 6.36 | DQ98: 5.22 | DR98: 3.9 | DS98: 6.0334 | DT98: 4.56 | DU98: 2.97 | DV98: 6.04 | DW98: 1.41 | DX98: 1.0826 | DY98: 2.4366 | DZ98: 19.3 | EA98: 29.76 | EB98: 0.6 | EC98: 19.8 | ED98: 1.8 | EE98: 0.45 | EF98: =SUM(EF80:EF81) -> 4.925 | EG98: 3.75 | EH98: =SUM(EH80:EH81) -> 4.175 | EI98: 2.97
A99: 98 | G99: 10月 | H99: =SUM(H82:H83) -> 0.3 | I99: 2.9 | J99: 4.4 | K99: 3.5 | L99: 0 | M99: 0 | N99: 0 | O99: 12.2 | P99: 0 | Q99: 0 | R99: 5 | S99: 3 | T99: 16.4 | U99: 6.5 | V99: 9 | W99: 23.5 | X99: 0 | Y99: 31 | Z99: 89 | AA99: 66 | AB99: 32 | AC99: 97 | AD99: 160 | AE99: 76 | AF99: 81 | AG99: 144 | AH99: 52 | AI99: 56 | AJ99: 12 | AK99: 12 | AL99: 10 | AM99: 0 | AN99: 0 | AO99: 52 | AP99: 53 | AQ99: 83 | AR99: 84 | AS99: 0 | AT99: 50 | AU99: 210 | AV99: 57 | AW99: 16.5 | AX99: 8 | AY99: 24 | AZ99: 60 | BA99: 36 | BB99: 207 | BC99: 37 | BD99: 0 | BE99: 25 | BF99: 0 | BG99: 26 | BH99: 72 | BI99: 17 | BJ99: 7.5 | BK99: 122 | BL99: 29 | BM99: 40 | BN99: 196 | BO99: 168 | BP99: 159 | BQ99: 67 | BR99: 41 | BS99: 45 | BT99: =SUM(BT82:BT83) -> 71 | BU99: 57 | BV99: 106 | BW99: 174 | BX99: 11 | BY99: 83 | BZ99: 62 | CA99: 32 | CB99: 54 | CC99: 175 | CD99: 230 | CE99: 66 | CF99: 9 | CG99: 9 | CH99: 17 | CI99: 17 | CJ99: 0 | CK99: 7 | CL99: 3 | CM99: 2 | CN99: 3 | CO99: 4 | CP99: 2 | CQ99: 2 | CR99: 2 | CS99: 46 | CT99: 9 | CU99: 4 | CV99: 2 | CW99: 4 | CX99: 53 | CY99: 4 | CZ99: 4 | DA99: 1 | DB99: 1 | DC99: 6 | DD99: 0 | DE99: 32 | DF99: 3 | DG99: 0 | DH99: 7 | DI99: 10 | DJ99: 8 | DK99: 4 | DL99: 6 | DM99: 2.9 | DN99: 23 | DO99: 1.6 | DP99: 6.54 | DQ99: 5.36 | DR99: 3.945 | DS99: 5.8 | DT99: 4.64 | DU99: 3.035 | DV99: 7.19 | DW99: 1.9934 | DX99: 1.385 | DY99: 2.5166 | DZ99: 19.86 | EA99: 30.54 | EB99: 1.9 | EC99: 19.6 | ED99: 1.8 | EE99: 0.3 | EF99: =SUM(EF82:EF83) -> 5.05 | EG99: 3.79 | EH99: =SUM(EH82:EH83) -> 4.2374 | EI99: 3.035
A100: 99 | G100: 11月 | H100: =SUM(H84:H85) -> 1.4 | I100: 1.2 | J100: 0.5 | K100: 0 | L100: 3.3 | M100: 3.8 | N100: 0 | O100: 13.5 | P100: 9 | Q100: 41 | R100: 17 | S100: 16 | T100: 16 | U100: 8 | V100: 42 | W100: 40 | X100: 0 | Y100: 19 | Z100: 78 | AA100: 69 | AB100: 89 | AC100: 39 | AD100: 143 | AE100: 31 | AF100: 123 | AG100: 59 | AH100: 26 | AI100: 70 | AJ100: 20 | AK100: 18 | AL100: 25 | AM100: 40 | AN100: 4 | AO100: 42 | AP100: 26 | AQ100: 48 | AR100: 51 | AS100: 0 | AT100: 439 | AU100: 65 | AV100: 0 | AW100: 0.3 | AX100: 1 | AY100: 1 | AZ100: 58.3 | BA100: 31 | BB100: 207 | BC100: 56 | BD100: 0 | BE100: 25 | BF100: 0 | BG100: 44 | BH100: 196 | BI100: 40 | BJ100: 15 | BK100: 152 | BL100: 0 | BM100: 51 | BN100: 301 | BO100: 268 | BP100: 109 | BQ100: 96 | BR100: 21 | BS100: 20 | BT100: =SUM(BT84:BT85) -> 40 | BU100: 45 | BV100: 402 | BW100: 50 | BX100: 104 | BY100: 17 | BZ100: 6 | CA100: 11 | CB100: 9 | CC100: 202 | CD100: 362 | CE100: 6 | CF100: 70 | CG100: 55 | CH100: 28 | CI100: 28 | CJ100: 3 | CK100: 5 | CL100: 3 | CM100: 3 | CN100: 10 | CO100: 22 | CP100: 4 | CQ100: 18 | CR100: 5 | CS100: 2 | CT100: 48 | CU100: 10 | CV100: 10 | CW100: 10 | CX100: 7 | CY100: 10 | CZ100: 10 | DA100: 10 | DB100: 10 | DC100: 10 | DD100: 8 | DE100: 32 | DF100: 3 | DG100: 3 | DH100: 0 | DI100: 0 | DJ100: 18 | DK100: 0 | DL100: 38 | DM100: 0.7 | DN100: 32 | DO100: 3.9 | DP100: 6.36 | DQ100: 5.24 | DR100: 4.08 | DS100: 6.1 | DT100: 4.54 | DU100: 2.965 | DV100: 6.03 | DW100: 1.41 | DX100: 1.0826 | DY100: 2.4366 | DZ100: 19.3 | EA100: 29.76 | EB100: 1.9 | EC100: 19.6 | ED100: 1.8 | EE100: 1.4 | EF100: =SUM(EF84:EF85) -> 4.9374 | EG100: 3.935 | EH100: =SUM(EH84:EH85) -> 4.1624 | EI100: 2.965
A101: 100 | G101: 12月 | H101: =SUM(H86:H87) -> 0.4 | I101: 0.25 | J101: 0.1 | K101: 0.1 | L101: 0.7 | M101: 0.2 | N101: 0.2 | O101: 4 | P101: 18 | Q101: 70 | R101: 1 | S101: 1 | T101: 5.1 | U101: 9.5 | V101: 5 | W101: 9 | X101: 7 | Y101: 28 | Z101: 88 | AA101: 90 | AB101: 170 | AC101: 22 | AD101: 142.9 | AE101: 3.5 | AF101: 224 | AG101: 54 | AH101: 28 | AI101: 67 | AJ101: 26.5 | AK101: 26 | AL101: 34 | AM101: 27 | AN101: 38 | AO101: 29 | AP101: 26 | AQ101: 92 | AR101: 101 | AS101: 8 | AT101: 263 | AU101: 28 | AV101: 31.4 | AW101: 0 | AX101: 14 | AY101: 2 | AZ101: 6 | BA101: 2 | BB101: 211 | BC101: 32 | BD101: 2 | BE101: 26 | BF101: 2 | BG101: 46 | BH101: 310.8 | BI101: 57 | BJ101: 22.5 | BK101: 322 | BL101: 8 | BM101: 253 | BN101: 312 | BO101: 318 | BP101: 158.8 | BQ101: 99.2 | BR101: 168 | BS101: 280 | BT101: =SUM(BT86:BT87) -> 136 | BU101: 41 | BV101: 135 | BW101: 4 | BX101: 94 | BY101: 2 | BZ101: 14 | CA101: 63 | CB101: 289 | CC101: 215 | CD101: 176 | CE101: 2.4 | CF101: 6.2 | CG101: 34.4 | CH101: 37 | CI101: 37 | CJ101: 3 | CK101: 2 | CL101: 66 | CM101: 4.4 | CN101: 16 | CO101: 57 | CP101: 36 | CQ101: 2 | CR101: 2 | CS101: 4 | CT101: 16 | CU101: 18 | CV101: 22 | CW101: 18 | CX101: 19 | CY101: 18 | CZ101: 18 | DA101: 23 | DB101: 23 | DC101: 41 | DD101: 40 | DE101: 24 | DF101: 34 | DG101: 34 | DH101: 5 | DI101: 6 | DJ101: 44 | DK101: 4 | DL101: 20 | DM101: 1.9 | DN101: 20 | DO101: 5.8 | DP101: 6.54 | DQ101: 5.36 | DR101: 3.8425 | DS101: 5.866 | DT101: 4.4 | DU101: 2.95 | DV101: 5.99 | DW101: 1.446 | DX101: 1.1126 | DY101: 2.5413 | DZ101: 19.46 | EA101: 30.24 | EB101: 0.1 | EC101: 19.6 | ED101: 1.8 | EE101: 0.4 | EF101: =SUM(EF86:EF87) -> 5.05 | EG101: 3.79 | EH101: =SUM(EH86:EH87) -> 4.025 | EI101: 2.95
